{"text_format":"1","workbook":"xlsx","n_sheets":26,"sheets":["Menu Inicial","Plan de Acción","Seguimiento Trimestre I","Seguimiento Trimestre II","Seguimiento Trimestre III","Seguimiento Trimestre IV","Lineamiento Estratégico","Estrategías","Recursos","Perfiles","Docentes V. Especial","Asistentes Académicos","Afiliaciones, Asociaciones afin","Capacitación Docente","Capacitacion Adminsitrativos","Eventos Académicos","Eventos ","Prácticas ","Hoja2","Instructivo","MAtriz","Mantenimientos  y Rep","Datos","Items con detalle","Procesos","Tipos de Indicador"],"not_rendered":{"charts":0,"images":5,"macros":1,"external_links":2,"defined_names":167,"comments":8,"pivot_tables":0},"unopened":[],"bounds":{"document_bytes":16777216,"sheet_cells":100000,"rows_first":2000,"rows_last":500,"rows_between":2000,"halvings":0,"cell_chars":16384,"cell_head_chars":4096},"cells_cut":0,"cells_raw":0,"read":"whole","date_system":"1900"}

{"sheet":"Menu Inicial","index":0,"n_rows":38,"n_cols":14,"rows_kept":38,"cut":false,"hidden":true,"merged":[[9,1,9,14],[16,1,16,14],[26,4,26,9],[27,4,27,9],[26,10,26,13],[27,10,27,13],[26,2,26,3],[27,2,27,3],[25,10,25,13],[22,10,22,13],[18,4,18,9],[20,4,20,9],[23,4,23,9],[24,4,24,9],[25,4,25,9],[22,4,22,9],[2,1,6,9],[11,7,11,11],[29,2,29,3],[30,2,30,3],[20,2,20,3],[23,2,23,3],[24,2,24,3],[25,2,25,3],[22,2,22,3],[28,2,28,3],[28,10,28,13],[29,10,29,13],[30,10,30,13],[18,10,18,13],[20,10,20,13],[24,10,24,13],[37,4,37,10],[13,3,13,6],[13,7,13,11],[18,2,18,3],[28,4,28,9],[29,4,29,9],[30,4,30,9],[23,10,23,13],[21,2,21,3],[21,4,21,9],[21,10,21,13]]}
[" "]
[]
[null,"MODULO DE FORMULACIÓN DE PLANES DE ACCIÓN POR UNIDAD ACADÉMICO Y/O ADMINISTRATIVA V.2"]
[]
[]
[]
[]
[]
[]
[null,"Bienvenido al módulo de formulación de planes de acción.\n\nPor favor identifique su Unidad:"]
[]
[null,null,null,"                 Unidad Académica y/o Administrativa:",null,null,null,"Red de Datos UDNET",null,null,null,null,{"$f":"IF(H12=\"Decanatura Facultad de Artes - ASAB\",\"LISTAF\",IF(H12=\"Decanatura Facultad de Ciencias y Educación\",\"LISTAF\",IF(H12=\"Decanatura Facultad de Ingeniería\",\"LISTAF\",IF(H12=\"Decanatura Facultad de Medio Ambiente\",\"LISTAF\",IF(H12=\"Decanatura Facultad Tecnológica\",\"LISTAF\",IF(H12=\"Vicerrectoría Académica\",\"LISTAF\",\"lISTAD\"))))))","v":"lISTAD"},{"$f":"H12","v":"Red de Datos UDNET"}]
[]
[null,null,null,"                                                Vigencia del plan: ",null,null,null,2019,null,null,null,null,null,{"$f":"H14","v":2019}]
[]
[]
[null,"A continuación se relacionan los módulos disponibles y la responsabilidades de las unidades frente a los mismos."]
[]
[null,null,"Módulo",null,"Descripción ",null,null,null,null,null,"Consideraciones"]
[]
[null,null,"  Plan de Acción",null,"Se identifican las actividades que ejecutará la unidad en el marco de los lineamientos y estrategias del PED 2018-2030. Para cada una de estas deberá establecer los productos esperados, indicadores y metas asociadas y lo recursos requeridos para el desarrollo exitoso de las mismas. ",null,null,null,null,null,"Debe ser diligenciado por todas las unidades. Desde el modulo de plan de acción se "]
[null,null,"Perfiles",null,"Se detallan todos los contratistas que se vinculan en las actividades del plan de accion donde se detallan el área del concimiento, la experiencia ",null,null,null,null,null,"Debe ser diligenciado por todas las unidades. Desde el modulo de plan de acción se "]
[null,null,"  Docentes V. Especial",null,"Se expresan los requerimientos de docentes en cada una de las modalidades de vinculación especial aplicables (TCO, MTO y Hora Cátedra).",null,null,null,null,null,"Debe ser diligenciado únicamente por las unidades académicas."]
[null,null,"  Capacitación Docente",null,"Se detallan todos los recursos  que permitan actualizar y profundizar conocimientos de los Docentes, elevar su nivel investigativo y perfeccionar su formación y desarrollo pedagógico.",null,null,null,null,null,"Debe ser diligenciado únicamente por las unidades académicas que tengan la facultad de hacer uso del rubro. "]
[null,null,"  Prácticas Académicas",null,"Se identifican las prácticas programadas y el costo asociada a las mismas en los proyectos curriculares de pregrado. ",null,null,null,null,null,"Debe ser diligenciado únicamente por las unidades académicas."]
[null,null,"  Asistentes Académicos",null,"Se identifican los requerimientos de asistentes académicos e investigativos en los proyectos curriculares. ",null,null,null,null,null,"Debe ser diligenciado únicamente por las unidades académicas."]
[null,null," Eventos Académicos",null,"Se identifican las participaciones en Eventos Académicos nacionales o internacionales. Preparación y presentación de ponencias institucionales en Eventos nacionales o internacionales Presentación de artículos, conferencias, texto, obras de arte y todo tipo de producción individual participación a nombre de la Universidad en grupos de investigación a nivel nacional o internacional ",null,null,null,null,null,"Debe ser diligenciado únicamente por las unidades académicas."]
[null,null," Mantenimiento",null,"Se deben expresar las necesidades de mantenimiento requerido por las unidades de tipo correctivo o preventivo, en muebles e inmuebles.",null,null,null,null,null,"Debe ser diligenciado únicamente por las unidades académicas, Recursos Físicos y Red Datos."]
[null,null,"  Capacitación Funcionarios",null,"Se detallan todos los recursos que permitan actualizar y profundizar conocimientos de los funcionarios, de acuerdo a los planes establecidos para esto.",null,null,null,null,null,"Debe ser diligenciado por las unidades a quienes les corresponde. "]
[null,null,"  Eventos",null,"Se expresan los requerimientos de docentes en cada una de las modalidades de vinculación especial aplicables (TCO, MTO y hora cátedra).",null,null,null,null,null,"Debe ser diligenciado únicamente por las unidades académicas."]
[null,null,"Items con detalle ",null,"Se clasifican varios ítems, que pueden ser seleccionados por algunas dependencias y deben ser soportados con la observación sobre el requerimiento dando una descripción detallada.",null,null,null,null,null,"Debe ser diligenciado por las unidades que lo consideren pertinente de acuerdo a lo expuesto en el manual del presente documento."]
[]
[]
[]
[]
[]
[]
[null,null,null,null,"             Descargue aquí el Instructivo de formulación de plan de acción"]

{"sheet":"Plan de Acción","index":1,"n_rows":32,"n_cols":71,"rows_kept":32,"cut":false,"hidden":false,"merged":[[6,21,7,21],[5,18,5,21],[6,16,7,16],[6,17,7,17],[6,20,7,20],[5,23,5,70],[6,23,6,34],[6,35,6,46],[6,47,6,58],[6,59,6,70],[22,2,28,2],[29,2,31,2],[8,3,16,3],[17,3,21,3],[8,4,16,4],[17,4,21,4],[22,3,28,3],[22,4,28,4],[8,2,21,2],[29,3,31,3],[29,4,31,4],[3,2,3,21],[1,2,2,21],[4,2,4,21],[5,2,5,6],[5,14,5,17],[5,8,5,13],[8,1,13,1],[6,18,7,18],[6,19,7,19],[8,6,16,6],[8,8,16,8],[6,10,7,10],[6,14,7,14],[6,15,7,15],[6,11,6,13],[6,2,7,2],[6,3,6,4],[6,6,7,6],[6,8,7,8],[6,9,7,9],[8,9,16,9],[26,9,28,9],[29,10,30,10],[29,11,30,11],[17,6,21,6],[17,8,21,8],[22,6,28,6],[22,8,28,8],[29,6,31,6],[29,8,31,8],[22,9,25,9],[17,9,21,9],[29,9,31,9],[29,18,30,18],[29,12,30,12],[29,14,30,14],[29,15,30,15],[29,16,30,16],[29,17,30,17],[29,13,30,13]]}
[]
[null,null,"FORMATO PLAN DE ACCIÓN POR UNIDAD ACADÉMICO Y/O ADMINISTRATIVA"]
[null,"FORMULACIÓN PLAN DE ACCIÓN VIGENCIA - 2019"]
[null,null,"Responsable : COORDINACIÓN GENERAL DE AUTOEVALUACIÓN Y ACREDITACIÓN"]
[null,null,{"$f":"IF(C9=\"Lineamiento 1. Formar ciudadanos, profesionales, investigadores, creadores e innovadores, íntegros con pensamiento crítico y cultura democrática, en contextos diferenciados inter y multiculturales para la transformación de la sociedad.\",\"Lini1\",IF(C9=\"Lineamiento 2. Establecer un diseño curricular dinámico y flexible que promueva el pluralismo y consolide una comunidad universitaria crítica-transformadora y en armonía ambiental.\",\"Lini2\",IF(C9=\"Lineamiento 3. Integrar las funciones universitarias por medio de la investigación, creación, innovación para la ampliación del conocimiento como bien público y para la solución de problemas de la ciudad -región y de la sociedad en general. \",\"Lini3\",IF(C9=\"Lineamiento 4. Garantizar, gestionar y proveer las condiciones institucionales para el cumplimiento de las funciones universitarias y el bienestar de su comunidad.\",\"Lini4\",IF(C9=\"Lineamiento 5. Consolidar y fortalecer la democracia participativa, la gobernanza y la gobernabilidad para la cohesión de la comunidad universitaria.\",\"Lini5\",\"\")))))","v":"Lini1"}]
[null,null,"PLAN ESTRATÉGICO DE DESARROLLO 2018-2030",null,null,null,null,null,"PLAN DE ACCIÓN 2019",null,null,null,null,null,"AVANCE ANUAL",null,null,null,"Plan de Adquisiciones / Recursos"]
[null,null,"Lineamiento","Meta",null,null,"Estrategia",null,"Actividad / Proyecto","Objetivos /Proyecto","Actividad/Tareas","Meta",null,null,"Cumplimiento Trimestre I","Cumplimiento Trimestre II","Cumplimiento Trimestre III","Cumplimiento Trimestre IV","Rubro presupuestal ","Descripción ","Valor asignado 2019","Duración del contrato",null," Trimestre I",null,null,null,null,null,null,null,null,null,null,null," Trimestre II",null,null,null,null,null,null,null,null,null,null,null," Trimestre III",null,null,null,null,null,null,null,null,null,null,null," Trimestre IV"]
[null,"Lineamiento N°",null,"#","Descripción",null,null,"Proceso",null,null,null,"Descripción","Indicador \n(Fórmula de cálculo)","Valor",null,null,null,null,null,null,null,null,null,1,2,3,4,5,6,7,8,9,10,11,12,13,14,15,16,17,18,19,20,21,22,23,24,25,26,27,28,29,30,31,32,33,34,35,36,37,38,39,40,41,42,43,44,45,46,47,48]
[null,"Lineamiento3","Lineamiento 1. Formar ciudadanos, profesionales, investigadores, creadores e innovadores, íntegros con pensamiento crítico y cultura democrática, en contextos diferenciados inter y multiculturales para la transformación de la sociedad.","Meta 1",{"$f":"VLOOKUP(D9,'[2]Lineamiento Estratégico'!$C$67:$D$108,2,FALSE)","v":"Mantener y elevar la acreditación institucional de alta calidad y alcanzar el reconocimiento internacional."},null,"1.2 Desarrollar de manera permanente procesos de autoevaluación que se traduzcan en planes de mejoramiento continuo para programas de posgrado y pregrado.",null,"Consolidar la cultura de la calidad a través del proceso de autoevaluación permanente, lo que contribuirá al desarrollo integral de toda la comunidad en el marco de nuestro PUI.","Presentar ante el CNA el documento maestro de autoevaluación con fines de renovación de la acreditación institucional, en el que se evidencien todas lar fortalezas de la universidad, desde la mirada de la contrucción colectiva.","Consolidar documento que reporte el avance de las fases del proceso de la re acreditación institucional.","Presentar ante el CNA Documento Maestro con fines de Acreditación Institucional","Número de documentos elaborados",1,null,0,0,1,null,null,null,null,{"$f":"+IF(SUM(O9:R9)=N9,\"Verdadero\",\"Falso\")","v":"Verdadero"}]
[null,null,null,null,null,null,null,null,null,null,"Evaluar el avance en la implementación de las 101 metas del plan de mejoramiento institucional","Lograr el 100% de las 101 metas propuestas en el PMI","(# de metas reportadas como cumplidas / # total de metas propuestas )*100 %",1,0,0.5,0,0.5,null,null,null,null,{"$f":"+IF(SUM(O10:R10)=N10,\"Verdadero\",\"Falso\")","v":"Verdadero"}]
[null,null,null,null,null,null,null,null,null,null,"Elaborar los informes semestrales del avance a fin de generar alertas tempranas.","Socializar con la comunidad los avances en el PMI (2 informes de seguimiento al año)","(Número de seguimientos realizados/número de seguimientos proyectados)*100 %",2,0,1,0,1,null,null,null,null,"Verdadero"]
[null,null,null,null,null,null,null,null,null,null,"Articular los Planes de Mejoramiento de los Proyectos Curriculares al plan de mejoramiento institucional.","Lograr que las acciones institucionales planteadas en los planes de mejoramientos se encuentren articuladas con el plan de mejoramiento institucional","(# de planes de mejoramiento revisados en la articulación / # de proyectos curriculares que cuentan con Plan de Mejoramiento )* 100 % ",1,0,0,0.5,0.5,null,null,null,null,"Verdadero"]
[null,null,null,null,null,null,null,null,null,null,"Articular el modelo AUDIT - UD a la acreditación de alta calidad de los proyectos curriculares y la re acreditación institucional.","Establecer estrategias que nos permitan fortalecer la calidad en el marco de lo solicitado por el modelo AUDIT UD","2 Informe elaborados al año de los avances del proceso",2,null,null,1,1,null,null,null,null,"Verdadero"]
[null,null,null,null,null,null,null,null,null,null,"Recopilar, analizar, evaluar y generar documentos de autoevaluación, para la renovación de la Acreditación Institucional, que evidencien nuestras fortalezas como la universidad del distrito.","Realizar reportes asociados a cada uno de los 12 factores","# reportes entregados/# total de factores del modelo",12,3,4,5,0,null,null,null,null,"Verdadero"]
[null,null,null,null,null,null,null,null,null,null,"Socializar con la comunidad los avances en el proceso de Renovación de Acreditación de Alta Calidad.","Reaslizar reuniones en cada facultad a fin de socializar el proceso de acreditación institucional","Número de Reuniones realizadas",5,0,1,2,2,null,null,null,null,"Verdadero"]
[null,null,null,null,null,null,null,null,null,null,"Entregar el documento maestro con fines de acreditación de alta calidad al CNA","Elaborar un informe que de cuenta de los avances e la universidad en el marco de lo solicitado por el CNA:","Número de documentos elaborados",1,0,null,null,1,null,null,null,null,"Verdadero"]
[null,null,null,null,null,null,null,null,null,null,"Visitas pares colaborativos","Recibir de parte de pares amigos observaciones que nos permitan fortalecer el proceso.","Número de visitas ",1,null,null,null,1,null,null,null,null,"Verdadero"]
[null,null,null,"Meta 4",{"$f":"VLOOKUP(D18,'[2]Lineamiento Estratégico'!$C$67:$D$108,2,FALSE)","v":"Aumentar en 28% el número de programas en todos los niveles y modalidades."},null,"1.8  Consolidación y aumento de una oferta académica flexible que articule los diferentes niveles de formación desde el nivel básico hasta el superior",null,"Trabajar articuladamente con las diferentes Facultades y los proyectos curriculares, tanto en aspectos metodológicos como en lineamientos académicos y administrativos relacionados con la creación de nuevos proyectos curriculares, teniendo como refrente el PUI y el PED - 2018 - 2030.","Apoyar a las facultades y a los proyectos curriculares en la consolidación de nuevas propuestas académicas en los diferentes niveles de formación.","Analizar y evaluar los documentos de registro calificado de los diferentes proyectos curriculares de pregrado y posgrado.","Mantener los Registro Calificado atendiendo los lienamientos del MEN para la renovación de los mismos","Número de conceptos realizados",3,null,1,1,1,null,null,null,null,"Verdadero"]
[null,null,null,null,null,null,null,null,null,null,"Mantener y actualizar la información documental de carácter institucional de la Universidad Distrital y analizar la información pertinente de los distintos proyectos curriculares de pregrado y postgrado con fines de registros calificados.","Contar con un documento guía para la elaboración de documentos maestros con fines de Registro Calificado por primera vez","Número de actualizaciones realizadas",2,null,1,null,1,null,null,null,null,"Verdadero"]
[null,null,null,null,null,null,null,null,null,null,"Diseñar material de soporte para la capacitación","Contar con materiral de apoyo para facilitar el trabajo de  los proyectos curriculares con relación a los procesos que lidera la oficina.","Número de módulos realizados",2,1,1,null,null,null,null,null,null,"Verdadero"]
[null,null,null,null,null,null,null,null,null,null,"Realizar capacitaciones a docente proponentes y a la comunidad que apoya los procesos.","Capacitar a profesores y administrativos en los aspectos realcionados con autoevaluación, acreditación y RC en el marco del mejoramiento continuo.","Número de capacitaciones realizadas",2,1,null,null,1,null,null,null,null,"Verdadero"]
[null,null,null,null,null,null,null,null,null,null,"Apoyar la radicación de los documentos de registro calificado en la plataforma SACES MEN.","Cumplir con los lineamientos del MEN en lo relacionado con informar de nuevas propuestas educativas para su evaluación ","Número de programas aprobados por el CSU a radicar en plataforma",3,null,1,1,1,null,null,null,null,"Verdadero"]
[null,null,"Lineamiento 2. Establecer un diseño curricular dinámico y flexible que promueva el pluralismo y consolide una comunidad universitaria crítica-transformadora y en armonía ambiental.","Meta 14",{"$f":"VLOOKUP(D23,'[2]Lineamiento Estratégico'!$C$67:$D$108,2,FALSE)","v":"Evaluar, revisar y reformular la oferta curricular de pregrado y posgrado de cada facultad, en el marco de los procesos de autoevaluación continua y los proyectos educativos de las facultades."},null,"2.1  Definición de lineamientos curriculares institucionales con enfoque crítico-transformador que fomenten el dialogo de saberes y conocimientos, la integración curricular, la pertinencia social, la flexibilidad, la interdisciplinariedad, la investigación curricular, la innovación y el uso de metodologías pertinentes a los diversos contextos",null,"Fortalecer los procesos de obtención o renovación de registros calificados, obtención o renovación de acreditación de alta calidad, a través de la mejora contiua de la autoevaluación y la consolidación de planes de mejoramiento.","Mejorar permanentemente el trabajo que se viene realizado con los proyectos curricualres en relación con  los procesos de autoevaluación, registro calificado y acreditación de alta calidad, a través de el apoyo permente a los programas, a partir de la identificación de los aspectos a mejorar y a la luz de la normatividad vigente.","Capacitar docentes en temas de Acreditación de Alta Calidad","A través de talleres diseñados para la comunidad logar el fortalecimiento del proceso.","Número de capaciones realizadas",2,1,null,null,1,null,null,null,null,"Verdadero"]
[null,null,null,null,null,null,null,null,null,null,"Elaborar documentos guía para RRC y AAC","Contar con documentos guía que faciliten los procesos","Número de documentos elaborados/Número de documentos proyectados",2,2,null,null,null,null,null,null,null,"Verdadero"]
[null,null,null,null,null,null,null,null,null,null,"Elaborar conceptos","Trabajar en el mejoramiento de los documentos elaborados para el MEN o el CNA","(Número de conceptos elaborados/ Número de programas a presentar solicitudes ante el MEN)*100 %",1,0.2,0.3,0.3,0.2,null,null,null,null,"Verdadero"]
[null,null,null,null,null,null,null,null,null,null,"Subir información a plataforma","Subir a las plataformas del MEN, en los tiempos establecidos las 15 solicitudes proyectadas","(Número de Radicaciones realizadas/número de radicaciones proyectadas)*100 %",1,0.2,0.3,0.3,0.2,null,null,null,null,"Verdadero"]
[null,null,null,null,null,null,null,null,null,"Estructurar y generar información de soporte sobre los factores, características e indicadores para los programas académicos de la facultad.","Elaborar plataformas de consulta en línea de la información","Facilitar la consulta de la información institucional que soporta los procesos, a travpes del diseño y consolidación de una plataforma.","Plataforma realizada",1,1,null,null,null,null,null,null,null,"Verdadero"]
[null,null,null,null,null,null,null,null,null,null,"Actualizar plataforma semestralmente","Mantener actualizada la información institucional.","Número de actualizaciones realizadas",2,null,1,null,1,null,null,null,null,"Verdadero"]
[null,null,null,null,null,null,null,null,null,null,"Elaboración de informes de apreciación (encuesta en línea)","Apoyar a  los programas en la cosolucación de los informes de apreciación de la comundiad frente a su quehacer universitario.","(Número de solicitudes atendidas/Número de solicitudes presentadas)*100 %",1,null,0.5,null,0.5,null,null,null,null,"Verdadero"]
[null,null,"Lineamiento 4. Garantizar, gestionar y proveer las condiciones institucionales para el cumplimiento de las funciones universitarias y el bienestar de su comunidad.","Meta 28",{"$f":"VLOOKUP(D30,'[2]Lineamiento Estratégico'!$C$67:$D$108,2,FALSE)","v":"Fortalecer las competencias de los servidores públicos al servicio de la institución, en beneficio del cumplimiento de las funciones institucionales."},null,"4.8 Identificar los avances en materia de conocimiento científico, tecnológico y de innovación que inciden en la organización, gestión y productividad de los procesos institucionales.",null,"Capacitar al personal administrativo de la universidad  que apoya los procesos de autoevaluación y acreditación ","Forlacer la cultura de la calidad con relación a los procesos y/o apoyo administrativo que requerimos para el desarrollo de nuestras funciones misionales.","Elaborar e implementar encuesta que permita establecer las necesidades de la comunidad con relación a los procesos que lideramos en esta dependencia.","Conocer las necesidades de la comunidad universitaria en relación a los procesos que apoyamos.","Número de encuestas elaboradas",1,null,1,null,null,null,null,null,null,"Verdadero"]
[null,null,null,null,null,null,null,null,null,null,null,null,null,null,null,null,null,null,null,null,null,null,"Verdadero"]
[null,null,null,null,null,null,null,null,null,null,"Programar las capacitaciones y/o talles","Proponer capacitaciones que den respuesta real a las necesidades de la comunidad administrativa y en el marco de nuestra funciones misionales","Número de capacitaciones realizadas",2,null,1,null,1,null,null,null,null,"Verdadero"]

{"sheet":"Seguimiento Trimestre I","index":2,"n_rows":32,"n_cols":19,"rows_kept":32,"cut":false,"hidden":false,"merged":[[22,2,28,2],[22,3,28,3],[22,4,28,4],[22,6,28,6],[6,8,7,8],[6,9,7,9],[6,10,7,10],[6,11,7,11],[5,10,5,18],[6,12,7,12],[6,13,7,13],[6,14,7,14],[5,8,5,9],[6,17,7,17],[29,18,30,18],[29,11,30,11],[29,12,30,12],[1,2,2,18],[6,18,7,18],[3,2,3,18],[6,15,7,15],[8,3,16,3],[8,4,16,4],[8,6,16,6],[8,8,16,8],[8,2,21,2],[5,2,5,6],[6,2,7,2],[6,3,6,4],[6,6,7,6],[22,8,25,8],[26,8,28,8],[17,3,21,3],[17,4,21,4],[17,6,21,6],[17,8,21,8],[29,14,30,14],[29,15,30,15],[29,16,30,16],[29,17,30,17],[29,2,31,2],[29,3,31,3],[29,4,31,4],[29,6,31,6],[29,8,31,8],[29,9,30,9],[29,10,30,10],[29,13,30,13]]}
[]
[null,null,"FORMATO DE SEGUIMIENTO PLANES DE ACCIÓN POR UNIDAD ACADÉMICO Y/O ADMINISTRATIVA - TRIMESTRE I"]
[null,"FORMULACIÓN PLAN DE ACCIÓN VIGENCIA - 2019"]
[null,null,{"$f":"+'Plan de Acción'!C4:V4","v":"Responsable : COORDINACIÓN GENERAL DE AUTOEVALUACIÓN Y ACREDITACIÓN"}]
[null,null,{"$f":"IF(#REF!=\"Lineamiento 1. Formar ciudadanos, profesionales, investigadores, creadores e innovadores, íntegros con pensamiento crítico y cultura democrática, en contextos diferenciados inter y multiculturales para la transformación de la sociedad.\",\"Lini1\",IF(#REF!=\"Lineamiento 2. Establecer un diseño curricular dinámico y flexible que promueva el pluralismo y consolide una comunidad universitaria crítica-transformadora y en armonía ambiental.\",\"Lini2\",IF(#REF!=\"Lineamiento 3. Integrar las funciones universitarias por medio de la investigación, creación, innovación para la ampliación del conocimiento como bien público y para la solución de problemas de la ciudad -región y de la sociedad en general. \",\"Lini3\",IF(#REF!=\"Lineamiento 4. Garantizar, gestionar y proveer las condiciones institucionales para el cumplimiento de las funciones universitarias y el bienestar de su comunidad.\",\"Lini4\",IF(#REF!=\"Lineamiento 5. Consolidar y fortalecer la democracia participativa, la gobernanza y la gobernabilidad para la cohesión de la comunidad universitaria.\",\"Lini5\",\"\")))))","v":{"$error":"#REF!"}},null,null,null,{"$f":"IF(#REF!=\"Lineamiento 1. Formar ciudadanos, profesionales, investigadores, creadores e innovadores, íntegros con pensamiento crítico y cultura democrática, en contextos diferenciados inter y multiculturales para la transformación de la sociedad.\",\"Meta1\",IF(#REF!=\"Lineamiento 2. Establecer un diseño curricular dinámico y flexible que promueva el pluralismo y consolide una comunidad universitaria crítica-transformadora y en armonía ambiental.\",\"Meta2\",IF(#REF!=\"Lineamiento 3. Integrar las funciones universitarias por medio de la investigación, creación, innovación para la ampliación del conocimiento como bien público y para la solución de problemas de la ciudad -región y de la sociedad en general. \",\"Meta3\",IF(#REF!=\"Lineamiento 4. Garantizar, gestionar y proveer las condiciones institucionales para el cumplimiento de las funciones universitarias y el bienestar de su comunidad.\",\"Meta4\",IF(#REF!=\"Lineamiento 5. Consolidar y fortalecer la democracia participativa, la gobernanza y la gobernabilidad para la cohesión de la comunidad universitaria.\",\"Meta5\",\"\")))))","v":{"$error":"#REF!"}},{"$f":"IF(#REF!=\"Planeacion Estrategica e Institucional\",\"PEI\",IF(#REF!=\"Interinstitunacionalizacion e Internacionalización\",\"II\",IF(#REF!=\"Comunicaciones\",\"COM\",IF(#REF!=\"Gestión Integrada\",\"GIT\",IF(#REF!=\"Gestión de Docencia\",\"GD\",IF(#REF!=\"Gestión de Investigacion\",\"GI\",IF(#REF!=\"Extensión y Proyeccion Social\",\"EPS\",IF(#REF!=\"Servicio al Ciudadano\",\"SC\",IF(#REF!=\"Gestión y Desarrollo del Talento Humano\",\"GDTH\",IF(#REF!=\"Bienestar Institucional\",\"BI\",IF(#REF!=\"Gestión de Infraestructura Fisica\",\"GIF\",IF(#REF!=\"Gestión de la Información Bibliográfica\",\"GIB\",IF(#REF!=\"Admisiones, Registro y Control\",\"ARC\",IF(#REF!=\"Gestión de Laboratorios\",\"GL\",IF(#REF!=\"Gestión de los Sistemas de Información y las Telecomunicaciones\",\"GSIT\",IF(#REF!=\"Gestión Documental\",\"GDC\",IF(#REF!=\"Gestión Contractual\",\"GC\",IF(#REF!=\"Gestión Jurídica\",\"GJ\",IF(#REF!=\"Gestión de Evaluación y Control\",\"EC\",IF(#REF!=\"Control Disciplinario\",\"CDE\",IF(#REF!=\"Autoevaluación y Acreditación\",\"AA\",IF(#REF!=\"Gestión de Recursos Financieros\",\"GRF\",\"\"))))))))))))))))))))))","v":{"$error":"#REF!"}}]
[null,null,"PLAN ESTRATÉGICO DE DESARROLLO 2018-2030",null,null,null,null,null,"PLAN DE ACCIÓN 2019",null,"PLAN DE ACCIÓN 2019"]
[null,"Lineamiento N°","Lineamiento","Meta",null,null,"Estrategia","Proceso","Objetivos /Proyecto","Actividad/Tareas","Logros Primer Trimestre","Dificultades Primer Trimestre","Actividades realizadas para el alcance de la meta","Indicador"," Cumplimiento Meta Proyectado I Trimestre","Cumplimiento Meta Alcanzado"," Evidencia, producto o entregable de la Actividad","Evidencias correspondientes al Primer Trimestre","Observaciones"]
[null,null,null,"#","Descripción"]
[null,null,"Lineamiento 1. Formar ciudadanos, profesionales, investigadores, creadores e innovadores, íntegros con pensamiento crítico y cultura democrática, en contextos diferenciados inter y multiculturales para la transformación de la sociedad.","Meta 1",{"$f":"VLOOKUP(D9,'[2]Lineamiento Estratégico'!$C$67:$D$108,2,FALSE)","v":"Mantener y elevar la acreditación institucional de alta calidad y alcanzar el reconocimiento internacional."},null,"1.2 Desarrollar de manera permanente procesos de autoevaluación que se traduzcan en planes de mejoramiento continuo para programas de posgrado y pregrado.",null,"Presentar ante el CNA el documento maestro de autoevaluación con fines de renovación de la acreditación institucional, en el que se evidencien todas lar fortalezas de la universidad, desde la mirada de la contrucción colectiva.","Consolidar documento que reporte el avance de las fases del proceso de la re acreditación institucional.",null,null,null,"Número de documentos elaborados"]
[null,null,null,null,null,null,null,null,null,"Evaluar el avance en la implementación de las 101 metas del plan de mejoramiento institucional",null,null,null,"(# de metas reportadas como cumplidas / # total de metas propuestas )*100 %",0]
[null,null,null,null,null,null,null,null,null,"Elaborar los informes semestrales del avance a fin de generar alertas tempranas.",null,null,null,"(Número de seguimientos realizados/número de seguimientos proyectados)*100 %",0]
[null,null,null,null,null,null,null,null,null,"Articular los Planes de Mejoramiento de los Proyectos Curriculares al plan de mejoramiento institucional.",null,null,null,"(# de planes de mejoramiento revisados en la articulación / # de proyectos curriculares que cuentan con Plan de Mejoramiento )* 100 % ",0]
[null,null,null,null,null,null,null,null,null,"Articular el modelo AUDIT - UD a la acreditación de alta calidad de los proyectos curriculares y la re acreditación institucional.",null,null,null,"2 Informe elaborados al año de los avances del proceso"]
[null,null,null,null,null,null,null,null,null,"Recopilar, analizar, evaluar y generar documentos de autoevaluación, para la renovación de la Acreditación Institucional, que evidencien nuestras fortalezas como la universidad del distrito.",null,null,null,"# reportes entregados/# total de factores del modelo",3]
[null,null,null,null,null,null,null,null,null,"Socializar con la comunidad los avances en el proceso de Renovación de Acreditación de Alta Calidad.",null,null,null,"Número de Reuniones realizadas",0]
[null,null,null,null,null,null,null,null,null,"Entregar el documento maestro con fines de acreditación de alta calidad al CNA",null,null,null,"Número de documentos elaborados",0]
[null,null,null,null,null,null,null,null,null,"Visitas pares colaborativos",null,null,null,"Número de visitas "]
[null,null,null,"Meta 4",{"$f":"VLOOKUP(D18,'[2]Lineamiento Estratégico'!$C$67:$D$108,2,FALSE)","v":"Aumentar en 28% el número de programas en todos los niveles y modalidades."},null,"1.8  Consolidación y aumento de una oferta académica flexible que articule los diferentes niveles de formación desde el nivel básico hasta el superior",null,"Apoyar a las facultades y a los proyectos curriculares en la consolidación de nuevas propuestas académicas en los diferentes niveles de formación.","Analizar y evaluar los documentos de registro calificado de los diferentes proyectos curriculares de pregrado y posgrado.",null,null,null,"Número de conceptos realizados"]
[null,null,null,null,null,null,null,null,null,"Mantener y actualizar la información documental de carácter institucional de la Universidad Distrital y analizar la información pertinente de los distintos proyectos curriculares de pregrado y postgrado con fines de registros calificados.",null,null,null,"Número de actualizaciones realizadas"]
[null,null,null,null,null,null,null,null,null,"Diseñar material de soporte para la capacitación",null,null,null,"Número de módulos realizados",1]
[null,null,null,null,null,null,null,null,null,"Realizar capacitaciones a docente proponentes y a la comunidad que apoya los procesos.",null,null,null,"Número de capacitaciones realizadas",1]
[null,null,null,null,null,null,null,null,null,"Apoyar la radicación de los documentos de registro calificado en la plataforma SACES MEN.",null,null,null,"Número de programas aprobados por el CSU a radicar en plataforma"]
[null,null,"Lineamiento 2. Establecer un diseño curricular dinámico y flexible que promueva el pluralismo y consolide una comunidad universitaria crítica-transformadora y en armonía ambiental.","Meta 14",{"$f":"VLOOKUP(D23,'[2]Lineamiento Estratégico'!$C$67:$D$108,2,FALSE)","v":"Evaluar, revisar y reformular la oferta curricular de pregrado y posgrado de cada facultad, en el marco de los procesos de autoevaluación continua y los proyectos educativos de las facultades."},null,"2.1  Definición de lineamientos curriculares institucionales con enfoque crítico-transformador que fomenten el dialogo de saberes y conocimientos, la integración curricular, la pertinencia social, la flexibilidad, la interdisciplinariedad, la investigación curricular, la innovación y el uso de metodologías pertinentes a los diversos contextos",null,"Mejorar permanentemente el trabajo que se viene realizado con los proyectos curricualres en relación con  los procesos de autoevaluación, registro calificado y acreditación de alta calidad, a través de el apoyo permente a los programas, a partir de la identificación de los aspectos a mejorar y a la luz de la normatividad vigente.","Capacitar docentes en temas de Acreditación de Alta Calidad",null,null,null,"Número de capaciones realizadas",1]
[null,null,null,null,null,null,null,null,null,"Elaborar documentos guía para RRC y AAC",null,null,null,"Número de documentos elaborados/Número de documentos proyectados",2]
[null,null,null,null,null,null,null,null,null,"Elaborar conceptos",null,null,null,"(Número de conceptos elaborados/ Número de programas a presentar solicitudes ante el MEN)*100 %",0.2]
[null,null,null,null,null,null,null,null,null,"Subir información a plataforma",null,null,null,"(Número de Radicaciones realizadas/número de radicaciones proyectadas)*100 %",0.2]
[null,null,null,null,null,null,null,null,"Estructurar y generar información de soporte sobre los factores, características e indicadores para los programas académicos de la facultad.","Elaborar plataformas de consulta en línea de la información",null,null,null,"Plataforma realizada",1]
[null,null,null,null,null,null,null,null,null,"Actualizar plataforma semestralmente",null,null,null,"Número de actualizaciones realizadas"]
[null,null,null,null,null,null,null,null,null,"Elaboración de informes de apreciación (encuesta en línea)",null,null,null,"(Número de solicitudes atendidas/Número de solicitudes presentadas)*100 %"]
[null,null,"Lineamiento 4. Garantizar, gestionar y proveer las condiciones institucionales para el cumplimiento de las funciones universitarias y el bienestar de su comunidad.","Meta 28",{"$f":"VLOOKUP(D30,'[2]Lineamiento Estratégico'!$C$67:$D$108,2,FALSE)","v":"Fortalecer las competencias de los servidores públicos al servicio de la institución, en beneficio del cumplimiento de las funciones institucionales."},null,"4.8 Identificar los avances en materia de conocimiento científico, tecnológico y de innovación que inciden en la organización, gestión y productividad de los procesos institucionales.",null,"Forlacer la cultura de la calidad con relación a los procesos y/o apoyo administrativo que requerimos para el desarrollo de nuestras funciones misionales.","Elaborar e implementar encuesta que permita establecer las necesidades de la comunidad con relación a los procesos que lideramos en esta dependencia.",null,null,null,"Número de encuestas elaboradas"]
[]
[null,null,null,null,null,null,null,null,null,"Programar las capacitaciones y/o talles",null,null,null,"Número de capacitaciones realizadas"]

{"sheet":"Seguimiento Trimestre II","index":3,"n_rows":32,"n_cols":19,"rows_kept":32,"cut":false,"hidden":false,"merged":[[6,2,7,2],[6,3,6,4],[6,6,7,6],[6,8,7,8],[6,9,7,9],[1,2,2,18],[3,2,3,18],[5,2,5,6],[5,8,5,9],[5,10,5,18],[6,17,7,17],[6,18,7,18],[8,2,21,2],[8,3,16,3],[8,4,16,4],[8,6,16,6],[8,8,16,8],[17,3,21,3],[17,4,21,4],[17,6,21,6],[6,10,7,10],[6,11,7,11],[6,12,7,12],[6,13,7,13],[6,14,7,14],[6,15,7,15],[29,9,30,9],[17,8,21,8],[22,2,28,2],[22,3,28,3],[22,4,28,4],[22,6,28,6],[22,8,25,8],[26,8,28,8],[29,2,31,2],[29,3,31,3],[29,4,31,4],[29,6,31,6],[29,8,31,8],[29,16,30,16],[29,17,30,17],[29,18,30,18],[29,10,30,10],[29,11,30,11],[29,12,30,12],[29,13,30,13],[29,14,30,14],[29,15,30,15]]}
[]
[null,null,"FORMATO DE SEGUIMIENTO PLANES DE ACCIÓN POR UNIDAD ACADÉMICO Y/O ADMINISTRATIVA - TRIMESTRE I"]
[null,"FORMULACIÓN PLAN DE ACCIÓN VIGENCIA - 2019"]
[null,null,{"$f":"+'Plan de Acción'!C4:V4","v":"Responsable : COORDINACIÓN GENERAL DE AUTOEVALUACIÓN Y ACREDITACIÓN"}]
[null,null,{"$f":"IF(#REF!=\"Lineamiento 1. Formar ciudadanos, profesionales, investigadores, creadores e innovadores, íntegros con pensamiento crítico y cultura democrática, en contextos diferenciados inter y multiculturales para la transformación de la sociedad.\",\"Lini1\",IF(#REF!=\"Lineamiento 2. Establecer un diseño curricular dinámico y flexible que promueva el pluralismo y consolide una comunidad universitaria crítica-transformadora y en armonía ambiental.\",\"Lini2\",IF(#REF!=\"Lineamiento 3. Integrar las funciones universitarias por medio de la investigación, creación, innovación para la ampliación del conocimiento como bien público y para la solución de problemas de la ciudad -región y de la sociedad en general. \",\"Lini3\",IF(#REF!=\"Lineamiento 4. Garantizar, gestionar y proveer las condiciones institucionales para el cumplimiento de las funciones universitarias y el bienestar de su comunidad.\",\"Lini4\",IF(#REF!=\"Lineamiento 5. Consolidar y fortalecer la democracia participativa, la gobernanza y la gobernabilidad para la cohesión de la comunidad universitaria.\",\"Lini5\",\"\")))))","v":{"$error":"#REF!"}},null,null,null,{"$f":"IF(#REF!=\"Lineamiento 1. Formar ciudadanos, profesionales, investigadores, creadores e innovadores, íntegros con pensamiento crítico y cultura democrática, en contextos diferenciados inter y multiculturales para la transformación de la sociedad.\",\"Meta1\",IF(#REF!=\"Lineamiento 2. Establecer un diseño curricular dinámico y flexible que promueva el pluralismo y consolide una comunidad universitaria crítica-transformadora y en armonía ambiental.\",\"Meta2\",IF(#REF!=\"Lineamiento 3. Integrar las funciones universitarias por medio de la investigación, creación, innovación para la ampliación del conocimiento como bien público y para la solución de problemas de la ciudad -región y de la sociedad en general. \",\"Meta3\",IF(#REF!=\"Lineamiento 4. Garantizar, gestionar y proveer las condiciones institucionales para el cumplimiento de las funciones universitarias y el bienestar de su comunidad.\",\"Meta4\",IF(#REF!=\"Lineamiento 5. Consolidar y fortalecer la democracia participativa, la gobernanza y la gobernabilidad para la cohesión de la comunidad universitaria.\",\"Meta5\",\"\")))))","v":{"$error":"#REF!"}},{"$f":"IF(#REF!=\"Planeacion Estrategica e Institucional\",\"PEI\",IF(#REF!=\"Interinstitunacionalizacion e Internacionalización\",\"II\",IF(#REF!=\"Comunicaciones\",\"COM\",IF(#REF!=\"Gestión Integrada\",\"GIT\",IF(#REF!=\"Gestión de Docencia\",\"GD\",IF(#REF!=\"Gestión de Investigacion\",\"GI\",IF(#REF!=\"Extensión y Proyeccion Social\",\"EPS\",IF(#REF!=\"Servicio al Ciudadano\",\"SC\",IF(#REF!=\"Gestión y Desarrollo del Talento Humano\",\"GDTH\",IF(#REF!=\"Bienestar Institucional\",\"BI\",IF(#REF!=\"Gestión de Infraestructura Fisica\",\"GIF\",IF(#REF!=\"Gestión de la Información Bibliográfica\",\"GIB\",IF(#REF!=\"Admisiones, Registro y Control\",\"ARC\",IF(#REF!=\"Gestión de Laboratorios\",\"GL\",IF(#REF!=\"Gestión de los Sistemas de Información y las Telecomunicaciones\",\"GSIT\",IF(#REF!=\"Gestión Documental\",\"GDC\",IF(#REF!=\"Gestión Contractual\",\"GC\",IF(#REF!=\"Gestión Jurídica\",\"GJ\",IF(#REF!=\"Gestión de Evaluación y Control\",\"EC\",IF(#REF!=\"Control Disciplinario\",\"CDE\",IF(#REF!=\"Autoevaluación y Acreditación\",\"AA\",IF(#REF!=\"Gestión de Recursos Financieros\",\"GRF\",\"\"))))))))))))))))))))))","v":{"$error":"#REF!"}}]
[null,null,"PLAN ESTRATÉGICO DE DESARROLLO 2018-2030",null,null,null,null,null,"PLAN DE ACCIÓN 2019",null,"PLAN DE ACCIÓN 2019"]
[null,"Lineamiento N°","Lineamiento","Meta",null,null,"Estrategia","Proceso","Objetivos /Proyecto","Actividad/Tareas","Logros Primer Trimestre","Dificultades Primer Trimestre","Actividades realizadas para el alcance de la meta","Indicador"," Cumplimiento Meta Proyectado I Trimestre","Cumplimiento Meta Alcanzado"," Evidencia, producto o entregable de la Actividad","Evidencias correspondientes al Primer Trimestre","Observaciones"]
[null,null,null,"#","Descripción"]
[null,null,"Lineamiento 1. Formar ciudadanos, profesionales, investigadores, creadores e innovadores, íntegros con pensamiento crítico y cultura democrática, en contextos diferenciados inter y multiculturales para la transformación de la sociedad.","Meta 1",{"$f":"VLOOKUP(D9,'[2]Lineamiento Estratégico'!$C$67:$D$108,2,FALSE)","v":"Mantener y elevar la acreditación institucional de alta calidad y alcanzar el reconocimiento internacional."},null,"1.2 Desarrollar de manera permanente procesos de autoevaluación que se traduzcan en planes de mejoramiento continuo para programas de posgrado y pregrado.",null,"Presentar ante el CNA el documento maestro de autoevaluación con fines de renovación de la acreditación institucional, en el que se evidencien todas lar fortalezas de la universidad, desde la mirada de la contrucción colectiva.","Consolidar documento que reporte el avance de las fases del proceso de la re acreditación institucional.",null,null,null,"Número de documentos elaborados"]
[null,null,null,null,null,null,null,null,null,"Evaluar el avance en la implementación de las 101 metas del plan de mejoramiento institucional",null,null,null,"(# de metas reportadas como cumplidas / # total de metas propuestas )*100 %",0]
[null,null,null,null,null,null,null,null,null,"Elaborar los informes semestrales del avance a fin de generar alertas tempranas.",null,null,null,"(Número de seguimientos realizados/número de seguimientos proyectados)*100 %",0]
[null,null,null,null,null,null,null,null,null,"Articular los Planes de Mejoramiento de los Proyectos Curriculares al plan de mejoramiento institucional.",null,null,null,"(# de planes de mejoramiento revisados en la articulación / # de proyectos curriculares que cuentan con Plan de Mejoramiento )* 100 % ",0]
[null,null,null,null,null,null,null,null,null,"Articular el modelo AUDIT - UD a la acreditación de alta calidad de los proyectos curriculares y la re acreditación institucional.",null,null,null,"2 Informe elaborados al año de los avances del proceso"]
[null,null,null,null,null,null,null,null,null,"Recopilar, analizar, evaluar y generar documentos de autoevaluación, para la renovación de la Acreditación Institucional, que evidencien nuestras fortalezas como la universidad del distrito.",null,null,null,"# reportes entregados/# total de factores del modelo",3]
[null,null,null,null,null,null,null,null,null,"Socializar con la comunidad los avances en el proceso de Renovación de Acreditación de Alta Calidad.",null,null,null,"Número de Reuniones realizadas",0]
[null,null,null,null,null,null,null,null,null,"Entregar el documento maestro con fines de acreditación de alta calidad al CNA",null,null,null,"Número de documentos elaborados",0]
[null,null,null,null,null,null,null,null,null,"Visitas pares colaborativos",null,null,null,"Número de visitas "]
[null,null,null,"Meta 4",{"$f":"VLOOKUP(D18,'[2]Lineamiento Estratégico'!$C$67:$D$108,2,FALSE)","v":"Aumentar en 28% el número de programas en todos los niveles y modalidades."},null,"1.8  Consolidación y aumento de una oferta académica flexible que articule los diferentes niveles de formación desde el nivel básico hasta el superior",null,"Apoyar a las facultades y a los proyectos curriculares en la consolidación de nuevas propuestas académicas en los diferentes niveles de formación.","Analizar y evaluar los documentos de registro calificado de los diferentes proyectos curriculares de pregrado y posgrado.",null,null,null,"Número de conceptos realizados"]
[null,null,null,null,null,null,null,null,null,"Mantener y actualizar la información documental de carácter institucional de la Universidad Distrital y analizar la información pertinente de los distintos proyectos curriculares de pregrado y postgrado con fines de registros calificados.",null,null,null,"Número de actualizaciones realizadas"]
[null,null,null,null,null,null,null,null,null,"Diseñar material de soporte para la capacitación",null,null,null,"Número de módulos realizados",1]
[null,null,null,null,null,null,null,null,null,"Realizar capacitaciones a docente proponentes y a la comunidad que apoya los procesos.",null,null,null,"Número de capacitaciones realizadas",1]
[null,null,null,null,null,null,null,null,null,"Apoyar la radicación de los documentos de registro calificado en la plataforma SACES MEN.",null,null,null,"Número de programas aprobados por el CSU a radicar en plataforma"]
[null,null,"Lineamiento 2. Establecer un diseño curricular dinámico y flexible que promueva el pluralismo y consolide una comunidad universitaria crítica-transformadora y en armonía ambiental.","Meta 14",{"$f":"VLOOKUP(D23,'[2]Lineamiento Estratégico'!$C$67:$D$108,2,FALSE)","v":"Evaluar, revisar y reformular la oferta curricular de pregrado y posgrado de cada facultad, en el marco de los procesos de autoevaluación continua y los proyectos educativos de las facultades."},null,"2.1  Definición de lineamientos curriculares institucionales con enfoque crítico-transformador que fomenten el dialogo de saberes y conocimientos, la integración curricular, la pertinencia social, la flexibilidad, la interdisciplinariedad, la investigación curricular, la innovación y el uso de metodologías pertinentes a los diversos contextos",null,"Mejorar permanentemente el trabajo que se viene realizado con los proyectos curricualres en relación con  los procesos de autoevaluación, registro calificado y acreditación de alta calidad, a través de el apoyo permente a los programas, a partir de la identificación de los aspectos a mejorar y a la luz de la normatividad vigente.","Capacitar docentes en temas de Acreditación de Alta Calidad",null,null,null,"Número de capaciones realizadas",1]
[null,null,null,null,null,null,null,null,null,"Elaborar documentos guía para RRC y AAC",null,null,null,"Número de documentos elaborados/Número de documentos proyectados",2]
[null,null,null,null,null,null,null,null,null,"Elaborar conceptos",null,null,null,"(Número de conceptos elaborados/ Número de programas a presentar solicitudes ante el MEN)*100 %",0.2]
[null,null,null,null,null,null,null,null,null,"Subir información a plataforma",null,null,null,"(Número de Radicaciones realizadas/número de radicaciones proyectadas)*100 %",0.2]
[null,null,null,null,null,null,null,null,"Estructurar y generar información de soporte sobre los factores, características e indicadores para los programas académicos de la facultad.","Elaborar plataformas de consulta en línea de la información",null,null,null,"Plataforma realizada",1]
[null,null,null,null,null,null,null,null,null,"Actualizar plataforma semestralmente",null,null,null,"Número de actualizaciones realizadas"]
[null,null,null,null,null,null,null,null,null,"Elaboración de informes de apreciación (encuesta en línea)",null,null,null,"(Número de solicitudes atendidas/Número de solicitudes presentadas)*100 %"]
[null,null,"Lineamiento 4. Garantizar, gestionar y proveer las condiciones institucionales para el cumplimiento de las funciones universitarias y el bienestar de su comunidad.","Meta 28",{"$f":"VLOOKUP(D30,'[2]Lineamiento Estratégico'!$C$67:$D$108,2,FALSE)","v":"Fortalecer las competencias de los servidores públicos al servicio de la institución, en beneficio del cumplimiento de las funciones institucionales."},null,"4.8 Identificar los avances en materia de conocimiento científico, tecnológico y de innovación que inciden en la organización, gestión y productividad de los procesos institucionales.",null,"Forlacer la cultura de la calidad con relación a los procesos y/o apoyo administrativo que requerimos para el desarrollo de nuestras funciones misionales.","Elaborar e implementar encuesta que permita establecer las necesidades de la comunidad con relación a los procesos que lideramos en esta dependencia.",null,null,null,"Número de encuestas elaboradas"]
[]
[null,null,null,null,null,null,null,null,null,"Programar las capacitaciones y/o talles",null,null,null,"Número de capacitaciones realizadas"]

{"sheet":"Seguimiento Trimestre III","index":4,"n_rows":28,"n_cols":21,"rows_kept":28,"cut":false,"hidden":false,"merged":[[25,2,27,2],[25,3,27,3],[25,4,27,4],[25,6,27,6],[25,8,27,8],[23,2,24,2],[23,3,24,3],[23,4,24,4],[23,6,24,6],[23,8,24,8],[6,19,7,19],[6,13,7,13],[6,14,7,14],[6,2,7,2],[6,3,6,4],[6,6,7,6],[6,8,7,8],[6,9,7,9],[6,15,7,15],[6,17,7,17],[6,11,7,11],[6,12,7,12],[1,19,3,19],[3,2,3,18],[5,2,5,6],[5,8,5,9],[5,10,5,19],[9,1,13,1],[6,10,7,10],[1,2,2,18],[6,18,7,18],[9,2,22,2],[9,3,15,3],[9,4,15,4],[9,6,15,6],[9,8,15,8],[17,3,22,3],[17,4,22,4],[17,6,22,6],[17,8,22,8]]}
[]
[null,null,"FORMATO DE SEGUIMIENTO PLANES DE ACCIÓN POR UNIDAD ACADÉMICO Y/O ADMINISTRATIVA - TRIMESTRE III"]
[null,"FORMULACIÓN PLAN DE ACCIÓN VIGENCIA - 2019"]
[null,null,{"$f":"+'Plan de Acción'!C4:V4","v":"Responsable : COORDINACIÓN GENERAL DE AUTOEVALUACIÓN Y ACREDITACIÓN"}]
[null,null,{"$f":"IF(C10=\"Lineamiento 1. Formar ciudadanos, profesionales, investigadores, creadores e innovadores, íntegros con pensamiento crítico y cultura democrática, en contextos diferenciados inter y multiculturales para la transformación de la sociedad.\",\"Lini1\",IF(C10=\"Lineamiento 2. Establecer un diseño curricular dinámico y flexible que promueva el pluralismo y consolide una comunidad universitaria crítica-transformadora y en armonía ambiental.\",\"Lini2\",IF(C10=\"Lineamiento 3. Integrar las funciones universitarias por medio de la investigación, creación, innovación para la ampliación del conocimiento como bien público y para la solución de problemas de la ciudad -región y de la sociedad en general. \",\"Lini3\",IF(C10=\"Lineamiento 4. Garantizar, gestionar y proveer las condiciones institucionales para el cumplimiento de las funciones universitarias y el bienestar de su comunidad.\",\"Lini4\",IF(C10=\"Lineamiento 5. Consolidar y fortalecer la democracia participativa, la gobernanza y la gobernabilidad para la cohesión de la comunidad universitaria.\",\"Lini5\",\"\")))))","v":"Lini1"},null,null,null,{"$f":"IF(C10=\"Lineamiento 1. Formar ciudadanos, profesionales, investigadores, creadores e innovadores, íntegros con pensamiento crítico y cultura democrática, en contextos diferenciados inter y multiculturales para la transformación de la sociedad.\",\"Meta1\",IF(C10=\"Lineamiento 2. Establecer un diseño curricular dinámico y flexible que promueva el pluralismo y consolide una comunidad universitaria crítica-transformadora y en armonía ambiental.\",\"Meta2\",IF(C10=\"Lineamiento 3. Integrar las funciones universitarias por medio de la investigación, creación, innovación para la ampliación del conocimiento como bien público y para la solución de problemas de la ciudad -región y de la sociedad en general. \",\"Meta3\",IF(C10=\"Lineamiento 4. Garantizar, gestionar y proveer las condiciones institucionales para el cumplimiento de las funciones universitarias y el bienestar de su comunidad.\",\"Meta4\",IF(C10=\"Lineamiento 5. Consolidar y fortalecer la democracia participativa, la gobernanza y la gobernabilidad para la cohesión de la comunidad universitaria.\",\"Meta5\",\"\")))))","v":"Meta1"},{"$f":"IF(H10=\"Planeacion Estrategica e Institucional\",\"PEI\",IF(H10=\"Interinstitunacionalizacion e Internacionalización\",\"II\",IF(H10=\"Comunicaciones\",\"COM\",IF(H10=\"Gestión Integrada\",\"GIT\",IF(H10=\"Gestión de Docencia\",\"GD\",IF(H10=\"Gestión de Investigacion\",\"GI\",IF(H10=\"Extensión y Proyeccion Social\",\"EPS\",IF(H10=\"Servicio al Ciudadano\",\"SC\",IF(H10=\"Gestión y Desarrollo del Talento Humano\",\"GDTH\",IF(H10=\"Bienestar Institucional\",\"BI\",IF(H10=\"Gestión de Infraestructura Fisica\",\"GIF\",IF(H10=\"Gestión de la Información Bibliográfica\",\"GIB\",IF(H10=\"Admisiones, Registro y Control\",\"ARC\",IF(H10=\"Gestión de Laboratorios\",\"GL\",IF(H10=\"Gestión de los Sistemas de Información y las Telecomunicaciones\",\"GSIT\",IF(H10=\"Gestión Documental\",\"GDC\",IF(H10=\"Gestión Contractual\",\"GC\",IF(H10=\"Gestión Jurídica\",\"GJ\",IF(H10=\"Gestión de Evaluación y Control\",\"EC\",IF(H10=\"Control Disciplinario\",\"CDE\",IF(H10=\"Autoevaluación y Acreditación\",\"AA\",IF(H10=\"Gestión de Recursos Financieros\",\"GRF\",\"\"))))))))))))))))))))))","v":""}]
[null,null,"PLAN ESTRATÉGICO DE DESARROLLO 2018-2030",null,null,null,null,null,"PLAN DE ACCIÓN 2019",null,"PLAN DE ACCIÓN 2019"]
[null,"Lineamiento N°","Lineamiento","Meta",null,null,"Estrategia","Proceso","Actividad",{"$f":"+'Plan de Acción'!J7:J8","v":"Objetivos /Proyecto"},"Logros Tercer Trimestre","Dificultades Tercer Trimestre","Actividades realizadas para el alcance de la meta",{"$f":"+'Plan de Acción'!L7:L7","v":"Meta"},"Cumplimiento Meta Proyectado III Trimestre","Cumplimiento Meta Alcanzado"," Evidencia, producto o entregable de la Actividad","Evidencias correspondientes al Tercer Trimestre","Indicador asociado","Observaciones"]
[null,null,null,"#","Descripción"]
[]
[null,"Lineamiento3","Lineamiento 1. Formar ciudadanos, profesionales, investigadores, creadores e innovadores, íntegros con pensamiento crítico y cultura democrática, en contextos diferenciados inter y multiculturales para la transformación de la sociedad.","Meta 1",{"$f":"VLOOKUP(D10,'[2]Lineamiento Estratégico'!$C$67:$D$108,2,FALSE)","v":"Mantener y elevar la acreditación institucional de alta calidad y alcanzar el reconocimiento internacional."},null,"1.2 Desarrollar de manera permanente procesos de autoevaluación que se traduzcan en planes de mejoramiento continuo para programas de posgrado y pregrado.",null,"Consolidar los requerimientos necesarios para la obtención de la re-acreditación institucional.","Consolidar documento que reporte el avance de las fases del proceso de la re acreditación institucional.",null,null,null,{"$f":"+'Plan de Acción'!L9","v":"Presentar ante el CNA Documento Maestro con fines de Acreditación Institucional"},{"$f":"+'Plan de Acción'!Q9","v":0},0,"Contratos de mantenimiento, documentos contractuales e informes de mantenimiento de la infraestructura.",null,null,null," "]
[null,null,null,null,null,null,null,null,null,"Verificar los avances en el plan de mejoramiento institucional",null,null,null,{"$f":"+'Plan de Acción'!L11","v":"Socializar con la comunidad los avances en el PMI (2 informes de seguimiento al año)"},{"$f":"+'Plan de Acción'!Q11","v":0},0,"Licencias instaladas"]
[null,null,null,null,null,null,null,null,null,"Participar con la Coordinación de Acreditación en el seguimiento de los Planes de Mejoramiento de los Proyectos Curriculares.",null,null,null,{"$f":"+'Plan de Acción'!L12","v":"Lograr que las acciones institucionales planteadas en los planes de mejoramientos se encuentren articuladas con el plan de mejoramiento institucional"},{"$f":"+'Plan de Acción'!Q12","v":0.5},0,"Documento de registro de solicitudes "]
[null,null,null,null,null,null,null,null,null,"Elaborar informes relacionados con el modelo AUDIT - UD y su incidencia en la areditación de alta calidad de los proyectos curriculares y la re acreditación institucional.",null,null,null,{"$f":"+'Plan de Acción'!L13","v":"Establecer estrategias que nos permitan fortalecer la calidad en el marco de lo solicitado por el modelo AUDIT UD"},{"$f":"+'Plan de Acción'!Q13","v":1},0]
[null,null,null,null,null,null,null,null,null,"Recopilar, analizar, evaluar y generar documentos de autoevaluación, para la renovación de la Acreditación Institucional.",null,null,null,{"$f":"+'Plan de Acción'!L14","v":"Realizar reportes asociados a cada uno de los 12 factores"},{"$f":"+'Plan de Acción'!Q14","v":5},0]
[null,null,null,null,null,null,null,null,null,"Entregar el documento maestro con fines de acreditación de alta calidad al CNA",null,null,null,{"$f":"+'Plan de Acción'!L16","v":"Elaborar un informe que de cuenta de los avances e la universidad en el marco de lo solicitado por el CNA:"},{"$f":"+'Plan de Acción'!Q16","v":0},0]
[null,null,null,null,null,null,null,null,null,"Visitas pares colaborativos",null,null,null,{"$f":"+'Plan de Acción'!L17","v":"Recibir de parte de pares amigos observaciones que nos permitan fortalecer el proceso."},{"$f":"+'Plan de Acción'!Q17","v":0},0]
[null,null,null,null,null,null,null,null,null,null,null,null,null,{"$f":"+'Plan de Acción'!#REF!","v":{"$error":"#REF!"}},{"$f":"+'Plan de Acción'!#REF!","v":{"$error":"#REF!"}},0]
[null,null,null,"Meta 4",{"$f":"VLOOKUP(D18,'[2]Lineamiento Estratégico'!$C$67:$D$108,2,FALSE)","v":"Aumentar en 28% el número de programas en todos los niveles y modalidades."},null,"1.8  Consolidación y aumento de una oferta académica flexible que articule los diferentes niveles de formación desde el nivel básico hasta el superior",null,"Apoyar a las diferentes Facultades en la metodología, y lineaminetos para la creación de nuevos proyectos curriculares.","Analizar y evaluar los documentos de registro calificado de los diferentes proyectos curriculares de pregrado y posgrado.",null,null,null,{"$f":"+'Plan de Acción'!L18","v":"Mantener los Registro Calificado atendiendo los lienamientos del MEN para la renovación de los mismos"},{"$f":"+'Plan de Acción'!Q18","v":1},0]
[null,null,null,null,null,null,null,null,null,"Mantener y actualizar la información documental de carácter institucional de la Universidad Distrital y analizar la información pertinente de los distintos proyectos curriculares de pregrado y postgrado con fines de registros calificados.",null,null,null,{"$f":"+'Plan de Acción'!L19","v":"Contar con un documento guía para la elaboración de documentos maestros con fines de Registro Calificado por primera vez"},{"$f":"+'Plan de Acción'!Q19","v":0},0]
[null,null,null,null,null,null,null,null,null,"Capacitar y acompañar a los proyectos curriculares en los procesos administrativos  relacionados con la autoevaluación y  los registros calificados.",null,null,null,{"$f":"+'Plan de Acción'!L21","v":"Capacitar a profesores y administrativos en los aspectos realcionados con autoevaluación, acreditación y RC en el marco del mejoramiento continuo."},{"$f":"+'Plan de Acción'!Q21","v":0},0]
[null,null,null,null,null,null,null,null,null,"Apoyar la radicación de los documentos de registro calificado en la plataforma SACES MEN.",null,null,null,{"$f":"+'Plan de Acción'!L22","v":"Cumplir con los lineamientos del MEN en lo relacionado con informar de nuevas propuestas educativas para su evaluación "},{"$f":"+'Plan de Acción'!Q22","v":1},0]
[null,null,null,null,null,null,null,null,null,null,null,null,null,{"$f":"+'Plan de Acción'!#REF!","v":{"$error":"#REF!"}},{"$f":"+'Plan de Acción'!#REF!","v":{"$error":"#REF!"}},0]
[null,null,null,null,null,null,null,null,null,null,null,null,null,{"$f":"+'Plan de Acción'!#REF!","v":{"$error":"#REF!"}},{"$f":"+'Plan de Acción'!#REF!","v":{"$error":"#REF!"}},0]
[null,null,"Lineamiento 2. Establecer un diseño curricular dinámico y flexible que promueva el pluralismo y consolide una comunidad universitaria crítica-transformadora y en armonía ambiental.","Meta 14",{"$f":"VLOOKUP(D24,'[2]Lineamiento Estratégico'!$C$67:$D$108,2,FALSE)","v":"Evaluar, revisar y reformular la oferta curricular de pregrado y posgrado de cada facultad, en el marco de los procesos de autoevaluación continua y los proyectos educativos de las facultades."},null,"2.1  Definición de lineamientos curriculares institucionales con enfoque crítico-transformador que fomenten el dialogo de saberes y conocimientos, la integración curricular, la pertinencia social, la flexibilidad, la interdisciplinariedad, la investigación curricular, la innovación y el uso de metodologías pertinentes a los diversos contextos",null,"Apoyar a los diferentes Proyectos Curriculares de las respectivas Facultades, en lo relacionado con la elaboración de Planes Maestros, revisión de documentos en lo referente a la obtención o renovación de registros calificados, obtención o renovación de acreditación de alta calidad.","Colaborar en la elaboración de los documentos de  renovación de registros calificados y renovación de acreditación de alta calidad.",null,null,null,{"$f":"+'Plan de Acción'!L23","v":"A través de talleres diseñados para la comunidad logar el fortalecimiento del proceso."},{"$f":"+'Plan de Acción'!Q23","v":0},0]
[null,null,null,null,null,null,null,null,null,"Estructurar y generar información de soporte sobre los factores, características e indicadores para los programas académicos de la facultad.",null,null,null,{"$f":"+'Plan de Acción'!L29","v":"Apoyar a  los programas en la cosolucación de los informes de apreciación de la comundiad frente a su quehacer universitario."},{"$f":"+'Plan de Acción'!Q29","v":0},0]
[null,null,"Lineamiento 4. Garantizar, gestionar y proveer las condiciones institucionales para el cumplimiento de las funciones universitarias y el bienestar de su comunidad.","Meta 28",{"$f":"VLOOKUP(D26,'[2]Lineamiento Estratégico'!$C$67:$D$108,2,FALSE)","v":"Fortalecer las competencias de los servidores públicos al servicio de la institución, en beneficio del cumplimiento de las funciones institucionales."},null,"4.8 Identificar los avances en materia de conocimiento científico, tecnológico y de innovación que inciden en la organización, gestión y productividad de los procesos institucionales.",null,"Capacitar al personal administrativo de la universidad  que apoya los procesos de autoevaluación y acreditación ",null,null,null,null,{"$f":"+'Plan de Acción'!#REF!","v":{"$error":"#REF!"}},{"$f":"+'Plan de Acción'!Q30","v":0},0]
[null,null,null,null,null,null,null,null,null,"Establecer las necesidades de capacitación",null,null,null,{"$f":"+'Plan de Acción'!L30","v":"Conocer las necesidades de la comunidad universitaria en relación a los procesos que apoyamos."},{"$f":"+'Plan de Acción'!Q31","v":0},0]
[null,null,null,null,null,null,null,null,null,"Programar las capacitaciones",null,null,null,{"$f":"+'Plan de Acción'!M32","v":"Número de capacitaciones realizadas"},{"$f":"+'Plan de Acción'!Q32","v":0},0]

{"sheet":"Seguimiento Trimestre IV","index":5,"n_rows":27,"n_cols":21,"rows_kept":27,"cut":false,"hidden":false,"merged":[[24,2,26,2],[24,3,26,3],[24,4,26,4],[24,6,26,6],[24,8,26,8],[22,2,23,2],[22,3,23,3],[22,4,23,4],[22,6,23,6],[22,8,23,8],[6,19,7,19],[6,13,7,13],[6,14,7,14],[6,2,7,2],[6,3,6,4],[6,6,7,6],[6,8,7,8],[6,9,7,9],[6,15,7,15],[6,17,7,17],[6,11,7,11],[6,12,7,12],[1,19,3,19],[3,2,3,18],[5,2,5,6],[5,8,5,9],[5,10,5,19],[9,1,13,1],[6,10,7,10],[1,2,2,18],[6,18,7,18],[9,2,21,2],[9,3,15,3],[9,4,15,4],[9,6,15,6],[9,8,15,8],[16,3,21,3],[16,4,21,4],[16,6,21,6],[16,8,21,8]]}
[]
[null,null,"FORMATO DE SEGUIMIENTO PLANES DE ACCIÓN POR UNIDAD ACADÉMICO Y/O ADMINISTRATIVA - TRIMESTRE IV"]
[null,"FORMULACIÓN PLAN DE ACCIÓN VIGENCIA - 2019"]
[null,null,{"$f":"+'Plan de Acción'!C4:V4","v":"Responsable : COORDINACIÓN GENERAL DE AUTOEVALUACIÓN Y ACREDITACIÓN"}]
[null,null,{"$f":"IF(C10=\"Lineamiento 1. Formar ciudadanos, profesionales, investigadores, creadores e innovadores, íntegros con pensamiento crítico y cultura democrática, en contextos diferenciados inter y multiculturales para la transformación de la sociedad.\",\"Lini1\",IF(C10=\"Lineamiento 2. Establecer un diseño curricular dinámico y flexible que promueva el pluralismo y consolide una comunidad universitaria crítica-transformadora y en armonía ambiental.\",\"Lini2\",IF(C10=\"Lineamiento 3. Integrar las funciones universitarias por medio de la investigación, creación, innovación para la ampliación del conocimiento como bien público y para la solución de problemas de la ciudad -región y de la sociedad en general. \",\"Lini3\",IF(C10=\"Lineamiento 4. Garantizar, gestionar y proveer las condiciones institucionales para el cumplimiento de las funciones universitarias y el bienestar de su comunidad.\",\"Lini4\",IF(C10=\"Lineamiento 5. Consolidar y fortalecer la democracia participativa, la gobernanza y la gobernabilidad para la cohesión de la comunidad universitaria.\",\"Lini5\",\"\")))))","v":"Lini1"},null,null,null,{"$f":"IF(C10=\"Lineamiento 1. Formar ciudadanos, profesionales, investigadores, creadores e innovadores, íntegros con pensamiento crítico y cultura democrática, en contextos diferenciados inter y multiculturales para la transformación de la sociedad.\",\"Meta1\",IF(C10=\"Lineamiento 2. Establecer un diseño curricular dinámico y flexible que promueva el pluralismo y consolide una comunidad universitaria crítica-transformadora y en armonía ambiental.\",\"Meta2\",IF(C10=\"Lineamiento 3. Integrar las funciones universitarias por medio de la investigación, creación, innovación para la ampliación del conocimiento como bien público y para la solución de problemas de la ciudad -región y de la sociedad en general. \",\"Meta3\",IF(C10=\"Lineamiento 4. Garantizar, gestionar y proveer las condiciones institucionales para el cumplimiento de las funciones universitarias y el bienestar de su comunidad.\",\"Meta4\",IF(C10=\"Lineamiento 5. Consolidar y fortalecer la democracia participativa, la gobernanza y la gobernabilidad para la cohesión de la comunidad universitaria.\",\"Meta5\",\"\")))))","v":"Meta1"},{"$f":"IF(H10=\"Planeacion Estrategica e Institucional\",\"PEI\",IF(H10=\"Interinstitunacionalizacion e Internacionalización\",\"II\",IF(H10=\"Comunicaciones\",\"COM\",IF(H10=\"Gestión Integrada\",\"GIT\",IF(H10=\"Gestión de Docencia\",\"GD\",IF(H10=\"Gestión de Investigacion\",\"GI\",IF(H10=\"Extensión y Proyeccion Social\",\"EPS\",IF(H10=\"Servicio al Ciudadano\",\"SC\",IF(H10=\"Gestión y Desarrollo del Talento Humano\",\"GDTH\",IF(H10=\"Bienestar Institucional\",\"BI\",IF(H10=\"Gestión de Infraestructura Fisica\",\"GIF\",IF(H10=\"Gestión de la Información Bibliográfica\",\"GIB\",IF(H10=\"Admisiones, Registro y Control\",\"ARC\",IF(H10=\"Gestión de Laboratorios\",\"GL\",IF(H10=\"Gestión de los Sistemas de Información y las Telecomunicaciones\",\"GSIT\",IF(H10=\"Gestión Documental\",\"GDC\",IF(H10=\"Gestión Contractual\",\"GC\",IF(H10=\"Gestión Jurídica\",\"GJ\",IF(H10=\"Gestión de Evaluación y Control\",\"EC\",IF(H10=\"Control Disciplinario\",\"CDE\",IF(H10=\"Autoevaluación y Acreditación\",\"AA\",IF(H10=\"Gestión de Recursos Financieros\",\"GRF\",\"\"))))))))))))))))))))))","v":""}]
[null,null,"PLAN ESTRATÉGICO DE DESARROLLO 2018-2030",null,null,null,null,null,"PLAN DE ACCIÓN 2019",null,"PLAN DE ACCIÓN 2019"]
[null,"Lineamiento N°","Lineamiento","Meta",null,null,"Estrategia","Proceso","Actividad",{"$f":"+'Plan de Acción'!J7:J8","v":"Objetivos /Proyecto"},"Logros Cuarto Trimestre","Dificultades Cuarto Trimestre","Actividades realizadas para el alcance de la meta",{"$f":"+'Plan de Acción'!L7:L7","v":"Meta"},"Cumplimiento Meta Proyectado IV Trimestre","Cumplimiento Meta Alcanzado"," Evidencia, producto o entregable de la Actividad","Evidencias correspondientes al Cuarto Trimestre","Indicador asociado","Observaciones"]
[null,null,null,"#","Descripción"]
[]
[null,"Lineamiento3","Lineamiento 1. Formar ciudadanos, profesionales, investigadores, creadores e innovadores, íntegros con pensamiento crítico y cultura democrática, en contextos diferenciados inter y multiculturales para la transformación de la sociedad.","Meta 1",{"$f":"VLOOKUP(D10,'[2]Lineamiento Estratégico'!$C$67:$D$108,2,FALSE)","v":"Mantener y elevar la acreditación institucional de alta calidad y alcanzar el reconocimiento internacional."},null,"1.2 Desarrollar de manera permanente procesos de autoevaluación que se traduzcan en planes de mejoramiento continuo para programas de posgrado y pregrado.",null,"Consolidar los requerimientos necesarios para la obtención de la re-acreditación institucional.","Consolidar documento que reporte el avance de las fases del proceso de la re acreditación institucional.",null,null,null,{"$f":"+'Plan de Acción'!L9","v":"Presentar ante el CNA Documento Maestro con fines de Acreditación Institucional"},{"$f":"+'Plan de Acción'!R9","v":1},0,"Contratos de mantenimiento, documentos contractuales e informes de mantenimiento de la infraestructura.",null,null,null," "]
[null,null,null,null,null,null,null,null,null,"Verificar los avances en el plan de mejoramiento institucional",null,null,null,{"$f":"+'Plan de Acción'!L11","v":"Socializar con la comunidad los avances en el PMI (2 informes de seguimiento al año)"},{"$f":"+'Plan de Acción'!R11","v":1},0,"Licencias instaladas"]
[null,null,null,null,null,null,null,null,null,"Participar con la Coordinación de Acreditación en el seguimiento de los Planes de Mejoramiento de los Proyectos Curriculares.",null,null,null,{"$f":"+'Plan de Acción'!L12","v":"Lograr que las acciones institucionales planteadas en los planes de mejoramientos se encuentren articuladas con el plan de mejoramiento institucional"},{"$f":"+'Plan de Acción'!R12","v":0.5},0,"Documento de registro de solicitudes "]
[null,null,null,null,null,null,null,null,null,"Elaborar informes relacionados con el modelo AUDIT - UD y su incidencia en la areditación de alta calidad de los proyectos curriculares y la re acreditación institucional.",null,null,null,{"$f":"+'Plan de Acción'!L13","v":"Establecer estrategias que nos permitan fortalecer la calidad en el marco de lo solicitado por el modelo AUDIT UD"},{"$f":"+'Plan de Acción'!R13","v":1},0]
[null,null,null,null,null,null,null,null,null,"Recopilar, analizar, evaluar y generar documentos de autoevaluación, para la renovación de la Acreditación Institucional.",null,null,null,{"$f":"+'Plan de Acción'!L14","v":"Realizar reportes asociados a cada uno de los 12 factores"},{"$f":"+'Plan de Acción'!R14","v":0},0]
[null,null,null,null,null,null,null,null,null,"Entregar el documento maestro con fines de acreditación de alta calidad al CNA",null,null,null,{"$f":"+'Plan de Acción'!L16","v":"Elaborar un informe que de cuenta de los avances e la universidad en el marco de lo solicitado por el CNA:"},{"$f":"+'Plan de Acción'!R16","v":1},0]
[null,null,null,null,null,null,null,null,null,"Visitas pares colaborativos",null,null,null,{"$f":"+'Plan de Acción'!L17","v":"Recibir de parte de pares amigos observaciones que nos permitan fortalecer el proceso."},{"$f":"+'Plan de Acción'!R17","v":1},0]
[null,null,null,"Meta 4",{"$f":"VLOOKUP(D17,'[2]Lineamiento Estratégico'!$C$67:$D$108,2,FALSE)","v":"Aumentar en 28% el número de programas en todos los niveles y modalidades."},null,"1.8  Consolidación y aumento de una oferta académica flexible que articule los diferentes niveles de formación desde el nivel básico hasta el superior",null,"Apoyar a las diferentes Facultades en la metodología, y lineaminetos para la creación de nuevos proyectos curriculares.","Analizar y evaluar los documentos de registro calificado de los diferentes proyectos curriculares de pregrado y posgrado.",null,null,null,{"$f":"+'Plan de Acción'!#REF!","v":{"$error":"#REF!"}},{"$f":"+'Plan de Acción'!#REF!","v":{"$error":"#REF!"}},0]
[null,null,null,null,null,null,null,null,null,"Mantener y actualizar la información documental de carácter institucional de la Universidad Distrital y analizar la información pertinente de los distintos proyectos curriculares de pregrado y postgrado con fines de registros calificados.",null,null,null,{"$f":"+'Plan de Acción'!L18","v":"Mantener los Registro Calificado atendiendo los lienamientos del MEN para la renovación de los mismos"},{"$f":"+'Plan de Acción'!R18","v":1},0]
[null,null,null,null,null,null,null,null,null,"Capacitar y acompañar a los proyectos curriculares en los procesos administrativos  relacionados con la autoevaluación y  los registros calificados.",null,null,null,{"$f":"+'Plan de Acción'!L19","v":"Contar con un documento guía para la elaboración de documentos maestros con fines de Registro Calificado por primera vez"},{"$f":"+'Plan de Acción'!R19","v":1},0]
[null,null,null,null,null,null,null,null,null,"Apoyar la radicación de los documentos de registro calificado en la plataforma SACES MEN.",null,null,null,{"$f":"+'Plan de Acción'!L21","v":"Capacitar a profesores y administrativos en los aspectos realcionados con autoevaluación, acreditación y RC en el marco del mejoramiento continuo."},{"$f":"+'Plan de Acción'!R21","v":1},0]
[null,null,null,null,null,null,null,null,null,null,null,null,null,{"$f":"+'Plan de Acción'!L22","v":"Cumplir con los lineamientos del MEN en lo relacionado con informar de nuevas propuestas educativas para su evaluación "},{"$f":"+'Plan de Acción'!R22","v":1},0]
[null,null,null,null,null,null,null,null,null,null,null,null,null,{"$f":"+'Plan de Acción'!#REF!","v":{"$error":"#REF!"}},{"$f":"+'Plan de Acción'!#REF!","v":{"$error":"#REF!"}},0]
[null,null,"Lineamiento 2. Establecer un diseño curricular dinámico y flexible que promueva el pluralismo y consolide una comunidad universitaria crítica-transformadora y en armonía ambiental.","Meta 14",{"$f":"VLOOKUP(D23,'[2]Lineamiento Estratégico'!$C$67:$D$108,2,FALSE)","v":"Evaluar, revisar y reformular la oferta curricular de pregrado y posgrado de cada facultad, en el marco de los procesos de autoevaluación continua y los proyectos educativos de las facultades."},null,"2.1  Definición de lineamientos curriculares institucionales con enfoque crítico-transformador que fomenten el dialogo de saberes y conocimientos, la integración curricular, la pertinencia social, la flexibilidad, la interdisciplinariedad, la investigación curricular, la innovación y el uso de metodologías pertinentes a los diversos contextos",null,"Apoyar a los diferentes Proyectos Curriculares de las respectivas Facultades, en lo relacionado con la elaboración de Planes Maestros, revisión de documentos en lo referente a la obtención o renovación de registros calificados, obtención o renovación de acreditación de alta calidad.","Colaborar en la elaboración de los documentos de  renovación de registros calificados y renovación de acreditación de alta calidad."]
[null,null,null,null,null,null,null,null,null,"Estructurar y generar información de soporte sobre los factores, características e indicadores para los programas académicos de la facultad."]
[null,null,"Lineamiento 4. Garantizar, gestionar y proveer las condiciones institucionales para el cumplimiento de las funciones universitarias y el bienestar de su comunidad.","Meta 28",{"$f":"VLOOKUP(D25,'[2]Lineamiento Estratégico'!$C$67:$D$108,2,FALSE)","v":"Fortalecer las competencias de los servidores públicos al servicio de la institución, en beneficio del cumplimiento de las funciones institucionales."},null,"4.8 Identificar los avances en materia de conocimiento científico, tecnológico y de innovación que inciden en la organización, gestión y productividad de los procesos institucionales.",null,"Capacitar al personal administrativo de la universidad  que apoya los procesos de autoevaluación y acreditación "]
[null,null,null,null,null,null,null,null,null,"Establecer las necesidades de capacitación"]
[null,null,null,null,null,null,null,null,null,"Programar las capacitaciones"]

{"sheet":"Lineamiento Estratégico","index":6,"n_rows":197,"n_cols":44,"rows_kept":197,"cut":false,"hidden":true,"merged":[[148,2,149,2],[151,2,155,2],[158,2,160,2],[161,2,163,2],[165,2,169,2],[113,2,116,2],[121,2,123,2],[124,2,126,2],[127,2,128,2],[146,2,147,2]]}
[]
[null,null,"LINEAMIENTO ESTRATÉGICO"]
[]
[null,null,"Lineamiento 1. Formar ciudadanos, profesionales, investigadores, creadores e innovadores, íntegros con pensamiento crítico y cultura democrática, en contextos diferenciados inter y multiculturales para la transformación de la sociedad."]
[null,null,"Lineamiento 2. Establecer un diseño curricular dinámico y flexible que promueva el pluralismo y consolide una comunidad universitaria crítica-transformadora y en armonía ambiental."]
[null,null,"Lineamiento 3. Integrar las funciones universitarias por medio de la investigación, creación, innovación para la ampliación del conocimiento como bien público y para la solución de problemas de la ciudad -región y de la sociedad en general. "]
[null,null,"Lineamiento 4. Garantizar, gestionar y proveer las condiciones institucionales para el cumplimiento de las funciones universitarias y el bienestar de su comunidad."]
[null,null,"Lineamiento 5. Consolidar y fortalecer la democracia participativa, la gobernanza y la gobernabilidad para la cohesión de la comunidad universitaria."]
[]
[null,null,"ESTRATEGIAS "]
[]
[]
[]
[]
[]
[]
[null,null,"1.6 Articulación de la acción institucional con las políticas nacionales y distritales en materia de equidad, cobertura y calidad"]
[null,null,"1.7 Coherencia entre la proyección de la oferta académica institucional, los programas, los recursos humanos y físicos para mantener la calidad de la formación, la investigación, la creación y la innovación"]
[]
[null,null,null,null,"2.9 Construcción de la política de integridad como parte del quehacer diario, que favorezca reflexiones, actitudes y comportamientos positivos de todos los servidores públicos, y que contribuya al cambio cultural."]
[null,null,null,null,"2.10 Motivar la participación de la comunidad universitaria, especialmente de los estudiantes en el diagnóstico y consolidación de programas de bienestar"]
[]
[]
[null,null,null,null,"2.13 Crear un sistema de evaluación de los servicios de bienestar universitario."]
[]
[]
[]
[]
[]
[]
[]
[]
[]
[]
[]
[]
[null,null,null,null,null,null,"104 programas evaluados al 100%",null,"Estar entre los cinco (5) primeros lugares del ranking",null,"Atender el crecimiento de la nueva cobertura (86.000 m2)",null," Gobierno TI: 100%\nEstrategia TI: 100%\nInformación: 100%\nSistemas de información: 100%\nServicios tecnológicos: 100%\nUso y apropiación: 100%"]
[null,null,null,null,"32.000 estudiantes pregrado",null,0.7,null,1,null,"Cuatro (4) CRAI",null,1]
[null,null,null,null,"4.904 estudiantes posgrado",null,0.7,null," 550 artículos",null,"Medición y seguimiento del desempeño laboral",null,"100% de la documentación posible"]
[null,null,null,null,"104 programas",null,0.4,null,"(3) Spin off\n (15) Startup",null,1,null,"\nParticipación: 100%"]
[null,null,null,null,1,null,0.9,null,25,null,980,null,"80%."]
[null,null,null,null,"50% de proyectos enfocados a la proyección social",null,null,null,null,null,"30% de las personas que laboran en la institución están en capacidad de interactuar con las personas en situación de discapacidad.",null," Verificación de la vigencia del 100% de las normas"]
[null,null,null,null,"10 programas de formación",null,null,null,0.5,null,"Al menos un descenso en el consumo de agua y electricidad en las sedes institucionales equivalente en 5% anual",null,"100% Actualizado"]
[null,null,null,null,0.2,"\n",null,null,null,null,1]
[null,null,null,null,"60% Estudiantes \n80% Docentes","\n",null,null,null,null,1]
[null,null,null,null,"1,3% Estudiantes\n5% Docentes",null,null,null,null,null,"•Materialización de riesgos de corrupción 0%\n• Racionalización de Trámites 100%\n• Rendición de Cuentas 100%\n• Mejorar la Atención al Ciudadano 100%\n• Mecanismos de transparencia y acceso a la información actualizados 100%"]
[]
[null,null,null,null,0.09]
[null,null,null,null,"De acuerdo con la proyección institucional y la Reforma Universitaria"]
[null,null,"Meta1","Meta2","Meta3","Meta4","Meta5","Meta6","Meta7","Meta8","Meta9","Meta10","Meta11","Meta12","Meta13","Meta14","Meta15","Meta16","Meta17","Meta18","Meta19","Meta20","Meta21","Meta22","Meta23","Meta24","Meta25","Meta26","Meta27","Meta28","Meta29","Meta30","Meta31","Meta32","Meta33","Meta34","Meta35","Meta36","Meta37","Meta38","Meta39","Meta40","Meta41","Meta42"]
[null,null,"Mantener y elevar la acreditación institucional de alta calidad y alcanzar el reconocimiento internacional.","Aumentar el 34% en el número de estudiantes de pregrado matriculados.","Aumentar el 65% de estudiantes matriculados en posgrado","Aumentar en 28% el número de programas en todos los niveles y modalidades","Lograr homologación y transferencia del 100% de la oferta académica de la Universidad entre sus diferentes niveles de formación ","Lograr que los proyectos de extensión respondan a la interacción entre las problemáticas del entorno y los procesos de investigación, y que sus resultados vinculen e impacten comunidades de la ciudad región","Aumentar la oferta en 10 programas de formación para el trabajo y desarrollo del talento humano en correspondencia con las necesidades de los sectores productivos y de servicios de la ciudad región.","Lograr que 20% de la oferta académica de pregrado y posgrado permita la doble titulación o cotitulación.","Lograr que el 60% de estudiantes tengan un dominio de una segunda lengua en un nivel equivalente a B2 y el 80% de los docentes en C1","Aumentar el índice de movilidad internacional anual mínimo al 1,3% de la población estudiantil y al 5% de la planta docente.","Apoyar a estudiantes de los colegios distritales ubicados en el área de influencia de las sedes de la Universidad, con programas de fortalecimiento de competencias básicas en: matemáticas, ciencias naturales, lectura crítica e inglés.","Disminuir la tasa de deserción anual a 9 %.","Modernizar la organización académica y administrativa de la institución","Evaluar, revisar y reformular la oferta curricular de pregrado y posgrado de cada facultad, en el marco de los procesos de autoevaluación continua y los proyectos educativos de las facultades","Aumentar la tasa de graduación en pregrados al 70%","Lograr que el 70 %, de los docentes, manejen eficazmente tecnologías de la información y la comunicación.","Lograr que el 40 % de los docentes de planta manejen lenguajes que permitan garantizar la atención de comunidades en el marco de la política de inclusión.","Lograr el 90% de satisfacción entre los miembros de la comunidad universitaria frente a las expectativas del bienestar estudiantil y los programas que desde allí se ofrezcan.","Clasificarse entre las 5 mejores IES colombianas según indicadores en investigación.","Aumentar el porcentaje de revistas científicas indexadas al 100%.","Aumentar la producción científica anual publicada en revistas indexadas","Crear al menos 3 empresas spin-off, 15 empresas incubadas e institutos de investigación e innovación.","Incrementar los proyectos de cofinanciación externa en 45%, cuyos recursos provengan de organismos internacionales, los sistemas de ciencia tecnología e innovación; sistema nacional de regalías y, de aquellos en los que tengan interés las entidades estatales con capacidad de financiación.","Lograr el pleno apoyo a la investigación, la creación, la formación, la innovación y el incremento de la productividad y competitividad de las empresas de la ciudad región, por medio de convenios de cooperación con los diferentes sectores","Aumentar al 50 % el número de docentes con Doctorado.","Ampliar, mejorar y modernizar física, tecnológica y ambientalmente la infraestructura, esto de acuerdo con la proyección de la cobertura y las políticas de inclusión","Consolidar cuatro centros de recursos para el aprendizaje y la investigación -CRAI-","Fortalecer las competencias de los servidores públicos al servicio de la institución, en beneficio del cumplimiento de las funciones institucionales.","Aumentar al 100 % la vinculación de empleados administrativos conforme al sistema de carrera administrativa.","Aumentar el número de docentes de planta en un 45 % y disminuir la vinculación especial en un 10 %","Generar una cultura institucional que respete las diferencias y garantice el bienestar de las personas en situación de discapacidad.","Disminuir el uso de recursos en las sedes de la institución","Implementar los dominios identificados en el marco de referencia IT 4+ establecidos por MinTIC.","Alcanzar la implementación del cuarto componente de Gobierno en Línea (Seguridad y privacidad de la información)","Lograr la calidad y disponibilidad del 100% de la información institucional, que no tenga restricción constitucional ni legal.","Implantar mecanismos de participación, de los diferentes estamentos, de la comunidad universitaria, en las instancias de planeación, gestión, seguimiento y evaluación de la Universidad.","Lograr un nivel de satisfacción mínimo del 80% por parte de las personas que utilizan los servicios de la Universidad.","Actualizar, compilar, depurar y difundir el 100% de las normas expedidas por las autoridades institucionales.","Actualizar, simplificar y flexibilizar anualmente la operación de los procesos institucionales en el cumplimiento de las funciones universitarias.","Establecer la adecuada asignación de funciones, competencias, seguridad jurídica y equilibrio institucional en la organización, gobierno y gestión de la Universidad.","Conseguir la publicación oportuna y completa de toda la información relacionada con el principio de transparencia y derecho de acceso a información pública, de acuerdo con la Ley 1712 de 2014.","Lograr indicadores de cero corrupción en la gestión institucional"]
[null,null,"1.1 Difusión y apropiación del Proyecto Universitario Institucional.","1.5 Consolidación y aumento de una oferta académica flexible que articule los diferentes niveles de formación desde el nivel básico hasta el superior.","1.5 Consolidación y aumento de una oferta académica flexible que articule los diferentes niveles de formación desde el nivel básico hasta el superior.","1.8  Consolidación y aumento de una oferta académica flexible que articule los diferentes niveles de formación desde el nivel básico hasta el superior","1.8  Consolidación y aumento de una oferta académica flexible que articule los diferentes niveles de formación desde el nivel básico hasta el superior","1.9 Promoción del intercambio, la circulación y el diálogo de conocimientos y saberes, a través de encuentros multidisciplinarios de conocimiento","1.9 Promoción del intercambio, la circulación y el diálogo de conocimientos y saberes, a través de encuentros multidisciplinarios de conocimiento","1.12 Gestión y consolidación de relaciones nacionales e internacionales para fortalecer el intercambio académico, investigativo, de creación e innovación.","1.14 Establecer y desarrollar una política institucional de apropiación de la segunda lengua como parte activa de la gestión curricular, y como condición para la titulación y la evaluación.","1.15 Promover y consolidar convenios con universidades internacionales e incrementar los intercambios de estudiantes y docentes.","1.16 Desarrollar y fortalecer la participación de la Universidad en el desarrollo del sistema educativo distrital.","1.18 Estudio sobre el impacto de la articulación con el Sector Educativo Distrital en el acceso, la permanencia y la titulación.","1.22 Disponer de manera funcional y jerarquizada un orden adecuado de relaciones entre las facultades, las escuelas y los programas académicos, de acuerdo con el Estatuto General.","2.1  Definición de lineamientos curriculares institucionales con enfoque crítico-transformador que fomenten el dialogo de saberes y conocimientos, la integración curricular, la pertinencia social, la flexibilidad, la interdisciplinariedad, la investigación curricular, la innovación y el uso de metodologías pertinentes a los diversos contextos","2.4 Desarrollo de programas e incentivos que favorezcan mejorar los índices de permanencia y repitencia.","2.7 Fortalecimiento de un modelo de formación docente continuo, que permita fomentar las dimensiones pedagógicas, didácticas, profesionales y humanas y los procesos de innovación pedagógica.","2.8  Consolidación de una evaluación integral del currículo que permita el diseño, implementación, seguimiento y retroalimentación del mismo; promueva la pertinencia social de los programas académicos, la formación integral de personas en situación de discapacidad, la especialización docente en nuevas metodologías y modalidades de enseñanza-aprendizaje; y propicie el aumento en la atención cualificada de poblaciones académicas específicas. ","2.11 Construcción de una política cultural universitaria que propenda la diversidad de las expresiones artísticas, culturales, deportivas y el desarrollo de la pertenencia institucional.","3.1 Transferencia de resultados de investigación, creación e innovación institucionales para la solución de problemas de la sociedad.","3.3 Mejoramiento y cualificación de la producción y difusión científica y creativa, de tal manera que logren mayor presencia en el mundo académico","3.4 Definición y desarrollo de la agenda de investigación-innovación-creación institucional con la comunidad universitaria y con el apoyo de actores interesados, estableciendo mecanismos de participación de acuerdo con los contextos, saberes y conocimientos de los participantes. ","3.9 Expedición de la reglamentación interna que defina el marco y las condiciones para la creación y la gestión de las empresas.","3.11 Fortalecer los diálogos e intercambios con organismos internacionales, entidades estatales y sectores productivos.","3.14 Creación y funcionamiento de un Centro de Innovación y Emprendimiento que contribuya a dar respuesta a las necesidades de los empresarios de la ciudad región, y promueva la articulación interdisciplinaria de servicios a los sectores económicos y la apropiación social del conocimiento como bien público.","3.17 Consolidación de los planes de formación doctoral para docentes de planta.","4.1 Elaborar y ejecutar el Plan Maestro de Espacios Educativos","4.7 Creación e implementación del sistema CRAI (Centro de Recursos para el Aprendizaje y la Investigación) que articule los medios educativos de la Universidad.","4.8 Identificar los avances en materia de conocimiento científico, tecnológico y de innovación que inciden en la organización, gestión y productividad de los procesos institucionales.","4.11 Aumentar y cualificar la planta de empleos docentes y administrativos, en correspondencia con la organización interna, la proyección de cobertura y las condiciones institucionales.","4.11 Aumentar y cualificar la planta de empleos docentes y administrativos, en correspondencia con la organización interna, la proyección de cobertura y las condiciones institucionales.","4.13 Adecuar las instalaciones para garantizar el bienestar de las personas en situación de discapacidad.","4.3 Promoción de la cultura de respeto por el ambiente y la sostenibilidad ambiental","5.1 Garantizar tecnologías y canales digitales que permitan generar, procesar y acceder a información oportuna sobre las funciones universitarias, los procesos y procedimientos institucionales, el trámite de servicios, la recepción de solicitudes y la generación de respuestas pertinentes y satisfactorias.","5.2 Garantizar la divulgación de toda información pública generada por la Universidad; así como el control de la información pública clasificada y reservada que maneja la institución.","5.2 Garantizar la divulgación de toda información pública generada por la Universidad; así como el control de la información pública clasificada y reservada que maneja la institución.","5.3 Consolidación de mecanismos de democracia participativa, donde la comunidad universitaria se involucre en la toma decisiones y en las dinámicas propias de la institución","5.6 Garantizar la recepción y respuesta al 100% de las peticiones, quejas y reclamos, a través de canales y medios que se ajusten a las necesidades y capacidades de las personas que los interponen. ","5.10 Fortalecimiento y ampliación de mecanismos que garanticen la eficiencia, eficacia y efectividad de las funciones universitarias; la transparencia y la ética en la toma de decisiones y en la operación institucional; y la seguridad jurídica institucional.","5.10 Fortalecimiento y ampliación de mecanismos que garanticen la eficiencia, eficacia y efectividad de las funciones universitarias; la transparencia y la ética en la toma de decisiones y en la operación institucional; y la seguridad jurídica institucional.","5.11 Revisión, actualización y modernización del Estatuto General y de las demás normas estatutarias requeridas para el cumplimiento de las funciones institucionales, con las debidas consultas a la comunidad universitaria.","5.12 Consolidación de sistemas de gestión, control, seguimiento, digitalización y acceso a la información, gestión documental, servicio en línea, trámites institucionales y atención a las personas.","5.13 Estudiar, detectar, tratar y eliminar los riesgos de corrupción, motivando la participación de la comunidad universitaria y de la sociedad en la vigilancia de la gestión y la protección del patrimonio de la Universidad. "]
[null,null,"1.2 Desarrollar de manera permanente procesos de autoevaluación que se traduzcan en planes de mejoramiento continuo para programas de posgrado y pregrado.",null,null,null,null,"1.10 Gestión de proyectos que promuevan la investigación y la proyección social como instrumentos de articulación de la Universidad con la sociedad. ","1.10 Gestión de proyectos que promuevan la investigación y la proyección social como instrumentos de articulación de la Universidad con la sociedad. ","1.13 Establecer y desarrollar un modelo de homologación y equivalencias entre los diferentes programas y las normas que lo reglamenten.",null,null,"1.17 Articulación con autoridades del Sector Educativo, los colegios y sus estamentos, la comunidad y los sectores económicos, con el fin de evaluar, articular y consolidar los objetivos educacionales y los procesos de formación en investigación, creación, innovación y emprendimiento, para fomentar la comprensión y solución de problemas y la potenciación de capacidades hacia la transformación de la sociedad.","1.19 Fortalecimiento y creación de programas que fomenten la inclusión, la permanencia, la retención y la graduación",null,"2.2 Estructuración de metodologías y estrategias de enseñanza - aprendizaje que favorezcan la construcción y resolución de situaciones problémicas","2.5 Promoción de alternativas académicas que diversifiquen las modalidades de trabajos de grado.",null,null,"2.12 Construcción de una cultura organizacional universitaria basada en la solidaridad y el respeto por lo público que permita promover la transparencia, la ética y la responsabilidad colectiva en el marco de la autonomía universitaria.","3.2 Definición y desarrollo de modelos de apropiación social del conocimiento, que posibiliten el intercambio y diálogo de saberes y conocimientos con los sectores sociales, productivos y culturales.",null,"3.5 Formulación de una política de investigación que permita la creación de programas, proyectos, líneas y áreas de investigación que estimulen la producción científica, y la solución de problemas de la ciudad-región y del país.","3.10 Desarrollo de las actividades que aborden las problemáticas de los sectores productivos, e integren a la comunidad universitaria en la búsqueda de soluciones efectivas que respondan a las necesidades diagnosticadas","3.12 Actualización y ajuste, a los intereses de la Universidad, del Estatuto de Propiedad Intelectual.","3.15 Establecer alianzas estratégicas y apoyar los parques tecnológicos en las áreas de influencia de la Universidad.",null,"4.2 Desarrollo y actualización sostenible de la infraestructura universitaria de manera articulada entre las sedes de la Universidad; además con una relación amable y respetuosa con el ambiente.",null,"4.9 Conocer las necesidades que expresan los resultados de la evaluación del desempeño; determinar las observaciones de las auditorías, internas y externas sobre la gestión y sus resultados; y diagnosticar las necesidades de los servidores públicos en materia de conocimientos. ","4.12 Implementar estrategias orientadas a incentivar los ascensos en el escalafón de los docentes de carrera y docentes especiales","4.12 Implementar estrategias orientadas a incentivar los ascensos en el escalafón de los docentes de carrera y docentes especiales","4.14 Motivar el conocimiento de lenguajes y actividades interactivas entre los servidores de la entidad y las personas en situación de discapacidad",null,null,null,null,"5.4 Promover formas de organización, interacción y asociación de los estudiantes para su participación activa en los asuntos de la vida universitaria y de la sociedad","5.7 Construir, ejecutar y evaluar periódicamente la estrategia de participación y rendición de cuentas."]
[null,null,"1.3 Elevar el nivel de desempeño de los estudiantes en las pruebas Saber Pro.",null,null,null,null,"1.11 Promoción de encuentros y articulación con el sector productivo a fin de responder a sus demandas y generar sinergia en la difusión y apropiación del conocimiento. ","1.11 Promoción de encuentros y articulación con el sector productivo a fin de responder a sus demandas y generar sinergia en la difusión y apropiación del conocimiento. ",null,null,null,null,"1.20 Desarrollo del Sistema de Bienestar universitario integral, que mejore las condiciones de los miembros de la comunidad universitaria, con altos estándares de calidad",null,"2.3 Construcción e implementación de una reforma curricular participativa, integral y flexible que fomente la integración de las funciones universitarias y los campos, articule los niveles de formación y promueva la internacionalización de los planes de estudios","2.6 Adoptar y desarrollar un programa de admisión y permanencia que permita un tránsito flexible en la malla curricular y las posibilidades de titulación, cotitulación y doble titulación.",null,null,null,null,null,"3.6 Consolidar y cualificar los grupos y semilleros de investigación",null,"3.13 Incrementar el número de doctores que participan en el desarrollo de acciones encaminadas a la apropiación social del conocimiento.","3.16 Concertar acciones de investigación, formación y asesoría con las empresas de los sectores productivos de la ciudad-región",null,"4.3 Promoción de la cultura de respeto por el ambiente y la sostenibilidad ambiental",null,"4.10 Construcción de una cultura organizacional universitaria basada en la solidaridad y el respeto por lo público que permita promover la transparencia, la ética y la responsabilidad colectiva en el marco de la autonomía universitaria",null,null,null,null,null,null,null,"5.5 Adelantar diálogos con las diferentes representaciones de la sociedad civil, las agencias de cooperación, el sector privado y la academia para cualificar el proceso de rendición pública de cuentas. ","5.8 Implementar un sistema integrado de comunicaciones que permita gestionar, articular y medir su impacto en la publicidad, difusión, acceso y apropiación de la información para favorecer la visibilidad institucional nacional e internacionalmente."]
[null,null,"1.4  Adopción de mecanismos que permitan mayor equidad y disminución de las diferencias en las condiciones laborales de los docentes.",null,null,null,null,null,null,null,9,null,null,"1.21 Promoción de la comprensión y el análisis sobre las condiciones, creencias y alternativas de proyección de los intereses de los estudiantes sobre su futuro, su situación socioeconómica y la visión que les ofrece la Universidad.",null,null,null,null,null,null,null,null,"3.7 Creación de redes de investigación, nacionales e internacionales; y promover las membresías pertinentes.",null,null,null,null,"4.4 Desarrollo y consolidación de un campus digital que conecte a las distintas dependencias académicas y administrativas y que supere las distancias territoriales entre las distintas sedes de la Universidad.",null,"4.5 Fortalecimiento de un sistema integral de información institucional que garantice su disponibilidad y la memoria institucional",null,null,null,null,null,null,null,null,"5.9 Estudiar las causas por las cuales se producen las peticiones, quejas y reclamos y adoptar mecanismos que permitan el mejoramiento continuo en la prestación de los servicios."]
[null,null,1,2,3,null,null,6,null,null,null,null,null,null,null,null,null,null,null,null,19,null,"3.8 Promover la categorización de grupos de investigación en las convocatorias que para efecto se reglamenten.",null,null,null,null,"4.6 Favorecer los indicadores de área por estudiante para el desarrollo de la actividad curricular. "]
[null,null,1,2,3,4,5,6,7,8,9,10,11,12,13,14,15,16,17,18,19,20,21,22,23,24,25,26,27,28,29,30,31,32,33,34,35,36,37,38,39,40,41,42]
[]
[]
[]
[null,null,"Meta 1","Meta 2","Meta 3","Meta 4","Meta 5","Meta 6","Meta 7","Meta 8","Meta 9","Meta 10","Meta 11","Meta 12","Meta 13","Meta 14","Meta 15","Meta 16","Meta 17","Meta 18","Meta 19","Meta 20","Meta 21","Meta 22","Meta 23","Meta 24","Meta 25","Meta 26","Meta 27","Meta 28","Meta 29","Meta 30","Meta 31","Meta 32","Meta 33","Meta 34","Meta 35","Meta 36","Meta 37","Meta 38","Meta 39","Meta 40","Meta 41","Meta 42"]
[null,null,"1.1 Difusión y apropiación del Proyecto Universitario Institucional.","1.5 Consolidación y aumento de una oferta académica flexible que articule los diferentes niveles de formación desde el nivel básico hasta el superior.","1.5 Consolidación y aumento de una oferta académica flexible que articule los diferentes niveles de formación desde el nivel básico hasta el superior.","1.8  Consolidación y aumento de una oferta académica flexible que articule los diferentes niveles de formación desde el nivel básico hasta el superior","1.8  Consolidación y aumento de una oferta académica flexible que articule los diferentes niveles de formación desde el nivel básico hasta el superior","1.9 Promoción del intercambio, la circulación y el diálogo de conocimientos y saberes, a través de encuentros multidisciplinarios de conocimiento","1.9 Promoción del intercambio, la circulación y el diálogo de conocimientos y saberes, a través de encuentros multidisciplinarios de conocimiento","1.12 Gestión y consolidación de relaciones nacionales e internacionales para fortalecer el intercambio académico, investigativo, de creación e innovación.","1.14 Establecer y desarrollar una política institucional de apropiación de la segunda lengua como parte activa de la gestión curricular, y como condición para la titulación y la evaluación.","1.15 Promover y consolidar convenios con universidades internacionales e incrementar los intercambios de estudiantes y docentes.","1.16 Desarrollar y fortalecer la participación de la Universidad en el desarrollo del sistema educativo distrital.","1.18 Estudio sobre el impacto de la articulación con el Sector Educativo Distrital en el acceso, la permanencia y la titulación.","1.22 Disponer de manera funcional y jerarquizada un orden adecuado de relaciones entre las facultades, las escuelas y los programas académicos, de acuerdo con el Estatuto General.","2.1  Definición de lineamientos curriculares institucionales con enfoque crítico-transformador que fomenten el dialogo de saberes y conocimientos, la integración curricular, la pertinencia social, la flexibilidad, la interdisciplinariedad, la investigación curricular, la innovación y el uso de metodologías pertinentes a los diversos contextos","2.4 Desarrollo de programas e incentivos que favorezcan mejorar los índices de permanencia y repitencia.","2.7 Fortalecimiento de un modelo de formación docente continuo, que permita fomentar las dimensiones pedagógicas, didácticas, profesionales y humanas y los procesos de innovación pedagógica.","2.8  Consolidación de una evaluación integral del currículo que permita el diseño, implementación, seguimiento y retroalimentación del mismo; promueva la pertinencia social de los programas académicos, la formación integral de personas en situación de discapacidad, la especialización docente en nuevas metodologías y modalidades de enseñanza-aprendizaje; y propicie el aumento en la atención cualificada de poblaciones académicas específicas. ","2.11 Construcción de una política cultural universitaria que propenda la diversidad de las expresiones artísticas, culturales, deportivas y el desarrollo de la pertenencia institucional.","3.1 Transferencia de resultados de investigación, creación e innovación institucionales para la solución de problemas de la sociedad.","3.3 Mejoramiento y cualificación de la producción y difusión científica y creativa, de tal manera que logren mayor presencia en el mundo académico","3.4 Definición y desarrollo de la agenda de investigación-innovación-creación institucional con la comunidad universitaria y con el apoyo de actores interesados, estableciendo mecanismos de participación de acuerdo con los contextos, saberes y conocimientos de los participantes. ","3.9 Expedición de la reglamentación interna que defina el marco y las condiciones para la creación y la gestión de las empresas.","3.11 Fortalecer los diálogos e intercambios con organismos internacionales, entidades estatales y sectores productivos.","3.14 Creación y funcionamiento de un Centro de Innovación y Emprendimiento que contribuya a dar respuesta a las necesidades de los empresarios de la ciudad región, y promueva la articulación interdisciplinaria de servicios a los sectores económicos y la apropiación social del conocimiento como bien público.","3.17 Consolidación de los planes de formación doctoral para docentes de planta.","4.1 Elaborar y ejecutar el Plan Maestro de Espacios Educativos","4.7 Creación e implementación del sistema CRAI (Centro de Recursos para el Aprendizaje y la Investigación) que articule los medios educativos de la Universidad.","4.8 Identificar los avances en materia de conocimiento científico, tecnológico y de innovación que inciden en la organización, gestión y productividad de los procesos institucionales.","4.11 Aumentar y cualificar la planta de empleos docentes y administrativos, en correspondencia con la organización interna, la proyección de cobertura y las condiciones institucionales.","4.11 Aumentar y cualificar la planta de empleos docentes y administrativos, en correspondencia con la organización interna, la proyección de cobertura y las condiciones institucionales.","4.13 Adecuar las instalaciones para garantizar el bienestar de las personas en situación de discapacidad.","4.3 Promoción de la cultura de respeto por el ambiente y la sostenibilidad ambiental","5.1 Garantizar tecnologías y canales digitales que permitan generar, procesar y acceder a información oportuna sobre las funciones universitarias, los procesos y procedimientos institucionales, el trámite de servicios, la recepción de solicitudes y la generación de respuestas pertinentes y satisfactorias.","5.2 Garantizar la divulgación de toda información pública generada por la Universidad; así como el control de la información pública clasificada y reservada que maneja la institución.","5.2 Garantizar la divulgación de toda información pública generada por la Universidad; así como el control de la información pública clasificada y reservada que maneja la institución.","5.3 Consolidación de mecanismos de democracia participativa, donde la comunidad universitaria se involucre en la toma decisiones y en las dinámicas propias de la institución","5.6 Garantizar la recepción y respuesta al 100% de las peticiones, quejas y reclamos, a través de canales y medios que se ajusten a las necesidades y capacidades de las personas que los interponen. ","5.10 Fortalecimiento y ampliación de mecanismos que garanticen la eficiencia, eficacia y efectividad de las funciones universitarias; la transparencia y la ética en la toma de decisiones y en la operación institucional; y la seguridad jurídica institucional.","5.10 Fortalecimiento y ampliación de mecanismos que garanticen la eficiencia, eficacia y efectividad de las funciones universitarias; la transparencia y la ética en la toma de decisiones y en la operación institucional; y la seguridad jurídica institucional.","5.11 Revisión, actualización y modernización del Estatuto General y de las demás normas estatutarias requeridas para el cumplimiento de las funciones institucionales, con las debidas consultas a la comunidad universitaria.","5.12 Consolidación de sistemas de gestión, control, seguimiento, digitalización y acceso a la información, gestión documental, servicio en línea, trámites institucionales y atención a las personas.","5.13 Estudiar, detectar, tratar y eliminar los riesgos de corrupción, motivando la participación de la comunidad universitaria y de la sociedad en la vigilancia de la gestión y la protección del patrimonio de la Universidad. "]
[null,null,"1.2 Desarrollar de manera permanente procesos de autoevaluación que se traduzcan en planes de mejoramiento continuo para programas de posgrado y pregrado.",null,null,null,null,"1.10 Gestión de proyectos que promuevan la investigación y la proyección social como instrumentos de articulación de la Universidad con la sociedad. ","1.10 Gestión de proyectos que promuevan la investigación y la proyección social como instrumentos de articulación de la Universidad con la sociedad. ","1.13 Establecer y desarrollar un modelo de homologación y equivalencias entre los diferentes programas y las normas que lo reglamenten.",null,null,"1.17 Articulación con autoridades del Sector Educativo, los colegios y sus estamentos, la comunidad y los sectores económicos, con el fin de evaluar, articular y consolidar los objetivos educacionales y los procesos de formación en investigación, creación, innovación y emprendimiento, para fomentar la comprensión y solución de problemas y la potenciación de capacidades hacia la transformación de la sociedad.","1.19 Fortalecimiento y creación de programas que fomenten la inclusión, la permanencia, la retención y la graduación",null,"2.2 Estructuración de metodologías y estrategias de enseñanza - aprendizaje que favorezcan la construcción y resolución de situaciones problémicas","2.5 Promoción de alternativas académicas que diversifiquen las modalidades de trabajos de grado.",null,null,"2.12 Construcción de una cultura organizacional universitaria basada en la solidaridad y el respeto por lo público que permita promover la transparencia, la ética y la responsabilidad colectiva en el marco de la autonomía universitaria.","3.2 Definición y desarrollo de modelos de apropiación social del conocimiento, que posibiliten el intercambio y diálogo de saberes y conocimientos con los sectores sociales, productivos y culturales.",null,"3.5 Formulación de una política de investigación que permita la creación de programas, proyectos, líneas y áreas de investigación que estimulen la producción científica, y la solución de problemas de la ciudad-región y del país.","3.10 Desarrollo de las actividades que aborden las problemáticas de los sectores productivos, e integren a la comunidad universitaria en la búsqueda de soluciones efectivas que respondan a las necesidades diagnosticadas","3.12 Actualización y ajuste, a los intereses de la Universidad, del Estatuto de Propiedad Intelectual.","3.15 Establecer alianzas estratégicas y apoyar los parques tecnológicos en las áreas de influencia de la Universidad.",null,"4.2 Desarrollo y actualización sostenible de la infraestructura universitaria de manera articulada entre las sedes de la Universidad; además con una relación amable y respetuosa con el ambiente.",null,"4.9 Conocer las necesidades que expresan los resultados de la evaluación del desempeño; determinar las observaciones de las auditorías, internas y externas sobre la gestión y sus resultados; y diagnosticar las necesidades de los servidores públicos en materia de conocimientos. ","4.12 Implementar estrategias orientadas a incentivar los ascensos en el escalafón de los docentes de carrera y docentes especiales","4.12 Implementar estrategias orientadas a incentivar los ascensos en el escalafón de los docentes de carrera y docentes especiales","4.14 Motivar el conocimiento de lenguajes y actividades interactivas entre los servidores de la entidad y las personas en situación de discapacidad",null,null,null,null,"5.4 Promover formas de organización, interacción y asociación de los estudiantes para su participación activa en los asuntos de la vida universitaria y de la sociedad","5.7 Construir, ejecutar y evaluar periódicamente la estrategia de participación y rendición de cuentas."]
[null,null,"1.3 Elevar el nivel de desempeño de los estudiantes en las pruebas Saber Pro.",null,null,null,null,"1.11 Promoción de encuentros y articulación con el sector productivo a fin de responder a sus demandas y generar sinergia en la difusión y apropiación del conocimiento. ","1.11 Promoción de encuentros y articulación con el sector productivo a fin de responder a sus demandas y generar sinergia en la difusión y apropiación del conocimiento. ",null,null,null,null,"1.20 Desarrollo del Sistema de Bienestar universitario integral, que mejore las condiciones de los miembros de la comunidad universitaria, con altos estándares de calidad",null,"2.3 Construcción e implementación de una reforma curricular participativa, integral y flexible que fomente la integración de las funciones universitarias y los campos, articule los niveles de formación y promueva la internacionalización de los planes de estudios","2.6 Adoptar y desarrollar un programa de admisión y permanencia que permita un tránsito flexible en la malla curricular y las posibilidades de titulación, cotitulación y doble titulación.",null,null,null,null,null,"3.6 Consolidar y cualificar los grupos y semilleros de investigación",null,"3.13 Incrementar el número de doctores que participan en el desarrollo de acciones encaminadas a la apropiación social del conocimiento.","3.16 Concertar acciones de investigación, formación y asesoría con las empresas de los sectores productivos de la ciudad-región",null,"4.3 Promoción de la cultura de respeto por el ambiente y la sostenibilidad ambiental",null,"4.10 Construcción de una cultura organizacional universitaria basada en la solidaridad y el respeto por lo público que permita promover la transparencia, la ética y la responsabilidad colectiva en el marco de la autonomía universitaria",null,null,null,null,null,null,null,"5.5 Adelantar diálogos con las diferentes representaciones de la sociedad civil, las agencias de cooperación, el sector privado y la academia para cualificar el proceso de rendición pública de cuentas. ","5.8 Implementar un sistema integrado de comunicaciones que permita gestionar, articular y medir su impacto en la publicidad, difusión, acceso y apropiación de la información para favorecer la visibilidad institucional nacional e internacionalmente."]
[null,null,"1.4  Adopción de mecanismos que permitan mayor equidad y disminución de las diferencias en las condiciones laborales de los docentes.",null,null,null,null,null,null,null,9,null,null,"1.21 Promoción de la comprensión y el análisis sobre las condiciones, creencias y alternativas de proyección de los intereses de los estudiantes sobre su futuro, su situación socioeconómica y la visión que les ofrece la Universidad.",null,null,null,null,null,null,null,null,"3.7 Creación de redes de investigación, nacionales e internacionales; y promover las membresías pertinentes.",null,null,null,null,"4.4 Desarrollo y consolidación de un campus digital que conecte a las distintas dependencias académicas y administrativas y que supere las distancias territoriales entre las distintas sedes de la Universidad.",null,"4.5 Fortalecimiento de un sistema integral de información institucional que garantice su disponibilidad y la memoria institucional",null,null,null,null,null,null,null,null,"5.9 Estudiar las causas por las cuales se producen las peticiones, quejas y reclamos y adoptar mecanismos que permitan el mejoramiento continuo en la prestación de los servicios."]
[null,null,null,null,null,null,null,null,null,null,null,null,null,null,null,null,null,null,null,null,null,null,"3.8 Promover la categorización de grupos de investigación en las convocatorias que para efecto se reglamenten.",null,null,null,null,"4.6 Favorecer los indicadores de área por estudiante para el desarrollo de la actividad curricular. "]
[null,null,"Meta 1","Mantener y elevar la acreditación institucional de alta calidad y alcanzar el reconocimiento internacional."]
[null,null,"Meta 2","Aumentar el 34% en el número de estudiantes de pregrado matriculados."]
[null,null,"Meta 3","Aumentar el 65% de estudiantes matriculados en posgrado."]
[null,null,"Meta 4","Aumentar en 28% el número de programas en todos los niveles y modalidades."]
[null,null,"Meta 5","Lograr homologación y transferencia del 100% de la oferta académica de la Universidad entre sus diferentes niveles de formación."]
[null,null,"Meta 6","Lograr que los proyectos de extensión respondan a la interacción entre las problemáticas del entorno y los procesos de investigación, y que sus resultados vinculen e impacten comunidades de la ciudad región"]
[null,null,"Meta 7","Aumentar la oferta en 10 programas de formación para el trabajo y desarrollo del talento humano en correspondencia con las necesidades de los sectores productivos y de servicios de la ciudad región."]
[null,null,"Meta 8","Lograr que 20% de la oferta académica de pregrado y posgrado permita la doble titulación o cotitulación."]
[null,null,"Meta 9","Lograr que el 60% de estudiantes tengan un dominio de una segunda lengua en un nivel equivalente a B2 y el 80% de los docentes en C1"]
[null,null,"Meta 10","Aumentar el índice de movilidad internacional anual mínimo al 1,3% de la población estudiantil y al 5% de la planta docente."]
[null,null,"Meta 11","Apoyar a estudiantes de los colegios distritales ubicados en el área de influencia de las sedes de la Universidad, con programas de fortalecimiento de competencias básicas en: matemáticas, ciencias naturales, lectura crítica e inglés. "]
[null,null,"Meta 12","Disminuir la tasa de deserción anual a 9 %."]
[null,null,"Meta 13","Modernizar la organización académica y administrativa de la institución."]
[null,null,"Meta 14","Evaluar, revisar y reformular la oferta curricular de pregrado y posgrado de cada facultad, en el marco de los procesos de autoevaluación continua y los proyectos educativos de las facultades."]
[null,null,"Meta 15","Aumentar la tasa de graduación en pregrados al 70%"]
[null,null,"Meta 16","Lograr que el 70 %, de los docentes, manejen eficazmente tecnologías de la información y la comunicación."]
[null,null,"Meta 17","Lograr que el 40 % de los docentes de planta manejen lenguajes que permitan garantizar la atención de comunidades en el marco de la política de inclusión."]
[null,null,"Meta 18","Lograr el 90% de satisfacción entre los miembros de la comunidad universitaria frente a las expectativas del bienestar estudiantil y los programas que desde allí se ofrezcan.  "]
[null,null,"Meta 19","Clasificarse entre las 5 mejores IES colombianas según indicadores en investigación"]
[null,null,"Meta 20","Aumentar el porcentaje de revistas científicas indexadas al 100%."]
[null,null,"Meta 21","Aumentar la producción científica anual publicada en revistas indexadas"]
[null,null,"Meta 22","Crear al menos 3 empresas spin-off, 15 empresas incubadas e institutos de investigación e innovación."]
[null,null,"Meta 23","Incrementar los proyectos de cofinanciación externa en 45%, cuyos recursos provengan de organismos internacionales, los sistemas de ciencia tecnología e innovación; sistema nacional de regalías y, de aquellos en los que tengan interés las entidades estatales con capacidad de financiación."]
[null,null,"Meta 24","Lograr el pleno apoyo a la investigación, la creación, la formación, la innovación y el incremento de la productividad y competitividad de las empresas de la ciudad región, por medio de convenios de cooperación con los diferentes sectores."]
[null,null,"Meta 25","Aumentar al 50 % el número de docentes con Doctorado"]
[null,null,"Meta 26","Ampliar, mejorar y modernizar física, tecnológica y ambientalmente la infraestructura, esto de acuerdo con la proyección de la cobertura y las políticas de inclusión "]
[null,null,"Meta 27","Consolidar cuatro centros de recursos para el aprendizaje y la investigación -CRAI-."]
[null,null,"Meta 28","Fortalecer las competencias de los servidores públicos al servicio de la institución, en beneficio del cumplimiento de las funciones institucionales."]
[null,null,"Meta 29","Aumentar al 100 % la vinculación de empleados administrativos conforme al sistema de carrera administrativa."]
[null,null,"Meta 30","Aumentar el número de docentes de planta en un 45 % y disminuir la vinculación especial en un 10 %"]
[null,null,"Meta 31","Generar una cultura institucional que respete las diferencias y garantice el bienestar de las personas en situación de discapacidad."]
[null,null,"Meta 32","Disminuir el uso de recursos en las sedes de la institución"]
[null,null,"Meta 33","Implementar los dominios identificados en el marco de referencia IT 4+ establecidos por MinTIC."]
[null,null,"Meta 34","Alcanzar la implementación del cuarto componente de Gobierno en Línea (Seguridad y privacidad de la información) "]
[null,null,"Meta 35","Lograr la calidad y disponibilidad del 100% de la información institucional, que no tenga restricción constitucional ni legal."]
[null,null,"Meta 36","Implantar mecanismos de participación, de los diferentes estamentos, de la comunidad universitaria, en las instancias de planeación, gestión, seguimiento y evaluación de la Universidad."]
[null,null,"Meta 37","Lograr un nivel de satisfacción mínimo del 80% por parte de las personas que utilizan los servicios de la Universidad"]
[null,null,"Meta 38","Actualizar, compilar, depurar y difundir el 100% de las normas expedidas por las autoridades institucionales."]
[null,null,"Meta 39","Actualizar, simplificar y flexibilizar anualmente la operación de los procesos institucionales en el cumplimiento de las funciones universitarias."]
[null,null,"Meta 40","Establecer la adecuada asignación de funciones, competencias, seguridad jurídica y equilibrio institucional en la organización, gobierno y gestión de la Universidad."]
[null,null,"Meta 41","Conseguir la publicación oportuna y completa de toda la información relacionada con el principio de transparencia y derecho de acceso a información pública, de acuerdo con la Ley 1712 de 2014."]
[null,null,"Meta 42","Lograr indicadores de cero corrupción en la gestión institucional."]
[]
[]
[]
[]
[]
[null,null,"Mantener y elevar la acreditación institucional de alta calidad y alcanzar el reconocimiento internacional.","1.1 Difusión y apropiación del Proyecto Universitario Institucional."]
[null,null,null,"1.2 Desarrollar de manera permanente procesos de autoevaluación que se traduzcan en planes de mejoramiento continuo para programas de posgrado y pregrado."]
[null,null,null,"1.3 Elevar el nivel de desempeño de los estudiantes en las pruebas Saber Pro."]
[null,null,null,"1.4  Adopción de mecanismos que permitan mayor equidad y disminución de las diferencias en las condiciones laborales de los docentes."]
[null,null,"Aumentar el 34% en el número de estudiantes de pregrado matriculados.","1.5 Consolidación y aumento de una oferta académica flexible que articule los diferentes niveles de formación desde el nivel básico hasta el superior."]
[null,null,"Aumentar el 65% de estudiantes matriculados en posgrado","1.5 Consolidación y aumento de una oferta académica flexible que articule los diferentes niveles de formación desde el nivel básico hasta el superior."]
[null,null,"Aumentar en 28% el número de programas en todos los niveles y modalidades","1.8  Consolidación y aumento de una oferta académica flexible que articule los diferentes niveles de formación desde el nivel básico hasta el superior"]
[null,null,"Lograr homologación y transferencia del 100% de la oferta académica de la Universidad entre sus diferentes niveles de formación ","1.8  Consolidación y aumento de una oferta académica flexible que articule los diferentes niveles de formación desde el nivel básico hasta el superior"]
[null,null,"Lograr que los proyectos de extensión respondan a la interacción entre las problemáticas del entorno y los procesos de investigación, y que sus resultados vinculen e impacten comunidades de la ciudad región","1.9 Promoción del intercambio, la circulación y el diálogo de conocimientos y saberes, a través de encuentros multidisciplinarios de conocimiento"]
[null,null,null,"1.10 Gestión de proyectos que promuevan la investigación y la proyección social como instrumentos de articulación de la Universidad con la sociedad. "]
[null,null,null,"1.11 Promoción de encuentros y articulación con el sector productivo a fin de responder a sus demandas y generar sinergia en la difusión y apropiación del conocimiento. "]
[null,null,"Aumentar la oferta en 10 programas de formación para el trabajo y desarrollo del talento humano en correspondencia con las necesidades de los sectores productivos y de servicios de la ciudad región.","1.9 Promoción del intercambio, la circulación y el diálogo de conocimientos y saberes, a través de encuentros multidisciplinarios de conocimiento"]
[null,null,null,"1.10 Gestión de proyectos que promuevan la investigación y la proyección social como instrumentos de articulación de la Universidad con la sociedad. "]
[null,null,null,"1.11 Promoción de encuentros y articulación con el sector productivo a fin de responder a sus demandas y generar sinergia en la difusión y apropiación del conocimiento. "]
[null,null,"Lograr que 20% de la oferta académica de pregrado y posgrado permita la doble titulación o cotitulación.","1.12 Gestión y consolidación de relaciones nacionales e internacionales para fortalecer el intercambio académico, investigativo, de creación e innovación."]
[null,null,null,"1.13 Establecer y desarrollar un modelo de homologación y equivalencias entre los diferentes programas y las normas que lo reglamenten."]
[null,null,"Lograr que el 60% de estudiantes tengan un dominio de una segunda lengua en un nivel equivalente a B2 y el 80% de los docentes en C1","1.14 Establecer y desarrollar una política institucional de apropiación de la segunda lengua como parte activa de la gestión curricular, y como condición para la titulación y la evaluación."]
[null,null,"Aumentar el índice de movilidad internacional anual mínimo al 1,3% de la población estudiantil y al 5% de la planta docente.","1.15 Promover y consolidar convenios con universidades internacionales e incrementar los intercambios de estudiantes y docentes."]
[null,null,"Apoyar a estudiantes de los colegios distritales ubicados en el área de influencia de las sedes de la Universidad, con programas de fortalecimiento de competencias básicas en: matemáticas, ciencias naturales, lectura crítica e inglés.","1.16 Desarrollar y fortalecer la participación de la Universidad en el desarrollo del sistema educativo distrital."]
[null,null,null,"1.17 Articulación con autoridades del Sector Educativo, los colegios y sus estamentos, la comunidad y los sectores económicos, con el fin de evaluar, articular y consolidar los objetivos educacionales y los procesos de formación en investigación, creación, innovación y emprendimiento, para fomentar la comprensión y solución de problemas y la potenciación de capacidades hacia la transformación de la sociedad."]
[null,null,"Disminuir la tasa de deserción anual a 9 %.","1.18 Estudio sobre el impacto de la articulación con el Sector Educativo Distrital en el acceso, la permanencia y la titulación."]
[null,null,null,"1.19 Fortalecimiento y creación de programas que fomenten la inclusión, la permanencia, la retención y la graduación"]
[null,null,null,"1.20 Desarrollo del Sistema de Bienestar universitario integral, que mejore las condiciones de los miembros de la comunidad universitaria, con altos estándares de calidad"]
[null,null,null,"1.21 Promoción de la comprensión y el análisis sobre las condiciones, creencias y alternativas de proyección de los intereses de los estudiantes sobre su futuro, su situación socioeconómica y la visión que les ofrece la Universidad."]
[null,null,"Modernizar la organización académica y administrativa de la institución","1.22 Disponer de manera funcional y jerarquizada un orden adecuado de relaciones entre las facultades, las escuelas y los programas académicos, de acuerdo con el Estatuto General."]
[null,null,"Evaluar, revisar y reformular la oferta curricular de pregrado y posgrado de cada facultad, en el marco de los procesos de autoevaluación continua y los proyectos educativos de las facultades","2.1  Definición de lineamientos curriculares institucionales con enfoque crítico-transformador que fomenten el dialogo de saberes y conocimientos, la integración curricular, la pertinencia social, la flexibilidad, la interdisciplinariedad, la investigación curricular, la innovación y el uso de metodologías pertinentes a los diversos contextos"]
[null,null,null,"2.2 Estructuración de metodologías y estrategias de enseñanza - aprendizaje que favorezcan la construcción y resolución de situaciones problémicas"]
[null,null,null,"2.3 Construcción e implementación de una reforma curricular participativa, integral y flexible que fomente la integración de las funciones universitarias y los campos, articule los niveles de formación y promueva la internacionalización de los planes de estudios"]
[null,null,"Aumentar la tasa de graduación en pregrados al 70%","2.4 Desarrollo de programas e incentivos que favorezcan mejorar los índices de permanencia y repitencia."]
[null,null,null,"2.5 Promoción de alternativas académicas que diversifiquen las modalidades de trabajos de grado."]
[null,null,null,"2.6 Adoptar y desarrollar un programa de admisión y permanencia que permita un tránsito flexible en la malla curricular y las posibilidades de titulación, cotitulación y doble titulación."]
[null,null,"Lograr que el 70 %, de los docentes, manejen eficazmente tecnologías de la información y la comunicación.","2.7 Fortalecimiento de un modelo de formación docente continuo, que permita fomentar las dimensiones pedagógicas, didácticas, profesionales y humanas y los procesos de innovación pedagógica."]
[null,null,"Lograr que el 40 % de los docentes de planta manejen lenguajes que permitan garantizar la atención de comunidades en el marco de la política de inclusión.","2.8  Consolidación de una evaluación integral del currículo que permita el diseño, implementación, seguimiento y retroalimentación del mismo; promueva la pertinencia social de los programas académicos, la formación integral de personas en situación de discapacidad, la especialización docente en nuevas metodologías y modalidades de enseñanza-aprendizaje; y propicie el aumento en la atención cualificada de poblaciones académicas específicas. "]
[null,null,"Lograr el 90% de satisfacción entre los miembros de la comunidad universitaria frente a las expectativas del bienestar estudiantil y los programas que desde allí se ofrezcan.","2.11 Construcción de una política cultural universitaria que propenda la diversidad de las expresiones artísticas, culturales, deportivas y el desarrollo de la pertenencia institucional."]
[null,null,null,"2.12 Construcción de una cultura organizacional universitaria basada en la solidaridad y el respeto por lo público que permita promover la transparencia, la ética y la responsabilidad colectiva en el marco de la autonomía universitaria."]
[null,null,"Clasificarse entre las 5 mejores IES colombianas según indicadores en investigación.","3.1 Transferencia de resultados de investigación, creación e innovación institucionales para la solución de problemas de la sociedad."]
[null,null,null,"3.2 Definición y desarrollo de modelos de apropiación social del conocimiento, que posibiliten el intercambio y diálogo de saberes y conocimientos con los sectores sociales, productivos y culturales."]
[null,null,"Aumentar el porcentaje de revistas científicas indexadas al 100%.","3.3 Mejoramiento y cualificación de la producción y difusión científica y creativa, de tal manera que logren mayor presencia en el mundo académico"]
[null,null,"Aumentar la producción científica anual publicada en revistas indexadas","3.4 Definición y desarrollo de la agenda de investigación-innovación-creación institucional con la comunidad universitaria y con el apoyo de actores interesados, estableciendo mecanismos de participación de acuerdo con los contextos, saberes y conocimientos de los participantes. "]
[null,null,null,"3.5 Formulación de una política de investigación que permita la creación de programas, proyectos, líneas y áreas de investigación que estimulen la producción científica, y la solución de problemas de la ciudad-región y del país."]
[null,null,null,"3.6 Consolidar y cualificar los grupos y semilleros de investigación"]
[null,null,null,"3.7 Creación de redes de investigación, nacionales e internacionales; y promover las membresías pertinentes."]
[null,null,null,"3.8 Promover la categorización de grupos de investigación en las convocatorias que para efecto se reglamenten."]
[null,null,"Crear al menos 3 empresas spin-off, 15 empresas incubadas e institutos de investigación e innovación.","3.9 Expedición de la reglamentación interna que defina el marco y las condiciones para la creación y la gestión de las empresas."]
[null,null,null,"3.10 Desarrollo de las actividades que aborden las problemáticas de los sectores productivos, e integren a la comunidad universitaria en la búsqueda de soluciones efectivas que respondan a las necesidades diagnosticadas"]
[null,null,"Incrementar los proyectos de cofinanciación externa en 45%, cuyos recursos provengan de organismos internacionales, los sistemas de ciencia tecnología e innovación; sistema nacional de regalías y, de aquellos en los que tengan interés las entidades estatales con capacidad de financiación.","3.11 Fortalecer los diálogos e intercambios con organismos internacionales, entidades estatales y sectores productivos."]
[null,null,null,"3.12 Actualización y ajuste, a los intereses de la Universidad, del Estatuto de Propiedad Intelectual."]
[null,null,null,"3.13 Incrementar el número de doctores que participan en el desarrollo de acciones encaminadas a la apropiación social del conocimiento."]
[null,null,"Lograr el pleno apoyo a la investigación, la creación, la formación, la innovación y el incremento de la productividad y competitividad de las empresas de la ciudad región, por medio de convenios de cooperación con los diferentes sectores","3.14 Creación y funcionamiento de un Centro de Innovación y Emprendimiento que contribuya a dar respuesta a las necesidades de los empresarios de la ciudad región, y promueva la articulación interdisciplinaria de servicios a los sectores económicos y la apropiación social del conocimiento como bien público."]
[null,null,null,"3.15 Establecer alianzas estratégicas y apoyar los parques tecnológicos en las áreas de influencia de la Universidad."]
[null,null,null,"3.16 Concertar acciones de investigación, formación y asesoría con las empresas de los sectores productivos de la ciudad-región"]
[null,null,"Aumentar al 50 % el número de docentes con Doctorado.","3.17 Consolidación de los planes de formación doctoral para docentes de planta."]
[null,null,"Ampliar, mejorar y modernizar física, tecnológica y ambientalmente la infraestructura, esto de acuerdo con la proyección de la cobertura y las políticas de inclusión","4.1 Elaborar y ejecutar el Plan Maestro de Espacios Educativos"]
[null,null,null,"4.2 Desarrollo y actualización sostenible de la infraestructura universitaria de manera articulada entre las sedes de la Universidad; además con una relación amable y respetuosa con el ambiente."]
[null,null,null,"4.3 Promoción de la cultura de respeto por el ambiente y la sostenibilidad ambiental"]
[null,null,null,"4.4 Desarrollo y consolidación de un campus digital que conecte a las distintas dependencias académicas y administrativas y que supere las distancias territoriales entre las distintas sedes de la Universidad."]
[null,null,null,"4.6 Favorecer los indicadores de área por estudiante para el desarrollo de la actividad curricular. "]
[null,null,"Consolidar cuatro centros de recursos para el aprendizaje y la investigación -CRAI-","4.7 Creación e implementación del sistema CRAI (Centro de Recursos para el Aprendizaje y la Investigación) que articule los medios educativos de la Universidad."]
[null,null,"Fortalecer las competencias de los servidores públicos al servicio de la institución, en beneficio del cumplimiento de las funciones institucionales.","4.8 Identificar los avances en materia de conocimiento científico, tecnológico y de innovación que inciden en la organización, gestión y productividad de los procesos institucionales."]
[null,null,null,"4.9 Conocer las necesidades que expresan los resultados de la evaluación del desempeño; determinar las observaciones de las auditorías, internas y externas sobre la gestión y sus resultados; y diagnosticar las necesidades de los servidores públicos en materia de conocimientos. "]
[null,null,null,"4.10 Construcción de una cultura organizacional universitaria basada en la solidaridad y el respeto por lo público que permita promover la transparencia, la ética y la responsabilidad colectiva en el marco de la autonomía universitaria"]
[null,null,null,"4.5 Fortalecimiento de un sistema integral de información institucional que garantice su disponibilidad y la memoria institucional"]
[null,null,"Aumentar al 100 % la vinculación de empleados administrativos conforme al sistema de carrera administrativa.","4.11 Aumentar y cualificar la planta de empleos docentes y administrativos, en correspondencia con la organización interna, la proyección de cobertura y las condiciones institucionales."]
[null,null,null,"4.12 Implementar estrategias orientadas a incentivar los ascensos en el escalafón de los docentes de carrera y docentes especiales"]
[null,null,"Aumentar el número de docentes de planta en un 45 % y disminuir la vinculación especial en un 10 %","4.11 Aumentar y cualificar la planta de empleos docentes y administrativos, en correspondencia con la organización interna, la proyección de cobertura y las condiciones institucionales."]
[null,null,null,"4.12 Implementar estrategias orientadas a incentivar los ascensos en el escalafón de los docentes de carrera y docentes especiales"]
[null,null,"Generar una cultura institucional que respete las diferencias y garantice el bienestar de las personas en situación de discapacidad.","4.13 Adecuar las instalaciones para garantizar el bienestar de las personas en situación de discapacidad."]
[null,null,null,"4.14 Motivar el conocimiento de lenguajes y actividades interactivas entre los servidores de la entidad y las personas en situación de discapacidad"]
[null,null,"Disminuir el uso de recursos en las sedes de la institución","4.3 Promoción de la cultura de respeto por el ambiente y la sostenibilidad ambiental"]
[null,null,"Implementar los dominios identificados en el marco de referencia IT 4+ establecidos por MinTIC.","5.1 Garantizar tecnologías y canales digitales que permitan generar, procesar y acceder a información oportuna sobre las funciones universitarias, los procesos y procedimientos institucionales, el trámite de servicios, la recepción de solicitudes y la generación de respuestas pertinentes y satisfactorias."]
[null,null,"Alcanzar la implementación del cuarto componente de Gobierno en Línea (Seguridad y privacidad de la información)","5.2 Garantizar la divulgación de toda información pública generada por la Universidad; así como el control de la información pública clasificada y reservada que maneja la institución."]
[null,null,"Lograr la calidad y disponibilidad del 100% de la información institucional, que no tenga restricción constitucional ni legal.","5.2 Garantizar la divulgación de toda información pública generada por la Universidad; así como el control de la información pública clasificada y reservada que maneja la institución."]
[null,null,"Implantar mecanismos de participación, de los diferentes estamentos, de la comunidad universitaria, en las instancias de planeación, gestión, seguimiento y evaluación de la Universidad.","5.3 Consolidación de mecanismos de democracia participativa, donde la comunidad universitaria se involucre en la toma decisiones y en las dinámicas propias de la institución"]
[null,null,null,"5.4 Promover formas de organización, interacción y asociación de los estudiantes para su participación activa en los asuntos de la vida universitaria y de la sociedad"]
[null,null,null,"5.5 Adelantar diálogos con las diferentes representaciones de la sociedad civil, las agencias de cooperación, el sector privado y la academia para cualificar el proceso de rendición pública de cuentas. "]
[null,null,"Lograr un nivel de satisfacción mínimo del 80% por parte de las personas que utilizan los servicios de la Universidad.","5.6 Garantizar la recepción y respuesta al 100% de las peticiones, quejas y reclamos, a través de canales y medios que se ajusten a las necesidades y capacidades de las personas que los interponen. "]
[null,null,null,"5.7 Construir, ejecutar y evaluar periódicamente la estrategia de participación y rendición de cuentas."]
[null,null,null,"5.8 Implementar un sistema integrado de comunicaciones que permita gestionar, articular y medir su impacto en la publicidad, difusión, acceso y apropiación de la información para favorecer la visibilidad institucional nacional e internacionalmente."]
[null,null,null,"5.9 Estudiar las causas por las cuales se producen las peticiones, quejas y reclamos y adoptar mecanismos que permitan el mejoramiento continuo en la prestación de los servicios."]
[null,null,"Actualizar, compilar, depurar y difundir el 100% de las normas expedidas por las autoridades institucionales.","5.10 Fortalecimiento y ampliación de mecanismos que garanticen la eficiencia, eficacia y efectividad de las funciones universitarias; la transparencia y la ética en la toma de decisiones y en la operación institucional; y la seguridad jurídica institucional."]
[null,null,"Actualizar, simplificar y flexibilizar anualmente la operación de los procesos institucionales en el cumplimiento de las funciones universitarias.","5.10 Fortalecimiento y ampliación de mecanismos que garanticen la eficiencia, eficacia y efectividad de las funciones universitarias; la transparencia y la ética en la toma de decisiones y en la operación institucional; y la seguridad jurídica institucional."]
[null,null,"Establecer la adecuada asignación de funciones, competencias, seguridad jurídica y equilibrio institucional en la organización, gobierno y gestión de la Universidad.","5.11 Revisión, actualización y modernización del Estatuto General y de las demás normas estatutarias requeridas para el cumplimiento de las funciones institucionales, con las debidas consultas a la comunidad universitaria."]
[null,null,"Conseguir la publicación oportuna y completa de toda la información relacionada con el principio de transparencia y derecho de acceso a información pública, de acuerdo con la Ley 1712 de 2014.","5.12 Consolidación de sistemas de gestión, control, seguimiento, digitalización y acceso a la información, gestión documental, servicio en línea, trámites institucionales y atención a las personas."]
[null,null,"Lograr indicadores de cero corrupción en la gestión institucional","5.13 Estudiar, detectar, tratar y eliminar los riesgos de corrupción, motivando la participación de la comunidad universitaria y de la sociedad en la vigilancia de la gestión y la protección del patrimonio de la Universidad. "]

{"sheet":"Estrategías","index":7,"n_rows":28,"n_cols":10,"rows_kept":28,"cut":false,"hidden":true,"merged":[]}
[]
[]
[null,"1.1:Difusión y apropiación del Proyecto Universitario Institucional.",null,"2.1:  Definición de lineamientos curriculares institucionales con enfoque crítico-transformador que fomenten el dialogo de saberes y conocimientos, la integración curricular, la pertinencia social, la flexibilidad, la interdisciplinariedad, la investigación curricular, la innovación y el uso de metodologías pertinentes a los diversos contextos",null,"3.1: Transferencia de resultados de investigación, creación e innovación institucionales para la solución de problemas de la sociedad.",null,"4.1:Elaborar y ejecutar el Plan Maestro de Espacios Educativos",null,"5.1:Garantizar tecnologías y canales digitales que permitan generar, procesar y acceder a información oportuna sobre las funciones universitarias, los procesos y procedimientos institucionales, el trámite de servicios, la recepción de solicitudes y la generación de respuestas pertinentes y satisfactorias."]
[null,"1.2: Desarrollar de manera permanente procesos de autoevaluación que se traduzcan en planes de mejoramiento continuo para programas de posgrado y pregrado.",null,"2.2:Estructuración de metodologías y estrategias de enseñanza - aprendizaje que favorezcan la construcción y resolución de situaciones problémicas",null,"3.2:Definición y desarrollo de modelos de apropiación social del conocimiento, que posibiliten el intercambio y diálogo de saberes y conocimientos con los sectores sociales, productivos y culturales.",null,"4.2: Desarrollo y actualización sostenible de la infraestructura universitaria de manera articulada entre las sedes de la Universidad; además con una relación amable y respetuosa con el ambiente.",null,"5.2:Garantizar la divulgación de toda información pública generada por la Universidad; así como el control de la información pública clasificada y reservada que maneja la institución."]
[null,"1.3:.Elevar el nivel de desempeño de los estudiantes en las pruebas Saber Pro.",null,"2.3:Construcción e implementación de una reforma curricular participativa, integral y flexible que fomente la integración de las funciones universitarias y los campos, articule los niveles de formación y promueva la internacionalización de los planes de estudios",null,"3.3:Mejoramiento y cualificación de la producción y difusión científica y creativa, de tal manera que logren mayor presencia en el mundo académico",null,"4.3: Promoción de la cultura de respeto por el ambiente y la sostenibilidad ambiental",null,"5.3:Consolidación de mecanismos de democracia participativa, donde la comunidad universitaria se involucre en la toma decisiones y en las dinámicas propias de la institución"]
[null," 1.4: Adopción de mecanismos que permitan mayor equidad y disminución de las diferencias en las condiciones laborales de los docentes.",null,"2.4:Desarrollo de programas e incentivos que favorezcan mejorar los índices de permanencia y repitencia.",null,"3.4:Definición y desarrollo de la agenda de investigación-innovación-creación institucional con la comunidad universitaria y con el apoyo de actores interesados, estableciendo mecanismos de participación de acuerdo con los contextos, saberes y conocimientos de los participantes. ",null,"4.4: Desarrollo y consolidación de un campus digital que conecte a las distintas dependencias académicas y administrativas y que supere las distancias territoriales entre las distintas sedes de la Universidad.",null,"5.4:Promover formas de organización, interacción y asociación de los estudiantes para su participación activa en los asuntos de la vida universitaria y de la sociedad"]
[null,"1.5:Consolidación y aumento de una oferta académica flexible que articule los diferentes niveles de formación desde el nivel básico hasta el superior.",null,"2.5: Promoción de alternativas académicas que diversifiquen las modalidades de trabajos de grado.",null,"3.5:Formulación de una política de investigación que permita la creación de programas, proyectos, líneas y áreas de investigación que estimulen la producción científica, y la solución de problemas de la ciudad-región y del país.",null,"4.5: Fortalecimiento de un sistema integral de información institucional que garantice su disponibilidad y la memoria institucional",null,"5.5: Adelantar diálogos con las diferentes representaciones de la sociedad civil, las agencias de cooperación, el sector privado y la academia para cualificar el proceso de rendición pública de cuentas. "]
[null,"1.6:Articulación de la acción institucional con las políticas nacionales y distritales en materia de equidad, cobertura y calidad",null,"2.6:Adoptar y desarrollar un programa de admisión y permanencia que permita un tránsito flexible en la malla curricular y las posibilidades de titulación, cotitulación y doble titulación.",null,"3.6: Consolidar y cualificar los grupos y semilleros de investigación",null,"4.6: Favorecer los indicadores de área por estudiante para el desarrollo de la actividad curricular. ",null,"5.6: Garantizar la recepción y respuesta al 100% de las peticiones, quejas y reclamos, a través de canales y medios que se ajusten a las necesidades y capacidades de las personas que los interponen. "]
[null,"1.7: Coherencia entre la proyección de la oferta académica institucional, los programas, los recursos humanos y físicos para mantener la calidad de la formación, la investigación, la creación y la innovación",null,"2.7: Fortalecimiento de un modelo de formación docente continuo, que permita fomentar las dimensiones pedagógicas, didácticas, profesionales y humanas y los procesos de innovación pedagógica.",null,"3.7:Creación de redes de investigación, nacionales e internacionales; y promover las membresías pertinentes.",null,"4.7: Creación e implementación del sistema CRAI (Centro de Recursos para el Aprendizaje y la Investigación) que articule los medios educativos de la Universidad.",null,"5.7: Construir, ejecutar y evaluar periódicamente la estrategia de participación y rendición de cuentas."]
[null,"1.8: Consolidación y aumento de una oferta académica flexible que articule los diferentes niveles de formación desde el nivel básico hasta el superior",null,"2.8:  Consolidación de una evaluación integral del currículo que permita el diseño, implementación, seguimiento y retroalimentación del mismo; promueva la pertinencia social de los programas académicos, la formación integral de personas en situación de discapacidad, la especialización docente en nuevas metodologías y modalidades de enseñanza-aprendizaje; y propicie el aumento en la atención cualificada de poblaciones académicas específicas. ",null,"3.8: Promover la categorización de grupos de investigación en las convocatorias que para efecto se reglamenten.",null,"4.8: Identificar los avances en materia de conocimiento científico, tecnológico y de innovación que inciden en la organización, gestión y productividad de los procesos institucionales.",null,"5.8: Implementar un sistema integrado de comunicaciones que permita gestionar, articular y medir su impacto en la publicidad, difusión, acceso y apropiación de la información para favorecer la visibilidad institucional nacional e internacionalmente."]
[null,"1.9:Promoción del intercambio, la circulación y el diálogo de conocimientos y saberes, a través de encuentros multidisciplinarios de conocimiento",null,"2.9: Construcción de la política de integridad como parte del quehacer diario, que favorezca reflexiones, actitudes y comportamientos positivos de todos los servidores públicos, y que contribuya al cambio cultural.",null,"3.9: Expedición de la reglamentación interna que defina el marco y las condiciones para la creación y la gestión de las empresas.",null,"4.9: Conocer las necesidades que expresan los resultados de la evaluación del desempeño; determinar las observaciones de las auditorías, internas y externas sobre la gestión y sus resultados; y diagnosticar las necesidades de los servidores públicos en materia de conocimientos. ",null,"5.9: Estudiar las causas por las cuales se producen las peticiones, quejas y reclamos y adoptar mecanismos que permitan el mejoramiento continuo en la prestación de los servicios."]
[null,"1.10: Gestión de proyectos que promuevan la investigación y la proyección social como instrumentos de articulación de la Universidad con la sociedad. ",null,"2.10: Motivar la participación de la comunidad universitaria, especialmente de los estudiantes en el diagnóstico y consolidación de programas de bienestar",null,"3.10: Desarrollo de las actividades que aborden las problemáticas de los sectores productivos, e integren a la comunidad universitaria en la búsqueda de soluciones efectivas que respondan a las necesidades diagnosticadas",null,"4.10: Construcción de una cultura organizacional universitaria basada en la solidaridad y el respeto por lo público que permita promover la transparencia, la ética y la responsabilidad colectiva en el marco de la autonomía universitaria",null,"5.10:Fortalecimiento y ampliación de mecanismos que garanticen la eficiencia, eficacia y efectividad de las funciones universitarias; la transparencia y la ética en la toma de decisiones y en la operación institucional; y la seguridad jurídica institucional."]
[null,"1.11: Promoción de encuentros y articulación con el sector productivo a fin de responder a sus demandas y generar sinergia en la difusión y apropiación del conocimiento. ",null,"2.11:Construcción de una política cultural universitaria que propenda la diversidad de las expresiones artísticas, culturales, deportivas y el desarrollo de la pertenencia institucional.",null,"3.11: Fortalecer los diálogos e intercambios con organismos internacionales, entidades estatales y sectores productivos.",null,"4.11:Aumentar y cualificar la planta de empleos docentes y administrativos, en correspondencia con la organización interna, la proyección de cobertura y las condiciones institucionales.",null,"5.11: Revisión, actualización y modernización del Estatuto General y de las demás normas estatutarias requeridas para el cumplimiento de las funciones institucionales, con las debidas consultas a la comunidad universitaria."]
[null,"1.12: Gestión y consolidación de relaciones nacionales e internacionales para fortalecer el intercambio académico, investigativo, de creación e innovación.",null,"2.12: Construcción de una cultura organizacional universitaria basada en la solidaridad y el respeto por lo público que permita promover la transparencia, la ética y la responsabilidad colectiva en el marco de la autonomía universitaria.",null,"3.12: Actualización y ajuste, a los intereses de la Universidad, del Estatuto de Propiedad Intelectual.",null,"4.12: Implementar estrategias orientadas a incentivar los ascensos en el escalafón de los docentes de carrera y docentes especiales",null,"5.12: Consolidación de sistemas de gestión, control, seguimiento, digitalización y acceso a la información, gestión documental, servicio en línea, trámites institucionales y atención a las personas."]
[null,"1.13: Establecer y desarrollar un modelo de homologación y equivalencias entre los diferentes programas y las normas que lo reglamenten.",null,"2.13: Crear un sistema de evaluación de los servicios de bienestar universitario.",null,"3.13: Incrementar el número de doctores que participan en el desarrollo de acciones encaminadas a la apropiación social del conocimiento.",null,"4.13: Adecuar las instalaciones para garantizar el bienestar de las personas en situación de discapacidad.",null,"5.13: Estudiar, detectar, tratar y eliminar los riesgos de corrupción, motivando la participación de la comunidad universitaria y de la sociedad en la vigilancia de la gestión y la protección del patrimonio de la Universidad. "]
[null,"1.14: Establecer y desarrollar una política institucional de apropiación de la segunda lengua como parte activa de la gestión curricular, y como condición para la titulación y la evaluación.",null,null,null,"3.14: Creación y funcionamiento de un Centro de Innovación y Emprendimiento que contribuya a dar respuesta a las necesidades de los empresarios de la ciudad región, y promueva la articulación interdisciplinaria de servicios a los sectores económicos y la apropiación social del conocimiento como bien público.",null,"4.14:Motivar el conocimiento de lenguajes y actividades interactivas entre los servidores de la entidad y las personas en situación de discapacidad",null,"5.1:Garantizar tecnologías y canales digitales que permitan generar, procesar y acceder a información oportuna sobre las funciones universitarias, los procesos y procedimientos institucionales, el trámite de servicios, la recepción de solicitudes y la generación de respuestas pertinentes y satisfactorias."]
[null,"1.15:Promover y consolidar convenios con universidades internacionales e incrementar los intercambios de estudiantes y docentes.",null,null,null,"3.15: Establecer alianzas estratégicas y apoyar los parques tecnológicos en las áreas de influencia de la Universidad.",null,null,null,"5.2:Garantizar la divulgación de toda información pública generada por la Universidad; así como el control de la información pública clasificada y reservada que maneja la institución."]
[null,"1.16: Desarrollar y fortalecer la participación de la Universidad en el desarrollo del sistema educativo distrital.",null,null,null,"3.16: Concertar acciones de investigación, formación y asesoría con las empresas de los sectores productivos de la ciudad-región",null,null,null,"5.3:Consolidación de mecanismos de democracia participativa, donde la comunidad universitaria se involucre en la toma decisiones y en las dinámicas propias de la institución"]
[null,"1.17: Articulación con autoridades del Sector Educativo, los colegios y sus estamentos, la comunidad y los sectores económicos, con el fin de evaluar, articular y consolidar los objetivos educacionales y los procesos de formación en investigación, creación, innovación y emprendimiento, para fomentar la comprensión y solución de problemas y la potenciación de capacidades hacia la transformación de la sociedad.",null,null,null,null,null,null,null,"5.4:Promover formas de organización, interacción y asociación de los estudiantes para su participación activa en los asuntos de la vida universitaria y de la sociedad"]
[null,"1.18: Estudio sobre el impacto de la articulación con el Sector Educativo Distrital en el acceso, la permanencia y la titulación.",null,null,null,null,null,null,null,"5.5: Adelantar diálogos con las diferentes representaciones de la sociedad civil, las agencias de cooperación, el sector privado y la academia para cualificar el proceso de rendición pública de cuentas. "]
[null,"1.19: Fortalecimiento y creación de programas que fomenten la inclusión, la permanencia, la retención y la graduación",null,null,null,null,null,null,null,"5.6: Garantizar la recepción y respuesta al 100% de las peticiones, quejas y reclamos, a través de canales y medios que se ajusten a las necesidades y capacidades de las personas que los interponen. "]
[null,"1.20: Desarrollo del Sistema de Bienestar universitario integral, que mejore las condiciones de los miembros de la comunidad universitaria, con altos estándares de calidad",null,null,null,null,null,null,null,"5.7: Construir, ejecutar y evaluar periódicamente la estrategia de participación y rendición de cuentas."]
[null,"1.21: Promoción de la comprensión y el análisis sobre las condiciones, creencias y alternativas de proyección de los intereses de los estudiantes sobre su futuro, su situación socioeconómica y la visión que les ofrece la Universidad.",null,null,null,null,null,null,null,"5.8: Implementar un sistema integrado de comunicaciones que permita gestionar, articular y medir su impacto en la publicidad, difusión, acceso y apropiación de la información para favorecer la visibilidad institucional nacional e internacionalmente."]
[null,"1.22: Disponer de manera funcional y jerarquizada un orden adecuado de relaciones entre las facultades, las escuelas y los programas académicos, de acuerdo con el Estatuto General.",null,null,null,null,null,null,null,"5.9: Estudiar las causas por las cuales se producen las peticiones, quejas y reclamos y adoptar mecanismos que permitan el mejoramiento continuo en la prestación de los servicios."]
[null,null,null,null,null,null,null,null,null,"5.10:Fortalecimiento y ampliación de mecanismos que garanticen la eficiencia, eficacia y efectividad de las funciones universitarias; la transparencia y la ética en la toma de decisiones y en la operación institucional; y la seguridad jurídica institucional."]
[null,null,null,null,null,null,null,null,null,"5.11: Revisión, actualización y modernización del Estatuto General y de las demás normas estatutarias requeridas para el cumplimiento de las funciones institucionales, con las debidas consultas a la comunidad universitaria."]
[null,null,null,null,null,null,null,null,null,"5.12: Consolidación de sistemas de gestión, control, seguimiento, digitalización y acceso a la información, gestión documental, servicio en línea, trámites institucionales y atención a las personas."]
[null,null,null,null,null,null,null,null,null,"5.13: Estudiar, detectar, tratar y eliminar los riesgos de corrupción, motivando la participación de la comunidad universitaria y de la sociedad en la vigilancia de la gestión y la protección del patrimonio de la Universidad. "]

{"sheet":"Recursos","index":8,"n_rows":126,"n_cols":20,"rows_kept":126,"cut":false,"hidden":true,"merged":[]}
[null,null,null,"Concepto","Valor"]
[1,"RECURSOS",null,{"$f":"CONCATENATE(A2,\" \",B2,)","v":"1 RECURSOS"}]
["1.1","HUMANOS",null,{"$f":"CONCATENATE(A3,\" \",B3,)","v":"1.1 HUMANOS"}]
["1.2","DOCENTES",null,"1.2 DOCENTES"]
["1.2.2","Vinculación especial",null,"1.2.2 Vinculación especial",null,null,"CATEGORIA","VALOR HORA CATEDRA","VALOR MENSUAL MEDIO TIEMPO OCASIONAL","VALOR MENSUAL TIEMPO COMPLETO OCASIONAL","VALOR HORA POSGRADO EXTERNOS","VALOR HORA POSGRADO INTERNOS"]
["1.2.2.1","Tiempo Completo Ocasional",null,"1.2.2.1 Tiempo Completo Ocasional",null,null,"AUXILIAR",33625.08,1980143.6,3960287.2,0,0]
["1.2.2.1.1","Auxiliar TCO",null,"1.2.2.1.1 Auxiliar TCO",{"$f":"+I6*9","v":17821292.400000002},null,"ASISTENTE",42965.380000000005,3157021.4,6314042.7999999998,140096.9247678,172426.9843296,null,null,"LISTAF","LISTAD",null,null,"Rubro"]
["1.2.2.1.2","Asistente TCO",null,"1.2.2.1.2 Asistente TCO",{"$f":"+I7*9","v":28413192.599999998},null,"ASOCIADO",50437.62,3549314,7098628,172426.9843296,204757.04389140001,null,null,"1.2.1 Docentes Medio Tiempo Ocasional","1.2.5.1.1 CPS Profesional Especializado",null,null,"Profesores Cátedra y Ocasionales"]
["1.2.2.1.3","Titular TCO",null,"1.2.2.1.3 Titular TCO",{"$f":"+I9*9","v":35474459.399999999},null,"TITULAR",56041.8,3941606.6,7883213.2000000002,215533.73041200003,237087.10345319999,null,null,"1.2.2 Docentes Tiempo Completo Ocasional","1.2.5.1. CPS"]
["1.2.2.1.4","Asociado TCO",null,"1.2.2.1.4 Asociado TCO",{"$f":"+I8*9","v":31943826},null,null,null,null,null,null,null,null,null,"1.2.3 Horas Catedras","4 Capacitación Administrativos "]
["1.2.2.2","Medio Tiempo Ocasional",null,"1.2.2.2 Medio Tiempo Ocasional",null,null,null,null,null,null,null,null,null,null,"1.2.5.1. CPS","6 Eventos"]
["1.2.2.2.1","Auxiliar MTO",null,"1.2.2.2.1 Auxiliar MTO",{"$f":"+J6*10","v":39602872},null,null,null,null,null,null,null,null,null,"1.2.6 Asistentes Académicos e Investigativos","8 Mantenimientos y Reparaciones"]
["1.2.2.2.2","Asistente MTO",null,"1.2.2.2.2 Asistente MTO",{"$f":"+J7*10","v":63140428},null,null,null,null,null,null,null,null,null,"2 Afiliación, Asociaciones Afines","9 Otros"]
["1.2.2.2.3","Titular MTO",null,"1.2.2.2.3 Titular MTO",{"$f":"+J9*10","v":78832132},null,null,null,null,null,null,null,null,null,"3 Capacitación Docente"]
["1.2.2.2.4","Asociado MTO",null,"1.2.2.2.4 Asociado MTO",{"$f":"+J8*10","v":70986280},null,null,null,null,null,null,null,null,null,"4 Capacitación Administrativos "]
["1.2.2.3","Hora Catedra",null,"1.2.2.3 Hora Catedra",null,null,null,null,null,null,null,null,null,null,"5 Eventos Académicos",null,null,null,"Asistentes Académicos "]
["1.2.2.3.1","Auxiliar HC",null,"1.2.2.3.1 Auxiliar HC",33625.08,null,null,null,null,null,null,null,null,null,"6 Eventos",null,null,null,"Afiliación Asociaciones Afines"]
["1.2.2.3.2","Asistente HC",null,"1.2.2.3.2 Asistente HC",42965.380000000005,null,null,null,null,null,null,null,null,null,"7 Prácticas Académicas",null,null,null,"Capacitación Docentes"]
["1.2.2.3.3","Titular HC",null,"1.2.2.3.3 Titular HC",56041.8,null,null,null,null,null,null,null,null,null,"8 Mantenimientos y Reparaciones",null,null,null,"Capacitación"]
["1.2.2.3.4","Asociado HC",null,"1.2.2.3.4 Asociado HC",42965.380000000005,null,null,null,null,null,null,null,null,null,"9 Otros",null,null,null,"Eventos Académicos"]
["1.2.2.4","Docentes Hora Catedra Externos (posgrados)",null,"1.2.2.4 Docentes Hora Catedra Externos (posgrados)",null,null,null,null,null,null,null,null,null,null,null,null,null,null,"Eventos "]
["1.2.2.4.1","Auxiliar HCH",null,"1.2.2.4.1 Auxiliar HCH",0,null,null,null,null,null,null,null,null,null,null,null,null,null,"Prácticas Académicas"]
["1.2.2.4.2","Asistente HCE",null,"1.2.2.4.2 Asistente HCE",140096.9247678,null,null,null,null,null,null,null,null,null,null,null,null,null,"Mantenimientos y Reparaciones"]
["1.2.2.4.3","Titular HCE",null,"1.2.2.4.3 Titular HCE",215533.73041200003,null,null,null,null,null,null,null,null,null,null,null,null,null,"Impresos y Publicaciónes Administrativos","Materiales y Suministros"]
["1.2.2.4.4","Asociado HCE",null,"1.2.2.4.4 Asociado HCE",172426.9843296]
["1.2.2.5","Profesores Hora Catedra Internos (posgrados)",null,"1.2.2.5 Profesores Hora Catedra Internos (posgrados)"]
["1.2.2.5.1","Auxiliar HCI",null,"1.2.2.5.1 Auxiliar HCI",0]
["1.2.2.5.2","Asistente HCI",null,"1.2.2.5.2 Asistente HCI",172426.9843296]
["1.2.2.5.3","Titular HCI",null,"1.2.2.5.3 Titular HCI",237087.10345319999]
["1.2.2.5.4","Asociado HCI",null,"1.2.2.5.4 Asociado HCI",204757.04389140001]
["1.2.3","Administrativos",null,"1.2.3 Administrativos"]
["1.2.5.1","CPS",null,"1.2.5.1 CPS"]
["1.2.5.1.1","Profesional Especializado",null,"1.2.5.1.1 Profesional Especializado",4935900]
["1.2.5.1.2","Profesional  ",null,"1.2.5.1.2 Profesional  ",3784189.9999999995]
["1.2.5.1.3","Tecnicos",null,"1.2.5.1.3 Tecnicos",2467950]
["1.2.5.1.4","Asistenciales",null,"1.2.5.1.4 Asistenciales",1892094.9999999998]
["1.2.5.1.7","Talleristas",null,"1.2.5.1.7 Talleristas"]
["1.2.5.1.8","Asesor I",null,"1.2.5.1.8 Asesor I",6581200]
["1.2.5.1.9","Asesor II",null,"1.2.5.1.9 Asesor II",8061970.0000000009]
["1.2.6","ASISTENTES ACADEMICOS E INVESTIGATIVOS",null,"1.2.6 ASISTENTES ACADEMICOS E INVESTIGATIVOS"]
[2,"AFILIACIÓN, ASOCIACIONES AFINES",null,"2 AFILIACIÓN, ASOCIACIONES AFINES"]
[3,"CAPACITACION DOCENTE",null,"3 CAPACITACION DOCENTE"]
["3.1","Seminario",null,"3.1 Seminario"]
["3.2","Taller ",null,{"$f":"CONCATENATE(A44,\" \",B44,)","v":"3.2 Taller "}]
["3.3","Simposio",null,{"$f":"CONCATENATE(A45,\" \",B45,)","v":"3.3 Simposio"}]
["3.4","Otras actividades",null,{"$f":"CONCATENATE(A46,\" \",B46,)","v":"3.4 Otras actividades"}]
["3.5","Congresos",null,{"$f":"CONCATENATE(A47,\" \",B47,)","v":"3.5 Congresos"}]
[4,"EVENTOS ACADEMICOS",null,{"$f":"CONCATENATE(A48,\" \",B48,)","v":"4 EVENTOS ACADEMICOS"}]
[]
[]
[]
[]
[]
[]
[]
[]
[1,"RECURSOS",null,"1 RECURSOS"]
["1.1","HUMANOS",null,"1.1 HUMANOS"]
["1.2","DOCENTES",null,"1.2 DOCENTES"]
["1.2.1","Planta",null,"1.2.2 Vinculación especial"]
["1.2.1.1","Tiempo Completo ",null,"1.2.2.1 Tiempo Completo Ocasional"]
["1.2.1.2","Medio Tiempo",null,"1.2.2.1.1 Auxiliar TCO"]
["1.2.2","Vinculación especial",null,"1.2.2.1.2 Asistente TCO"]
["1.2.2.1","Tiempo Completo Ocasional",null,"1.2.2.1.3 Titular TCO"]
["1.2.2.1.1","Auxiliar TCO",null,"1.2.2.1.4 Asociado TCO"]
["1.2.2.1.2","Asistente TCO",null,"1.2.2.2 Medio Tiempo Ocasional"]
["1.2.2.1.3","Titular TCO",null,"1.2.2.2.1 Auxiliar MTO"]
["1.2.2.1.4","Asociado TCO",null,"1.2.2.2.2 Asistente MTO"]
["1.2.2.2","Medio Tiempo Ocasional",null,"1.2.2.2.3 Titular MTO"]
["1.2.2.2.1","Auxiliar MTO",null,"1.2.2.2.4 Asociado MTO"]
["1.2.2.2.2","Asistente MTO",null,"1.2.2.3 Hora Catedra"]
["1.2.2.2.3","Titular MTO",null,"1.2.2.3.1 Auxiliar HC"]
["1.2.2.2.4","Asociado MTO",null,"1.2.2.3.2 Asistente HC"]
["1.2.2.3","Hora Catedra",null,"1.2.2.3.3 Titular HC"]
["1.2.2.3.1","Auxiliar HC",null,"1.2.2.3.4 Asociado HC"]
["1.2.2.3.2","Asistente HC",null,"1.2.2.4 Docentes Hora Catedra Honorarios (posgrados)"]
["1.2.2.3.3","Titular HC",null,"1.2.2.4.1 Auxiliar HCH"]
["1.2.2.3.4","Asociado HC",null,"1.2.2.4.2 Asistente HCH"]
["1.2.2.4","Docentes Hora Catedra Honorarios (posgrados)",null,"1.2.2.4.3 Titular HCH"]
["1.2.2.4.1","Auxiliar HCH",null,"1.2.2.4.4 Asociado HCH"]
["1.2.2.4.2","Asistente HCH",null,"1.2.2.5 Profesores Hora Catedra Prestaciones (posgrados)"]
["1.2.2.4.3","Titular HCH",null,"1.2.2.5.1 Auxiliar HCP"]
["1.2.2.4.4","Asociado HCH",null,"1.2.2.5.2 Asistente HCP"]
["1.2.2.5","Profesores Hora Catedra Prestaciones (posgrados)",null,"1.2.2.5.3 Titular HCP"]
["1.2.2.5.1","Auxiliar HCP",null,"1.2.2.5.4 Asociado HCP"]
["1.2.2.5.2","Asistente HCP",null,"1.2.3 Administrativos"]
["1.2.2.5.3","Titular HCP",null,"1.2.5.1 CPS"]
["1.2.2.5.4","Asociado HCP",null,"1.2.5.1.1 Profesional Especializado"]
["1.2.3","Administrativos",null,"1.2.5.1.2 Profesional  "]
["1.2.4.","Planta",null,"1.2.5.1.3 Tecnicos"]
["1.2.4.1","Libre Nombramiento y Remoción",null,"1.2.5.1.4 Asistenciales"]
["1.2.4.2","Carrera Administrativa y Provisionalidad",null,"1.2.5.1.7 Talleristas"]
["1.2.4.2.1","Nivel Directivo",null,"1.2.5.1.8 Asesor I"]
["1.2.4.2.2","Nivel Asesor",null,"1.2.5.1.9 Asesor II"]
["1.2.4.2.3","Nivel Ejecutivo",null,"1.2.6 ASISTENTES ACADEMICOS E INVESTIGATIVOS"]
["1.2.4.2.4","Nivel Profesional Especializado",null,"2 AFILIACIÓN, ASOCIACIONES AFINES"]
["1.2.4.2.5","Nivel Profesional  ",null,"3 CAPACITACION DOCENTE"]
["1.2.4.2.6","Nivel Técnico",null,"3.1 Seminario"]
["1.2.3.2.7","Asistencial",null,"3.2 Taller "]
["1.2.3.2.8","Operativo",null,"3.3 Simposio"]
["1.2.4.3","Trabajadores Oficiales",null,"3.4 Otras actividades"]
["1.2.5","Contratista",null,"3.5 Congresos"]
["1.2.5.1","CPS",null,"4 EVENTOS ACADEMICOS"]
["1.2.5.1.1","Profesional Especializado"]
["1.2.5.1.2","Profesional  "]
["1.2.5.1.3","Tecnicos"]
["1.2.5.1.4","Asistenciales",null,"PROFESION CONTRATISTA",null,null,null,null,null,null,null,null,"RANGO DE EXPERIENCIA LABORAL"]
["1.2.5.1.7","Talleristas",null,"PROFESION CONTRATISTA",null,null,null,null,null,null,null,null,"RANGO DE EXPERIENCIA LABORAL"]
["1.2.5.1.8","Asesor I",null,"Ingeniería, arquitectura, urbanismo y afines","SI",null,null,null,null,null,null,null,"Sin Experiencia"]
["1.2.5.1.9","Asesor II",null,"Agronomía, veterinaria y afines","NO",null,null,null,null,null,null,null,"0 - 12 Meses"]
["1.2.5.1.10","Profesional Especializado Posgrado",null,"Bellas artes",null,null,null,null,null,null,null,null,"12 - 48 Meses"]
["1.2.5.1.11","Tecnico posgrado",null,"Ciencias de la salud",null,null,null,null,null,null,null,null,"48 - 72 Meses"]
["1.2.5.1.12","Asistencial Posgrado",null,"Ciencias sociales y humanas",null,null,null,null,null,null,null,null,"Mas de 72 Meses"]
["1.2.6","ASISTENTES ACADEMICOS E INVESTIGATIVOS",null,"Economía, administración, contaduría y afines"]
["1.2.6.1","Asistente academico ",null,"Matemáticas y ciencias naturales"]
["1.2.6.2","Instructor",null,"Ciencias de la educación"]
["1.2.6.3","Monitor Academico"]
["1.2.6.4","Monitor Administrativo"]
[2,"AFILIACIÓN, ASOCIACIONES AFINES"]
[3,"CAPACITACION DOCENTE"]
["3.1","Seminario"]
["3.2","Taller "]
["3.3","Simposio"]
["3.4","Otras actividades"]
["3.5","Congresos"]
[4,"EVENTOS ACADEMICOS"]

{"sheet":"Perfiles","index":9,"n_rows":92,"n_cols":12,"rows_kept":92,"cut":false,"hidden":true,"merged":[[83,3,83,4],[84,3,84,4],[85,3,85,4],[86,3,86,4],[87,3,87,4],[88,3,88,4],[91,6,91,7],[89,2,89,7],[81,9,81,11],[89,9,89,11],[91,9,91,11],[82,2,88,2],[82,3,82,4],[73,2,73,7],[73,9,73,11],[65,2,65,7],[65,9,65,11],[66,2,72,2],[66,3,66,4],[67,3,67,4],[68,3,68,4],[69,3,69,4],[70,3,70,4],[71,3,71,4],[72,3,72,4],[74,2,80,2],[81,2,81,7],[74,3,74,4],[75,3,75,4],[76,3,76,4],[77,3,77,4],[78,3,78,4],[79,3,79,4],[80,3,80,4],[57,2,57,7],[57,9,57,11],[58,2,64,2],[58,3,58,4],[59,3,59,4],[60,3,60,4],[61,3,61,4],[62,3,62,4],[63,3,63,4],[64,3,64,4],[49,2,49,7],[49,9,49,11],[50,2,56,2],[50,3,50,4],[51,3,51,4],[52,3,52,4],[53,3,53,4],[54,3,54,4],[55,3,55,4],[56,3,56,4],[41,2,41,7],[41,9,41,11],[42,2,48,2],[42,3,42,4],[43,3,43,4],[44,3,44,4],[45,3,45,4],[46,3,46,4],[47,3,47,4],[48,3,48,4],[33,2,33,7],[33,9,33,11],[34,2,40,2],[34,3,34,4],[35,3,35,4],[36,3,36,4],[37,3,37,4],[38,3,38,4],[39,3,39,4],[40,3,40,4],[29,2,32,2],[29,3,29,4],[30,3,30,4],[31,3,31,4],[32,3,32,4],[25,3,25,4],[18,3,18,4],[26,3,26,4],[27,3,27,4],[19,3,19,4],[20,3,20,4],[21,3,21,4],[22,3,22,4],[23,3,23,4],[24,3,24,4],[17,3,17,4],[28,2,28,7],[14,3,14,4],[15,3,15,4],[16,3,16,4],[28,9,28,11],[1,3,1,11],[2,3,2,11],[4,5,4,6],[6,3,6,11],[8,3,8,4],[10,2,27,2],[10,3,10,4],[11,3,11,4],[12,3,12,4],[13,3,13,4]]}
[]
[null,null,null,"IDENTIFICACIÓN DE RECURSOS PARA LA FORMULACIÓN DEL PLAN DE ACCIÓN "]
[]
[]
[null,null,null,null,"Unidad Académico y/o Administrativa ",null,null,null,null,null,null,{"$f":"IF(F5=\"Ciencias y Educación\",\"CE\",IF(F5=\"Ingeniería\",\"I\",IF(F5=\"Medio Ambiente y Recursos Naturales\",\"MA\",IF(F5=\"Artes ASAB\",\"A\",IF(F5=\"Tecnológica\",\"T\",\"\")))))","v":""}]
[]
[null,null,null,"Identifique a continuación de manera explícita las Afiliaciones, Asocianes y demas asociadas para cada Unidad Academico y/o Administrativa:\nNOTA: Por favor diligenciar en Observaciones el objeto de dicho recurso."]
[]
[null,null,"Meta","Nivel",null,"Profesion","Posgrado","Experiencia","Cantidad","Tiempo Contrato","Total Contrato","Objeto                             (Detalle especificamente el objeto del contrato a suscribir)"]
[]
[null,null,{"$f":"+#REF!","v":{"$error":"#REF!"}},"1.2.5.1.4 Asistenciales",null,"Ingeniería, arquitectura, urbanismo y afines","NO","12 - 48 Meses",1,11,{"$f":"IF(D11=\"1.2.5.1.3 Tecnicos\",(I11*J11*[1]Recursos!$E$35),IF(D11=\"1.2.5.1.2 Profesional  \",(I11*J11*[1]Recursos!$E$34),IF(D11=\"1.2.5.1.4 Asistenciales\",(I11*J11*[1]Recursos!$E$36),IF(D11=\"1.2.5.1.8 Asesor I\",(I11*J11*[1]Recursos!$E$38),IF(D11=\"1.2.5.1.9 Asesor II\",(I11*J11*[1]Recursos!$E$39),IF(D11=\"1.2.5.1.1 Profesional Especializado\",(I11*J11*[1]Recursos!$E$33),0))))))","v":20813044.999999996},"Bachiller con experiencia y conocimientos en temas de telecomunicaciones como instalación, soporte de redes, cableado estructurado, telefonía, potencia, o áreas afines,  Disponibilidad de tiempo que permitan garantizar la prestación de los servicios 7X24 en todas las sedes de la universidad"]
[null,null,null,"1.2.5.1.3 Tecnicos",null,"Ingeniería, arquitectura, urbanismo y afines","NO","12 - 48 Meses",1,11,{"$f":"IF(D12=\"1.2.5.1.3 Tecnicos\",(I12*J12*[1]Recursos!$E$35),IF(D12=\"1.2.5.1.2 Profesional  \",(I12*J12*[1]Recursos!$E$34),IF(D12=\"1.2.5.1.4 Asistenciales\",(I12*J12*[1]Recursos!$E$36),IF(D12=\"1.2.5.1.8 Asesor I\",(I12*J12*[1]Recursos!$E$38),IF(D12=\"1.2.5.1.9 Asesor II\",(I12*J12*[1]Recursos!$E$39),IF(D12=\"1.2.5.1.1 Profesional Especializado\",(I12*J12*[1]Recursos!$E$33),0))))))","v":27147450},"Estudiante de ingeniería o tecnología electrónica, redes de telecomunicaciones, sistemas o eléctrica con mínimo sexto semestre aprobado. experiencia y conocimientos en mantenimiento preventivo y correctivo de quipos de computo (Hardware y Software) y potencia regulada, experiencia en manejo y configuración de sistemas operativos, herramientas de ofimatica y conocimientos en redes, experiencia en seguimiento técnico de contratos de tecnología, Disponibilidad de tiempo que permitan atender la prestación de los servicios."]
[null,null,null,"1.2.5.1.3 Tecnicos",null,"Ingeniería, arquitectura, urbanismo y afines","NO","12 - 48 Meses",1,11,{"$f":"IF(D13=\"1.2.5.1.3 Tecnicos\",(I13*J13*[1]Recursos!$E$35),IF(D13=\"1.2.5.1.2 Profesional  \",(I13*J13*[1]Recursos!$E$34),IF(D13=\"1.2.5.1.4 Asistenciales\",(I13*J13*[1]Recursos!$E$36),IF(D13=\"1.2.5.1.8 Asesor I\",(I13*J13*[1]Recursos!$E$38),IF(D13=\"1.2.5.1.9 Asesor II\",(I13*J13*[1]Recursos!$E$39),IF(D13=\"1.2.5.1.1 Profesional Especializado\",(I13*J13*[1]Recursos!$E$33),0))))))","v":27147450}," Estudiante de ingeniería o tecnología electrónica,  redes de telecomunicaciones,  sistemas, o eléctrica mínimo sexto semestre aprobado. Conocimiento  en mantenimiento preventivo y correctivo de equipos de cómputo (hardware y software) y potencia regulada,  conocimiento en manejo y configuración de sistemas operativos, herramientas de ofimática y en redes de telecomunicaciones.  Disponibilidad de tiempo que permitan atender la prestación de los servicios."]
[null,null,null,"1.2.5.1.3 Tecnicos",null,"Ingeniería, arquitectura, urbanismo y afines","NO","12 - 48 Meses",1,11,{"$f":"IF(D14=\"1.2.5.1.3 Tecnicos\",(I14*J14*[1]Recursos!$E$35),IF(D14=\"1.2.5.1.2 Profesional  \",(I14*J14*[1]Recursos!$E$34),IF(D14=\"1.2.5.1.4 Asistenciales\",(I14*J14*[1]Recursos!$E$36),IF(D14=\"1.2.5.1.8 Asesor I\",(I14*J14*[1]Recursos!$E$38),IF(D14=\"1.2.5.1.9 Asesor II\",(I14*J14*[1]Recursos!$E$39),IF(D14=\"1.2.5.1.1 Profesional Especializado\",(I14*J14*[1]Recursos!$E$33),0))))))","v":27147450},"Estudiante de ingeniería mínimo con sexto semestre aprobado, o tecnólogo acreditar estudios en alguna de las siguientes áreas:  electrónica,  redes de telecomunicaciones,  sistemas, o eléctrica, telemática, Sistematizacion de datos, administración de redes de computadores, Conocimiento o experiencia  en mantenimiento preventivo y correctivo (hardware y software) de equipos de escritorio, equipos de telecomunicaciones y redes LAN ,  conocimiento en manejo y configuración de sistemas operativos, herramientas de ofimática.  Disponibilidad de tiempo que permitan atender la prestación de los servicios."]
[null,null,null,"1.2.5.1.3 Tecnicos",null,"Ingeniería, arquitectura, urbanismo y afines","NO","12 - 48 Meses",1,11,{"$f":"IF(D15=\"1.2.5.1.3 Tecnicos\",(I15*J15*[1]Recursos!$E$35),IF(D15=\"1.2.5.1.2 Profesional  \",(I15*J15*[1]Recursos!$E$34),IF(D15=\"1.2.5.1.4 Asistenciales\",(I15*J15*[1]Recursos!$E$36),IF(D15=\"1.2.5.1.8 Asesor I\",(I15*J15*[1]Recursos!$E$38),IF(D15=\"1.2.5.1.9 Asesor II\",(I15*J15*[1]Recursos!$E$39),IF(D15=\"1.2.5.1.1 Profesional Especializado\",(I15*J15*[1]Recursos!$E$33),0))))))","v":27147450}," Estudiante de ingeniería o tecnología mínimo con sexto semestre aprobado, acreditar estudios en alguna de las siguientes áreas: Electrónica, sistemas, telemática, redes de telecomunicaciones, sistematización de datos ò  tecnólogo en administración de redes de computadores, estudios para certificación cisco. Conocimientos en hardware y software de equipos de escritorio o portátiles, equipos de telecomunicaciones y redes LAN.   Disponibilidad de tiempo que permitan garantizar la prestación de los servicios 7X24 en todas las sedes de la universidad"]
[null,null,null,"1.2.5.1.3 Tecnicos",null,"Ingeniería, arquitectura, urbanismo y afines","NO","12 - 48 Meses",1,11,{"$f":"IF(D16=\"1.2.5.1.3 Tecnicos\",(I16*J16*[1]Recursos!$E$35),IF(D16=\"1.2.5.1.2 Profesional  \",(I16*J16*[1]Recursos!$E$34),IF(D16=\"1.2.5.1.4 Asistenciales\",(I16*J16*[1]Recursos!$E$36),IF(D16=\"1.2.5.1.8 Asesor I\",(I16*J16*[1]Recursos!$E$38),IF(D16=\"1.2.5.1.9 Asesor II\",(I16*J16*[1]Recursos!$E$39),IF(D16=\"1.2.5.1.1 Profesional Especializado\",(I16*J16*[1]Recursos!$E$33),0))))))","v":27147450},"Estudiante de ingeniería o tecnología mínimo con sexto semestre aprobado, acreditar estudios en alguna de las siguientes áreas: Electrónica, sistemas, telemática, redes de telecomunicaciones, sistematización de datos ò  tecnólogo en administración de redes de computadores.  Experiencia  relacionada en gestión, instalación y configuración de redes y equipos de telecomunicaciones.  Experiencia en implementación y administración  de telefonía digital  e IP, VPN y SIP. Conocimientos en tecnología marca Cisco y Avaya, Disponibilidad de tiempo que permitan garantizar la prestación de los servicios 7X24 en todas las sedes de la universidad."]
[null,null,null,"1.2.5.1.3 Tecnicos",null,"Ingeniería, arquitectura, urbanismo y afines","NO","12 - 48 Meses",1,11,{"$f":"IF(D17=\"1.2.5.1.3 Tecnicos\",(I17*J17*[1]Recursos!$E$35),IF(D17=\"1.2.5.1.2 Profesional  \",(I17*J17*[1]Recursos!$E$34),IF(D17=\"1.2.5.1.4 Asistenciales\",(I17*J17*[1]Recursos!$E$36),IF(D17=\"1.2.5.1.8 Asesor I\",(I17*J17*[1]Recursos!$E$38),IF(D17=\"1.2.5.1.9 Asesor II\",(I17*J17*[1]Recursos!$E$39),IF(D17=\"1.2.5.1.1 Profesional Especializado\",(I17*J17*[1]Recursos!$E$33),0))))))","v":27147450},"Tecnólogo electrónico, eléctrico, sistemas sistematización de datos, telemática o áreas afines y/o estudiante de ingeniería en telecomunicaciones, electrónica, sistemas. Experiencia en instalación en redes y equipos de telecomunicación mínimo de sexto semestre aprobado. Conocimientos básicos en telefonía digital, IP, redes eléctricas, administración de equipos de telecomunicaciones. Disponibilidad de tiempo que permitan garantizar la prestación de los servicios 7X24 en todas las sedes de la universidad."]
[null,null,null,"1.2.5.1.3 Tecnicos",null,"Ingeniería, arquitectura, urbanismo y afines","NO","12 - 48 Meses",1,11,{"$f":"IF(D18=\"1.2.5.1.3 Tecnicos\",(I18*J18*[1]Recursos!$E$35),IF(D18=\"1.2.5.1.2 Profesional  \",(I18*J18*[1]Recursos!$E$34),IF(D18=\"1.2.5.1.4 Asistenciales\",(I18*J18*[1]Recursos!$E$36),IF(D18=\"1.2.5.1.8 Asesor I\",(I18*J18*[1]Recursos!$E$38),IF(D18=\"1.2.5.1.9 Asesor II\",(I18*J18*[1]Recursos!$E$39),IF(D18=\"1.2.5.1.1 Profesional Especializado\",(I18*J18*[1]Recursos!$E$33),0))))))","v":27147450},"Tecnólogo electrónico, eléctrico, sistemas, sistematización de datos o áreas afines y/o estudiante de ingeniería en telecomunicaciones, electrónica, sistemas, telematica mínimo de sexto semestre aprobado. Experiencia en instalación en redes, equipos de networking y administracion de equipos de datacenter. Conocimientos básicos en telefonía VoIP, redes eléctricas, administración de equipos de telecomunicaciones. Disponibilidad de tiempo que permitan garantizar la prestación de los servicios 7X24 en todas las sedes de la universidad."]
[null,null,null,"1.2.5.1.3 Tecnicos",null,"Ingeniería, arquitectura, urbanismo y afines","NO","12 - 48 Meses",1,11,{"$f":"IF(D19=\"1.2.5.1.3 Tecnicos\",(I19*J19*[1]Recursos!$E$35),IF(D19=\"1.2.5.1.2 Profesional  \",(I19*J19*[1]Recursos!$E$34),IF(D19=\"1.2.5.1.4 Asistenciales\",(I19*J19*[1]Recursos!$E$36),IF(D19=\"1.2.5.1.8 Asesor I\",(I19*J19*[1]Recursos!$E$38),IF(D19=\"1.2.5.1.9 Asesor II\",(I19*J19*[1]Recursos!$E$39),IF(D19=\"1.2.5.1.1 Profesional Especializado\",(I19*J19*[1]Recursos!$E$33),0))))))","v":27147450},"Tecnólogo electrónico, eléctrico, sistemas, sistematización de datos o áreas afines y/o estudiante de ingeniería en telecomunicaciones, electrónica, sistemas, telematica mínimo de sexto semestre aprobado. Experiencia en instalación en redes, equipos de telecomunicaciones y administracion de equipos de datacenter, sistemas de potencia y aires acondicionados. Conocimientos básicos en telefonía VoIP, redes eléctricas, administración de equipos de telecomunicaciones. Disponibilidad de tiempo que permitan garantizar la prestación de los servicios 7X24 en todas las sedes de la universidad."]
[null,null,null,"1.2.5.1.2 Profesional  ",null,"Ingeniería, arquitectura, urbanismo y afines","NO","12 - 48 Meses",1,11,{"$f":"IF(D20=\"1.2.5.1.3 Tecnicos\",(I20*J20*[1]Recursos!$E$35),IF(D20=\"1.2.5.1.2 Profesional  \",(I20*J20*[1]Recursos!$E$34),IF(D20=\"1.2.5.1.4 Asistenciales\",(I20*J20*[1]Recursos!$E$36),IF(D20=\"1.2.5.1.8 Asesor I\",(I20*J20*[1]Recursos!$E$38),IF(D20=\"1.2.5.1.9 Asesor II\",(I20*J20*[1]Recursos!$E$39),IF(D20=\"1.2.5.1.1 Profesional Especializado\",(I20*J20*[1]Recursos!$E$33),0))))))","v":41626089.999999993},"Ingeniero en Telecomunicaciones, Electrónica, distribución en redes eléctricas,  Eléctrica, sistemas o áreas afines, Experiencia  en administración de procesos de mantenimiento preventivo y correctivo al parque computacional. Conocimientos en el diseño e implementación de políticas y normatividad que garanticen el aseguramiento de la información al usuario final (sistemas de backups). Experiencia en atención al usuario final referente al uso de herramientas computacionales, manejo de herramientas de ofimática, experiencia en seguimiento  de  contratos  técnicos. Disponibilidad de tiempo que permitan garantizar la prestación de los servicios 7X24 en todas las sedes de la universidad."]
[null,null,null,"1.2.5.1.2 Profesional  ",null,"Ingeniería, arquitectura, urbanismo y afines","NO","12 - 48 Meses",1,11,{"$f":"IF(D21=\"1.2.5.1.3 Tecnicos\",(I21*J21*[1]Recursos!$E$35),IF(D21=\"1.2.5.1.2 Profesional  \",(I21*J21*[1]Recursos!$E$34),IF(D21=\"1.2.5.1.4 Asistenciales\",(I21*J21*[1]Recursos!$E$36),IF(D21=\"1.2.5.1.8 Asesor I\",(I21*J21*[1]Recursos!$E$38),IF(D21=\"1.2.5.1.9 Asesor II\",(I21*J21*[1]Recursos!$E$39),IF(D21=\"1.2.5.1.1 Profesional Especializado\",(I21*J21*[1]Recursos!$E$33),0))))))","v":41626089.999999993},"Ingeniero de Sistemas, telecomunicaciones, telemática, electrónica  o áreas afines. Experiencia, conocimientos  y/o habilidades en el manejo de las plataformas utilizadas en la universidad (Windows y Linux),  manejo de Windows server mínimo 2008 R2, configuración y soporte de    programas para gestión de actualizaciones (wsus,  sms, software de seguridad) Conocimientos en manejo de Directorio Activo y sus  políticas. Experiencia y/o habilidades en servicios propios de Internet (correo electrónico, acceso remoto, FTP, VPN etc.). Experiencia y/o conocimientos en la administración  de software de seguridad, DHCP, DNS,   Disponibilidad de tiempo que permitan garantizar la prestación de los servicios 7X24 en todas las sedes de la universidad."]
[null,null,null,"1.2.5.1.2 Profesional  ",null,"Ingeniería, arquitectura, urbanismo y afines","NO","12 - 48 Meses",1,11,{"$f":"IF(D22=\"1.2.5.1.3 Tecnicos\",(I22*J22*[1]Recursos!$E$35),IF(D22=\"1.2.5.1.2 Profesional  \",(I22*J22*[1]Recursos!$E$34),IF(D22=\"1.2.5.1.4 Asistenciales\",(I22*J22*[1]Recursos!$E$36),IF(D22=\"1.2.5.1.8 Asesor I\",(I22*J22*[1]Recursos!$E$38),IF(D22=\"1.2.5.1.9 Asesor II\",(I22*J22*[1]Recursos!$E$39),IF(D22=\"1.2.5.1.1 Profesional Especializado\",(I22*J22*[1]Recursos!$E$33),0))))))","v":41626089.999999993},"Ingeniero de Sistemas o telecomunicaciones, telemática o áreas afines. Experiencia, conocimientos  y/o habilidades en el manejo de las plataformas utilizadas en la universidad (Windows y Linux), configuración y soporte de    programas para gestión de actualizaciones (wus, sus, sms, synaptic, rpm y dkpg) Conocimientos en manejo de Directorio Activo y sus  políticas. Experiencia y/o habilidades en servicios propios de Internet (correo electrónico, acceso remoto, FTP, etc.). Experiencia en la administración de Sistemas de almacenamiento masivo, y en administración de software de seguridad,   Disponibilidad de tiempo que permitan garantizar la prestación de los servicios 7X24 en todas las sedes de la universidad"]
[null,null,null,"1.2.5.1.2 Profesional  ",null,"Ingeniería, arquitectura, urbanismo y afines","NO","12 - 48 Meses",1,11,{"$f":"IF(D23=\"1.2.5.1.3 Tecnicos\",(I23*J23*[1]Recursos!$E$35),IF(D23=\"1.2.5.1.2 Profesional  \",(I23*J23*[1]Recursos!$E$34),IF(D23=\"1.2.5.1.4 Asistenciales\",(I23*J23*[1]Recursos!$E$36),IF(D23=\"1.2.5.1.8 Asesor I\",(I23*J23*[1]Recursos!$E$38),IF(D23=\"1.2.5.1.9 Asesor II\",(I23*J23*[1]Recursos!$E$39),IF(D23=\"1.2.5.1.1 Profesional Especializado\",(I23*J23*[1]Recursos!$E$33),0))))))","v":41626089.999999993},"Ingeniero de Sistemas o carreras afines,  Con conocimientos y experiencia relacionada en Plataformas computacionales, administración de ambientes de seguridad en redes y computación confiable. Experiencia y/o habilidades en el manejo de las plataformas utilizadas en la universidad (Windows y/o Linux). Conocimientos y habilidades en instalación, configuración y soporte de las plataformas  Linux, programas para gestión de actualizaciones como  (rpm, dkpg, up2date y yum). Conocimientos en manejo de servicios propios de sistema operativos Windows server  como Directorio Activo y políticas, DNS, DHCP,  bases de datos y/o experiencia  en servicios propios de Internet como (correo electrónico, listas correo electrónico, firewall, proxy, sistemas detección de intrusos, acceso remoto, FTP, etc.). Habilidades y conocimientos para soporte a usuarios en los diferentes niveles.  Disponibilidad de tiempo que permitan garantizar la prestación de los servicios 7X24 en todas las sedes de la universidad."]
[null,null,null,"1.2.5.1.2 Profesional  ",null,"Ingeniería, arquitectura, urbanismo y afines","NO","12 - 48 Meses",1,11,{"$f":"IF(D24=\"1.2.5.1.3 Tecnicos\",(I24*J24*[1]Recursos!$E$35),IF(D24=\"1.2.5.1.2 Profesional  \",(I24*J24*[1]Recursos!$E$34),IF(D24=\"1.2.5.1.4 Asistenciales\",(I24*J24*[1]Recursos!$E$36),IF(D24=\"1.2.5.1.8 Asesor I\",(I24*J24*[1]Recursos!$E$38),IF(D24=\"1.2.5.1.9 Asesor II\",(I24*J24*[1]Recursos!$E$39),IF(D24=\"1.2.5.1.1 Profesional Especializado\",(I24*J24*[1]Recursos!$E$33),0))))))","v":41626089.999999993},"Ingeniero de sistemas, telematica, electronica  o carreras afines, con conocimientos y experiencia relacionada en plataformas computacionales, habilidades en el manejo de las plataformas Windows y Linux, configuración y soporte de    programas para gestión de actualizaciones (Rpm,   software de seguridad)  Conocimientos en manejo de servicios propios de sistema operativos Windows server  como Directorio Activo y políticas, DNS, DHCP, bases de datos y/o experiencia en servicios propios de internet como (correo electrónico, listas de correo electrónico, firewall, proxy, sistemas de detección de intrusos, acceso remoto, FTP, etc.) y habilidades de soporte a usuarios,   Disponibilidad de tiempo que permitan garantizar la prestación de los servicios 7X24 en todas las sedes de la universidad."]
[null,null,null,"1.2.5.1.2 Profesional  ",null,"Ingeniería, arquitectura, urbanismo y afines","NO","12 - 48 Meses",1,11,{"$f":"IF(D25=\"1.2.5.1.3 Tecnicos\",(I25*J25*[1]Recursos!$E$35),IF(D25=\"1.2.5.1.2 Profesional  \",(I25*J25*[1]Recursos!$E$34),IF(D25=\"1.2.5.1.4 Asistenciales\",(I25*J25*[1]Recursos!$E$36),IF(D25=\"1.2.5.1.8 Asesor I\",(I25*J25*[1]Recursos!$E$38),IF(D25=\"1.2.5.1.9 Asesor II\",(I25*J25*[1]Recursos!$E$39),IF(D25=\"1.2.5.1.1 Profesional Especializado\",(I25*J25*[1]Recursos!$E$33),0))))))","v":41626089.999999993},"Ingeniero en electrónica, sistemas, redes de telecomunicaciones, sistematización de datos o carreras afines, estudios para certificación de cisco. Conocimiento en Hardware y Software de equipos de escritorio y portátiles, equipos de telecomunicaciones y redes LAN, Disponibilidad de tiempo que permitan garantizar la prestación de los servicios 7X24 en todas las sedes de la universidad."]
[null,null,null,"1.2.5.1.2 Profesional  ",null,"Ingeniería, arquitectura, urbanismo y afines","NO","12 - 48 Meses",1,11,{"$f":"IF(D26=\"1.2.5.1.3 Tecnicos\",(I26*J26*[1]Recursos!$E$35),IF(D26=\"1.2.5.1.2 Profesional  \",(I26*J26*[1]Recursos!$E$34),IF(D26=\"1.2.5.1.4 Asistenciales\",(I26*J26*[1]Recursos!$E$36),IF(D26=\"1.2.5.1.8 Asesor I\",(I26*J26*[1]Recursos!$E$38),IF(D26=\"1.2.5.1.9 Asesor II\",(I26*J26*[1]Recursos!$E$39),IF(D26=\"1.2.5.1.1 Profesional Especializado\",(I26*J26*[1]Recursos!$E$33),0))))))","v":41626089.999999993},"Ingeniero Electrónico y/o ingeniero de redes de computadores.  Experiencia  en administración de equipos de telefonía digital e IP,  diseño e instalación de redes. Conocimientos actualizados en el diseño e implementación de soluciones en redes convergentes incluidos sistemas inalámbricos. Experiencia en seguimiento técnico de contratos de servicios de telecomunicaciones y de  adquisición de equipos especializados de telecomunicaciones. Experiencia en implementación y administración  de telefonía digital  e IP, VPN y SIP Experiencia de al menos 4 años en redes y equipos de comunicación de voz y datos. Conocimientos en seguridad, diseño e implementación en redes, conocimiento y experiencia en implementación de soluciones de telefonía y networking CISCO y AVAYA y soluciones Data Center. Disponibilidad de tiempo que permitan garantizar la prestación de los servicios 7X24 en todas las sedes de la universidad."]
[null,null,null,"1.2.5.1.2 Profesional  ",null,"Ingeniería, arquitectura, urbanismo y afines","NO","12 - 48 Meses",1,11,{"$f":"IF(D27=\"1.2.5.1.3 Tecnicos\",(I27*J27*[1]Recursos!$E$35),IF(D27=\"1.2.5.1.2 Profesional  \",(I27*J27*[1]Recursos!$E$34),IF(D27=\"1.2.5.1.4 Asistenciales\",(I27*J27*[1]Recursos!$E$36),IF(D27=\"1.2.5.1.8 Asesor I\",(I27*J27*[1]Recursos!$E$38),IF(D27=\"1.2.5.1.9 Asesor II\",(I27*J27*[1]Recursos!$E$39),IF(D27=\"1.2.5.1.1 Profesional Especializado\",(I27*J27*[1]Recursos!$E$33),0))))))","v":41626089.999999993},"Ingeniero en  telecomunicaciones, electrónica o eléctrica con experiencia y conocimientos en gestión y configuración de redes y equipos de telecomunicación de voz y datos, cableado estructurado. Conocimientos en telefonía digital e IP o conocimientos en redes eléctricas y UPS, conocimiento y experiencia en administración de equipos y software de administración de servicios de telecomunicaciones,  Disponibilidad de tiempo que permitan garantizar la prestación de los servicios 7X24 en todas las sedes de la universidad"]
[null,null,null,"1.2.5.1.2 Profesional  ",null,"Ingeniería, arquitectura, urbanismo y afines","NO","12 - 48 Meses",1,11,{"$f":"IF(D28=\"1.2.5.1.3 Tecnicos\",(I28*J28*[1]Recursos!$E$35),IF(D28=\"1.2.5.1.2 Profesional  \",(I28*J28*[1]Recursos!$E$34),IF(D28=\"1.2.5.1.4 Asistenciales\",(I28*J28*[1]Recursos!$E$36),IF(D28=\"1.2.5.1.8 Asesor I\",(I28*J28*[1]Recursos!$E$38),IF(D28=\"1.2.5.1.9 Asesor II\",(I28*J28*[1]Recursos!$E$39),IF(D28=\"1.2.5.1.1 Profesional Especializado\",(I28*J28*[1]Recursos!$E$33),0))))))","v":41626089.999999993},"Ingeniero en telecomunicaciones, electrónica o eléctrica, sistemas, telemática, red de telecomunicaciones, Sistematizacion de datos, administración de redes de computadores, o afines con experiencia y conocimientos en gestión y configuración de redes y equipos de telecomunicaciones, cableado estructurado. Conocimientos en telefonía digital e IP o conocimientos en redes eléctricas y UPS, conocimiento y experiencia en administración de equipos y software de administración de servicios de telecomunicaciones,  experiencia en seguimiento de contratos de tecnología, disponibilidad de tiempo que permitan atender la prestación de los servicios principalmente de la Sede Bosa Porvenir."]
[null,null,"Total Contratistas Meta No 1",null,null,null,null,null,{"$f":"SUM(I11:I28)","v":18},{"$f":"SUM(K11:K28)","v":612627455}]
[null,null,{"$f":"+#REF!","v":{"$error":"#REF!"}},"1.2.5.1.3 Tecnicos",null,"Ingeniería, arquitectura, urbanismo y afines","NO","12 - 48 Meses",1,11,{"$f":"IF(D30=\"1.2.5.1.3 Tecnicos\",(I30*J30*[1]Recursos!$E$35),IF(D30=\"1.2.5.1.2 Profesional  \",(I30*J30*[1]Recursos!$E$34),IF(D30=\"1.2.5.1.4 Asistenciales\",(I30*J30*[1]Recursos!$E$36),IF(D30=\"1.2.5.1.8 Asesor I\",(I30*J30*[1]Recursos!$E$38),IF(D30=\"1.2.5.1.9 Asesor II\",(I30*J30*[1]Recursos!$E$39),IF(D30=\"1.2.5.1.1 Profesional Especializado\",(I30*J30*[1]Recursos!$E$33),0))))))","v":27147450},"Tecnólogo o estudiante de carrera profesional  mínimo de sexto semestre aprobado en sistemas, telemática, sistematización de datos, o áreas afines  con conocimiento en desarrollo de software , conocimientos en el uso de herramientas de diseño gráfico y edición fotográfica, conocimientos de gobierno en linea y procesos de gobiero de TI. Disponibilidad de tiempo que permitan garantizar la prestación de los servicios 7X24 en todas las sedes de la universidad."]
[null,null,null,"1.2.5.1.3 Tecnicos",null,"Ingeniería, arquitectura, urbanismo y afines","NO","12 - 48 Meses",1,11,{"$f":"IF(D31=\"1.2.5.1.3 Tecnicos\",(I31*J31*[1]Recursos!$E$35),IF(D31=\"1.2.5.1.2 Profesional  \",(I31*J31*[1]Recursos!$E$34),IF(D31=\"1.2.5.1.4 Asistenciales\",(I31*J31*[1]Recursos!$E$36),IF(D31=\"1.2.5.1.8 Asesor I\",(I31*J31*[1]Recursos!$E$38),IF(D31=\"1.2.5.1.9 Asesor II\",(I31*J31*[1]Recursos!$E$39),IF(D31=\"1.2.5.1.1 Profesional Especializado\",(I31*J31*[1]Recursos!$E$33),0))))))","v":27147450},"Tecnologo en industrial o carreras afines o estudiante de Ingenieria en  industrial o de producción con minimo sexto semestre, con experiencia en gestion y control de los procesos de pago de contratos, apoyo en procesos administrativos, control de documentos y asignacion de actividades.  disponibilidad de tiempo que permitan garantizar la prestación de los servicios"]
[null,null,null,"1.2.5.1.2 Profesional  ",null,"Ingeniería, arquitectura, urbanismo y afines","NO","12 - 48 Meses",1,11,{"$f":"IF(D32=\"1.2.5.1.3 Tecnicos\",(I32*J32*[1]Recursos!$E$35),IF(D32=\"1.2.5.1.2 Profesional  \",(I32*J32*[1]Recursos!$E$34),IF(D32=\"1.2.5.1.4 Asistenciales\",(I32*J32*[1]Recursos!$E$36),IF(D32=\"1.2.5.1.8 Asesor I\",(I32*J32*[1]Recursos!$E$38),IF(D32=\"1.2.5.1.9 Asesor II\",(I32*J32*[1]Recursos!$E$39),IF(D32=\"1.2.5.1.1 Profesional Especializado\",(I32*J32*[1]Recursos!$E$33),0))))))","v":41626089.999999993},"Ingeniero industrial o de producción o carreras afines, con experiencia en la implementación del sistema de Gestión de Calidad, seguridad informática, auditorias y seguimiento, basado en normas internacionales,  manejo de herramientas de ofimática, seguimiento de procesos de contratacion y apoyo en la gestion administrativa de proyectos , conocimientos básicos en temas de  electrónica y sistemas  Disponibilidad de tiempo que permitan garantizar la prestación de los servicios 7X24 en todas las sedes de la universidad."]
[null,null,null,null,null,null,null,null,null,null,{"$f":"IF(D33=\"1.2.5.1.3 Tecnicos\",(I33*J33*[1]Recursos!$E$35),IF(D33=\"1.2.5.1.2 Profesional  \",(I33*J33*[1]Recursos!$E$34),IF(D33=\"1.2.5.1.4 Asistenciales\",(I33*J33*[1]Recursos!$E$36),IF(D33=\"1.2.5.1.8 Asesor I\",(I33*J33*[1]Recursos!$E$38),IF(D33=\"1.2.5.1.9 Asesor II\",(I33*J33*[1]Recursos!$E$39),IF(D33=\"1.2.5.1.1 Profesional Especializado\",(I33*J33*[1]Recursos!$E$33),0))))))","v":0}]
[null,null,"Total Contratistas Meta No 2",null,null,null,null,null,{"$f":"SUM(I30:I33)","v":3},{"$f":"SUM(K30:K33)","v":95920990}]
[null,null,{"$f":"+#REF!","v":{"$error":"#REF!"}},"1.2.5.1.2 Profesional  ",null,"Ingeniería, arquitectura, urbanismo y afines","NO","12 - 48 Meses",1,11,{"$f":"IF(D35=\"1.2.5.1.3 Tecnicos\",(I35*J35*[1]Recursos!$E$35),IF(D35=\"1.2.5.1.2 Profesional  \",(I35*J35*[1]Recursos!$E$34),IF(D35=\"1.2.5.1.4 Asistenciales\",(I35*J35*[1]Recursos!$E$36),IF(D35=\"1.2.5.1.8 Asesor I\",(I35*J35*[1]Recursos!$E$38),IF(D35=\"1.2.5.1.9 Asesor II\",(I35*J35*[1]Recursos!$E$39),IF(D35=\"1.2.5.1.1 Profesional Especializado\",(I35*J35*[1]Recursos!$E$33),0))))))","v":41626089.999999993}," Ingeniero de  Sistemas, telecomunicaciones, telemática  o carreras afines. Experiencia y/o conocimientos en evaluación de tecnologías, desarrollo de Aplicaciones Web,  aplicación de metodologías de desarrollo en programación y  en  implementación de soluciones de software, conocimientos básicos en administración de sistemas Windows y Linux conocimientos en POO y  herramientas de desarrollo como  AJAX, CSS, PHP, UML, XHTML, JAVA, javascript, jquery, XML, MySQL, PostgreSQL, Liferay, wordpress, PHP2Go, y demás utilizadas y propuestas por la Universidad.  Conocimiento   en implementación de TIC y GELXML. Disponibilidad de tiempo que permitan garantizar la prestación de los servicios 7X24 en todas las sedes de la universidad."]
[null,null,null,"1.2.5.1.2 Profesional  ",null,"Ingeniería, arquitectura, urbanismo y afines","NO","12 - 48 Meses",1,11,{"$f":"IF(D36=\"1.2.5.1.3 Tecnicos\",(I36*J36*[1]Recursos!$E$35),IF(D36=\"1.2.5.1.2 Profesional  \",(I36*J36*[1]Recursos!$E$34),IF(D36=\"1.2.5.1.4 Asistenciales\",(I36*J36*[1]Recursos!$E$36),IF(D36=\"1.2.5.1.8 Asesor I\",(I36*J36*[1]Recursos!$E$38),IF(D36=\"1.2.5.1.9 Asesor II\",(I36*J36*[1]Recursos!$E$39),IF(D36=\"1.2.5.1.1 Profesional Especializado\",(I36*J36*[1]Recursos!$E$33),0))))))","v":41626089.999999993},"Ingeniero en electrónica, sistemas, telemática o afines, con experiencia en desarrollo de software con énfasis en desarrollo web, utilizando programación orientada a objetos, UML, XHTML, JAVA, javascript, jquery, CSS, PHP, XML, MySQL, PosgreSQL, Liferay, wordpress, con conocimientos y experiencia en la aplicación de estándares y metodologías de desarrollo web.  experiencia en implementación de sitios y servicios web, Conocimiento y uso de herramientas de desarrollo como SVN, IDEs y herramientas de diseño de bases de datos y   Disponibilidad de tiempo que permitan garantizar la prestación de los servicios 7X24 en todas las sedes de la universidad."]
[null,null,null,"1.2.5.1.3 Tecnicos",null,"Ingeniería, arquitectura, urbanismo y afines","NO","0 - 12 Meses",1,11,{"$f":"IF(D37=\"1.2.5.1.3 Tecnicos\",(I37*J37*[1]Recursos!$E$35),IF(D37=\"1.2.5.1.2 Profesional  \",(I37*J37*[1]Recursos!$E$34),IF(D37=\"1.2.5.1.4 Asistenciales\",(I37*J37*[1]Recursos!$E$36),IF(D37=\"1.2.5.1.8 Asesor I\",(I37*J37*[1]Recursos!$E$38),IF(D37=\"1.2.5.1.9 Asesor II\",(I37*J37*[1]Recursos!$E$39),IF(D37=\"1.2.5.1.1 Profesional Especializado\",(I37*J37*[1]Recursos!$E$33),0))))))","v":27147450},"Tecnólogo o estudiante de carrera profesional  mínimo de sexto semestre aprobado en sistemas, telemática, sistematización de datos, o áreas afines  o en artes plásticas, visuales, o diseño gráfico con conocimiento en desarrollo de software con énfasis en desarrollo web y aplicación de estándares y procesos de desarrollo, conocimientos en el uso de herramientas de diseño gráfico y edición fotográfica.  Disponibilidad de tiempo que permitan garantizar la prestación de los servicios 7X24 en todas las sedes de la universidad."]
[null,null,null,null,null,null,null,null,null,null,{"$f":"IF(D38=\"1.2.5.1.3 Tecnicos\",(I38*J38*[1]Recursos!$E$35),IF(D38=\"1.2.5.1.2 Profesional  \",(I38*J38*[1]Recursos!$E$34),IF(D38=\"1.2.5.1.4 Asistenciales\",(I38*J38*[1]Recursos!$E$36),IF(D38=\"1.2.5.1.8 Asesor I\",(I38*J38*[1]Recursos!$E$38),IF(D38=\"1.2.5.1.9 Asesor II\",(I38*J38*[1]Recursos!$E$39),IF(D38=\"1.2.5.1.1 Profesional Especializado\",(I38*J38*[1]Recursos!$E$33),0))))))","v":0}]
[null,null,null,null,null,null,null,null,null,null,{"$f":"IF(D39=\"1.2.5.1.3 Tecnicos\",(I39*J39*[1]Recursos!$E$35),IF(D39=\"1.2.5.1.2 Profesional  \",(I39*J39*[1]Recursos!$E$34),IF(D39=\"1.2.5.1.4 Asistenciales\",(I39*J39*[1]Recursos!$E$36),IF(D39=\"1.2.5.1.8 Asesor I\",(I39*J39*[1]Recursos!$E$38),IF(D39=\"1.2.5.1.9 Asesor II\",(I39*J39*[1]Recursos!$E$39),IF(D39=\"1.2.5.1.1 Profesional Especializado\",(I39*J39*[1]Recursos!$E$33),0))))))","v":0}]
[null,null,null,null,null,null,null,null,null,null,{"$f":"IF(D40=\"1.2.5.1.3 Tecnicos\",(I40*J40*[1]Recursos!$E$35),IF(D40=\"1.2.5.1.2 Profesional  \",(I40*J40*[1]Recursos!$E$34),IF(D40=\"1.2.5.1.4 Asistenciales\",(I40*J40*[1]Recursos!$E$36),IF(D40=\"1.2.5.1.8 Asesor I\",(I40*J40*[1]Recursos!$E$38),IF(D40=\"1.2.5.1.9 Asesor II\",(I40*J40*[1]Recursos!$E$39),IF(D40=\"1.2.5.1.1 Profesional Especializado\",(I40*J40*[1]Recursos!$E$33),0))))))","v":0}]
[null,null,null,null,null,null,null,null,null,null,{"$f":"IF(D41=\"1.2.5.1.3 Tecnicos\",(I41*J41*[1]Recursos!$E$35),IF(D41=\"1.2.5.1.2 Profesional  \",(I41*J41*[1]Recursos!$E$34),IF(D41=\"1.2.5.1.4 Asistenciales\",(I41*J41*[1]Recursos!$E$36),IF(D41=\"1.2.5.1.8 Asesor I\",(I41*J41*[1]Recursos!$E$38),IF(D41=\"1.2.5.1.9 Asesor II\",(I41*J41*[1]Recursos!$E$39),IF(D41=\"1.2.5.1.1 Profesional Especializado\",(I41*J41*[1]Recursos!$E$33),0))))))","v":0}]
[null,null,"Total Contratistas Meta No 6",null,null,null,null,null,{"$f":"SUM(I35:I41)","v":3},{"$f":"SUM(K35:K41)","v":110399629.99999999}]
[null,null,{"$f":"+#REF!","v":{"$error":"#REF!"}},null,null,null,null,null,null,null,{"$f":"IF(D43=\"1.2.5.1.3 Tecnicos\",(I43*J43*[1]Recursos!$E$35),IF(D43=\"1.2.5.1.2 Profesional  \",(I43*J43*[1]Recursos!$E$34),IF(D43=\"1.2.5.1.4 Asistenciales\",(I43*J43*[1]Recursos!$E$36),IF(D43=\"1.2.5.1.8 Asesor I\",(I43*J43*[1]Recursos!$E$38),IF(D43=\"1.2.5.1.9 Asesor II\",(I43*J43*[1]Recursos!$E$39),IF(D43=\"1.2.5.1.1 Profesional Especializado\",(I43*J43*[1]Recursos!$E$33),0))))))","v":0}]
[null,null,null,null,null,null,null,null,null,null,{"$f":"IF(D44=\"1.2.5.1.3 Tecnicos\",(I44*J44*[1]Recursos!$E$35),IF(D44=\"1.2.5.1.2 Profesional  \",(I44*J44*[1]Recursos!$E$34),IF(D44=\"1.2.5.1.4 Asistenciales\",(I44*J44*[1]Recursos!$E$36),IF(D44=\"1.2.5.1.8 Asesor I\",(I44*J44*[1]Recursos!$E$38),IF(D44=\"1.2.5.1.9 Asesor II\",(I44*J44*[1]Recursos!$E$39),IF(D44=\"1.2.5.1.1 Profesional Especializado\",(I44*J44*[1]Recursos!$E$33),0))))))","v":0}]
[null,null,null,null,null,null,null,null,null,null,{"$f":"IF(D45=\"1.2.5.1.3 Tecnicos\",(I45*J45*[1]Recursos!$E$35),IF(D45=\"1.2.5.1.2 Profesional  \",(I45*J45*[1]Recursos!$E$34),IF(D45=\"1.2.5.1.4 Asistenciales\",(I45*J45*[1]Recursos!$E$36),IF(D45=\"1.2.5.1.8 Asesor I\",(I45*J45*[1]Recursos!$E$38),IF(D45=\"1.2.5.1.9 Asesor II\",(I45*J45*[1]Recursos!$E$39),IF(D45=\"1.2.5.1.1 Profesional Especializado\",(I45*J45*[1]Recursos!$E$33),0))))))","v":0}]
[null,null,null,null,null,null,null,null,null,null,{"$f":"IF(D46=\"1.2.5.1.3 Tecnicos\",(I46*J46*[1]Recursos!$E$35),IF(D46=\"1.2.5.1.2 Profesional  \",(I46*J46*[1]Recursos!$E$34),IF(D46=\"1.2.5.1.4 Asistenciales\",(I46*J46*[1]Recursos!$E$36),IF(D46=\"1.2.5.1.8 Asesor I\",(I46*J46*[1]Recursos!$E$38),IF(D46=\"1.2.5.1.9 Asesor II\",(I46*J46*[1]Recursos!$E$39),IF(D46=\"1.2.5.1.1 Profesional Especializado\",(I46*J46*[1]Recursos!$E$33),0))))))","v":0}]
[null,null,null,null,null,null,null,null,null,null,{"$f":"IF(D47=\"1.2.5.1.3 Tecnicos\",(I47*J47*[1]Recursos!$E$35),IF(D47=\"1.2.5.1.2 Profesional  \",(I47*J47*[1]Recursos!$E$34),IF(D47=\"1.2.5.1.4 Asistenciales\",(I47*J47*[1]Recursos!$E$36),IF(D47=\"1.2.5.1.8 Asesor I\",(I47*J47*[1]Recursos!$E$38),IF(D47=\"1.2.5.1.9 Asesor II\",(I47*J47*[1]Recursos!$E$39),IF(D47=\"1.2.5.1.1 Profesional Especializado\",(I47*J47*[1]Recursos!$E$33),0))))))","v":0}]
[null,null,null,null,null,null,null,null,null,null,{"$f":"IF(D48=\"1.2.5.1.3 Tecnicos\",(I48*J48*[1]Recursos!$E$35),IF(D48=\"1.2.5.1.2 Profesional  \",(I48*J48*[1]Recursos!$E$34),IF(D48=\"1.2.5.1.4 Asistenciales\",(I48*J48*[1]Recursos!$E$36),IF(D48=\"1.2.5.1.8 Asesor I\",(I48*J48*[1]Recursos!$E$38),IF(D48=\"1.2.5.1.9 Asesor II\",(I48*J48*[1]Recursos!$E$39),IF(D48=\"1.2.5.1.1 Profesional Especializado\",(I48*J48*[1]Recursos!$E$33),0))))))","v":0}]
[null,null,null,null,null,null,null,null,null,null,{"$f":"IF(D49=\"1.2.5.1.3 Tecnicos\",(I49*J49*[1]Recursos!$E$35),IF(D49=\"1.2.5.1.2 Profesional  \",(I49*J49*[1]Recursos!$E$34),IF(D49=\"1.2.5.1.4 Asistenciales\",(I49*J49*[1]Recursos!$E$36),IF(D49=\"1.2.5.1.8 Asesor I\",(I49*J49*[1]Recursos!$E$38),IF(D49=\"1.2.5.1.9 Asesor II\",(I49*J49*[1]Recursos!$E$39),IF(D49=\"1.2.5.1.1 Profesional Especializado\",(I49*J49*[1]Recursos!$E$33),0))))))","v":0}]
[null,null,"Total Contratistas Meta No 7",null,null,null,null,null,{"$f":"SUM(I43:I49)","v":0},{"$f":"SUM(K43:K49)","v":0}]
[null,null,{"$f":"+#REF!","v":{"$error":"#REF!"}}]
[null,null,null,null,null,null,null,null,null,null,{"$f":"IF(D52=\"1.2.5.1.3 Tecnicos\",(I52*J52*[1]Recursos!$E$35),IF(D52=\"1.2.5.1.2 Profesional  \",(I52*J52*[1]Recursos!$E$34),IF(D52=\"1.2.5.1.4 Asistenciales\",(I52*J52*[1]Recursos!$E$36),IF(D52=\"1.2.5.1.8 Asesor I\",(I52*J52*[1]Recursos!$E$38),IF(D52=\"1.2.5.1.9 Asesor II\",(I52*J52*[1]Recursos!$E$39),IF(D52=\"1.2.5.1.1 Profesional Especializado\",(I52*J52*[1]Recursos!$E$33),0))))))","v":0}]
[null,null,null,null,null,null,null,null,null,null,{"$f":"IF(D53=\"1.2.5.1.3 Tecnicos\",(I53*J53*[1]Recursos!$E$35),IF(D53=\"1.2.5.1.2 Profesional  \",(I53*J53*[1]Recursos!$E$34),IF(D53=\"1.2.5.1.4 Asistenciales\",(I53*J53*[1]Recursos!$E$36),IF(D53=\"1.2.5.1.8 Asesor I\",(I53*J53*[1]Recursos!$E$38),IF(D53=\"1.2.5.1.9 Asesor II\",(I53*J53*[1]Recursos!$E$39),IF(D53=\"1.2.5.1.1 Profesional Especializado\",(I53*J53*[1]Recursos!$E$33),0))))))","v":0}]
[null,null,null,null,null,null,null,null,null,null,{"$f":"IF(D54=\"1.2.5.1.3 Tecnicos\",(I54*J54*[1]Recursos!$E$35),IF(D54=\"1.2.5.1.2 Profesional  \",(I54*J54*[1]Recursos!$E$34),IF(D54=\"1.2.5.1.4 Asistenciales\",(I54*J54*[1]Recursos!$E$36),IF(D54=\"1.2.5.1.8 Asesor I\",(I54*J54*[1]Recursos!$E$38),IF(D54=\"1.2.5.1.9 Asesor II\",(I54*J54*[1]Recursos!$E$39),IF(D54=\"1.2.5.1.1 Profesional Especializado\",(I54*J54*[1]Recursos!$E$33),0))))))","v":0}]
[null,null,null,null,null,null,null,null,null,null,{"$f":"IF(D55=\"1.2.5.1.3 Tecnicos\",(I55*J55*[1]Recursos!$E$35),IF(D55=\"1.2.5.1.2 Profesional  \",(I55*J55*[1]Recursos!$E$34),IF(D55=\"1.2.5.1.4 Asistenciales\",(I55*J55*[1]Recursos!$E$36),IF(D55=\"1.2.5.1.8 Asesor I\",(I55*J55*[1]Recursos!$E$38),IF(D55=\"1.2.5.1.9 Asesor II\",(I55*J55*[1]Recursos!$E$39),IF(D55=\"1.2.5.1.1 Profesional Especializado\",(I55*J55*[1]Recursos!$E$33),0))))))","v":0}]
[null,null,null,null,null,null,null,null,null,null,{"$f":"IF(D56=\"1.2.5.1.3 Tecnicos\",(I56*J56*[1]Recursos!$E$35),IF(D56=\"1.2.5.1.2 Profesional  \",(I56*J56*[1]Recursos!$E$34),IF(D56=\"1.2.5.1.4 Asistenciales\",(I56*J56*[1]Recursos!$E$36),IF(D56=\"1.2.5.1.8 Asesor I\",(I56*J56*[1]Recursos!$E$38),IF(D56=\"1.2.5.1.9 Asesor II\",(I56*J56*[1]Recursos!$E$39),IF(D56=\"1.2.5.1.1 Profesional Especializado\",(I56*J56*[1]Recursos!$E$33),0))))))","v":0}]
[null,null,null,null,null,null,null,null,null,null,{"$f":"IF(D57=\"1.2.5.1.3 Tecnicos\",(I57*J57*[1]Recursos!$E$35),IF(D57=\"1.2.5.1.2 Profesional  \",(I57*J57*[1]Recursos!$E$34),IF(D57=\"1.2.5.1.4 Asistenciales\",(I57*J57*[1]Recursos!$E$36),IF(D57=\"1.2.5.1.8 Asesor I\",(I57*J57*[1]Recursos!$E$38),IF(D57=\"1.2.5.1.9 Asesor II\",(I57*J57*[1]Recursos!$E$39),IF(D57=\"1.2.5.1.1 Profesional Especializado\",(I57*J57*[1]Recursos!$E$33),0))))))","v":0}]
[null,null,"Total Contratistas Meta No 8",null,null,null,null,null,{"$f":"SUM(I51:I57)","v":0},{"$f":"SUM(K51:K57)","v":0}]
[null,null,{"$f":"+#REF!","v":{"$error":"#REF!"}}]
[null,null,null,null,null,null,null,null,null,null,{"$f":"IF(D60=\"1.2.5.1.3 Tecnicos\",(I60*J60*[1]Recursos!$E$35),IF(D60=\"1.2.5.1.2 Profesional  \",(I60*J60*[1]Recursos!$E$34),IF(D60=\"1.2.5.1.4 Asistenciales\",(I60*J60*[1]Recursos!$E$36),IF(D60=\"1.2.5.1.8 Asesor I\",(I60*J60*[1]Recursos!$E$38),IF(D60=\"1.2.5.1.9 Asesor II\",(I60*J60*[1]Recursos!$E$39),IF(D60=\"1.2.5.1.1 Profesional Especializado\",(I60*J60*[1]Recursos!$E$33),0))))))","v":0}]
[null,null,null,null,null,null,null,null,null,null,{"$f":"IF(D61=\"1.2.5.1.3 Tecnicos\",(I61*J61*[1]Recursos!$E$35),IF(D61=\"1.2.5.1.2 Profesional  \",(I61*J61*[1]Recursos!$E$34),IF(D61=\"1.2.5.1.4 Asistenciales\",(I61*J61*[1]Recursos!$E$36),IF(D61=\"1.2.5.1.8 Asesor I\",(I61*J61*[1]Recursos!$E$38),IF(D61=\"1.2.5.1.9 Asesor II\",(I61*J61*[1]Recursos!$E$39),IF(D61=\"1.2.5.1.1 Profesional Especializado\",(I61*J61*[1]Recursos!$E$33),0))))))","v":0}]
[null,null,null,null,null,null,null,null,null,null,{"$f":"IF(D62=\"1.2.5.1.3 Tecnicos\",(I62*J62*[1]Recursos!$E$35),IF(D62=\"1.2.5.1.2 Profesional  \",(I62*J62*[1]Recursos!$E$34),IF(D62=\"1.2.5.1.4 Asistenciales\",(I62*J62*[1]Recursos!$E$36),IF(D62=\"1.2.5.1.8 Asesor I\",(I62*J62*[1]Recursos!$E$38),IF(D62=\"1.2.5.1.9 Asesor II\",(I62*J62*[1]Recursos!$E$39),IF(D62=\"1.2.5.1.1 Profesional Especializado\",(I62*J62*[1]Recursos!$E$33),0))))))","v":0}]
[null,null,null,null,null,null,null,null,null,null,{"$f":"IF(D63=\"1.2.5.1.3 Tecnicos\",(I63*J63*[1]Recursos!$E$35),IF(D63=\"1.2.5.1.2 Profesional  \",(I63*J63*[1]Recursos!$E$34),IF(D63=\"1.2.5.1.4 Asistenciales\",(I63*J63*[1]Recursos!$E$36),IF(D63=\"1.2.5.1.8 Asesor I\",(I63*J63*[1]Recursos!$E$38),IF(D63=\"1.2.5.1.9 Asesor II\",(I63*J63*[1]Recursos!$E$39),IF(D63=\"1.2.5.1.1 Profesional Especializado\",(I63*J63*[1]Recursos!$E$33),0))))))","v":0}]
[null,null,null,null,null,null,null,null,null,null,{"$f":"IF(D64=\"1.2.5.1.3 Tecnicos\",(I64*J64*[1]Recursos!$E$35),IF(D64=\"1.2.5.1.2 Profesional  \",(I64*J64*[1]Recursos!$E$34),IF(D64=\"1.2.5.1.4 Asistenciales\",(I64*J64*[1]Recursos!$E$36),IF(D64=\"1.2.5.1.8 Asesor I\",(I64*J64*[1]Recursos!$E$38),IF(D64=\"1.2.5.1.9 Asesor II\",(I64*J64*[1]Recursos!$E$39),IF(D64=\"1.2.5.1.1 Profesional Especializado\",(I64*J64*[1]Recursos!$E$33),0))))))","v":0}]
[null,null,null,null,null,null,null,null,null,null,{"$f":"IF(D65=\"1.2.5.1.3 Tecnicos\",(I65*J65*[1]Recursos!$E$35),IF(D65=\"1.2.5.1.2 Profesional  \",(I65*J65*[1]Recursos!$E$34),IF(D65=\"1.2.5.1.4 Asistenciales\",(I65*J65*[1]Recursos!$E$36),IF(D65=\"1.2.5.1.8 Asesor I\",(I65*J65*[1]Recursos!$E$38),IF(D65=\"1.2.5.1.9 Asesor II\",(I65*J65*[1]Recursos!$E$39),IF(D65=\"1.2.5.1.1 Profesional Especializado\",(I65*J65*[1]Recursos!$E$33),0))))))","v":0}]
[null,null,"Total Contratistas Meta No 9",null,null,null,null,null,{"$f":"SUM(I59:I65)","v":0},{"$f":"SUM(K59:K65)","v":0}]
[null,null,{"$f":"+#REF!","v":{"$error":"#REF!"}}]
[null,null,null,null,null,null,null,null,null,null,{"$f":"IF(D68=\"1.2.5.1.3 Tecnicos\",(I68*J68*[1]Recursos!$E$35),IF(D68=\"1.2.5.1.2 Profesional  \",(I68*J68*[1]Recursos!$E$34),IF(D68=\"1.2.5.1.4 Asistenciales\",(I68*J68*[1]Recursos!$E$36),IF(D68=\"1.2.5.1.8 Asesor I\",(I68*J68*[1]Recursos!$E$38),IF(D68=\"1.2.5.1.9 Asesor II\",(I68*J68*[1]Recursos!$E$39),IF(D68=\"1.2.5.1.1 Profesional Especializado\",(I68*J68*[1]Recursos!$E$33),0))))))","v":0}]
[null,null,null,null,null,null,null,null,null,null,{"$f":"IF(D69=\"1.2.5.1.3 Tecnicos\",(I69*J69*[1]Recursos!$E$35),IF(D69=\"1.2.5.1.2 Profesional  \",(I69*J69*[1]Recursos!$E$34),IF(D69=\"1.2.5.1.4 Asistenciales\",(I69*J69*[1]Recursos!$E$36),IF(D69=\"1.2.5.1.8 Asesor I\",(I69*J69*[1]Recursos!$E$38),IF(D69=\"1.2.5.1.9 Asesor II\",(I69*J69*[1]Recursos!$E$39),IF(D69=\"1.2.5.1.1 Profesional Especializado\",(I69*J69*[1]Recursos!$E$33),0))))))","v":0}]
[null,null,null,null,null,null,null,null,null,null,{"$f":"IF(D70=\"1.2.5.1.3 Tecnicos\",(I70*J70*[1]Recursos!$E$35),IF(D70=\"1.2.5.1.2 Profesional  \",(I70*J70*[1]Recursos!$E$34),IF(D70=\"1.2.5.1.4 Asistenciales\",(I70*J70*[1]Recursos!$E$36),IF(D70=\"1.2.5.1.8 Asesor I\",(I70*J70*[1]Recursos!$E$38),IF(D70=\"1.2.5.1.9 Asesor II\",(I70*J70*[1]Recursos!$E$39),IF(D70=\"1.2.5.1.1 Profesional Especializado\",(I70*J70*[1]Recursos!$E$33),0))))))","v":0}]
[null,null,null,null,null,null,null,null,null,null,{"$f":"IF(D71=\"1.2.5.1.3 Tecnicos\",(I71*J71*[1]Recursos!$E$35),IF(D71=\"1.2.5.1.2 Profesional  \",(I71*J71*[1]Recursos!$E$34),IF(D71=\"1.2.5.1.4 Asistenciales\",(I71*J71*[1]Recursos!$E$36),IF(D71=\"1.2.5.1.8 Asesor I\",(I71*J71*[1]Recursos!$E$38),IF(D71=\"1.2.5.1.9 Asesor II\",(I71*J71*[1]Recursos!$E$39),IF(D71=\"1.2.5.1.1 Profesional Especializado\",(I71*J71*[1]Recursos!$E$33),0))))))","v":0}]
[null,null,null,null,null,null,null,null,null,null,{"$f":"IF(D72=\"1.2.5.1.3 Tecnicos\",(I72*J72*[1]Recursos!$E$35),IF(D72=\"1.2.5.1.2 Profesional  \",(I72*J72*[1]Recursos!$E$34),IF(D72=\"1.2.5.1.4 Asistenciales\",(I72*J72*[1]Recursos!$E$36),IF(D72=\"1.2.5.1.8 Asesor I\",(I72*J72*[1]Recursos!$E$38),IF(D72=\"1.2.5.1.9 Asesor II\",(I72*J72*[1]Recursos!$E$39),IF(D72=\"1.2.5.1.1 Profesional Especializado\",(I72*J72*[1]Recursos!$E$33),0))))))","v":0}]
[null,null,null,null,null,null,null,null,null,null,{"$f":"IF(D73=\"1.2.5.1.3 Tecnicos\",(I73*J73*[1]Recursos!$E$35),IF(D73=\"1.2.5.1.2 Profesional  \",(I73*J73*[1]Recursos!$E$34),IF(D73=\"1.2.5.1.4 Asistenciales\",(I73*J73*[1]Recursos!$E$36),IF(D73=\"1.2.5.1.8 Asesor I\",(I73*J73*[1]Recursos!$E$38),IF(D73=\"1.2.5.1.9 Asesor II\",(I73*J73*[1]Recursos!$E$39),IF(D73=\"1.2.5.1.1 Profesional Especializado\",(I73*J73*[1]Recursos!$E$33),0))))))","v":0}]
[null,null,"Total Contratistas Meta No 10",null,null,null,null,null,{"$f":"SUM(I67:I73)","v":0},{"$f":"SUM(K67:K73)","v":0}]
[null,null,{"$f":"+#REF!","v":{"$error":"#REF!"}},null,null,null,null,null,null,null,{"$f":"IF(D75=\"1.2.5.1.3 Tecnicos\",(I75*J75*[1]Recursos!$E$35),IF(D75=\"1.2.5.1.2 Profesional  \",(I75*J75*[1]Recursos!$E$34),IF(D75=\"1.2.5.1.4 Asistenciales\",(I75*J75*[1]Recursos!$E$36),IF(D75=\"1.2.5.1.8 Asesor I\",(I75*J75*[1]Recursos!$E$38),IF(D75=\"1.2.5.1.9 Asesor II\",(I75*J75*[1]Recursos!$E$39),IF(D75=\"1.2.5.1.1 Profesional Especializado\",(I75*J75*[1]Recursos!$E$33),0))))))","v":0}]
[null,null,null,null,null,null,null,null,null,null,{"$f":"IF(D76=\"1.2.5.1.3 Tecnicos\",(I76*J76*[1]Recursos!$E$35),IF(D76=\"1.2.5.1.2 Profesional  \",(I76*J76*[1]Recursos!$E$34),IF(D76=\"1.2.5.1.4 Asistenciales\",(I76*J76*[1]Recursos!$E$36),IF(D76=\"1.2.5.1.8 Asesor I\",(I76*J76*[1]Recursos!$E$38),IF(D76=\"1.2.5.1.9 Asesor II\",(I76*J76*[1]Recursos!$E$39),IF(D76=\"1.2.5.1.1 Profesional Especializado\",(I76*J76*[1]Recursos!$E$33),0))))))","v":0}]
[null,null,null,null,null,null,null,null,null,null,{"$f":"IF(D77=\"1.2.5.1.3 Tecnicos\",(I77*J77*[1]Recursos!$E$35),IF(D77=\"1.2.5.1.2 Profesional  \",(I77*J77*[1]Recursos!$E$34),IF(D77=\"1.2.5.1.4 Asistenciales\",(I77*J77*[1]Recursos!$E$36),IF(D77=\"1.2.5.1.8 Asesor I\",(I77*J77*[1]Recursos!$E$38),IF(D77=\"1.2.5.1.9 Asesor II\",(I77*J77*[1]Recursos!$E$39),IF(D77=\"1.2.5.1.1 Profesional Especializado\",(I77*J77*[1]Recursos!$E$33),0))))))","v":0}]
[null,null,null,null,null,null,null,null,null,null,{"$f":"IF(D78=\"1.2.5.1.3 Tecnicos\",(I78*J78*[1]Recursos!$E$35),IF(D78=\"1.2.5.1.2 Profesional  \",(I78*J78*[1]Recursos!$E$34),IF(D78=\"1.2.5.1.4 Asistenciales\",(I78*J78*[1]Recursos!$E$36),IF(D78=\"1.2.5.1.8 Asesor I\",(I78*J78*[1]Recursos!$E$38),IF(D78=\"1.2.5.1.9 Asesor II\",(I78*J78*[1]Recursos!$E$39),IF(D78=\"1.2.5.1.1 Profesional Especializado\",(I78*J78*[1]Recursos!$E$33),0))))))","v":0}]
[null,null,null,null,null,null,null,null,null,null,{"$f":"IF(D79=\"1.2.5.1.3 Tecnicos\",(I79*J79*[1]Recursos!$E$35),IF(D79=\"1.2.5.1.2 Profesional  \",(I79*J79*[1]Recursos!$E$34),IF(D79=\"1.2.5.1.4 Asistenciales\",(I79*J79*[1]Recursos!$E$36),IF(D79=\"1.2.5.1.8 Asesor I\",(I79*J79*[1]Recursos!$E$38),IF(D79=\"1.2.5.1.9 Asesor II\",(I79*J79*[1]Recursos!$E$39),IF(D79=\"1.2.5.1.1 Profesional Especializado\",(I79*J79*[1]Recursos!$E$33),0))))))","v":0}]
[null,null,null,null,null,null,null,null,null,null,{"$f":"IF(D80=\"1.2.5.1.3 Tecnicos\",(I80*J80*[1]Recursos!$E$35),IF(D80=\"1.2.5.1.2 Profesional  \",(I80*J80*[1]Recursos!$E$34),IF(D80=\"1.2.5.1.4 Asistenciales\",(I80*J80*[1]Recursos!$E$36),IF(D80=\"1.2.5.1.8 Asesor I\",(I80*J80*[1]Recursos!$E$38),IF(D80=\"1.2.5.1.9 Asesor II\",(I80*J80*[1]Recursos!$E$39),IF(D80=\"1.2.5.1.1 Profesional Especializado\",(I80*J80*[1]Recursos!$E$33),0))))))","v":0}]
[null,null,null,null,null,null,null,null,null,null,{"$f":"IF(D81=\"1.2.5.1.3 Tecnicos\",(I81*J81*[1]Recursos!$E$35),IF(D81=\"1.2.5.1.2 Profesional  \",(I81*J81*[1]Recursos!$E$34),IF(D81=\"1.2.5.1.4 Asistenciales\",(I81*J81*[1]Recursos!$E$36),IF(D81=\"1.2.5.1.8 Asesor I\",(I81*J81*[1]Recursos!$E$38),IF(D81=\"1.2.5.1.9 Asesor II\",(I81*J81*[1]Recursos!$E$39),IF(D81=\"1.2.5.1.1 Profesional Especializado\",(I81*J81*[1]Recursos!$E$33),0))))))","v":0}]
[null,null,"Total Contratistas Meta No 11",null,null,null,null,null,{"$f":"SUM(I75:I81)","v":0},{"$f":"SUM(K75:K81)","v":0}]
[null,null,{"$f":"+#REF!","v":{"$error":"#REF!"}},null,null,null,null,null,null,null,{"$f":"IF(D83=\"1.2.5.1.3 Tecnicos\",(I83*J83*[1]Recursos!$E$35),IF(D83=\"1.2.5.1.2 Profesional  \",(I83*J83*[1]Recursos!$E$34),IF(D83=\"1.2.5.1.4 Asistenciales\",(I83*J83*[1]Recursos!$E$36),IF(D83=\"1.2.5.1.8 Asesor I\",(I83*J83*[1]Recursos!$E$38),IF(D83=\"1.2.5.1.9 Asesor II\",(I83*J83*[1]Recursos!$E$39),IF(D83=\"1.2.5.1.1 Profesional Especializado\",(I83*J83*[1]Recursos!$E$33),0))))))","v":0}]
[null,null,null,null,null,null,null,null,null,null,{"$f":"IF(D84=\"1.2.5.1.3 Tecnicos\",(I84*J84*[1]Recursos!$E$35),IF(D84=\"1.2.5.1.2 Profesional  \",(I84*J84*[1]Recursos!$E$34),IF(D84=\"1.2.5.1.4 Asistenciales\",(I84*J84*[1]Recursos!$E$36),IF(D84=\"1.2.5.1.8 Asesor I\",(I84*J84*[1]Recursos!$E$38),IF(D84=\"1.2.5.1.9 Asesor II\",(I84*J84*[1]Recursos!$E$39),IF(D84=\"1.2.5.1.1 Profesional Especializado\",(I84*J84*[1]Recursos!$E$33),0))))))","v":0}]
[null,null,null,null,null,null,null,null,null,null,{"$f":"IF(D85=\"1.2.5.1.3 Tecnicos\",(I85*J85*[1]Recursos!$E$35),IF(D85=\"1.2.5.1.2 Profesional  \",(I85*J85*[1]Recursos!$E$34),IF(D85=\"1.2.5.1.4 Asistenciales\",(I85*J85*[1]Recursos!$E$36),IF(D85=\"1.2.5.1.8 Asesor I\",(I85*J85*[1]Recursos!$E$38),IF(D85=\"1.2.5.1.9 Asesor II\",(I85*J85*[1]Recursos!$E$39),IF(D85=\"1.2.5.1.1 Profesional Especializado\",(I85*J85*[1]Recursos!$E$33),0))))))","v":0}]
[null,null,null,null,null,null,null,null,null,null,{"$f":"IF(D86=\"1.2.5.1.3 Tecnicos\",(I86*J86*[1]Recursos!$E$35),IF(D86=\"1.2.5.1.2 Profesional  \",(I86*J86*[1]Recursos!$E$34),IF(D86=\"1.2.5.1.4 Asistenciales\",(I86*J86*[1]Recursos!$E$36),IF(D86=\"1.2.5.1.8 Asesor I\",(I86*J86*[1]Recursos!$E$38),IF(D86=\"1.2.5.1.9 Asesor II\",(I86*J86*[1]Recursos!$E$39),IF(D86=\"1.2.5.1.1 Profesional Especializado\",(I86*J86*[1]Recursos!$E$33),0))))))","v":0}]
[null,null,null,null,null,null,null,null,null,null,{"$f":"IF(D87=\"1.2.5.1.3 Tecnicos\",(I87*J87*[1]Recursos!$E$35),IF(D87=\"1.2.5.1.2 Profesional  \",(I87*J87*[1]Recursos!$E$34),IF(D87=\"1.2.5.1.4 Asistenciales\",(I87*J87*[1]Recursos!$E$36),IF(D87=\"1.2.5.1.8 Asesor I\",(I87*J87*[1]Recursos!$E$38),IF(D87=\"1.2.5.1.9 Asesor II\",(I87*J87*[1]Recursos!$E$39),IF(D87=\"1.2.5.1.1 Profesional Especializado\",(I87*J87*[1]Recursos!$E$33),0))))))","v":0}]
[null,null,null,null,null,null,null,null,null,null,{"$f":"IF(D88=\"1.2.5.1.3 Tecnicos\",(I88*J88*[1]Recursos!$E$35),IF(D88=\"1.2.5.1.2 Profesional  \",(I88*J88*[1]Recursos!$E$34),IF(D88=\"1.2.5.1.4 Asistenciales\",(I88*J88*[1]Recursos!$E$36),IF(D88=\"1.2.5.1.8 Asesor I\",(I88*J88*[1]Recursos!$E$38),IF(D88=\"1.2.5.1.9 Asesor II\",(I88*J88*[1]Recursos!$E$39),IF(D88=\"1.2.5.1.1 Profesional Especializado\",(I88*J88*[1]Recursos!$E$33),0))))))","v":0}]
[null,null,null,null,null,null,null,null,null,null,{"$f":"IF(D89=\"1.2.5.1.3 Tecnicos\",(I89*J89*[1]Recursos!$E$35),IF(D89=\"1.2.5.1.2 Profesional  \",(I89*J89*[1]Recursos!$E$34),IF(D89=\"1.2.5.1.4 Asistenciales\",(I89*J89*[1]Recursos!$E$36),IF(D89=\"1.2.5.1.8 Asesor I\",(I89*J89*[1]Recursos!$E$38),IF(D89=\"1.2.5.1.9 Asesor II\",(I89*J89*[1]Recursos!$E$39),IF(D89=\"1.2.5.1.1 Profesional Especializado\",(I89*J89*[1]Recursos!$E$33),0))))))","v":0}]
[null,null,"Total Contratistas Meta No 12",null,null,null,null,null,{"$f":"SUM(I83:I89)","v":0},{"$f":"SUM(K83:K89)","v":0}]
[]
[null,null,null,null,null,null,"TOTAL DEL RECURSO",null,{"$f":"+I90+I74+I66+I50+I58+I42+I34+I29","v":24},{"$f":"J42+J34+J29","v":818948075}]

{"sheet":"Docentes V. Especial","index":10,"n_rows":50,"n_cols":8,"rows_kept":50,"cut":false,"hidden":true,"merged":[[17,3,17,7],[18,3,18,4],[10,3,10,7],[11,3,11,4],[12,3,12,4],[13,3,13,4],[14,3,14,4],[1,3,1,7],[36,3,36,4],[20,3,20,4],[21,3,21,4],[24,3,24,7],[25,3,25,4],[27,3,27,7],[28,3,28,4],[29,3,29,4],[30,3,30,4],[31,3,31,4],[34,3,34,7],[35,3,35,4],[19,3,19,4],[6,3,6,7],[8,3,8,4],[49,3,49,5],[45,3,45,4],[37,3,37,4],[38,3,38,4],[41,3,41,7],[42,3,42,4],[43,3,43,4],[44,3,44,4]]}
[]
[null,null,null,"IDENTIFICACIÓN DE RECURSOS PARA LA FORMULACIÓN DEL PLAN DE ACCIÓN "]
[]
[]
[null,null,null,null,"Facultad "," - Seleccione una Facultad - ",null,{"$f":"IF(F5=\"Ciencias y Educación\",\"CE\",IF(F5=\"Ingeniería\",\"I\",IF(F5=\"Medio Ambiente y Recursos Naturales\",\"MA\",IF(F5=\"Artes ASAB\",\"A\",IF(F5=\"Tecnológica\",\"T\",\"\")))))","v":""}]
[]
[null,null,null,"Identifique a continuación de manera explícita el número de Docentes asociados a la Facultad:"]
[]
[null,null,null,"Docente ",null,"Cantidad (anuales)","TOTAL","Objeto"]
[]
[null,null,null,"Docentes Ocasionales de Medio Tiempo (MTO)"]
[1,18938808,null,"1.2.2.2.1 Auxiliar MTO",null,null,{"$f":"B12*F12*$A$12","v":0}]
[null,30194892,null,"1.2.2.2.2 Asistente MTO",null,0,{"$f":"B13*F13*$A$12","v":0}]
[null,33946920,null,"1.2.2.2.3 Asociado MTO",null,0,{"$f":"B14*F14*$A$12","v":0}]
[null,37698948,null,"1.2.2.2.4 Titular MTO",null,0,{"$f":"B15*F15*$A$12","v":0}]
[null,{"$f":"SUM(F12:F15)","v":0},null,"TOTAL RECURSOS MEDIO TIEMPO OCASIONAL",null,{"$f":"SUM(F12:F15)","v":0},{"$f":"SUM(G12:G15)","v":0}]
[]
[null,null,null,"Docentes Ocasionales de  Tiempo Completo  (TCO)"]
[1,42086240,null,"1.2.2.1.1 Auxiliar TCO",null,0,{"$f":"+B19*F19*$A$19","v":0}]
[null,67099760,null,"1.2.2.1.2 Asistente TCO",null,0,{"$f":"+B20*F20*$A$19","v":0}]
[null,75437600,null,"1.2.2.1.3 Asociado TCO",null,0,{"$f":"+B21*F21*$A$19","v":0}]
[null,83775440,null,"1.2.2.1.3 Titular TCO",null,0,{"$f":"+B22*F22*$A$19","v":0}]
[]
[null,{"$f":"SUM(F19:F22)","v":0},null,"TOTAL RECURSOS  TIEMPO COMPLETO OCASIONAL",null,{"$f":"SUM(F19:F23)","v":0},{"$f":"SUM(G19:G23)","v":0}]
[]
[null,null,null,"Docente ",null,"Cantidad de horas (anuales)","TOTAL","Observaciones"]
[]
[null,null,null,"Docentes Hora Cátedra"]
[null,33625,null," 1.2.2.3.1 Hora Catedra Auxiliar ",null,0,{"$f":"+B29*F29","v":0}]
[null,42965,null," 1.2.2.3.2 Hora Catedra Asistente",null,0,{"$f":"+B30*F30","v":0}]
[null,56042,null,"1.2.2.3.3  Hora Catedra Titular",null,null,{"$f":"+B31*F31","v":0}]
[null,42965,null," 1.2.2.3.4 Hora Catedra Asocidado",null,null,{"$f":"+B32*F32","v":0}]
[null,null,null,"TOTAL RECURSOS HORA CATEDRA",null,{"$f":"SUM(F29:F32)","v":0},{"$f":"SUM(G29:G32)","v":0}]
[]
[null,null,null,"Docente Hora Cátedra Externo (Posgrado)",null,null,{"$f":"F35*#REF!","v":{"$error":"#REF!"}}]
[null,0,null,"1.2.2.4.1 Hora Catedra Auxiliar ",null,null,{"$f":"+B36*F36","v":0}]
[null,146742,null,"1.2.2.4.2 Hora Catedra Asistente",null,0]
[null,180606,null,"1.2.2.4.3 Hora Catedra Titular",null,0,{"$f":"+B38*F38","v":0}]
[null,225757,null,"1.2.2.4.4 Hora Catedra Asocidado",null,null,{"$f":"+B39*F39","v":0}]
[null,null,null,"TOTAL RECURSOS HORA CATEDRA EXTERNO (POSGRADOS)",null,{"$f":"SUM(F36:F39)","v":0},{"$f":"SUM(G36:G39)","v":0}]
[]
[null,null,null,"Docente Hora Cátedra Interno (Posgrado)",null,null,{"$f":"F42*#REF!","v":{"$error":"#REF!"}}]
[null,0,null,"1.2.2.5.1 Hora Catedra Auxiliar ",null,null,{"$f":"+B43*F43","v":0}]
[null,180606,null,"1.2.2.5.2 Hora Catedra Asistente",null,null,{"$f":"+B44*F44","v":0}]
[null,214469,null,"1.2.2.5.3 Hora Catedra Titular",null,null,{"$f":"+B45*F45","v":0}]
[null,248333,null,"1.2.2.5.4 Hora Catedra Asocidado",null,null,{"$f":"+B46*F46","v":0}]
[null,null,null,"TOTAL RECURSOS HORA CATEDRA INTERNO (POSGRADOS)",null,{"$f":"SUM(F43:F46)","v":0},{"$f":"SUM(G43:G46)","v":0}]
[null,null,null,"TOTAL RECURSOS HORA CATEDRA",null,{"$f":"SUM(F44:F47)","v":0},{"$f":"+G40+G33+G47","v":0}]
[]
[null,null,null,"TOTAL RECURSOS DOCENTES VINCULACION ESPECIAL",null,null,{"$f":"+G16+G24+G33+G40+G47","v":0}]

{"sheet":"Asistentes Académicos","index":11,"n_rows":96,"n_cols":6,"rows_kept":96,"cut":false,"hidden":true,"merged":[]}
[]
[null,null,"IDENTIFICACIÓN DE RECURSOS PARA LA FORMULACIÓN DEL PLAN DE ACCIÓN "]
[]
[]
[null,null,"Facultad  ","Medio Ambiente y Recursos Naturales",null,{"$f":"IF(D5=\"Ciencias y Educación\",\"CE\",IF(D5=\"Ingeniería\",\"I\",IF(D5=\"Medio Ambiente y Recursos Naturales\",\"MA\",IF(D5=\"Artes ASAB\",\"A\",IF(D5=\"Tecnológica\",\"T\",\"\")))))","v":"MA"}]
[]
[null,null,"Identifique a continuación el número de Asistentes Académicos e Investigativos asociadas a cada Proyecto Curricular."]
[]
[null,null,null,"Cantidad (Anual) ","TOTAL","Objeto                                                (Detalle especificamente la destinación del valor solicitado)"]
[]
[null,null,null,null,{"$f":"(816397*2)*D11","v":0}]
[null,null,null,null,{"$f":"(816397*2)*D12","v":0}]
[null,null,null,null,0]
[null,null,null,null,0]
[null,null,null,null,0]
[null,null,null,null,0]
[null,null,null,null,0]
[null,null,null,"SUBTOTAL META # 1",{"$f":"SUM(E11:E17)","v":0}]
[]
[null,null,null,null,{"$f":"(816397*2)*D20","v":0}]
[null,null,null,null,0]
[null,null,null,null,0]
[null,null,null,null,0]
[null,null,null,null,0]
[null,null,null,null,0]
[null,null,"SUBTOTAL META # 2",null,{"$f":"SUM(E19:E25)","v":0}]
[null,null,null,null,{"$f":"(816397*2)*D27","v":0}]
[null,null,null,null,0]
[null,null,null,null,0]
[null,null,null,null,0]
[null,null,null,null,0]
[null,null,null,null,0]
[null,null,null,null,0]
[null,null,"SUBTOTAL META # 3",null,{"$f":"SUM(E27:E33)","v":0}]
[null,null,null,null,{"$f":"(816397*2)*D35","v":0}]
[null,null,null,null,0]
[null,null,null,null,0]
[null,null,null,null,0]
[null,null,null,null,0]
[null,null,null,null,0]
[null,null,null,null,0]
[null,null,"SUBTOTAL META # 4",null,{"$f":"SUM(E35:E41)","v":0}]
[null,null,null,null,{"$f":"(816397*2)*D43","v":0}]
[null,null,null,null,0]
[null,null,null,null,0]
[null,null,null,null,0]
[null,null,null,null,0]
[null,null,null,null,0]
[null,null,null,null,0]
[null,null,null,null,0]
[null,null,"SUBTOTAL META # 5",null,{"$f":"SUM(E44:E50)","v":0}]
[null,null,null,null,{"$f":"(816397*2)*D52","v":0}]
[null,null,null,null,0]
[null,null,null,null,0]
[null,null,null,null,0]
[null,null,null,null,0]
[null,null,null,null,0]
[null,null,null,null,0]
[null,null,"SUBTOTAL META # 6",null,{"$f":"SUM(E52:E58)","v":0}]
[null,null,null,null,{"$f":"(816397*2)*D60","v":0}]
[null,null,null,null,0]
[null,null,null,null,0]
[null,null,null,null,0]
[null,null,null,null,0]
[null,null,null,null,0]
[null,null,null,null,0]
[null,null,null,null,0]
[null,null,"SUBTOTAL META # 7",null,{"$f":"SUM(E61:E67)","v":0}]
[null,null,null,null,{"$f":"(816397*2)*D69","v":0}]
[null,null,null,null,0]
[null,null,null,null,0]
[null,null,null,null,0]
[null,null,null,null,0]
[null,null,null,null,0]
[null,null,null,null,0]
[null,null,null,null,0]
[null,null,"SUBTOTAL META # 8",null,{"$f":"SUM(E70:E76)","v":0}]
[null,null,null,null,{"$f":"(816397*2)*D78","v":0}]
[null,null,null,null,0]
[null,null,null,null,0]
[null,null,null,null,0]
[null,null,null,null,0]
[null,null,null,null,0]
[null,null,null,null,0]
[null,null,"SUBTOTAL META # 9",null,{"$f":"SUM(E78:E84)","v":0}]
[null,null,null,null,{"$f":"(781242*2)*D86","v":0}]
[null,null,null,null,0]
[null,null,null,null,0]
[null,null,null,null,0]
[null,null,null,null,0]
[null,null,null,null,0]
[null,null,null,null,0]
[null,null,null,null,0]
[null,null,"SUBTOTAL META # 10",null,{"$f":"SUM(E43:E93)","v":0}]
[]
[null,null,null,null,"TOTAL DEL RECURSO",{"$f":"SUM(E94+E42+E34+E26+E18)","v":0}]

{"sheet":"Afiliaciones, Asociaciones afin","index":12,"n_rows":92,"n_cols":7,"rows_kept":92,"cut":false,"hidden":true,"merged":[[84,2,84,3],[85,2,85,3],[88,2,88,3],[79,2,79,3],[80,2,80,3],[81,2,81,4],[82,2,82,3],[83,2,83,3],[86,2,86,3],[87,2,87,3],[74,2,74,3],[75,2,75,3],[76,2,76,3],[77,2,77,3],[78,2,78,3],[66,2,66,3],[67,2,67,3],[58,2,58,3],[59,2,59,3],[60,2,60,3],[73,2,73,4],[68,2,68,3],[69,2,69,3],[70,2,70,3],[71,2,71,3],[72,2,72,3],[29,2,29,3],[30,2,30,3],[31,2,31,3],[61,2,61,3],[62,2,62,3],[53,2,53,3],[54,2,54,3],[55,2,55,3],[56,2,56,3],[49,2,49,4],[57,2,57,4],[40,2,40,3],[42,2,42,3],[35,2,35,3],[36,2,36,3],[37,2,37,3],[17,2,17,4],[23,2,23,3],[24,2,24,3],[26,2,26,3],[25,2,25,4],[12,2,12,3],[13,2,13,3],[14,2,14,3],[15,2,15,3],[16,2,16,3],[6,2,6,6],[8,2,8,3],[10,2,10,3],[1,2,1,6],[11,2,11,3],[91,4,91,5],[89,2,89,4],[33,2,33,4],[32,2,32,3],[18,2,18,3],[19,2,19,3],[20,2,20,3],[21,2,21,3],[22,2,22,3],[48,2,48,3],[50,2,50,3],[51,2,51,3],[52,2,52,3],[34,2,34,3],[27,2,27,3],[28,2,28,3],[45,2,45,3],[46,2,46,3],[47,2,47,3],[65,2,65,4],[38,2,38,3],[39,2,39,3],[41,2,41,4],[43,2,43,3],[44,2,44,3],[63,2,63,3],[64,2,64,3]]}
[]
[null,null,"IDENTIFICACIÓN DE RECURSOS PARA LA FORMULACIÓN DEL PLAN DE ACCIÓN "]
[]
[]
[null,null,null,"Unidad Académico y/o Administrativa ",null,null,{"$f":"IF(#REF!=\"Ciencias y Educación\",\"CE\",IF(#REF!=\"Ingeniería\",\"I\",IF(#REF!=\"Medio Ambiente y Recursos Naturales\",\"MA\",IF(#REF!=\"Artes ASAB\",\"A\",IF(#REF!=\"Tecnológica\",\"T\",\"\")))))","v":{"$error":"#REF!"}}]
[]
[null,null,"Identifique a continuación de manera explícita las Afiliaciones, Asocianes y demas asociadas para cada Unidad Academica:\nNOTA: Por favor diligenciar en Observaciones el objeto de dicho recurso."]
[]
[null,null,"Nombre afiliación /asociación",null,"Presupuesto Asocidado","TOTAL","Objeto                             (Detalle especificamente la destinación del valor solicitado)"]
[]
[null,null,null,null,null,{"$f":"+E11","v":0}]
[null,null,null,null,null,{"$f":"+E12","v":0}]
[null,null,null,null,null,0]
[null,null,null,null,null,0]
[null,null,null,null,null,0]
[null,null,null,null,null,0]
[null,null,null,null,null,0]
[null,null,"SUBTOTAL META # 1",null,null,{"$f":"SUM(F11:F17)","v":0}]
[null,null,null,null,null,0]
[null,null,null,null,null,0]
[null,null,null,null,null,0]
[null,null,null,null,null,0]
[null,null,null,null,null,0]
[null,null,null,null,null,0]
[null,null,null,null,null,0]
[null,null,"SUBTOTAL META # 2",null,null,{"$f":"SUM(F19:F25)","v":0}]
[null,null,null,null,null,0]
[null,null,null,null,null,0]
[null,null,null,null,null,0]
[null,null,null,null,null,0]
[null,null,null,null,null,0]
[null,null,null,null,null,0]
[null,null,null,null,null,0]
[null,null,"SUBTOTAL META # 3",null,null,{"$f":"SUM(F27:F33)","v":0}]
[null,null,null,null,null,0]
[null,null,null,null,null,0]
[null,null,null,null,null,0]
[null,null,null,null,null,0]
[null,null,null,null,null,0]
[null,null,null,null,null,0]
[null,null,null,null,null,0]
[null,null,"SUBTOTAL META # 4",null,null,{"$f":"SUM(F35:F41)","v":0}]
[null,null,null,null,null,0]
[null,null,null,null,null,0]
[null,null,null,null,null,0]
[null,null,null,null,null,0]
[null,null,null,null,null,0]
[null,null,null,null,null,0]
[null,null,null,null,null,0]
[null,null,"SUBTOTAL META # 5",null,null,{"$f":"SUM(F43:F49)","v":0}]
[null,null,null,null,null,0]
[null,null,null,null,null,0]
[null,null,null,null,null,0]
[null,null,null,null,null,0]
[null,null,null,null,null,0]
[null,null,null,null,null,0]
[null,null,null,null,null,0]
[null,null,"SUBTOTAL META # 6",null,null,{"$f":"SUM(F51:F57)","v":0}]
[null,null,null,null,null,0]
[null,null,null,null,null,0]
[null,null,null,null,null,0]
[null,null,null,null,null,0]
[null,null,null,null,null,0]
[null,null,null,null,null,0]
[null,null,null,null,null,0]
[null,null,"SUBTOTAL META # 7",null,null,{"$f":"SUM(F59:F65)","v":0}]
[null,null,null,null,null,0]
[null,null,null,null,null,0]
[null,null,null,null,null,0]
[null,null,null,null,null,0]
[null,null,null,null,null,0]
[null,null,null,null,null,0]
[null,null,null,null,null,0]
[null,null,"SUBTOTAL META # 8",null,null,{"$f":"SUM(F67:F73)","v":0}]
[null,null,null,null,null,0]
[null,null,null,null,null,{"$f":"+E76","v":0}]
[null,null,null,null,null,0]
[null,null,null,null,null,0]
[null,null,null,null,null,0]
[null,null,null,null,null,0]
[null,null,null,null,null,0]
[null,null,"SUBTOTAL META # 9",null,null,{"$f":"SUM(F75:F81)","v":0}]
[null,null,null,null,null,0]
[null,null,null,null,null,0]
[null,null,null,null,null,0]
[null,null,null,null,null,0]
[null,null,null,null,null,0]
[null,null,null,null,null,0]
[null,null,null,null,null,0]
[null,null,"SUBTOTAL META # 10",null,null,{"$f":"SUM(F83:F89)","v":0}]
[]
[null,null,null,null,"TOTAL DEL RECURSO",null,{"$f":"+F90+F82+F74+F66+F58+F50+F42+F26+F18","v":0}]

{"sheet":"Capacitación Docente","index":13,"n_rows":93,"n_cols":8,"rows_kept":93,"cut":false,"hidden":true,"merged":[[90,2,90,5],[6,2,6,7],[92,5,92,6],[1,2,1,7],[18,2,18,5],[26,2,26,5],[34,2,34,5],[42,2,42,5],[50,2,50,5],[58,2,58,5],[66,2,66,5],[74,2,74,5],[82,2,82,5]]}
[]
[null,null,"IDENTIFICACIÓN DE RECURSOS PARA LA FORMULACIÓN DEL PLAN DE ACCIÓN "]
[]
[]
[null,null,null,"Unidad Académico y/o Administrativa ","Artes ASAB",null,null,{"$f":"IF(E5=\"Ciencias y Educación\",\"CE\",IF(E5=\"Ingeniería\",\"I\",IF(E5=\"Medio Ambiente y Recursos Naturales\",\"MA\",IF(E5=\"Artes ASAB\",\"A\",IF(E5=\"Tecnológica\",\"T\",\"\")))))","v":"A"}]
[]
[null,null,"Identifique a continuación de manera explícita las actividades asociadas a Capacitación Docente de su Unidad:\nNOTA: En el caso de seleccionar 'Otro' en el tipo de capacitación, deberá especificarse en el espacio de Observaciones."]
[]
[null,null,null,"Tipo de capacitación ","Presupuesto asociado","Cantidad ","TOTAL","Objeto                                                (Detalle especificamente la destinación del valor solicitado)"]
[]
[null,null,"Artes Plásticas y Visuales","Seminario",null,null,{"$f":"E11*F11","v":0}]
[null,null,null,null,null,null,0]
[null,null,null,null,null,null,0]
[null,null,null,null,null,null,0]
[null,null,null,null,null,null,0]
[null,null,null,null,null,null,0]
[null,null,null,null,null,null,0]
[null,null,null,null,null,null,0]
[null,null,"SUBTOTAL META # 1",null,null,null,{"$f":"SUM(G11:G18)","v":0}]
[null,null,null,null,null,null,0]
[null,null,null,null,null,null,0]
[null,null,null,null,null,null,0]
[null,null,null,null,null,null,0]
[null,null,null,null,null,null,0]
[null,null,null,null,null,null,0]
[null,null,null,null,null,null,0]
[null,null,"SUBTOTAL META # 2",null,null,null,{"$f":"SUM(G20:G26)","v":0}]
[null,null,null,null,null,null,{"$f":"E28*F28","v":0}]
[null,null,null,null,null,null,0]
[null,null,null,null,null,null,0]
[null,null,null,null,null,null,0]
[null,null,null,null,null,null,0]
[null,null,null,null,null,null,0]
[null,null,null,null,null,null,0]
[null,null,"SUBTOTAL META # 3",null,null,null,0,{"$f":"SUM(G28:G34)","v":0}]
[null,null,null,null,null,null,{"$f":"E36*F36","v":0}]
[null,null,null,null,null,null,0]
[null,null,null,null,null,null,0]
[null,null,null,null,null,null,0]
[null,null,null,null,null,null,0]
[null,null,null,null,null,null,0]
[null,null,null,null,null,null,0]
[null,null,"SUBTOTAL META # 4",null,null,null,0,{"$f":"SUM(G36:G42)","v":0}]
[null,null,null,null,null,null,{"$f":"E44*F44","v":0}]
[null,null,null,null,null,null,0]
[null,null,null,null,null,null,0]
[null,null,null,null,null,null,0]
[null,null,null,null,null,null,0]
[null,null,null,null,null,null,0]
[null,null,null,null,null,null,0]
[null,null,"SUBTOTAL META # 5",null,null,null,0,{"$f":"SUM(G44:G50)","v":0}]
[null,null,null,null,null,null,{"$f":"E52*F52","v":0}]
[null,null,null,null,null,null,0]
[null,null,null,null,null,null,0]
[null,null,null,null,null,null,0]
[null,null,null,null,null,null,0]
[null,null,null,null,null,null,0]
[null,null,null,null,null,null,0]
[null,null,"SUBTOTAL META # 6",null,null,null,0,{"$f":"SUM(G52:G58)","v":0}]
[null,null,null,null,null,null,{"$f":"E60*F60","v":0}]
[null,null,null,null,null,null,0]
[null,null,null,null,null,null,0]
[null,null,null,null,null,null,0]
[null,null,null,null,null,null,0]
[null,null,null,null,null,null,0]
[null,null,null,null,null,null,0]
[null,null,"SUBTOTAL META # 7",null,null,null,0,{"$f":"SUM(G60:G66)","v":0}]
[null,null,null,null,null,null,0]
[null,null,null,null,null,null,0]
[null,null,null,null,null,null,0]
[null,null,null,null,null,null,0]
[null,null,null,null,null,null,0]
[null,null,null,null,null,null,0]
[null,null,null,null,null,null,0]
[null,null,"SUBTOTAL META # 8",null,null,null,0,{"$f":"SUM(G68:G74)","v":0}]
[null,null,null,null,null,null,{"$f":"E76*F76","v":0}]
[null,null,null,null,null,null,0]
[null,null,null,null,null,null,0]
[null,null,null,null,null,null,0]
[null,null,null,null,null,null,0]
[null,null,null,null,null,null,0]
[null,null,null,null,null,null,0]
[null,null,"SUBTOTAL META # 9",null,null,null,0,{"$f":"SUM(G76:G82)","v":0}]
[null,null,null,null,null,null,{"$f":"E84*F84","v":0}]
[null,null,null,null,null,null,0]
[null,null,null,null,null,null,0]
[null,null,null,null,null,null,0]
[null,null,null,null,null,null,0]
[null,null,null,null,null,null,0]
[null,null,null,null,null,null,0]
[null,null,"SUBTOTAL META # 10",null,null,null,0,{"$f":"SUM(G84:G90)","v":0}]
[]
[null,null,null,null,null,"TOTAL DEL RECURSO",null,{"$f":"+G19+G27+G35+G43+G51+G59+G67+G75+G83+G91","v":0}]

{"sheet":"Capacitacion Adminsitrativos","index":14,"n_rows":92,"n_cols":8,"rows_kept":92,"cut":false,"hidden":true,"merged":[[85,2,85,3],[86,2,86,3],[87,2,87,3],[88,2,88,3],[79,2,79,3],[80,2,80,3],[82,2,82,3],[83,2,83,3],[84,2,84,3],[74,2,74,3],[75,2,75,3],[76,2,76,3],[77,2,77,3],[78,2,78,3],[68,2,68,3],[69,2,69,3],[70,2,70,3],[71,2,71,3],[72,2,72,3],[62,2,62,3],[63,2,63,3],[64,2,64,3],[66,2,66,3],[67,2,67,3],[56,2,56,3],[58,2,58,3],[59,2,59,3],[60,2,60,3],[61,2,61,3],[51,2,51,3],[52,2,52,3],[53,2,53,3],[54,2,54,3],[55,2,55,3],[45,2,45,3],[46,2,46,3],[47,2,47,3],[48,2,48,3],[50,2,50,3],[39,2,39,3],[40,2,40,3],[42,2,42,3],[43,2,43,3],[44,2,44,3],[34,2,34,3],[35,2,35,3],[36,2,36,3],[37,2,37,3],[38,2,38,3],[28,2,28,3],[29,2,29,3],[30,2,30,3],[31,2,31,3],[32,2,32,3],[22,2,22,3],[23,2,23,3],[24,2,24,3],[26,2,26,3],[27,2,27,3],[16,2,16,3],[18,2,18,3],[19,2,19,3],[20,2,20,3],[21,2,21,3],[11,2,11,3],[12,2,12,3],[13,2,13,3],[14,2,14,3],[15,2,15,3],[4,4,4,5],[6,2,6,7],[91,5,91,6],[1,2,1,7],[17,2,17,5],[25,2,25,5],[33,2,33,5],[89,2,89,5],[41,2,41,5],[49,2,49,5],[57,2,57,5],[65,2,65,5],[73,2,73,5],[81,2,81,5],[8,2,8,3],[10,2,10,3]]}
[]
[null,null,"IDENTIFICACIÓN DE RECURSOS PARA LA FORMULACIÓN DEL PLAN DE ACCIÓN "]
[]
[]
[null,null,null,"Unidad Académico y/o Administrativa "," - Seleccione la Unidad - "]
[]
[null,null,"Identifique a continuación de manera explícita las actividades asociadas a Capacitación Docente de su Unidad:\nNOTA: En el caso de seleccionar 'Otro' en el tipo de capacitación, deberá especificarse en el espacio de Observaciones."]
[]
[null,null,"Tipo de capacitación ",null,"Presupuesto asociado","Cantidad de eventos","TOTAL","Objeto                                                (Detalle especificamentela destinación del valor solicitado)"]
[]
[null,null,null,null,null,0,{"$f":"E11*F11","v":0},"Estos cursos seran realizados con el fin de capacitar a los funcionarios de la Universi"]
[null,null,null,null,null,null,0]
[null,null,null,null,null,null,0]
[null,null,null,null,null,null,0]
[null,null,null,null,null,null,0]
[null,null,null,null,null,null,0]
[null,null,null,null,null,null,0]
[null,null,"SUBTOTAL META # 1",null,null,null,{"$f":"SUM(G11:G17)","v":0}]
[null,null,null,null,null,null,{"$f":"E19*F19","v":0}]
[null,null,null,null,null,null,0]
[null,null,null,null,null,null,0]
[null,null,null,null,null,null,0]
[null,null,null,null,null,null,0]
[null,null,null,null,null,null,0]
[null,null,null,null,null,null,0]
[null,null,"SUBTOTAL META # 2",null,null,null,{"$f":"SUM(G19:G25)","v":0}]
[null,null,null,null,null,null,{"$f":"E27*F27","v":0}]
[]
[]
[]
[]
[]
[]
[null,null,"SUBTOTAL META # 3",null,null,null,{"$f":"SUM(G27:G33)","v":0}]
[]
[]
[]
[]
[]
[]
[]
[null,null,"SUBTOTAL META # 4",null,null,null,{"$f":"SUM(G35:G41)","v":0}]
[]
[]
[]
[]
[]
[]
[]
[null,null,"SUBTOTAL META # 5",null,null,null,{"$f":"SUM(G43:G49)","v":0}]
[]
[]
[]
[]
[]
[]
[]
[null,null,"SUBTOTAL META # 6",null,null,null,{"$f":"SUM(G51:G57)","v":0}]
[]
[]
[]
[]
[]
[]
[]
[null,null,"SUBTOTAL META # 7",null,null,null,{"$f":"SUM(G59:G65)","v":0}]
[]
[]
[]
[]
[]
[]
[]
[null,null,"SUBTOTAL META # 8",null,null,null,{"$f":"SUM(G67:G73)","v":0}]
[]
[]
[]
[]
[]
[]
[]
[null,null,"SUBTOTAL META # 9",null,null,null,{"$f":"SUM(G75:G81)","v":0}]
[]
[]
[]
[]
[null,null,null,null,null,null,{"$f":"E87*F87","v":0}]
[]
[null,null,null,null,null,null,{"$f":"E89*F89","v":0}]
[null,null,"SUBTOTAL META # 10",null,null,null,{"$f":"SUM(G35:G89)","v":0}]
[]
[null,null,null,null,null,"TOTAL DEL RECURSO",null,{"$f":"SUM(G11:G90)","v":0}]

{"sheet":"Eventos Académicos","index":15,"n_rows":102,"n_cols":8,"rows_kept":102,"cut":false,"hidden":true,"merged":[[4,4,4,5],[6,2,6,7],[101,5,101,6],[1,2,1,7],[18,2,18,5],[27,2,27,5],[36,2,36,5],[45,2,45,5],[99,2,99,5],[54,2,54,5],[63,2,63,5],[72,2,72,5],[81,2,81,5],[90,2,90,5]]}
[]
[null,null,"IDENTIFICACIÓN DE RECURSOS PARA LA FORMULACIÓN DEL PLAN DE ACCIÓN "]
[]
[]
[null,null,null,"Facultad ","Ingeniería",null,null,{"$f":"IF(E5=\"Ciencias y Educación\",\"CE\",IF(E5=\"Ingeniería\",\"I\",IF(E5=\"Medio Ambiente y Recursos Naturales\",\"MA\",IF(E5=\"Artes ASAB\",\"A\",IF(E5=\"Tecnológica\",\"T\",\"\")))))","v":"I"}]
[]
[null,null,"Identifique a continuación de manera explícita los eventos académicos asociados a cada Proyecto Curricular:\nNOTA: En el caso de seleccionar 'Otro' en el tipo de evento, deberá especificarse en el espacio de Observaciones."]
[]
[null,null,"Proyecto Curricular ","Tipo de evento","Cantidad ","Presupuesto Asocidado","TOTAL","Objeto                                                (Detalle especificamente la destinación del valor solicitado)"]
[]
[null,null,null,null,null,null,{"$f":"E11*F11","v":0}]
[null,null,null,null,null,null,0]
[null,null,null,null,null,null,0]
[null,null,null,null,null,null,0]
[null,null,null,null,null,null,0]
[null,null,null,null,null,null,0]
[null,null,null,null,null,null,0]
[null,null,null,null,null,null,0]
[null,null,"SUBTOTAL META # 1",null,null,null,{"$f":"SUM(G11:G18)","v":0}]
[null,null,null,null,null,null,{"$f":"E20*F20","v":0}]
[null,null,null,null,null,null,{"$f":"E21*F21","v":0}]
[null,null,null,null,null,null,0]
[null,null,null,null,null,null,0]
[null,null,null,null,null,null,0]
[null,null,null,null,null,null,0]
[null,null,null,null,null,null,0]
[null,null,null,null,null,null,0]
[null,null,"SUBTOTAL META # 2",null,null,null,{"$f":"SUM(G20:G27)","v":0}]
[null,null,null,null,null,null,{"$f":"E29*F29","v":0}]
[null,null,null,null,null,null,0]
[null,null,null,null,null,null,0]
[null,null,null,null,null,null,0]
[null,null,null,null,null,null,0]
[null,null,null,null,null,null,0]
[null,null,null,null,null,null,{"$f":"E35*F35","v":0}]
[null,null,null,null,null,null,{"$f":"E36*F36","v":0}]
[null,null,"SUBTOTAL META # 3",null,null,null,{"$f":"SUM(G29:G36)","v":0}]
[null,null,null,null,null,null,{"$f":"E38*F38","v":0}]
[null,null,null,null,null,null,0]
[null,null,null,null,null,null,0]
[null,null,null,null,null,null,0]
[null,null,null,null,null,null,0]
[null,null,null,null,null,null,0]
[null,null,null,null,null,null,0]
[null,null,null,null,null,null,0]
[null,null,"SUBTOTAL META # 4",null,null,null,{"$f":"SUM(G38:G45)","v":0}]
[null,null,null,null,null,null,{"$f":"E47*F47","v":0}]
[null,null,null,null,null,null,0]
[null,null,null,null,null,null,0]
[null,null,null,null,null,null,0]
[null,null,null,null,null,null,0]
[null,null,null,null,null,null,0]
[null,null,null,null,null,null,0]
[null,null,null,null,null,null,0]
[null,null,"SUBTOTAL META # 5",null,null,null,{"$f":"SUM(G47:G54)","v":0}]
[null,null,null,null,null,null,{"$f":"E56*F56","v":0}]
[null,null,null,null,null,null,0]
[null,null,null,null,null,null,0]
[null,null,null,null,null,null,0]
[null,null,null,null,null,null,0]
[null,null,null,null,null,null,0]
[null,null,null,null,null,null,0]
[null,null,null,null,null,null,0]
[null,null,"SUBTOTAL META # 6",null,null,null,{"$f":"SUM(G56:G63)","v":0}]
[null,null,null,null,null,null,{"$f":"E65*F65","v":0}]
[null,null,null,null,null,null,0]
[null,null,null,null,null,null,0]
[null,null,null,null,null,null,0]
[null,null,null,null,null,null,0]
[null,null,null,null,null,null,0]
[null,null,null,null,null,null,0]
[null,null,null,null,null,null,0]
[null,null,"SUBTOTAL META # 7",null,null,null,{"$f":"SUM(G65:G72)","v":0}]
[null,null,null,null,null,null,{"$f":"E74*F74","v":0}]
[null,null,null,null,null,null,0]
[null,null,null,null,null,null,0]
[null,null,null,null,null,null,0]
[null,null,null,null,null,null,0]
[null,null,null,null,null,null,0]
[null,null,null,null,null,null,0]
[null,null,null,null,null,null,0]
[null,null,"SUBTOTAL META # 8",null,null,null,{"$f":"SUM(G74:G81)","v":0}]
[null,null,null,null,null,null,{"$f":"E83*F83","v":0}]
[]
[]
[]
[]
[]
[]
[]
[null,null,"SUBTOTAL META # 9",null,null,null,{"$f":"SUM(G83:G90)","v":0}]
[]
[]
[]
[]
[]
[]
[]
[null,null,null,null,null,null,{"$f":"E99*F99","v":0}]
[null,null,"SUBTOTAL META # 10",null,null,null,{"$f":"SUM(G46:G99)","v":0}]
[]
[null,null,null,null,null,"TOTAL DEL RECURSO",null,{"$f":"+G100+G46+G37+G28+G19","v":0}]

{"sheet":"Eventos ","index":16,"n_rows":93,"n_cols":9,"rows_kept":93,"cut":false,"hidden":true,"merged":[[86,2,86,3],[87,2,87,3],[88,2,88,3],[80,2,80,3],[82,2,82,3],[83,2,83,3],[84,2,84,3],[85,2,85,3],[75,2,75,3],[76,2,76,3],[77,2,77,3],[78,2,78,3],[79,2,79,3],[69,2,69,3],[70,2,70,3],[71,2,71,3],[72,2,72,3],[74,2,74,3],[63,2,63,3],[64,2,64,3],[66,2,66,3],[67,2,67,3],[68,2,68,3],[58,2,58,3],[59,2,59,3],[60,2,60,3],[61,2,61,3],[62,2,62,3],[52,2,52,3],[53,2,53,3],[54,2,54,3],[55,2,55,3],[56,2,56,3],[46,2,46,3],[47,2,47,3],[48,2,48,3],[50,2,50,3],[51,2,51,3],[40,2,40,3],[42,2,42,3],[43,2,43,3],[44,2,44,3],[45,2,45,3],[35,2,35,3],[36,2,36,3],[37,2,37,3],[38,2,38,3],[39,2,39,3],[29,2,29,3],[30,2,30,3],[31,2,31,3],[32,2,32,3],[34,2,34,3],[23,2,23,3],[24,2,24,3],[26,2,26,3],[27,2,27,3],[28,2,28,3],[18,2,18,3],[19,2,19,3],[20,2,20,3],[21,2,21,3],[22,2,22,3],[4,4,4,5],[6,2,6,7],[92,5,92,6],[1,2,1,7],[17,2,17,5],[25,2,25,5],[33,2,33,5],[41,2,41,5],[90,2,90,5],[49,2,49,5],[57,2,57,5],[65,2,65,5],[73,2,73,5],[81,2,81,5],[8,2,8,3],[10,2,10,3],[16,2,16,3],[11,2,11,3],[12,2,12,3],[13,2,13,3],[14,2,14,3],[15,2,15,3]]}
[]
[null,null,"IDENTIFICACIÓN DE RECURSOS PARA LA FORMULACIÓN DEL PLAN DE ACCIÓN "]
[]
[]
[null,null,null,"Unidad Académico y/o Administrativa ","División de Recursos Humanos",null,null,{"$f":"IF(E5=\"Ciencias y Educación\",\"CE\",IF(E5=\"Ingeniería\",\"I\",IF(E5=\"Medio Ambiente y Recursos Naturales\",\"MA\",IF(E5=\"Artes ASAB\",\"A\",IF(E5=\"Tecnológica\",\"T\",\"\")))))","v":""}]
[]
[null,null,"Identifique a continuación de manera explícita los eventos asociados a la unidad academico Y/o Administrativa:\nNOTA: En el caso de seleccionar 'Otro' en el tipo de evento deberá especificarse en el espacio de Observaciones."]
[]
[null,null,"Tipo de evento",null,"Cantidad ","Presupuesto Asocidado","TOTAL","Objeto                                                (Detalle especificamente la destinación del valor solicitado)"," "]
[]
[null,null,null,null,null,null,{"$f":"E11*F11","v":0}]
[null,null,null,null,null,null,0]
[null,null,null,null,null,null,0]
[null,null,null,null,null,null,0]
[null,null,null,null,null,null,0]
[null,null,null,null,null,null,0]
[null,null,null,null,null,null,0]
[null,null,"SUBTOTAL META # 1",null,null,null,{"$f":"SUM(G11:G17)","v":0}]
[null,null,null,null,null,null,{"$f":"E19*F19","v":0}]
[null,null,null,null,null,null,0]
[null,null,null,null,null,null,0]
[null,null,null,null,null,null,0]
[null,null,null,null,null,null,0]
[null,null,null,null,null,null,0]
[null,null,null,null,null,null,0]
[null,null,"SUBTOTAL META # 2",null,null,null,{"$f":"SUM(G19:G25)","v":0}]
[null,null,null,null,null,null,{"$f":"E27*F27","v":0}]
[]
[]
[]
[]
[]
[]
[null,null,"SUBTOTAL META # 3",null,null,null,{"$f":"SUM(G27:G33)","v":0}]
[null,null,null,null,null,null,{"$f":"E35*F35","v":0}]
[null,null,null,null,null,null,0]
[null,null,null,null,null,null,0]
[null,null,null,null,null,null,0]
[null,null,null,null,null,null,0]
[null,null,null,null,null,null,0]
[null,null,null,null,null,null,0]
[null,null,"SUBTOTAL META # 4",null,null,null,{"$f":"SUM(G35:G41)","v":0}]
[null,null,null,null,null,null,{"$f":"E43*F43","v":0}]
[null,null,null,null,null,null,0]
[null,null,null,null,null,null,0]
[null,null,null,null,null,null,0]
[null,null,null,null,null,null,0]
[null,null,null,null,null,null,0]
[null,null,null,null,null,null,0]
[null,null,"SUBTOTAL META # 5",null,null,null,{"$f":"SUM(G43:G49)","v":0}]
[null,null,null,null,null,null,{"$f":"E51*F51","v":0}]
[null,null,null,null,null,null,0]
[null,null,null,null,null,null,0]
[null,null,null,null,null,null,0]
[null,null,null,null,null,null,0]
[null,null,null,null,null,null,0]
[null,null,null,null,null,null,0]
[null,null,"SUBTOTAL META # 6",null,null,null,{"$f":"SUM(G51:G57)","v":0}]
[null,null,null,null,null,null,{"$f":"E59*F59","v":0}]
[null,null,null,null,null,null,0]
[null,null,null,null,null,null,0]
[null,null,null,null,null,null,0]
[null,null,null,null,null,null,0]
[null,null,null,null,null,null,0]
[null,null,null,null,null,null,0]
[null,null,"SUBTOTAL META # 7",null,null,null,{"$f":"SUM(G59:G65)","v":0}]
[null,null,null,null,null,null,{"$f":"E67*F67","v":0}]
[null,null,null,null,null,null,0]
[null,null,null,null,null,null,0]
[null,null,null,null,null,null,0]
[null,null,null,null,null,null,0]
[null,null,null,null,null,null,0]
[null,null,null,null,null,null,0]
[null,null,"SUBTOTAL META # 8",null,null,null,{"$f":"SUM(G67:G73)","v":0}]
[null,null,null,null,null,null,{"$f":"E75*F75","v":0}]
[null,null,null,null,null,null,0]
[null,null,null,null,null,null,0]
[null,null,null,null,null,null,0]
[null,null,null,null,null,null,0]
[null,null,null,null,null,null,0]
[null,null,null,null,null,null,0]
[null,null,"SUBTOTAL META # 9",null,null,null,{"$f":"SUM(G75:G81)","v":0}]
[]
[]
[null,null,null,null,null,null,{"$f":"E85*F85","v":0}]
[null,null,null,null,null,null,{"$f":"E86*F86","v":0}]
[null,null,null,null,null,null,{"$f":"E87*F87","v":0}]
[null,null,null,null,null,null,{"$f":"E88*F88","v":0}]
[]
[null,null,null,null,null,null,{"$f":"E90*F90","v":0}]
[null,null,"SUBTOTAL META # 10",null,null,null,{"$f":"SUM(G43:G90)","v":0}]
[]
[null,null,null,null,null,"TOTAL DEL RECURSO",null,{"$f":"SUM(G11:G91)","v":0}]

{"sheet":"Prácticas ","index":17,"n_rows":91,"n_cols":8,"rows_kept":91,"cut":false,"hidden":true,"merged":[[4,4,4,5],[6,2,6,7],[90,5,90,6],[1,2,1,7],[17,2,17,5],[25,2,25,5],[88,2,88,5],[80,2,80,5],[33,2,33,5],[41,2,41,5],[49,2,49,5],[57,2,57,5],[65,2,65,5],[73,2,73,5]]}
[]
[null,null,"IDENTIFICACIÓN DE RECURSOS PARA LA FORMULACIÓN DEL PLAN DE ACCIÓN "]
[]
[]
[null,null,null,"Facultad ",null,null,null,{"$f":"IF(E5=\"Ciencias y Educación\",\"CE\",IF(E5=\"Ingeniería\",\"I\",IF(E5=\"Medio Ambiente y Recursos Naturales\",\"MA\",IF(E5=\"Artes ASAB\",\"A\",IF(E5=\"Tecnológica\",\"T\",\"\")))))","v":""}]
[]
[null,null,"Identifique a continuación de manera explícita las prácticas asociadas a cada Proyecto Curricular de la Facultad:\nNOTA: En el caso de seleccionar 'Otro' en el tipo de práctica, deberá especificarse en el espacio de Observaciones."]
[]
[null,null,null,"Tipo de práctica","Presupuesto asociado","Cantidad ","TOTAL","Objeto                                                (Detalle especificamente la destinación del valor solicitado)"]
[]
[null,null,null,"Evento estudiantil",13456000,1,{"$f":"E11*F11","v":13456000}]
[null,null,null,null,null,null,{"$f":"E12*F12","v":0}]
[null,null,null,null,null,null,0]
[null,null,null,null,null,null,0]
[null,null,null,null,null,null,0]
[null,null,null,null,null,null,0]
[null,null,null,null,null,null,0]
[null,null,"SUBTOTAL META # 1",null,null,null,{"$f":"SUM(G11:G17)","v":13456000}]
[null,null,null,null,null,null,{"$f":"E19*F19","v":0}]
[null,null,null,null,null,null,0]
[null,null,null,null,null,null,0]
[null,null,null,null,null,null,0]
[null,null,null,null,null,null,0]
[null,null,null,null,null,null,0]
[null,null,null,null,null,null,0]
[null,null,"SUBTOTAL META # 2",null,null,null,{"$f":"SUM(G19:G25)","v":0}]
[null,null,null,null,null,null,{"$f":"E27*F27","v":0}]
[null,null,null,null,null,null,0]
[null,null,null,null,null,null,0]
[null,null,null,null,null,null,0]
[null,null,null,null,null,null,0]
[null,null,null,null,null,null,0]
[null,null,null,null,null,null,0]
[null,null,"SUBTOTAL META # 3",null,null,null,{"$f":"SUM(G27:G33)","v":0}]
[null,null,null,null,null,null,{"$f":"E35*F35","v":0}]
[null,null,null,null,null,null,0]
[null,null,null,null,null,null,0]
[null,null,null,null,null,null,0]
[null,null,null,null,null,null,0]
[null,null,null,null,null,null,0]
[null,null,null,null,null,null,0]
[null,null,"SUBTOTAL META # 4",null,null,null,{"$f":"SUM(G35:G41)","v":0}]
[null,null,null,null,null,null,{"$f":"E43*F43","v":0}]
[null,null,null,null,null,null,0]
[null,null,null,null,null,null,0]
[null,null,null,null,null,null,0]
[null,null,null,null,null,null,0]
[null,null,null,null,null,null,0]
[null,null,null,null,null,null,0]
[null,null,"SUBTOTAL META # 5",null,null,null,{"$f":"SUM(G43:G49)","v":0}]
[null,null,null,null,null,null,{"$f":"E51*F51","v":0}]
[null,null,null,null,null,null,0]
[null,null,null,null,null,null,0]
[null,null,null,null,null,null,0]
[null,null,null,null,null,null,0]
[null,null,null,null,null,null,0]
[null,null,null,null,null,null,0]
[null,null,"SUBTOTAL META # 6",null,null,null,{"$f":"SUM(G51:G57)","v":0}]
[null,null,null,null,null,null,{"$f":"E59*F59","v":0}]
[null,null,null,null,null,null,0]
[null,null,null,null,null,null,0]
[null,null,null,null,null,null,0]
[null,null,null,null,null,null,0]
[null,null,null,null,null,null,0]
[null,null,null,null,null,null,0]
[null,null,"SUBTOTAL META # 7",null,null,null,{"$f":"SUM(G59:G65)","v":0}]
[null,null,null,null,null,null,{"$f":"E67*F67","v":0}]
[null,null,null,null,null,null,0]
[null,null,null,null,null,null,0]
[null,null,null,null,null,null,0]
[null,null,null,null,null,null,0]
[null,null,null,null,null,null,0]
[null,null,null,null,null,null,0]
[null,null,"SUBTOTAL META # 8",null,null,null,{"$f":"SUM(G67:G73)","v":0}]
[null,null,null,null,null,null,{"$f":"E75*F75","v":0}]
[null,null,null,null,null,null,0]
[null,null,null,null,null,null,0]
[null,null,null,null,null,null,0]
[null,null,null,null,null,null,0]
[null,null,null,null,null,null,0]
[null,null,"SUBTOTAL META # 9",null,null,null,{"$f":"SUM(G27:G80)","v":0}]
[null,null,null,null,null,null,{"$f":"E82*F82","v":0}]
[null,null,null,null,null,null,0]
[null,null,null,null,null,null,0]
[null,null,null,null,null,null,0]
[null,null,null,null,null,null,0]
[null,null,null,null,null,null,0]
[null,null,null,null,null,null,0]
[null,null,"SUBTOTAL META # 10",null,null,null,{"$f":"SUM(G82:G88)","v":0}]
[]
[null,null,null,null,null,"TOTAL DEL RECURSO",null,{"$f":"SUM(G11:G89)","v":26912000}]

{"sheet":"Hoja2","index":18,"n_rows":4,"n_cols":7,"rows_kept":4,"cut":false,"hidden":true,"merged":[]}
[]
[]
[null,null,"Lineamientos","Estrategias","Actividades","Recursos"]
[null,null,2,3,6,5,{"$f":"+C4*D4*E4*F4","v":180}]

{"sheet":"Instructivo","index":19,"n_rows":3,"n_cols":12,"rows_kept":3,"cut":false,"hidden":true,"merged":[[2,9,4,9],[2,10,4,10],[2,11,4,11],[2,7,4,7],[2,8,4,8],[2,6,4,6],[2,1,4,1],[2,2,4,2],[2,3,4,3],[2,4,4,4],[2,5,4,5]]}
[]
[null,"Lineamiento No","Lineamiento Estrategico","Estrategia","Actividades","Proceso","Tipo de Indicaciones","Indicador","Meta","Recursos","Cantidad","$"]
[null,"Conforme al Plan Estrategico de Desarrollo para el año 2018-2030, seleccione  el lineamiento dentro del cual se enmarca el desarrollo del plan de Acción correspondiente a su area.","Aca aparecera la descripcion  del lineamiento escogido en el recuadro anterior.","Seleccione de la lista desplegable la estrategia la cual encaja dentro de lo que el ","Esta debe iniciar con un verbo infinitivo y debe responder a un ¿Que?¿Como?¿ Para que?","Identifique el procesos en el cual "]

{"sheet":"MAtriz","index":20,"n_rows":28,"n_cols":15,"rows_kept":28,"cut":false,"hidden":true,"merged":[[3,8,4,11]]}
[]
[null,"Lineamientos","Lineamiento1","Lineamiento2","Lineamiento3","Lineamiento4","Lineamiento5",null,null,null,null,null,null,"Lineamientos"]
[null,"Lineamiento1","1.1:Difusión y apropiación del Proyecto Universitario Institucional.","2.1:  Definición de lineamientos curriculares institucionales con enfoque crítico-transformador que fomenten el dialogo de saberes y conocimientos, la integración curricular, la pertinencia social, la flexibilidad, la interdisciplinariedad, la investigación curricular, la innovación y el uso de metodologías pertinentes a los diversos contextos","3.1: Transferencia de resultados de investigación, creación e innovación institucionales para la solución de problemas de la sociedad.","4.1:Elaborar y ejecutar el Plan Maestro de Espacios Educativos","5.1:Garantizar tecnologías y canales digitales que permitan generar, procesar y acceder a información oportuna sobre las funciones universitarias, los procesos y procedimientos institucionales, el trámite de servicios, la recepción de solicitudes y la generación de respuestas pertinentes y satisfactorias.",null,null,null,null,null,null,"Lineamiento1","1. Formar ciudadanos, profesionales, investigadores, creadores e innovadores, íntegros con pensamiento crítico y cultura democrática, en contextos diferenciados inter y multiculturales para la transformación de la sociedad."]
[null,"Lineamiento2","1.2: Desarrollar de manera permanente procesos de autoevaluación que se traduzcan en planes de mejoramiento continuo para programas de posgrado y pregrado.","2.2:Estructuración de metodologías y estrategias de enseñanza - aprendizaje que favorezcan la construcción y resolución de situaciones problémicas","3.2:Definición y desarrollo de modelos de apropiación social del conocimiento, que posibiliten el intercambio y diálogo de saberes y conocimientos con los sectores sociales, productivos y culturales.","4.2: Desarrollo y actualización sostenible de la infraestructura universitaria de manera articulada entre las sedes de la Universidad; además con una relación amable y respetuosa con el ambiente.","5.2:Garantizar la divulgación de toda información pública generada por la Universidad; así como el control de la información pública clasificada y reservada que maneja la institución.",null,{"$f":"IF(J6=\"Formar ciudadanos, profesionales, investigadores, creadores e innovadores, íntegros con pensamiento crítico y cultura democrática, en contextos diferenciados inter y multiculturales para la transformación de la sociedad.\n\",Lineamiento1,IF(J6=\"2. Establecer un diseño curricular dinámico y flexible que promueva el pluralismo y consolide una comunidad universitaria crítica-transformadora y en armonía ambiental.\n\",Lineamiento2,IF(J6=\"3. Integrar las funciones universitarias por medio de la investigación, creación, innovación para la ampliación del conocimiento como bien público y para la solución de problemas de la ciudad -región y de la sociedad en general. \",Lineamiento3,IF(J6=\"4. Garantizar, gestionar y proveer las condiciones institucionales para el cumplimiento de las funciones universitarias y el bienestar de su comunidad.\",Lineamiento4,IF(J6=\"5. Consolidar y fortalecer la democracia participativa, la gobernanza y la gobernabilidad para la cohesión de la comunidad universitaria.\",Lineamiento5,)))))","v":0},null,null,null,null,"Lineamiento2","2. Establecer un diseño curricular dinámico y flexible que promueva el pluralismo y consolide una comunidad universitaria crítica-transformadora y en armonía ambiental."]
[null,"Lineamiento3","1.3:.Elevar el nivel de desempeño de los estudiantes en las pruebas Saber Pro.","2.3:Construcción e implementación de una reforma curricular participativa, integral y flexible que fomente la integración de las funciones universitarias y los campos, articule los niveles de formación y promueva la internacionalización de los planes de estudios","3.3:Mejoramiento y cualificación de la producción y difusión científica y creativa, de tal manera que logren mayor presencia en el mundo académico","4.3: Promoción de la cultura de respeto por el ambiente y la sostenibilidad ambiental","5.3:Consolidación de mecanismos de democracia participativa, donde la comunidad universitaria se involucre en la toma decisiones y en las dinámicas propias de la institución",null,null,null,null,null,null,"Lineamiento3","3. Integrar las funciones universitarias por medio de la investigación, creación, innovación para la ampliación del conocimiento como bien público y para la solución de problemas de la ciudad -región y de la sociedad en general. "]
[null,"Lineamiento4"," 1.4: Adopción de mecanismos que permitan mayor equidad y disminución de las diferencias en las condiciones laborales de los docentes.","2.4:Desarrollo de programas e incentivos que favorezcan mejorar los índices de permanencia y repitencia.","3.4:Definición y desarrollo de la agenda de investigación-innovación-creación institucional con la comunidad universitaria y con el apoyo de actores interesados, estableciendo mecanismos de participación de acuerdo con los contextos, saberes y conocimientos de los participantes. ","4.4: Desarrollo y consolidación de un campus digital que conecte a las distintas dependencias académicas y administrativas y que supere las distancias territoriales entre las distintas sedes de la Universidad.","5.4:Promover formas de organización, interacción y asociación de los estudiantes para su participación activa en los asuntos de la vida universitaria y de la sociedad",null,null,null,null,null,null,"Lineamiento4","4. Garantizar, gestionar y proveer las condiciones institucionales para el cumplimiento de las funciones universitarias y el bienestar de su comunidad."]
[null,"Lineamiento5","1.5:Consolidación y aumento de una oferta académica flexible que articule los diferentes niveles de formación desde el nivel básico hasta el superior.","2.5: Promoción de alternativas académicas que diversifiquen las modalidades de trabajos de grado.","3.5:Formulación de una política de investigación que permita la creación de programas, proyectos, líneas y áreas de investigación que estimulen la producción científica, y la solución de problemas de la ciudad-región y del país.","4.5: Fortalecimiento de un sistema integral de información institucional que garantice su disponibilidad y la memoria institucional","5.5: Adelantar diálogos con las diferentes representaciones de la sociedad civil, las agencias de cooperación, el sector privado y la academia para cualificar el proceso de rendición pública de cuentas. ",null,null,null,null,null,null,"Lineamiento5","5. Consolidar y fortalecer la democracia participativa, la gobernanza y la gobernabilidad para la cohesión de la comunidad universitaria."]
[null,null,"1.6:Articulación de la acción institucional con las políticas nacionales y distritales en materia de equidad, cobertura y calidad","2.6:Adoptar y desarrollar un programa de admisión y permanencia que permita un tránsito flexible en la malla curricular y las posibilidades de titulación, cotitulación y doble titulación.","3.6: Consolidar y cualificar los grupos y semilleros de investigación","4.6: Favorecer los indicadores de área por estudiante para el desarrollo de la actividad curricular. ","5.6: Garantizar la recepción y respuesta al 100% de las peticiones, quejas y reclamos, a través de canales y medios que se ajusten a las necesidades y capacidades de las personas que los interponen. "]
[null,null,"1.7: Coherencia entre la proyección de la oferta académica institucional, los programas, los recursos humanos y físicos para mantener la calidad de la formación, la investigación, la creación y la innovación","2.7: Fortalecimiento de un modelo de formación docente continuo, que permita fomentar las dimensiones pedagógicas, didácticas, profesionales y humanas y los procesos de innovación pedagógica.","3.7:Creación de redes de investigación, nacionales e internacionales; y promover las membresías pertinentes.","4.7: Creación e implementación del sistema CRAI (Centro de Recursos para el Aprendizaje y la Investigación) que articule los medios educativos de la Universidad.","5.7: Construir, ejecutar y evaluar periódicamente la estrategia de participación y rendición de cuentas."]
[null,null,"1.8: Consolidación y aumento de una oferta académica flexible que articule los diferentes niveles de formación desde el nivel básico hasta el superior","2.8:  Consolidación de una evaluación integral del currículo que permita el diseño, implementación, seguimiento y retroalimentación del mismo; promueva la pertinencia social de los programas académicos, la formación integral de personas en situación de discapacidad, la especialización docente en nuevas metodologías y modalidades de enseñanza-aprendizaje; y propicie el aumento en la atención cualificada de poblaciones académicas específicas. ","3.8: Promover la categorización de grupos de investigación en las convocatorias que para efecto se reglamenten.","4.8: Identificar los avances en materia de conocimiento científico, tecnológico y de innovación que inciden en la organización, gestión y productividad de los procesos institucionales.","5.8: Implementar un sistema integrado de comunicaciones que permita gestionar, articular y medir su impacto en la publicidad, difusión, acceso y apropiación de la información para favorecer la visibilidad institucional nacional e internacionalmente."]
[null,null,"1.9:Promoción del intercambio, la circulación y el diálogo de conocimientos y saberes, a través de encuentros multidisciplinarios de conocimiento","2.9: Construcción de la política de integridad como parte del quehacer diario, que favorezca reflexiones, actitudes y comportamientos positivos de todos los servidores públicos, y que contribuya al cambio cultural.","3.9: Expedición de la reglamentación interna que defina el marco y las condiciones para la creación y la gestión de las empresas.","4.9: Conocer las necesidades que expresan los resultados de la evaluación del desempeño; determinar las observaciones de las auditorías, internas y externas sobre la gestión y sus resultados; y diagnosticar las necesidades de los servidores públicos en materia de conocimientos. ","5.9: Estudiar las causas por las cuales se producen las peticiones, quejas y reclamos y adoptar mecanismos que permitan el mejoramiento continuo en la prestación de los servicios."]
[null,null,"1.10: Gestión de proyectos que promuevan la investigación y la proyección social como instrumentos de articulación de la Universidad con la sociedad. ","2.10: Motivar la participación de la comunidad universitaria, especialmente de los estudiantes en el diagnóstico y consolidación de programas de bienestar","3.10: Desarrollo de las actividades que aborden las problemáticas de los sectores productivos, e integren a la comunidad universitaria en la búsqueda de soluciones efectivas que respondan a las necesidades diagnosticadas","4.10: Construcción de una cultura organizacional universitaria basada en la solidaridad y el respeto por lo público que permita promover la transparencia, la ética y la responsabilidad colectiva en el marco de la autonomía universitaria","5.10:Fortalecimiento y ampliación de mecanismos que garanticen la eficiencia, eficacia y efectividad de las funciones universitarias; la transparencia y la ética en la toma de decisiones y en la operación institucional; y la seguridad jurídica institucional."]
[null,null,"1.11: Promoción de encuentros y articulación con el sector productivo a fin de responder a sus demandas y generar sinergia en la difusión y apropiación del conocimiento. ","2.11:Construcción de una política cultural universitaria que propenda la diversidad de las expresiones artísticas, culturales, deportivas y el desarrollo de la pertenencia institucional.","3.11: Fortalecer los diálogos e intercambios con organismos internacionales, entidades estatales y sectores productivos.","4.11:Aumentar y cualificar la planta de empleos docentes y administrativos, en correspondencia con la organización interna, la proyección de cobertura y las condiciones institucionales.","5.11: Revisión, actualización y modernización del Estatuto General y de las demás normas estatutarias requeridas para el cumplimiento de las funciones institucionales, con las debidas consultas a la comunidad universitaria."]
[null,null,"1.12: Gestión y consolidación de relaciones nacionales e internacionales para fortalecer el intercambio académico, investigativo, de creación e innovación.","2.12: Construcción de una cultura organizacional universitaria basada en la solidaridad y el respeto por lo público que permita promover la transparencia, la ética y la responsabilidad colectiva en el marco de la autonomía universitaria.","3.12: Actualización y ajuste, a los intereses de la Universidad, del Estatuto de Propiedad Intelectual.","4.12: Implementar estrategias orientadas a incentivar los ascensos en el escalafón de los docentes de carrera y docentes especiales","5.12: Consolidación de sistemas de gestión, control, seguimiento, digitalización y acceso a la información, gestión documental, servicio en línea, trámites institucionales y atención a las personas."]
[null,null,"1.13: Establecer y desarrollar un modelo de homologación y equivalencias entre los diferentes programas y las normas que lo reglamenten.","2.13: Crear un sistema de evaluación de los servicios de bienestar universitario.","3.13: Incrementar el número de doctores que participan en el desarrollo de acciones encaminadas a la apropiación social del conocimiento.","4.13: Adecuar las instalaciones para garantizar el bienestar de las personas en situación de discapacidad.","5.13: Estudiar, detectar, tratar y eliminar los riesgos de corrupción, motivando la participación de la comunidad universitaria y de la sociedad en la vigilancia de la gestión y la protección del patrimonio de la Universidad. "]
[null,null,"1.14: Establecer y desarrollar una política institucional de apropiación de la segunda lengua como parte activa de la gestión curricular, y como condición para la titulación y la evaluación.",null,"3.14: Creación y funcionamiento de un Centro de Innovación y Emprendimiento que contribuya a dar respuesta a las necesidades de los empresarios de la ciudad región, y promueva la articulación interdisciplinaria de servicios a los sectores económicos y la apropiación social del conocimiento como bien público.","4.14:Motivar el conocimiento de lenguajes y actividades interactivas entre los servidores de la entidad y las personas en situación de discapacidad","5.1:Garantizar tecnologías y canales digitales que permitan generar, procesar y acceder a información oportuna sobre las funciones universitarias, los procesos y procedimientos institucionales, el trámite de servicios, la recepción de solicitudes y la generación de respuestas pertinentes y satisfactorias."]
[null,null,"1.15:Promover y consolidar convenios con universidades internacionales e incrementar los intercambios de estudiantes y docentes.",null,"3.15: Establecer alianzas estratégicas y apoyar los parques tecnológicos en las áreas de influencia de la Universidad.",null,"5.2:Garantizar la divulgación de toda información pública generada por la Universidad; así como el control de la información pública clasificada y reservada que maneja la institución."]
[null,null,"1.16: Desarrollar y fortalecer la participación de la Universidad en el desarrollo del sistema educativo distrital.",null,"3.16: Concertar acciones de investigación, formación y asesoría con las empresas de los sectores productivos de la ciudad-región",null,"5.3:Consolidación de mecanismos de democracia participativa, donde la comunidad universitaria se involucre en la toma decisiones y en las dinámicas propias de la institución"]
[null,null,"1.17: Articulación con autoridades del Sector Educativo, los colegios y sus estamentos, la comunidad y los sectores económicos, con el fin de evaluar, articular y consolidar los objetivos educacionales y los procesos de formación en investigación, creación, innovación y emprendimiento, para fomentar la comprensión y solución de problemas y la potenciación de capacidades hacia la transformación de la sociedad.",null,null,null,"5.4:Promover formas de organización, interacción y asociación de los estudiantes para su participación activa en los asuntos de la vida universitaria y de la sociedad"]
[null,null,"1.18: Estudio sobre el impacto de la articulación con el Sector Educativo Distrital en el acceso, la permanencia y la titulación.",null,null,null,"5.5: Adelantar diálogos con las diferentes representaciones de la sociedad civil, las agencias de cooperación, el sector privado y la academia para cualificar el proceso de rendición pública de cuentas. "]
[null,null,"1.19: Fortalecimiento y creación de programas que fomenten la inclusión, la permanencia, la retención y la graduación",null,null,null,"5.6: Garantizar la recepción y respuesta al 100% de las peticiones, quejas y reclamos, a través de canales y medios que se ajusten a las necesidades y capacidades de las personas que los interponen. "]
[null,null,"1.20: Desarrollo del Sistema de Bienestar universitario integral, que mejore las condiciones de los miembros de la comunidad universitaria, con altos estándares de calidad",null,null,null,"5.7: Construir, ejecutar y evaluar periódicamente la estrategia de participación y rendición de cuentas."]
[null,null,"1.21: Promoción de la comprensión y el análisis sobre las condiciones, creencias y alternativas de proyección de los intereses de los estudiantes sobre su futuro, su situación socioeconómica y la visión que les ofrece la Universidad.",null,null,null,"5.8: Implementar un sistema integrado de comunicaciones que permita gestionar, articular y medir su impacto en la publicidad, difusión, acceso y apropiación de la información para favorecer la visibilidad institucional nacional e internacionalmente."]
[null,null,"1.22: Disponer de manera funcional y jerarquizada un orden adecuado de relaciones entre las facultades, las escuelas y los programas académicos, de acuerdo con el Estatuto General.",null,null,null,"5.9: Estudiar las causas por las cuales se producen las peticiones, quejas y reclamos y adoptar mecanismos que permitan el mejoramiento continuo en la prestación de los servicios."]
[null,null,null,null,null,null,"5.10:Fortalecimiento y ampliación de mecanismos que garanticen la eficiencia, eficacia y efectividad de las funciones universitarias; la transparencia y la ética en la toma de decisiones y en la operación institucional; y la seguridad jurídica institucional."]
[null,null,null,null,null,null,"5.11: Revisión, actualización y modernización del Estatuto General y de las demás normas estatutarias requeridas para el cumplimiento de las funciones institucionales, con las debidas consultas a la comunidad universitaria."]
[null,null,null,null,null,null,"5.12: Consolidación de sistemas de gestión, control, seguimiento, digitalización y acceso a la información, gestión documental, servicio en línea, trámites institucionales y atención a las personas."]
[null,null,null,null,null,null,"5.13: Estudiar, detectar, tratar y eliminar los riesgos de corrupción, motivando la participación de la comunidad universitaria y de la sociedad en la vigilancia de la gestión y la protección del patrimonio de la Universidad. "]

{"sheet":"Mantenimientos  y Rep","index":21,"n_rows":52,"n_cols":8,"rows_kept":52,"cut":false,"hidden":true,"merged":[[6,2,6,7],[51,5,51,6],[1,2,1,7],[17,2,17,5],[25,2,25,5],[33,2,33,5],[41,2,41,5],[49,2,49,5]]}
[null,null,{"$f":"IF(D11=\"Muebles\",\"Muebles\",IF(D11=\"Inmuebles\",\"Inmuebles\",))","v":"Muebles"}]
[null,null,"IDENTIFICACIÓN DE RECURSOS PARA LA FORMULACIÓN DEL PLAN DE ACCIÓN "]
[]
[]
[null,null,null,"Unidad Académico y/o Administrativa ",null,"Red de Datos UDNET",null,{"$f":"IF(#REF!=\"Ciencias y Educación\",\"CE\",IF(#REF!=\"Ingeniería\",\"I\",IF(#REF!=\"Medio Ambiente y Recursos Naturales\",\"MA\",IF(#REF!=\"Artes ASAB\",\"A\",IF(#REF!=\"Tecnológica\",\"T\",\"\")))))","v":{"$error":"#REF!"}}]
[]
[null,null,"Identifique a continuación de manera explícita los Tipos de mejora, de bien y Concepto asociados  a las Unidades Academico y/o Administrativas:\nNOTA: Es de carácter obligatorio diligenciar el objeto del mantenimiento."]
[]
[null,null,"Tipo de Mejora","Tipo de Bien","Definición del Concepto","Presupuesto Asocidado","TOTAL","(Objeto) Detalle especificamente la destinación del valor solicitado"]
[]
[null,null,"Preventiva","Muebles"]
[null,null,null,null,null,null,{"$f":"+F12","v":0}]
[]
[null,null,null,null,null,null,{"$f":"+F14","v":0}]
[null,null,null,null,null,null,{"$f":"+F15","v":0}]
[null,null,null,null,null,null,{"$f":"+F16","v":0}]
[null,null,null,null,null,null,{"$f":"+F17","v":0}]
[null,null,"SUBTOTAL META # 1",null,null,null,{"$f":"SUM(G11:G17)","v":0}]
[null,null,null,null,null,null,{"$f":"+F19","v":0}]
[null,null,null,null,null,null,0]
[null,null,null,null,null,null,0]
[null,null,null,null,null,null,0]
[null,null,null,null,null,null,0]
[null,null,null,null,null,null,0]
[null,null,null,null,null,null,0]
[null,null,"SUBTOTAL META # 2",null,null,null,{"$f":"SUM(G19:G25)","v":0}]
[null,null,null,null,null,null,{"$f":"+F27","v":0}]
[]
[]
[]
[]
[]
[]
[null,null,"SUBTOTAL META # 3",null,null,null,{"$f":"SUM(G26:G33)","v":0}]
[]
[]
[]
[]
[]
[]
[]
[null,null,"SUBTOTAL META # 4",null,null,null,{"$f":"SUM(G34:G41)","v":0}]
[]
[]
[]
[]
[null,null,null,null,null,null,{"$f":"+F47","v":0}]
[null,null,null,null,null,null,{"$f":"+F48","v":0}]
[null,null,null,null,null,null,{"$f":"+F49","v":0}]
[null,null,"SUBTOTAL META # 5",null,null,null,{"$f":"SUM(G42:G49)","v":0}]
[]
[null,null,null,null,null,"TOTAL DEL RECURSO",null,{"$f":"SUM(G11:G50)","v":0}]

{"sheet":"Datos","index":22,"n_rows":110,"n_cols":26,"rows_kept":110,"cut":false,"hidden":true,"merged":[[2,3,2,7]]}
[]
[]
[null,null,null,"Prácticas académicas - asistentes académico e investigativos"]
[null," - Seleccione una Facultad - ",null,"Medio Ambiente y Recursos Naturales","Ciencias y Educación","Artes ASAB","Ingeniería","Tecnológica"]
[null,null,null,"Ingeniería Forestal","Archivistica y Gestión de la Información Digital ","Artes Plásticas y Visuales","Ingeniería Catastral y Geodesia","Tecnología en Gestión de la Producción Indsutrial por Ciclos Propedéuticos"]
[null,null,null,"Ingeniería Topográfica","Comunicación Social y Periodismo","Arte Danzario","Ingeniería Industrial","Tecnología Electrónica por Ciclos Propedéuticos"]
[null,null,null,"Ingeniería Ambiental ","Licenciatura en Biología","Artes Musicales","Ingeniería Electrónica","Tecnología en Construcciones Civiles por Ciclos Propedéuticos"]
[null,null,null,"Administración Ambiental","Licenciatura en Química","Artes Escenicas","Ingeniería Eléctrica","Tecnologia en Sistemas Electronicos de Media y Baja Tensíon por Ciclos Propedéuticos"]
[null,null,null,"Administración Deportiva","Licenciatura en Física",null,"Ingeniería de Sistemas","Tecnología en Sistematización de Datos por Ciclos Propedéuticos"]
[null,null,null,"Tecnología en Gestión Ambiental y Servicios Públicos","Licenciatura en Humanidades y Lengua Castellana ","Maestría en Estudios Artísticos ",null,"Tecnología Mecánica por Ciclos Propedéuticos"]
[null,"Seminario",null,"Tecnología en Saneamiento Ambiental","Matemáticas",null,"Especialización en avaluos","Ingenieria Eléctrica por Ciclos Propedéuticos"]
[null,"Taller",null,"Tecnología en Levantamiento Topográficos","Licenciatura en Matemáticas",null,"Especialización en Bioingeniería","Ingeniería Electrica por Ciclos Propedéuticos"]
[null,"Curso",null,null,"Licenciatura en Ciencias Sociales",null,"Especialización en Gestión de Proyectos de Ingeniería","Ingeniería en Telecomunicaciones por Ciclos Propedéuticos"]
[null,"Simposio",null,null,"Licenciatura en Lengua Extranjeras con Énfasis en Inglés",null,"Especialización en Higiene, Seguridad y Salud en el Trabajo","Ingenieria Civil por Ciclos Propedéuticos"]
[null,"Congreso",null,null,"Licenciatura en Educación Artística",null,"Especialización en Informática y Automática Industrial","Ingeniería de Producción por Ciclos Propedéuticos"]
[null,"Asistencia a eventos académicos ",null,null,"Licenciatura en Pedagogía Infantil",null,"Especialización en Ingeniería de Software","Ingeniería en Telematica por Ciclos Propedéuticos"]
[null,"Otro ",null,null,"Proyecto Académico de Investigación y Extensión de pedagogía - PAIEP",null,"Especialización en Proyectos Informáticos","Ingeniería Mecánica por Ciclos Propedéuticos"]
[null,null,null,null,"Proyecto Académico Transversal de Formación de Profesores para Poblaciones con Necesidades Educativas Especiales - NEES",null,"Especialización en Sistemas de Información Geográfica","Maestria en Ingenieria Civil."]
[null,null,null,null,null,null,"Especialización en Telecomunicaciones Móviles"]
[null,null,null,null,null,null,"Especialización en Teleinformática"]
[null,null,null,null,"Especialización en Desarrollo Humano con Énfasis en Procesos Afectivos y Creatividad"]
[null,null,null,null,"Especialización en Educación en Tecnología",null,"Maestría en Ciencias de la Información y la Comunicaciones "]
[null,null,null,null,"Especialización en Educación y Gestión Ambiental ",null,"Maestría en Ingeniería Industrial"]
[null,null,null,null,"Especialización en Gerencia de Proyectos Educativos Institucionales",null,"Maestría en Ingeniería énfasis en Ingeniería Eléctrica"]
[null,null,null,null,"Especialización en Infancia, Cultura y Desarrollo",null,"Maestríe en Telecomunicaciones Móviles"]
[]
[null,null,null,null,"Maestría en Comunicación-Educación",null,"Doctorado en Ingeniería"]
[null,null,null,null,"Maestría en Educación"]
[null,null,null,null,"Maestría en Educación en Tecnología",null,null,null,null,null,null,null,null,null,null,"Muebles","Inmuebles"]
[null,null,null,null,"Maestría en Educación para la Paz",null,null,null,null,null,null,null,null,null,null,"Laborarorios","Locativos"]
[null,null,null,null,"Maestría en Infancia y Cultura",null,null,null,null,null,null,null,null,null,null,"Diferentes a Laboratorios","Ferretaria",null,null,null,null,"*"]
[null,null,null,null,"Maestría en Investigación Social Interdisciplinaria",null,null,null,null,null,null,null,null,null,null,null,"Aseo "]
[null,null,null,null,"Maestría en Lingüística Aplicada a la Enseñanza del Inglés",null,null,null,null,null,null,null,null,null,null,null,"Vigilancia"]
[null,null,null,null,"Maestría en Pedagogía de la lengua Materna "]
[null,null,null,null," "]
[null,null,null,null,"Doctorado Interinstitucional en Educación"]
[null,null,null,null,"Doctorado en Estudios Sociales"]
[]
[]
[]
[]
[null,null,null,null,null,null,null,null,null,null,null,null,null,null,null,null,null,null,null,null,null,"Eventos en General",null,null,"Otros"]
[null,null,null,"Capacitación Docente","Eventos ","Prácticas Académicas","Docentes VE ","Capacitación Administrativos ","Recurso ",null,null,null,"Partes","Listas",null,null,"Capacitacion Funcionarios",null,"Mantenimiento ",null,null,"Evento de divulgación ",null,null,"Materiales y Suministros"]
[null,null,null,"Seminario",null,null,null,null,null,null,null,null," - Seleccione la Unidad - ","LISTAF",null,null,"Curso",null,"Preventiva","Muebles","Laborarorios","Taller",null,null,"Impresiones Publicaciones","Vicerrectoria Administrativa"]
[null,null,null,"Taller","Evento de divulgación ","Visita Técnica","Ocasionales","Evento de divulgación ","Asistentes Académicos e Investigativos ",null,null,null,"Decanatura Facultad de Artes - ASAB","LISTAF",null,null,"Taller",null,"Correctiva","Inmuebles","Diferentes a laboratorios","Curso",null,null,"Gastos de Computador","Red de Datos"]
[null,null,null,"Curso","Taller","Salida de campo ","MT Y TC ","Taller","Capacitación Administrativos",null,null,null,"Decanatura Facultad de Ciencias y Educación","LISTAF",null,null,"Otros",null,null,null,"Locativos","Ferias",null,null,"Dotación","RecursosHumanos"]
[null,null,null,"Simposio","Curso","Evento estudiantil","Hora Cátedra","Curso","Capacitación Docente",null,null,null,"Decanatura Facultad de Ingeniería","LISTAF",null,null,null,null,null,null,"Ferretaria","Seminarios",null,null,"Combustibles, Lubricantes, Llantas ","Vicerrectoria Financiera"]
[null,null,null,"Conferencia","Simposio","Otro"," Auxiliar TCO","Conferencia","Docentes V. Especial",null,null,null,"Decanatura Facultad de Medio Ambiente","LISTAF",null,null,null,null,null,null,"Aseo ","Otro",null,null,"Arrendamientos","Rectoria"]
[null,null,null,"Congreso","Otro",null," Asistente TCO","Seminario","Eventos",null,null,null,"Decanatura Facultad Tecnológica","LISTAD",null,null,null,null,null,null,"Vigilancia",null,null,null,"Viaticos y Gastos de Viaje","Vicerrectoria Academica"]
[null,null,null,"Asistencia a eventos académicos ",null,null,"Titular TCO","Otro","Eventos Académicos ",null,null,null,"División de Recursos Financieros","LISTAD",null,null,null,null,null,null,null,null,null,null,"Equipos de computador","Red de Datos"]
[null,null,null,"Otro ",null,null,"Asociado TCO",null,"Otros",null,null,null,"División de Recursos Humanos","LISTAD",null,null,null,null,null,null,null,null,null,null,"Comunicaciones - gastos de internet"]
[null,null,null,null,null,null," Auxiliar MTO",null,"Prácticas Académicos",null,null,null,"Docencia","LISTAD"]
[null,null,null,null,null,null," Asistente MTO",null,null,null,null,null,"Oficina Asesora de Asuntos Disciplinarios","LISTAD",null,null,null,null,null,null,null," - Seleccióne la vigencia -"]
[null,null,null,null,null,null,"Titular MTO",null,null,null,null,null,"Oficina Asesora de Control Interno","LISTAD",null,null,null,null,null,null,null,2018]
[null,null,null,null,null,null,"Asociado MTO",null,null,null,null,null,"Oficina Asesora de Sistemas","LISTAD",null,null,null,null,null,null,null,2019]
[null,null,null,null,null,null,"Auxiliar HC",null,null,null,null,null,"Rectoría","LISTAD",null,null,null,null,null,null,null,2020]
[null,null,null,null,null,null,"Asistente HC",null,null,null,null,null,"Secretaría General","LISTAD",null,null,null,null,null,null,null,2021]
[null,null,null,null,null,null,"Titular HC",null,null,null,null,null,"Autoevaluación y Acreditación de Alta Calidad","LISTAD"]
[null,null,null,null,null,null,"Asociado HC",null,null,null,null,null,"Bienestar Institucional","LISTAD"]
[null,null,null,null,null,null,null,null,null,null,null,null,"Cátedra UNESCO","LISTAD"]
[null,null,null,null,null,null,null,null,null,null,null,null,"Centro de Investigaciones y Desarrollo Científico","LISTAD"]
[null,null,null,null,null,null,null,null,null,null,null,null,"Centro de Relaciones Interinstitucionales - CERI","LISTAD"]
[null," - Seleccione una Facultad - ",null,"Medio Ambiente y Recursos Naturales","Ciencias y Educación","Artes ASAB","Ingeniería","Tecnológica",null,null,null,null,"Emisora LAUD 90.4","LISTAD"]
[null,null,null,"Ingeniería Forestal","Archivistica y Gestión de la Información Digital ","Artes Plásticas y Visuales","Ingeniería Catastral y Geodesia","Tecnología en Gestión de la Producción Indsutrial por Ciclos Propedéuticos",null,null,null,null,"Foro Abierto Consejo Superior Universitario","LISTAD"]
[null,null,null,"Ingeniería Topográfica","Comunicación Social y Periodismo","Arte Danzario","Ingeniería Industrial","Tecnología Electrónica por Ciclos Propedéuticos",null,null,null,null,"Herbario Forestal Facultad del Medio Ambiente","LISTAD"]
[null,null,null,"Ingeniería Ambiental ","Licenciatura en Biología","Artes Musicales","Ingeniería Electrónica","Tecnología en Construcciones Civiles por Ciclos Propedéuticos",null,null,null,null,"Instituto de Estudios E Investigación Educativas","LISTAD"]
[null,null,null,"Administración Ambiental","Licenciatura en Química","Artes Escenicas","Ingeniería Eléctrica","Tecnologia en Sistemas Electronicos de Media y Baja Tensíon por Ciclos Propedéuticos",null,null,null,null,"Instituto de Extensión y Educación No Formal (IDEXUD)","LISTAD"]
[null,null,null,"Administración Deportiva","Licenciatura en Física","Maestría en Estudios Artísticos ","Ingeniería de Sistemas","Tecnología en Sistematización de Datos por Ciclos Propedéuticos",null,null,null,null,"Instituto de Lenguas de la Universidad Distrital ILUD","LISTAD"]
[null,null,null,"Tecnología en Gestión Ambiental y Servicios Públicos","Licenciatura en Humanidades y Lengua Castellana ",null,"Especialización en avaluos","Tecnología Mecánica por Ciclos Propedéuticos",null,null,null,null,"IPAZUD","LISTAD"]
[null,"Seminario",null,"Tecnología en Saneamiento Ambiental","Matemáticas",null,"Especialización en Bioingeniería","Ingenieria Eléctrica por Ciclos Propedéuticos",null,null,null,null,"Sección Biblioteca","LISTAD"]
[null,"Taller",null,"Tecnología en Levantamiento Topográficos","Licenciatura en Matemáticas",null,"Especialización en Gestión de Proyectos de Ingeniería","Ingeniería Electrica por Ciclos Propedéuticos",null,null,null,null,"Sección de Publicaciones","LISTAD"]
[null,"Curso",null,"Especialización de Medio Ambiente y Desarrollo Local ","Licenciatura en Ciencias Sociales",null,"Especialización en Higiene, Seguridad y Salud en el Trabajo","Ingeniería en Telecomunicaciones por Ciclos Propedéuticos",null,null,null,null,"Vicerrectoría Académica","LISTAF"]
[null,"Simposio",null,"Especialización en Diseño de Vías Urbana, Tránsito y Transporte","Licenciatura en Lengua Extranjeras con Énfasis en Inglés",null,"Especialización en Informática y Automática Industrial","Ingenieria Civil por Ciclos Propedéuticos",null,null,null,null,"División de Recursos Físicos","LISTAD"]
[null,"Congreso",null,"Especialización en Gerencia de Recursos Naturales","Licenciatura en Educación Artística",null,"Especialización en Ingeniería de Software","Ingeniería de Producción por Ciclos Propedéuticos",null,null,null,null,"Oficina Asesora de Planeación y Control","LISTAD"]
[null,"Asistencia a eventos académicos ",null,"Maestría en Desarrollo Sustentable y Gestión Ambiental ","Licenciatura en Pedagogía Infantil",null,"Especialización en Proyectos Informáticos","Ingeniería en Telematica por Ciclos Propedéuticos",null,null,null,null,"PIGA","LISTAD"]
[null,"Otro ",null,"Maestría en Manejo, Uso y Conservación del Bosque","Proyecto Académico de Investigación y Extensión de pedagogía - PAIEP",null,"Especialización en Sistemas de Información Geográfica","Ingeniería Mecánica por Ciclos Propedéuticos",null,null,null,null,"Red de Datos UDNET","LISTAD"]
[null,null,null,null,"Proyecto Académico Transversal de Formación de Profesores para Poblaciones con Necesidades Educativas Especiales - NEES",null,"Especialización en Telecomunicaciones Móviles","Maestria en Ingenieria Civil.",null,null,null,null,"Vicerrectoría Administrativa y Financiera","LISTAD"]
[null,null,null,null,"Especialización en Desarrollo Humano con Énfasis en Procesos Afectivos y Creatividad",null,"Especialización en Teleinformática"]
[null,null,null,null,"Especialización en Educación en Tecnología",null,"Maestría en Ciencias de la Información y la Comunicaciones "]
[null,null,null,null,"Especialización en Educación y Gestión Ambiental ",null,"Maestría en Ingeniería Industrial"]
[null,null,null,null,"Especialización en Gerencia de Proyectos Educativos Institucionales",null,"Maestría en Ingeniería énfasis en Ingeniería Eléctrica"]
[null,null,null,null,"Especialización en Infancia, Cultura y Desarrollo",null,"Maestría en Telecomunicaciones Móviles"]
[null,null,null,null,"Maestría en Comunicación-Educación",null,"Doctorado en Ingeniería"]
[null,null,null,null,"Maestría en Educación"]
[null,null,null,null,"Maestría en Educación en Tecnología"]
[null,null,null,null,"Maestría en Educación para la Paz"]
[null,null,null,null,"Maestría en Infancia y Cultura"]
[null,null,null,null,"Maestría en Investigación Social Interdisciplinaria"]
[null,null,null,null,"Maestría en Lingüística Aplicada a la Enseñanza del Inglés"]
[null,null,null,null,"Maestría en Pedagogía de la lengua Materna "]
[null,null,null,null,"Doctorado Interinstitucional en Educación"]
[null,null,null,null,"Doctorado en Estudios Sociales"]
[]
[null,null,null,null," "]
[]
[]
[]
[null,"Mantener y elevar la acreditación institucional de alta calidad y alcanzar el reconocimiento internacional.",null,"Evaluar, revisar y reformular la oferta curricular de pregrado y posgrado de cada facultad, en el marco de los procesos de autoevaluación continua y los proyectos educativos de las facultades / ","104 programas evaluados al 100%","Clasificarse entre las 5 mejores IES colombianas según indicadores en investigación. / ","Estar entre los cinco (5) primeros lugares del ranking","Ampliar, mejorar y modernizar física, tecnológica y ambientalmente la infraestructura, esto de acuerdo con la proyección de la cobertura y las políticas de inclusión / ","Atender el crecimiento de la nueva cobertura (86.000 m2)","Implementar los dominios identificados en el marco de referencia IT 4+ establecidos por MinTIC. /"," Gobierno TI: 100%\nEstrategia TI: 100%\nInformación: 100%\nSistemas de información: 100%\nServicios tecnológicos: 100%\nUso y apropiación: 100%",null,null,null,"\n"]
[null,"Aumentar el 34% en el número de estudiantes de pregrado matriculados.","32.000 estudiantes pregrado","Aumentar la tasa de graduación en pregrados al 70% / ",0.7,"Aumentar el porcentaje de revistas científicas indexadas al 100%. / ",1,"Consolidar cuatro centros de recursos para el aprendizaje y la investigación -CRAI- / ","Cuatro (4) CRAI","Alcanzar la implementación del cuarto componente de Gobierno en Línea (Seguridad y privacidad de la información) / ",1]
[null,"Aumentar el 65% de estudiantes matriculados en posgrado ","4.904 estudiantes posgrado","Lograr que el 70 %, de los docentes, manejen eficazmente tecnologías de la información y la comunicación. / ",0.7,"Aumentar la producción científica anual publicada en revistas indexadas /"," 550 artículos","Fortalecer las competencias de los servidores públicos al servicio de la institución, en beneficio del cumplimiento de las funciones institucionales. / ","Medición y seguimiento del desempeño laboral","Lograr la calidad y disponibilidad del 100% de la información institucional, que no tenga restricción constitucional ni legal. / ","100% de la documentación posible"]
[null,"Aumentar en 28% el número de programas en todos los niveles y modalidades/ ","104 programas","Lograr que el 40 % de los docentes de planta manejen lenguajes que permitan garantizar la atención de comunidades en el marco de la política de inclusión. / ",0.4,"Crear al menos 3 empresas spin-off, 15 empresas incubadas e institutos de investigación e innovación. / ","(3) Spin off\n (15) Startup","Aumentar al 100 % la vinculación de empleados administrativos conforme al sistema de carrera administrativa. / ",1,"Implantar mecanismos de participación, de los diferentes estamentos, de la comunidad universitaria, en las instancias de planeación, gestión, seguimiento y evaluación de la Universidad. / ","\nParticipación: 100%"]
[null,"Lograr homologación y transferencia del 100% de la oferta académica de la Universidad entre sus diferentes niveles de formación / ",1,"Lograr el 90% de satisfacción entre los miembros de la comunidad universitaria frente a las expectativas del bienestar estudiantil y los programas que desde allí se ofrezcan.  / ",0.9,"Incrementar los proyectos de cofinanciación externa en 45%, cuyos recursos provengan de organismos internacionales, los sistemas de ciencia tecnología e innovación; sistema nacional de regalías y, de aquellos en los que tengan interés las entidades estatales con capacidad de financiación. / ",25,"Aumentar el número de docentes de planta en un 45 % y disminuir la vinculación especial en un 10 % / ",980,"Lograr un nivel de satisfacción mínimo del 80% por parte de las personas que utilizan los servicios de la Universidad. / ","80%."]
[null,"Lograr que los proyectos de extensión respondan a la interacción entre las problemáticas del entorno y los procesos de investigación, y que sus resultados vinculen e impacten comunidades de la ciudad región ","50% de proyectos enfocados a la proyección social",null,null,"Lograr el pleno apoyo a la investigación, la creación, la formación, la innovación y el incremento de la productividad y competitividad de las empresas de la ciudad región, por medio de convenios de cooperación con los diferentes sectores",null,"Generar una cultura institucional que respete las diferencias y garantice el bienestar de las personas en situación de discapacidad. / ","30% de las personas que laboran en la institución están en capacidad de interactuar con las personas en situación de discapacidad.","Actualizar, compilar, depurar y difundir el 100% de las normas expedidas por las autoridades institucionales. /"," Verificación de la vigencia del 100% de las normas"]
[null,"Aumentar la oferta en 10 programas de formación para el trabajo y desarrollo del talento humano en correspondencia con las necesidades de los sectores productivos y de servicios de la ciudad región. / ","10 programas de formación",null,null,"Aumentar al 50 % el número de docentes con Doctorado. / ",0.5,"Disminuir el uso de recursos en las sedes de la institución / ","Al menos un descenso en el consumo de agua y electricidad en las sedes institucionales equivalente en 5% anual","Actualizar, simplificar y flexibilizar anualmente la operación de los procesos institucionales en el cumplimiento de las funciones universitarias. / ","100% Actualizado",null,null,null,"\n"]
[null,"Lograr que 20% de la oferta académica de pregrado y posgrado permita la doble titulación o cotitulación. / ",0.2,"\n",null,null,null,"Establecer la adecuada asignación de funciones, competencias, seguridad jurídica y equilibrio institucional en la organización, gobierno y gestión de la Universidad. / ",1]
[null,"Lograr que el 60% de estudiantes tengan un dominio de una segunda lengua en un nivel equivalente a B2 y el 80% de los docentes en C1 / ","60% Estudiantes \n80% Docentes","\n",null,null,null,"Conseguir la publicación oportuna y completa de toda la información relacionada con el principio de transparencia y derecho de acceso a información pública, de acuerdo con la Ley 1712 de 2014. / ",1]
[null,"Aumentar el índice de movilidad internacional anual mínimo al 1,3% de la población estudiantil y al 5% de la planta docente. / ","1,3% Estudiantes\n5% Docentes",null,null,null,null,"Lograr indicadores de cero corrupción en la gestión institucional /  ","•Materialización de riesgos de corrupción 0%\n• Racionalización de Trámites 100%\n• Rendición de Cuentas 100%\n• Mejorar la Atención al Ciudadano 100%\n• Mecanismos de transparencia y acceso a la información actualizados 100%",null,null,null,"\n"]
[null,"Apoyar a estudiantes de los colegios distritales ubicados en el área de influencia de las sedes de la Universidad, con programas de fortalecimiento de competencias básicas en: matemáticas, ciencias naturales, lectura crítica e inglés. "]
[null,"Disminuir la tasa de deserción anual a 9 %. / ",0.09]
[null,"Modernizar la organización académica y administrativa de la institución / ","De acuerdo con la proyección institucional y la Reforma Universitaria"]

{"sheet":"Items con detalle","index":23,"n_rows":95,"n_cols":8,"rows_kept":95,"cut":false,"hidden":true,"merged":[[91,2,91,3],[87,2,87,3],[92,2,92,5],[88,2,88,3],[73,2,73,3],[74,2,74,3],[76,2,76,3],[85,2,85,3],[86,2,86,3],[79,2,79,3],[80,2,80,3],[81,2,81,3],[82,2,82,3],[84,2,84,3],[83,2,83,5],[75,2,75,5],[89,2,89,3],[90,2,90,3],[61,2,61,3],[62,2,62,3],[63,2,63,3],[64,2,64,3],[65,2,65,3],[66,2,66,3],[68,2,68,3],[69,2,69,3],[70,2,70,3],[71,2,71,3],[72,2,72,3],[67,2,67,5],[40,2,40,3],[78,2,78,3],[59,2,59,5],[34,2,34,3],[77,2,77,3],[60,2,60,3],[52,2,52,3],[41,2,41,3],[42,2,42,3],[43,2,43,5],[35,2,35,5],[36,2,36,3],[37,2,37,3],[38,2,38,3],[39,2,39,3],[4,4,4,5],[6,2,6,7],[27,2,27,5],[29,2,29,3],[19,2,19,5],[26,2,26,3],[15,2,15,3],[16,2,16,3],[17,2,17,3],[18,2,18,3],[25,2,25,3],[1,2,1,7],[22,2,22,3],[23,2,23,3],[24,2,24,3],[94,5,94,6],[8,2,8,3],[10,2,10,3],[11,2,11,3],[12,2,12,3],[13,2,13,3],[14,2,14,3],[20,2,20,3],[21,2,21,3],[28,2,28,3],[44,2,44,3],[57,2,57,3],[30,2,30,3],[31,2,31,3],[32,2,32,3],[33,2,33,3],[58,2,58,3],[45,2,45,3],[53,2,53,3],[54,2,54,3],[55,2,55,3],[46,2,46,3],[47,2,47,3],[48,2,48,3],[49,2,49,3],[50,2,50,3],[56,2,56,3],[51,2,51,5]]}
[]
[null,null,"IDENTIFICACIÓN DE RECURSOS PARA LA FORMULACIÓN DEL PLAN DE ACCIÓN "]
[]
[]
[null,null,null,"Unidad Académico y/o Administrativa ","Red de Datos UDNET",null,null,{"$f":"IF(E5=\"Ciencias y Educación\",\"CE\",IF(E5=\"Ingeniería\",\"I\",IF(E5=\"Medio Ambiente y Recursos Naturales\",\"MA\",IF(E5=\"Artes ASAB\",\"A\",IF(E5=\"Tecnológica\",\"T\",\"\")))))","v":""}]
[]
[null,null,"Identifique a continuación de manera explícita las clasificaciones  asociadas para cada Unidad Academicoy/o Administrativa:\nNOTA: Por favor diligenciar en Observaciones el objeto de dicho recurso."]
[]
[null,null,"Clasificación",null,"Cantidad ","Presupuesto Asocidado","TOTAL","Observaciones                   (Detalle especificamente la destinación del valor solicitado)"]
[]
[null,null,"Gastos de Computador",null,1,240000000,{"$f":"E11*F11","v":240000000},"Renovar el licenciamiento de servcios Campus software Microsoft"]
[null,null,"Gastos de Computador",null,1,160000000,{"$f":"E12*F12","v":160000000},"Actualizaciones y soporte Citrix"]
[null,null,"Gastos de Computador",null,1,350000000,350000000,"Mantenimiento Hw y Sw SAN/NAS Netapp - Paiba"]
[null,null,"Gastos de Computador",null,1,460000000,460000000,"Mantenimiento de equipos servidores para la Red de Datos UDNET"]
[null,null,"Gastos de Computador",null,1,300000000,300000000,"Mantenimiento a la solución de telefonía con tecnología IP marca AVAYA "]
[null,null,"Gastos de Computador",null,1,185937500,185937500,"Actualizaciones y soporte aplicación SolarWinds"]
[null,null,"Materiales y Suministros",null,1,74200000,74200000,"Adquisición de Insumos y materiales para telecomunicaciones"]
[null,null,"Gastos de Computador",null,1,809221633,809221633,"Mantenimiento Datacenters (centro de gestión Olimpo edificio Sabio Caldas, Aduanilla de Paiba, Macarena A, Bosa porvenir):\nAires acondicionados (Manejadoras, condensadoras, chiller y tanque de agua)\nControl de acceso (Biometricos, electroimanes, caja de control)\nDetección y Extinción de incendios (sensores, luces, cilindro de gas inerte, controladores)\nSuministro regulado (UPS, PDU, Tableros electricos)\nStruxureWare (Software, Hardware, componentes: camaras, sensores, cajas de control)\nMantenimiento malla alta frecuencia y balanceo de cargas en las UPS"]
[null,null,null,null,null,null,0]
[null,null,"SUBTOTAL META # 1",null,null,null,{"$f":"SUM(G11:G19)","v":2579359133}]
[null,null,"Comunicaciones - gastos de internet",null,1,1475011934,1475011934,"Contratar el servicio de conectividad con enlaces entre sedes y acceso a internet."]
[null,null,null,null,null,null,0]
[null,null,null,null,null,null,0]
[null,null,null,null,null,null,0]
[null,null,null,null,null,null,0]
[null,null,null,null,null,null,0]
[null,null,null,null,null,null,0]
[null,null,"SUBTOTAL META # 2",null,null,null,{"$f":"SUM(G21:G27)","v":1475011934}]
[null,null,null,null,null,null,0]
[null,null,null,null,null,null,0]
[null,null,null,null,null,null,0]
[null,null,null,null,null,null,0]
[null,null,null,null,null,null,0]
[null,null,null,null,null,null,0]
[null,null,null,null,null,null,0]
[null,null,"SUBTOTAL META # 3",null,null,null,{"$f":"SUM(G29:G35)","v":0}]
[null,null,null,null,null,null,{"$f":"E37*F37","v":0}]
[null,null,null,null,null,null,0]
[null,null,null,null,null,null,0]
[null,null,null,null,null,null,0]
[null,null,null,null,null,null,0]
[null,null,null,null,null,null,0]
[null,null,null,null,null,null,0]
[null,null,"SUBTOTAL META # 4",null,null,null,{"$f":"SUM(G37:G43)","v":0}]
[null,null,null,null,null,null,{"$f":"E45*F45","v":0}]
[null,null,null,null,null,null,0]
[null,null,null,null,null,null,0]
[null,null,null,null,null,null,0]
[null,null,null,null,null,null,0]
[null,null,null,null,null,null,0]
[null,null,null,null,null,null,0]
[null,null,"SUBTOTAL META # 5",null,null,null,{"$f":"SUM(G45:G51)","v":0}]
[null,null,null,null,null,null,{"$f":"E53*F53","v":0}]
[null,null,null,null,null,null,0]
[null,null,null,null,null,null,0]
[null,null,null,null,null,null,0]
[null,null,null,null,null,null,0]
[null,null,null,null,null,null,0]
[null,null,null,null,null,null,0]
[null,null,"SUBTOTAL META # 6",null,null,null,{"$f":"SUM(G53:G59)","v":0}]
[null,null,null,null,null,null,{"$f":"E61*F61","v":0}]
[null,null,null,null,null,null,0]
[null,null,null,null,null,null,0]
[null,null,null,null,null,null,0]
[null,null,null,null,null,null,0]
[null,null,null,null,null,null,0]
[null,null,null,null,null,null,0]
[null,null,"SUBTOTAL META # 7",null,null,null,{"$f":"SUM(G61:G67)","v":0}]
[null,null,null,null,null,null,{"$f":"E69*F69","v":0}]
[null,null,null,null,null,null,0]
[null,null,null,null,null,null,0]
[null,null,null,null,null,null,0]
[null,null,null,null,null,null,0]
[null,null,null,null,null,null,0]
[null,null,null,null,null,null,0]
[null,null,"SUBTOTAL META # 8",null,null,null,{"$f":"SUM(G69:G75)","v":0}]
[null,null,null,null,null,null,{"$f":"E77*F77","v":0}]
[null,null,null,null,null,null,0]
[null,null,null,null,null,null,0]
[null,null,null,null,null,null,0]
[null,null,null,null,null,null,0]
[null,null,null,null,null,null,0]
[null,null,null,null,null,null,0]
[null,null,"SUBTOTAL META # 9",null,null,null,{"$f":"SUM(G77:G83)","v":0}]
[]
[]
[]
[]
[]
[]
[]
[]
[null,null,"SUBTOTAL META # 10",null,null,null,{"$f":"SUM(G88:G92)","v":0}]
[]
[null,null,null,null,null,"TOTAL DEL RECURSO",null,{"$f":"G93+G84+G76+G68+G60+G52+G44+G36+G28+G20","v":4054371067}]

{"sheet":"Procesos","index":24,"n_rows":303,"n_cols":10,"rows_kept":303,"cut":false,"hidden":true,"merged":[]}
[]
[null,null,"Gestión de Docencia","GD","Decanatura Facultad de Artes - ASAB","Decanatura Facultad de Ciencias y Educacion","Decanatura Facultad de Ingenieria","Decanatura Facultad de Medio Ambiente","Decanatura Facultad Tecnologica","Docencia"]
[null,null,"Gestión de Investigacion","GI","Centro de Investigaciones y Desarrollo Científico"]
[null,null,"Extensión y Proyeccion Social","EPS"]
[null,null,"Planeacion Estrategica e Institucional","PEI","Rectoría"]
[null,null,"Gestión Integrada","GIT"]
[null,null,"Autoevaluación y Acreditación","AA","Autoevaluación y Acreditación de Alta Calidad"]
[null,null,"Comunicaciones","COM","Emisora LAUD 90.4"]
[null,null,"Interinstitunacionalizacion e Internacionalización","II","Centro de Relaciones Interinstitucionales - CERI"]
[null,null,"Admisiones, Registro y Control","ARC"]
[null,null,"Bienestar Institucional","BI","Bienestar Institucional"]
[null,null,"Gestión de la Información Bibliográfica","GIB"]
[null,null,"Gestión de Laboratorios","GL"]
[null,null,"Servicio al Ciudadano","SC",null,null,null,null,"Secretaría General"]
[null,null,"Gestión de los Sistemas de Información y las Telecomunicaciones","GSIT","Oficina Asesora de Sistemas"]
[null,null,"Gestión y Desarrollo del Talento Humano","GDTH","División de Recursos Humanos"]
[null,null,"Gestión Documental","GDC",null,null,null,null,"Cátedra UNESCO"]
[null,null,"Gestión de Infraestructura Fisica","GIF"]
[null,null,"Gestión de Recursos Financieros","GRF","División de Recursos Financieros"]
[null,null,"Gestión Contractual","GC"]
[null,null,"Gestión Jurídica","GJ",null,null,null,null,"Foro Abierto Consejo Superior Universitario"]
[null,null,"Gestión de Evaluación y Control","EC","Oficina Asesora de Control Interno",null,null,null,"Herbario Forestal Facultad del Medio Ambiente"]
[null,null,"Control Disciplinario","CD ","Oficina Asesora de Asuntos Disciplinarios",null,null,null,"Instituto de Estudios E Investigacion Educativas"]
[null,null,null,null,null,null,null,null,"Instituto de Extensión y Educacion No Formal (IDEXUD)"]
[null,null,null,null,null,null,null,null,"Instituto de Lenguas de la Universidad Distrital ILUD"]
[null,null,null,null,null,null,null,null,"IPAZUD"]
[null,null,"Indicadores",null,null,null,null,null,"Sección Biblioteca"]
[null,null,"AA-012, Cumplimiento en la renovación de registros calificados",null,null,null,null,null,"Sección de Publicaciones"]
[null,null,"AA-013, Cumplimiento de los informes de autoevaluación y plan de mejoramiento de proyectos curriculares",null,null,null,null,null,"Vicerrectoria Académica"]
[null,null,"AA-014, Obtención de registros calificados nuevos",null,null,null,null,null,"División de Recursos Humanos"]
[null,null,"AA-015, Obtención de acreditación de proyectos curriculares por primera vez",null,null,null,null,null,"Oficina Asesora de Planeación y Control"]
[null,null,"AA-016, Cumplimiento en la renovación de la acreditación de proyectos curriculares",null,null,null,null,null,"PIGA"]
[null,null,"AA-017, Porcentaje de estudiantes que participaron en los procesos de autoevaluación institucional",null,null,null,null,null,"Red de Datos UDNET"]
[null,null,"AA-018, Porcentaje de profesores que participaron en los procesos de autoevaluación institucional",null,null,null,null,null,"Vicerrectoria Administrativa y Financiera"]
[null,null,"AA-019, Porcentaje de Graduados que participaron en los procesos de autoevaluación institucional"]
[null,null,"No Aplica"]
[null,null,"ARC-165, Índice de absorción"]
[null,null,"ARC-166, Índice de selectividad"]
[null,null,"ARC-167, Porcentaje de estudiantes matriculados por mecanismos de circunscripciones especiales"]
[null,null,"ARC-168, Índice de absorción educación media publica – Bogotá y cercanías"]
[null,null,"ARC-169, Índice de vinculación educación media publica – Bogotá y cercanías"]
[null,null,"ARC-170, Índice de absorción educación media privada – Bogotá y cercanías "]
[null,null,"ARC-171, Índice de vinculación educación media privada – Bogotá y cercanías"]
[null,null,"ARC-172, Índice de deserción por retiro definitivo"]
[null,null,"ARC-173, Índice de deserción por retiro voluntario (cancelación o aplazamiento)"]
[null,null,"ARC-174, Índice de absorción por localidad"]
[null,null,"ARC-175, Índice de absorción por estrato"]
[null,null,"ARC-176, Índice de demanda académica "]
[null,null,"ARC-177, Índice de absorción de fuera de Bogotá"]
[null,null,"ARC-178, Índice de vinculación posconflicto, paz y educación "]
[null,null,"No Aplica"]
[null,null,"BI-155, Porcentaje de quejas y reclamos de Bienestar Institucional"]
[null,null,"BI-156, Presupuesto ejecutado por Bienestar Institucional"]
[null,null,"BI-157, Porcentaje de cobertura de los servicios de Bienestar para los grupos funcionales"]
[null,null,"BI-158, Porcentaje de estudiantes en prueba académica y alto riesgo atendidos por el programa de permanencia y deserción"]
[null,null,"BI-159,  Porcentaje de egresados que figuran en la base de datos"]
[null,null,"BI-160, Porcentaje de cobertura de los servicios de bienestar para los diferentes estamentos en los últimos tres años"]
[null,null,"BI-161, Relación de espacios expresados en m2 destinados a los programas de Bienestar"]
[null,null,"BI-162, Nivel de cumplimiento de publicaciones indexadas"]
[null,null,"BI-163, Número de estudiantes beneficiados con el programa de becas"]
[null,null,"BI-164, Grado de cumplimiento estudiantes beneficiados con programas de préstamo"]
[null,null,"No Aplica"]
[null,null,"EPS-127, Porcentaje de crecimiento de egresados vinculados en los proyectos de extensión"]
[null,null,"EPS-128, Porcentaje de crecimiento de estudiantes vinculados en los proyectos de extensión"]
[null,null,"EPS-129, Porcentaje de licitaciones e invitaciones directas suscritas por el IDEXUD "]
[null,null,"EPS-130, Porcentaje de eficacia de programas de educación continua y educación no formal"]
[null,null,"EPS-131, Porcentaje de crecimiento de proyectos de extensión suscritos por el IDEXUD"]
[null,null,"EPS-132, Porcentaje de actividades que promueven el uso de los idiomas ejecutadas por el ILUD    "]
[null,null,"EPS-133, Porcentaje de incremento de estudiantes matriculados en programas de extensión del ILUD    "]
[null,null,"EPS-134, Porcentaje de estudiantes de la Universidad Distrital Francisco José de Caldas que inscriben el espacio académico de segunda lengua en el semestre    "]
[null,null,"EPS-135, Porcentaje de cursos de extensión ejecutados por el ILUD en el bimestre"]
[null,null,"EPS-136, Porcentaje de cumplimiento de las actividades administrativas del IPAZUD    "]
[null,null,"EPS-137, Porcentaje de eventos académicos realizados por el IPAZUD   "]
[null,null,"EPS-138, Porcentaje de proyectos y/o actividades investigativas desarrolladas por el IPAZUD  "]
[null,null,"EPS-139, Índice de participación en eventos académicos realizados por el IPAZUD"]
[null,null,"EPS-140, Índice de seguidores en redes sociales del programa de radio ¿Qué está paz- ando?"]
[null,null,"EPS-141, Número de copias publicadas a través del medio escrito de la revista \"Ciudad paz-ando\" "]
[null,null,"EPS-142, Porcentaje de crecimiento de visualización de la revista \"Ciudad paz-ando\" en el portal OJS de la revista"]
[null,null,"No Aplica"]
[null,null,"GD-040, Número de docentes de la universidad que hicieron sus estudios de pregrado en universidad pública"]
[null,null,"GD-041, Número de docentes de la universidad que hicieron sus estudios de postgrado en universidad pública"]
[null,null,"GD-042, Número de docentes de la universidad que hicieron sus estudios de pregrado en universidad privada"]
[null,null,"GD-043, Número de docentes de la universidad que hicieron sus estudios de postgrado en universidad privada"]
[null,null,"GD-044, Número de docentes de la universidad que hicieron sus estudios de pregrado en universidades nacionales"]
[null,null,"GD-045, Número de docentes de la universidad que hicieron sus estudios de pregrado en universidades extranjeras"]
[null,null,"GD-046, Número de docentes de la universidad que hicieron sus estudios de postgrado en universidades nacionales"]
[null,null,"GD-047, Número de docentes de la universidad que hicieron sus estudios de postgrado en universidades nacionales"]
[null,null,"GD-048, Número de estudiantes matriculados en programas de pregrado"]
[null,null,"GD-049, Número de estudiantes matriculados en programas de postgrado"]
[null,null,"GD-050, Número de estudiantes matriculados en programas tecnológicos"]
[null,null,"GD-051, Número de docentes de la universidad que hicieron sus estudios de pregrado en la Universidad Distrital"]
[null,null,"GD-052, Número de docentes de la universidad que hicieron sus estudios de postgrado en la Universidad Distrital"]
[null,null,"GD-053, Número de estudiantes que han participado en pasantía en los últimos cinco años"]
[null,null,"GD-054, Número de estudiantes que han participado en prácticas académicas en los últimos cinco años "]
[null,null,"GD-055, Número de docentes que han participado de estancías de investigación en los últimos cinco años"]
[null,null,"GD-056, Número de docentes que han ejercido como pares académicos en los últimos cinco años "]
[null,null,"GD-057, Número de docentes que han participado en congresos, foros, seminarios, simposios en los últimos cinco años"]
[null,null,"GD-058, Porcentaje de profesores de planta (TC y MT) que han participado en programas de formación pedagógica en los últimos cinco años "]
[null,null,"GD-059, Porcentaje de profesores de planta (TC y MT) que han participado en programas de didáctica en los últimos cinco años"]
[null,null,"GD-060, Porcentaje de profesores de planta (TC y MT) que han participado en programas de formación continua en los últimos cinco años "]
[null,null,"GD-061, Número de docentes TCE (tiempo completo equivalente) en la Universidad"]
[null,null,"GD-062, Relación entre el número de profesores de TCE (tiempo completo equivalente) y el número de estudiantes"]
[null,null,"GD-063, Porcentaje de docentes de carrera  con respecto al total de docentes"]
[null,null,"GD-064, Porcentaje de docentes de vinculación especial con respecto total de docentes"]
[null,null,"GD-065, Porcentaje de docentes de Tiempo Completo con respecto total de docentes"]
[null,null,"GD-066, Porcentaje de docentes de Medio Tiempo con respecto total de docentes"]
[null,null,"GD-067, Relación de docentes Tiempo Completo  y número de estudiantes"]
[null,null,"GD-068, Relación de docentes Medio Tiempo  y número de estudiantes"]
[null,null,"GD-069, Porcentaje de docentes de Tiempo completo o Medio Tiempo con título de doctorado"]
[null,null,"GD-070, Porcentaje de docentes de Tiempo Completo o Medio Tiempo con título de maestría"]
[null,null,"GD-071, Número de docentes de carrera con titulo de Doctorado "]
[null,null,"GD-072, Número de docentes de carrera con titulo de Maestría "]
[null,null,"GD-073, Número de docentes de vinculación especial con titulo de doctorado"]
[null,null,"GD-074, Número de docentes de vinculación especial con titulo de maestría"]
[null,null,"GD-075, Número de docentes de Planta en la Universidad "]
[null,null,"GD-076, Número de docentes de vinculación especial de la Universidad "]
[null,null,"GD-077, Número de docentes de Tiempo Completo y Medio Tiempo que cursan programas de Doctorado (sin comisión)"]
[null,null,"GD-078, Número de docentes de Tiempo Completo y Medio Tiempo que cursan programas de maestría (sin comisión)"]
[null,null,"GD-079, Número de docentes de carrera que han participado en los diferentes programas de formación docente de alto nivel en los últimos tres años incluyendo los que están participando en programas actualmente"]
[null,null,"GD-080, Número de profesores de tiempo completo y medio tiempo que han participado en los diferentes programas de capacitación docente  en los últimos tres años incluyendo los que están participando en actualmente    "]
[null,null,"GD-081, Número de Estudiantes activos pertenecientes a la Universidad"]
[null,null,"GD-082, Número de Estudiantes activos pertenecientes a la Facultad de Ingeniería "]
[null,null,"GD-083, Número de Estudiantes activos pertenecientes a la Facultad de Artes ASAB "]
[null,null,"GD-084, Número de Estudiantes activos pertenecientes a la Facultad de Ciencias y Educación"]
[null,null,"GD-085, Número de Estudiantes activos pertenecientes a la Facultad de Medio Ambiente y recursos Naturales"]
[null,null,"GD-086, Número de Estudiantes activos pertenecientes a la Facultad Tecnológica "]
[null,null,"GD-087, Número de asignaturas que se apoyan en aulas virtuales para el desarrollo de su actividad académica"]
[null,null,"GD-088, Porcentaje de estudiantes que se desempeñan como asistentes académicos e investigativos "]
[null,null,"GD-089, Número de asistentes académicos por periodo"]
[null,null,"GD-090, Número de estudiantes beneficiados con grado de honor Francisco José de Caldas"]
[null,null,"GD-091, Número de estudiantes beneficiados con beca de postgrado\n"]
[null,null,"GD-092, Número de estudiantes beneficiados de matricula de honor"]
[null,null,"GD-054, Número de estudiantes beneficiados con exención de los derechos de matrícula"]
[null,null,"GD-055, Relación de docentes TCE dedicados a la docencia entre el total de docentes TCE"]
[null,null,"GD-095, Participación de docentes TCE en proyectos de investigación"]
[null,null,"GD-096, Participación de docentes TCE en proyección social"]
[null,null,"GD-097, Participación de docentes TCE en consejería académica"]
[null,null,"GD-098, Participación de docentes TCE en la gestión académica-administrativa"]
[null,null,"GD-099, Número de docentes en la categoría de docente auxiliar"]
[null,null,"GD-100, Número de docentes en la categoría de docente asistente"]
[null,null,"GD-101, Número de docentes en la categoría de docente asociado"]
[null,null,"GD-102, Número de docentes en la categoría de docente titular"]
[null,null,"GD-103, Indice de número de proyectos curriculares que como consecuencia de la autoevaluación han actualizado  sus planes de estudio (y han sido aprobados) en los ultimos cinco años"]
[null,null,"GD-104, Número de estudiantes graduados de maestría en los últimos cinco años"]
[null,null,"GD-105, Número de estudiantes graduados de doctorados en los últimos cinco años"]
[null,null,"GD-106, Deserción institucional por periodo "]
[null,null,"GD-107,   Deserción institucional por cohorte institucional                                                                           \n"]
[null,null,"GD-108, Porcentaje de docentes de carrera que han recibido estímulos (económicos - puntos salariales) por el desempeño de su función de docencia en los últimos cinco años"]
[null,null,"GD-109, Porcentaje de docentes de carrera que han recibido estímulos (económicos - bonificaciones) por el desempeño de su función de docencia en los últimos cinco años"]
[null,null,"GD-110, Porcentaje de docentes de carrera que han recibido reconocimientos (premios, diplomas, menciones, entre otros) por el desempeño de su función de docencia en los últimos cinco años"]
[null,null,"GD-111, Número de publicaciones de artículos en revistas indexadas y especializadas nacionales e internacionales de docentes de planta en los últimos cinco años"]
[null,null,"GD-112, Número de publicaciones de libros de docentes de planta en los últimos cinco años"]
[null,null,"GD-113, Número de publicaciones de capítulos de libros de docentes de planta en los últimos cinco años"]
[null,null,"No Aplica"]
[null,null,"SC-179, Tiempo de gestión de las PQRS "]
[null,null,"SC-180, Participación en ferias de servicio y eventos"]
[null,null,"SC-181, Calidad del servicio"]
[null,null,"SC-182, Actualización de la información institucional en el Portal Web Institucional (PWI)"]
[null,null,"SC-183, Nivel de respuesta de PQRS "]
[null,null,"SC-184, Apertura de canales de atención"]
[null,null,"No Aplica"]
[null,null,"GIB-143, Disponibilidad de espacio (área) asignado a los usuarios de la Biblioteca"]
[null,null,"GIB-144, Índice de crecimiento de la colección bibliográfica (ejemplares)"]
[null,null,"GIB-145, Disponibilidad de recursos tecnológicos"]
[null,null,"GIB-146, Satisfacción del usuario "]
[null,null,"GIB-147, Nivel de consulta de la colección bibliográfica al año"]
[null,null,"GIB-148, Participación de profesores en la adquisición de material bibliográfico y de servicios de información"]
[null,null,"GIB-149, Índice de inversión bibliográfica"]
[null,null,"GIB-150, Índice de crecimiento en la prestación de servicios de información"]
[null,null,"No Aplica"]
[null,null,"GI-114, Porcentaje de presupuesto ejecutado para Eventos de divulgación o apoyo a la investigación\ndel CIDC en relación al monto proyectado"]
[null,null,"GI-115, Porcentaje de presupuesto ejecutado para apoyo a movilidad de docentes en relación al presupuesto proyectado para apoyo a movilidad de docentes"]
[null,null,"GI-116, Porcentaje de presupuesto ejecutado  al presupuesto proyectado para a apoyo a movilidad de los estudiantes en relacion al presupuesto proyectado para apoyo a movilidad de los estudiantes"]
[null,null,"GI-117, Relación del presupuesto aprobado para proyectos de investigación apoyados con recursos del CIDC en relación al presupuesto proyectado para proyectos de investigación apoyados con recursos del CIDC"]
[null,null,"GI-118, Porcentaje de proyectos con financiación internacional, en los últimos tres años"]
[null,null,"GI-119, Porcentaje total de número de grupos de la institución reconocidos por Colciencias"]
[null,null,"GI-120, Financiación de proyectos de investigación por organismos nacionales e internacionales"]
[null,null,"GI-121, Número de patentes, registros y desarrollos tecnológicos de la institución en los últimos diez años"]
[null,null,"GI-122, Porcentaje de profesores-investigadores de TC y MT en TCE dedicados al trabajo investigativo"]
[null,null,"GI-123, Porcentaje de profesores-investigadores dedicados al trabajo investigativo de TC y MT en TCE, con títulos de maestría y doctorado"]
[null,null,"GI-124, Porcentaje de proyectos de investigación activos inscritos en la institución"]
[null,null,"GI-125, Grupos de investigación de la institución frente a Colciencias   "]
[null,null,"GI-126, Proyectos de investigación de la institución presentados a Colciencias"]
[null,null,"No Aplica"]
[null,null,"C-020, Porcentaje  de avance en la producción de libros y revistas"]
[null,null,"C-021, Porcentaje de avance en el diseño, elaboración y producción de material publicitario institucional y papeleria"]
[null,null,"No Aplica"]
[null,null,"CD-254, Oportuna atención de quejas y reclamos"]
[null,null,"No Aplica"]
[null,null,"EC-250, Porcentaje de cumplimiento de plan de mejoramiento de las dependencias "]
[null,null,"EC-251, Porcentaje de cumplimiento de la entrega de la información solicitada por los entes de control"]
[null,null,"EC-252, Porcentaje de cumplimiento del programa de auditorías y seguimientos"]
[null,null,"EC-253, Porcentaje de procesos  a los cuales se les ha realizado una auditoria o seguimiento"]
[null,null,"No Aplica"]
[null,null,"GDC-211, Oportunidad en la prestación de servicio de consulta y préstamo de documentos de la Universidad Distrital Francisco José de Caldas que custodia y administra el Archivo Central"]
[null,null,"GDC-212, Transferencias documentales primarias"]
[null,null,"GDC-213, Utilización de espacio de almacenamiento y custodia"]
[null,null,"GDC-214, Inventarios documentales"]
[null,null,"GDC-215, Tabla de retención documental aplicada correctamente"]
[null,null,"GDC-216, Cumplimiento capacitación de gestión documental para funcionarios"]
[null,null,"GDC-217, Metros lineales de documentos de archivo eliminados"]
[null,null,"GDC-218, Documentos organizados acorde a las TRD"]
[null,null,"GDC-219, Transferencias documentales secundarias"]
[null,null,"GDC-220, Cumplimiento de envíos de correspondencia"]
[null,null,"No Aplica"]
[null,null,"GIT-007, Cumplimiento de las metas del Plan Operativo Anual de Inversion"]
[null,null,"GIT-008, Cumplimiento con los Planes de Mejoramiento"]
[null,null,"GIT-009, Nivel de riesgos críticos mitigados"]
[null,null,"GIT-010, Índice de eficacia de los procesos"]
[null,null,"GIT-011, Grado de cumplimiento de la planificación del SIGUD"]
[null,null,"No Aplica"]
[null,null,"GL-151, Satisfacción de los usuarios frente al servicio que presta laboratorios"]
[null,null,"GL-152, Capacidad de laboratorios, talleres y aulas especializadas en la Institución "]
[null,null,"GL-153, Porcentaje de equipos de laboratorios averiados"]
[null,null,"GL-154, Impacto de los laboratorios en los proyectos de grado"]
[null,null,"No Aplica"]
[null,null,"PEI-001, Cumplimiento del Plan de Acción del Proceso de Planeación Estratégica e Institucional"]
[null,null,"PEI-001, Cumplimiento de las metas del Plan Maestro"]
[null,null,"PEI-002, Cumplimiento de las metas del Plan Indicativo"]
[null,null,"PEI-003, Cumplimiento de las metas del Plan General Operativo"]
[null,null,"PEI-005, Ejecución del Plan Operativo Anual de Inversión"]
[null,null,"PEI-006, Cumplimiento de las Metas del Plan Operativo Anual de Inversión"]
[null,null,"No Aplica"]
[null,null,"GIF - 204, Inventarios Actualizados"]
[null,null,"GIF - 205, Nivel de Mantenimientos Realizados por Contratos "]
[null,null,"GIF - 206, Nivel de Inclusiones de Elementos en las Pólizas de Seguros Realizadas durante la Vigencia del Contrato"]
[null,null,"GIF - 207, Nivel de Inclusiones de Elementos en las Pólizas de Seguros Realizadas durante la Vigencia del Contrato"]
[null,null,"GIF - 208, Nivel de Mantenimientos Correctivos"]
[null,null,"GIF - 209, Nivel de Elementos de Ferretería no Contemplados "]
[null,null,"GIF - 210, Nivel de Ingresos a Taller no Programados"]
[null,null,"No Aplica"]
[null,null,"GJ-221, Acciones de Tutela con Fallo a Favor de la Universidad"]
[null,null,"GJ-222, Cumplimiento en la Elaboración de Contratos"]
[null,null,"GJ-223, Fallos en Procesos Judiciales con Sentencia Definitiva a Favor de la Universidad"]
[null,null,"GJ-224, Oportunidad de Respuesta a Derechos de Petición"]
[null,null,"GJ-225, Cumplimiento en la Emisión de Conceptos Jurídicos"]
[null,null,"No Aplica"]
[null,null,"GRF-226, Ejecución del Plan Anual de Caja"]
[null,null,"GRF-227, Cuentas de Reservas Pagas"]
[null,null,"GRF-228, Depuración de Cuentas"]
[null,null,"GRF-229, Eficiencia en Pagos"]
[null,null,"GRF-230, Informes Contables"]
[null,null,"GRF-231, Legalización de Avances"]
[null,null,"GRF-232, Movimiento de Certificados de Disponibilidad Presupuestal"]
[null,null,"GRF-233, Movimiento de Certificados de Registro Presupuestal"]
[null,null,"GRF-234, Órdenes de Pago Tramitadas"]
[null,null,"GRF-235, Registro de Ingresos"]
[null,null,"GRF-236, Registros Contables"]
[null,null,"No Aplica"]
[null,null,"GDTH-185, Cumplimiento del plan de capacitación"]
[null,null,"GDTH-186, Asistencia a capacitaciones"]
[null,null,"GDTH-187, Frecuencia de los accidentes laborales "]
[null,null,"GDTH-188, Severidad de los accidentes laborales"]
[null,null,"GDTH-189, Accidentabilidad laboral"]
[null,null,"GDTH-190, Variabilidad de la indice  de accidentabilidad en la Universidad Distrital"]
[null,null,"GDTH-191, Cumplimiento de las acciones correctivas"]
[null,null,"GDTH-192, Cumplimiento Plan de Evaluaciones Medicas Laborales"]
[null,null,"GDTH-193, Cumplimiento Plan de Copasst"]
[null,null,"GDTH-194, Tiempo promedio de vacantes no cubiertas"]
[null,null,"GDTH-195, Cumplimiento del Plan de Incentivos    "]
[null,null,"GDTH-196, Cumplimiento del plan de Reinducción"]
[null,null,"GDTH-197, Cumplimiento del plan de Inducción"]
[null,null,"GDTH-198, Desempeño de personal"]
[null,null,"GDTH-199, Satistación de  capacitaciones"]
[null,null,"GDTH-200, Satisfacción Proceso Gestión y Desarrollo del Talento Humano"]
[null,null,"GDTH-201, Rotación de personal contratista"]
[null,null,"GDTH-202, Rotación de personal de planta     "]
[null,null,"GDTH-203, Cumplimiento con el Plan de trabajo de SG- SST"]
[null,null,"No Aplica"]
[null,null,"GC-242, Ejecución del plan anual de adquisiciones"]
[null,null,"GC-243, Celeridad en los procesos de contratación directa"]
[null,null,"GC-244, Celeridad en los procesos de convocatoria pública"]
[null,null,"GC-245, Declaratoria de desierto de procesos contractuales"]
[null,null,"GC-246, Gestión de los recursos públicos"]
[null,null,"GC-247, Ahorro logrado en los procesos contractuales"]
[null,null,"GC-248, Calidad de los proveedores"]
[null,null,"GC-249, Transparencia en los procesos contractuales (publicación)"]
[null,null,"No Aplica"]
[null,null,"GSIT-237, Aprovechamiento del rubro disponible"]
[null,null,"GSIT-238, Disponibilidad de servicios TI"]
[null,null,"GSIT-239, Solicitudes de TIC"]
[null,null,"GSIT-240, Incidentes en la prestación de servicios TIC"]
[null,null,"GSIT-241, Seguimiento a proyectos de TIC"]
[null,null,"No Aplica"]
[null,null,"II-22, Suscripción de convenios marco de cooperación académica vigente con IES nacionales"]
[null,null,"II-23, Suscripción de convenios marco de cooperación académica vigente con IES internacionales"]
[null,null,"II-24, Suscripción de convenios específicos de movilidad académica con Universidad Nacional "]
[null,null,"II-25, Suscripción de convenios específicos de movilidad académica con Universidad internacional "]
[null,null,"II-26, Participación en redes y asociaciones académicas nacionales e internacionales total UD"]
[null,null,"II-27, Alianzas con entidades público privadas total UD"]
[null,null,"II-28, Número de programas académicos con doble titulación o cotitulación en la UD"]
[null,null,"II-29, Desarrollo de proyectos de cooperación"]
[null,null,"II-30, Participación anual activa de estudiantes y/o docentes UD en proyectos nacionales e internacionales con productos académicos y/o investigación"]
[null,null,"II-31, Movilidad académica estudiantil saliente nacional "]
[null,null,"II-32, Movilidad académica estudiantil saliente internacional  total UD"]
[null,null,"II-33, Movilidad académica estudiantil entrante nacional total UD"]
[null,null,"II-34, Movilidad académica estudiantil entrante internacional total UD"]
[null,null,"II-35, Movilidad académica nacional docente de carrera semestral total UD"]
[null,null,"II-36, Movilidad académica internacional docente de carrera total UD"]
[null,null,"II-37, Movilidad académica docente o invitado entrante nacional total UD"]
[null,null,"II-38, Movilidad académica docente o invitado entrante internacional total UD"]
[null,null,"II-39, Presupuesto ejecutado anualmente movilidad académica"]
[null,null,"No Aplica"]

{"sheet":"Tipos de Indicador","index":25,"n_rows":284,"n_cols":5,"rows_kept":284,"cut":false,"hidden":true,"merged":[]}
[]
[null,"Tipo","Definicion","Ejemplo","Resultado"]
[null,"Cambio","Este tipo de indicador nos permite medir los cambios presentados de un tiempo predeterminado a otro ( semestre, año, bimestre, mes)","(Indice  de accidentabilidad periodo actual-indice  de accidentabilidad periodo anterior)*100/indice  de accidentabilidad periodo anterior"]
[null,"Relacion","Cociente en el que el denominador y el numerador\npertenecen a categorías diferentes","Numero de horas lectivas/docentes"]
[null,"Absoluto","Este indicador es un numero absoluto, para llegar a este resultado no es necesaria ningun tipo de formula.","Número de estudiantes beneficiados con grado de honor Francisco José de Caldas."]
[null,"Proporcion","Magnitud que representa una parte con referencia al todo, se calcula utilizando en el numerador y en el denominador el mismo tipo de información o naturaleza de la información","(Número total de revistas indexadas en la institución / número total de revistas de la institución)*100"]
[]
[null,"Porcentaje"]
[null,"Valor  Absoluto"]
[null,"PEI-001, Cumplimiento del Plan de Acción del Proceso de Planeación Estratégica e Institucional","(Metas cumplidas del plan de acción / Metas totales del plan de acción) * 100"]
[null,"PEI-001, Cumplimiento de las metas del Plan Maestro","(Número de metas cumplidas del Plan Maestro / Número de metas totales del Plan Maestro) * 100"]
[null,"PEI-002, Cumplimiento de las metas del Plan Indicativo","(Número de metas cumplidas del Plan Indicativo / Número de metas totales del Plan Indicativo) * 100"]
[null,"PEI-003, Cumplimiento de las metas del Plan General Operativo","(Número de metas logradas del Plan General Operativo / Número de metas programadas en el Plan General Operativo)*100"]
[null,"PEI-005, Ejecución del Plan Operativo Anual de Inversión","(Número de metas del Plan Estratégico de Desarrollo cumplidas / Número total de metas del Plan Estratégico de Desarrollo)*100"]
[null,"PEI-006, Cumplimiento de las Metas del Plan Operativo Anual de Inversión","(Recursos ejecutados por los proyectos de inversión/Recursos asignados para los proyectos de inversión)*100"]
[null,"GIT-007, Cumplimiento de las metas del Plan Operativo Anual de Inversion","(Número de metas logradas por los  Proyectos de Inversión / Número de metas  propuestas por los  Proyectos de Inversión)*100"]
[null,"GIT-008, Cumplimiento con los Planes de Mejoramiento","(#planes de mejoramiento ejecutados con éxito)/(# total de planes de mejoramiento) *100"]
[null,"GIT-009, Nivel de riesgos críticos mitigados","(((Número de Riesgos criticos mitigados) /( Numero total de riesgos criticos identificados en el SIGUD))*100"]
[null,"GIT-010, Índice de eficacia de los procesos","((Numero de procesos que cumplierón con mas del 90% de las metas  )/(Total de procesos del SIGUD)) *100"]
[null,"GIT-011, Grado de cumplimiento de la planificación del SIGUD","((Número de actividades ejecutadas en el SIGUD)/(Número de actividades programadas en el Plan de Acción))*100"]
[null,"No Aplica","Por favor crear un Indicador en la casilla \"Indicador de la Actividad\""]
[null,"AA-012, Cumplimiento en la renovación de registros calificados","((# de P.C  que renovarón R.C )/(# de P.C  que tienen que renovar R.C ))*100"]
[null,"AA-013, Cumplimiento de los informes de autoevaluación y plan de mejoramiento de proyectos curriculares","((# de Informes de autoevaluación  subidos a plataforma (Saces) )/(# de Informes de autoevaluación  segun corte))*100"]
[null,"AA-014, Obtención de registros calificados nuevos","((# de P.C  que recibieron R.C por primera vez )/(# de P.C  presentados para obtención de R.C))*100"]
[null,"AA-015, Obtención de acreditación de proyectos curriculares por primera vez","((# de P.C  que recibieron A.A.C por primera vez )/(# de P.C  presentados para obtención de A.A.C))*100"]
[null,"AA-016, Cumplimiento en la renovación de la acreditación de proyectos curriculares","((#de P.C  que renovarón A.A.C )/(# de P.C  que tienen que renovar A.A.C ))* 100"]
[null,"AA-017, Porcentaje de estudiantes que participaron en los procesos de autoevaluación institucional","((# de Estudiantes que participarón en la A.I )/(# de Participantes en la A.I ))*100"]
[null,"AA-018, Porcentaje de profesores que participaron en los procesos de autoevaluación institucional","(# de Profesores que participarón en la A.I )/(# de Participantes en la A.I ))*100"]
[null,"AA-019, Porcentaje de Graduados que participaron en los procesos de autoevaluación institucional","(# de Graduados que participarón en la A.I )/(# de Participantes en la A.I )*100"]
[null,"No Aplica"]
[null,"C-020, Porcentaje  de avance en la producción de libros y revistas","(Número de libros y revistas publicadas / Número de libros y revistas proyectadas y/o que sean aprobadas por el comité de comunicaciones)*100"]
[null,"C-021, Porcentaje de avance en el diseño, elaboración y producción de material publicitario institucional y papeleria","(Número de materiall publicitario elaborado  / Número de material publicitario proyectado y/o aprobado por el comité de publicaciones)*100"]
[null,"No Aplica","Por favor crear un Indicador en la casilla \"Indicador de la Actividad\""]
[null,"II-22, Suscripción de convenios marco de cooperación académica vigente con IES nacionales","((No. de suscripciones de convenios marco de cooperación académica vigente con IES nacionales en el presente semestre - No. de suscripciones de convenios marco de cooperación académica vigente con IES nacionales  en el semestre anterior) / No. de suscripciones de convenios  marco de cooperación académica vigente con IES nacionales en el semestre anterior)*100"]
[null,"II-23, Suscripción de convenios marco de cooperación académica vigente con IES internacionales","((No. de suscripciones de convenios marco de cooperación académica vigente con IES internacionales en el presente semestre - No. de suscripciones de convenios marco de cooperación académica vigente con IES internacionales  en el semestre anterior) / No. de suscripciones de convenios  marco de cooperación académica vigente con IES internacionales  en el semestre anterior)*100"]
[null,"II-24, Suscripción de convenios específicos de movilidad académica con Universidad Nacional ","(No. de suscripciones de convenios específicos de movilidad académica con universidad internacional en el presente semestre - No. de suscripciones de convenios específicos de movilidad académica con universidad internacional en el semestre anterior) / No. de suscripciones de convenios específicos de movilidad académica con universidad internacional en el semestre anterior)*100"]
[null,"II-25, Suscripción de convenios específicos de movilidad académica con Universidad internacional ","((No. de suscripciones de convenios específicos de movilidad académica con universidad internacional en el presente semestre - No. de suscripciones de convenios específicos de movilidad académica con universidad internacional en el semestre anterior) / No. de suscripciones de convenios específicos de movilidad académica con universidad internacional en el semestre anterior)*100"]
[null,"II-26, Participación en redes y asociaciones académicas nacionales e internacionales total UD","((No. de redes y asociaciones académicas nacionales e internacionales en las que participa la UD en el presente año - No. de redes y asociaciones académicas nacionales e internacionales en las que participó la UD en el año anterior) / (No. de redes y asociaciones académicas nacionales e internacionales en las que participó la UD en el año anterior)*100)"]
[null,"II-27, Alianzas con entidades público privadas total UD","((No. de alianzas con entidades público privadas en las que participa la UD en el presente año - No. de alianzas con entidades público privadas en las que participó la UD en el año anterior)/ ( No. de alianzas con entidades público privadas en las que participó la UD en el año anterior)*100"]
[null,"II-28, Número de programas académicos con doble titulación o cotitulación en la UD","(No. De programas académicos en la UD con convenios de doble titulación o cotitulación con otras Universidades / No. de programas académicos en total en la UD)*100"]
[null,"II-29, Desarrollo de proyectos de cooperación","(Número de proyectos de cooperación/ Número total de convenios interinstitucionales) *100"]
[null,"II-30, Participación anual activa de estudiantes y/o docentes UD en proyectos nacionales e internacionales con productos académicos y/o investigación","(No. de estudiantes UD con participación en proyectos nacionales e internacionales con productos académicosy/o de investigación / (No. de  proyectos nacionales e internacionales en los que participa la Universidad)*100"]
[null,"II-31, Movilidad académica estudiantil saliente nacional ","((No.de estudiantes UD que realizan movilidad académica nacional en el presente semestre  - No.de estudiantes UD que realizaron movilidad académica nacional en el semestre anterior) /  No.de estudiantes UD que realizaron movilidad académica nacional en el semestre anterior) )* 100"]
[null,"II-32, Movilidad académica estudiantil saliente internacional  total UD","((No.de estudiantes UD que realizaron movilidad académica internacional  en el presente semestre - No.de estudiantes UD que realizaron movilidad académica internacional  en el semestre anterior) /  No. de estudiantes UD que realizaron movilidad académica internacional  en el semestre anterior) )* 100"]
[null,"II-33, Movilidad académica estudiantil entrante nacional total UD","((No.de estudiantes externos que realizaron movilidad académica nacional  en la UD en el presente semestre - No. de estudiantes externos que realizaron movilidad académica nacional en la UD en el semestre anterior) /  No. de estudiantes externos que realizaron movilidad académica nacional en la UD en el semestre anterior) )* 100"]
[null,"II-34, Movilidad académica estudiantil entrante internacional total UD","((No. de estudiantes externos que realizaron movilidad académica internacional  en la UD en el presente semestre - No. de estudiantes externos que realizaron movilidad académica  internacional en la UD en el semestre anterior) /  No. de estudiantes externos que realizaron movilidad académica  internacional en la UD en el semestre anterior) )* 100"]
[null,"II-35, Movilidad académica nacional docente de carrera semestral total UD","(No.de docentes de carrera UD que realizaron movilidad académica nacional en el presente semestre - No.de docentes de carrera UD que realizaron movilidad académica nacional en el semestre anterior) /  No. de docentes de carrera UD que realizaron movilidad académica nacional en el semestre anterior) )* 100"]
[null,"II-36, Movilidad académica internacional docente de carrera total UD","((No. de docentes de carrera UD que realizaron movilidad académica internacional en el presente semestre - No.  de docentes de carrera UD que realizaron movilidad académica internacional en el semestre anterior) /  No. de docentes de carrera UD que realizaron movilidad académica internacional en el semestre anterior) )* 100"]
[null,"II-37, Movilidad académica docente o invitado entrante nacional total UD","((No.de docentes o invitados externos que realizaron movilidad académica nacional  en la UD en el presente semestre - No.de docentes externos o invitados que realizaron movilidad académica nacional en la UD en el semestre anterior) /  No. de docentes externos o invitados que realizaron movilidad académica nacional en la UD en el semestre anterior) )* 100"]
[null,"II-38, Movilidad académica docente o invitado entrante internacional total UD","((No. de docentes o invitados externos que realizaron movilidad académica internacional  en la UD en el presente semestre - No. de docentes externos o invitados que realizaron movilidad académica internacional en la UD en el semestre anterior) /  No.  de docentes externos o invitados que realizaron movilidad académica internacional en la UD en el semestre anterior) )* 100"]
[null,"II-39, Presupuesto ejecutado anualmente movilidad académica","((Presupuesto destinado para el apoyo de movilidad académica en el presente año - Presupuesto destinado para el apoyo  movilidad académica en el año anterior) /  Presupuesto destinado para el apoyo de movilidad académica en el año anterior) )* 100"]
[null,"No Aplica","Por favor crear un Indicador en la casilla \"Indicador de la Actividad\""]
[null,"GD-040, Número de docentes de la universidad que hicieron sus estudios de pregrado en universidad pública","Número de docentes de la universidad que hicieron sus estudios de pregrado en universidad pública    \n    \n    \n"]
[null,"GD-041, Número de docentes de la universidad que hicieron sus estudios de postgrado en universidad pública","Número de docentes de la universidad que hicieron sus estudios de postgrado en universidad pública    \n    \n    \n"]
[null,"GD-042, Número de docentes de la universidad que hicieron sus estudios de pregrado en universidad privada","Número de docentes de la universidad que hicieron sus estudios de pregrado en universidad privada    \n    \n    \n"]
[null,"GD-043, Número de docentes de la universidad que hicieron sus estudios de postgrado en universidad privada","Número de docentes de la universidad que hicieron sus estudios de postgrado en universidad privada    \n    \n    \n"]
[null,"GD-044, Número de docentes de la universidad que hicieron sus estudios de pregrado en universidades nacionales","Número de docentes de la universidad que hicieron sus estudios de pregrado en universidades nacionales"]
[null,"GD-045, Número de docentes de la universidad que hicieron sus estudios de pregrado en universidades extranjeras","Número de docentes de la universidad que hicieron sus estudios de pregrado en universidades extranjeras    \n    \n    \n"]
[null,"GD-046, Número de docentes de la universidad que hicieron sus estudios de postgrado en universidades nacionales","Número de docentes de la universidad que hicieron sus estudios de postgrado en universidades nacionales    \n    \n    \n"]
[null,"GD-047, Número de docentes de la universidad que hicieron sus estudios de postgrado en universidades nacionales","Número de docentes de la universidad que hicieron sus estudios de postgrado en universidades nacionales    \n    \n    \n"]
[null,"GD-048, Número de estudiantes matriculados en programas de pregrado","Número de estudiantes matriculados en programas de pregrado    \n    \n    \n"]
[null,"GD-049, Número de estudiantes matriculados en programas de postgrado","Número de estudiantes matriculados en programas de postgrado    \n    \n    \n"]
[null,"GD-050, Número de estudiantes matriculados en programas tecnológicos","Número de estudiantes matriculados en programas tecnológicos    \n    \n    \n"]
[null,"GD-051, Número de docentes de la universidad que hicieron sus estudios de pregrado en la Universidad Distrital","Número de docentes de la universidad que hicieron sus estudios de pregrado en la Universidad Distrital    \n    \n    \n"]
[null,"GD-052, Número de docentes de la universidad que hicieron sus estudios de postgrado en la Universidad Distrital","Número de docentes de la universidad que hicieron sus estudios de postgrado en la Universidad Distrital    \n    \n    \n"]
[null,"GD-053, Número de estudiantes que han participado en pasantía en los últimos cinco años","Número de estudiantes que han participado en pasantía en los últimos cinco años    \n    \n    \n"]
[null,"GD-054, Número de estudiantes que han participado en prácticas académicas en los últimos cinco años ","Número de estudiantes que han participado en prácticas académicas en los últimos cinco años     \n    \n    \n"]
[null,"GD-055, Número de docentes que han participado de estancías de investigación en los últimos cinco años","Número de docentes que han participado de estancías de investigación en los últimos cinco años    \n    \n    \n"]
[null,"GD-056, Número de docentes que han ejercido como pares académicos en los últimos cinco años ","Número de docentes que han ejercido como pares académicos en los últimos cinco años     \n    \n    \n"]
[null,"GD-057, Número de docentes que han participado en congresos, foros, seminarios, simposios en los últimos cinco años","Número de docentes que han participado en congresos, foros, seminarios, simposios en los últimos cinco años    \n    \n    \n"]
[null,"GD-058, Porcentaje de profesores de planta (TC y MT) que han participado en programas de formación pedagógica en los últimos cinco años ","[(Número de docentes de TC y MT que han participado en los diferentes programas de Formación pedagógica en los últimos cinco años)/(Número total de Docentes TC y MT de la universidad)]*100    \n    \n    \n"]
[null,"GD-059, Porcentaje de profesores de planta (TC y MT) que han participado en programas de didáctica en los últimos cinco años","[(Número de docentes de TC y MT que han participado en los diferentes programas de didáctica en los últimos cinco años)/(Número total de Docentes TC y MT de la universidad)]*100    \n    \n    \n"]
[null,"GD-060, Porcentaje de profesores de planta (TC y MT) que han participado en programas de formación continua en los últimos cinco años ","[(Número de docentes de TC y MT que han participado en los diferentes programas de Formación continua en los últimos cinco años)/(Número total de Docentes TC y MT de la universidad)]*100    \n    \n    \n"]
[null,"GD-061, Número de docentes TCE (tiempo completo equivalente) en la Universidad","Número de docentes TCE en la Universidad.    \n    \n    \n"]
[null,"GD-062, Relación entre el número de profesores de TCE (tiempo completo equivalente) y el número de estudiantes","[(Número de docentes TCE en la Universidad)/(Número total de Estudiantes activos en la Universidad)]    \n    \n    \n"]
[null,"GD-063, Porcentaje de docentes de carrera  con respecto al total de docentes","[(Número de docentes de carrera Vinculados con la Universidad)/(Número de docentes totales vinculados con la Universidad)]*(100)    \n    \n    \n"]
[null,"GD-064, Porcentaje de docentes de vinculación especial con respecto total de docentes","[(Número de docentes de vinculación especial en la Universidad)/(Número de docentes totales vinculados con la Universidad)]*(100)    \n    \n    \n"]
[null,"GD-065, Porcentaje de docentes de Tiempo Completo con respecto total de docentes","[(Número de docentes con dedicación tiempo completo a la Universidad)/(Número de docentes totales vinculados con la Universidad)]*(100)    \n    \n    \n"]
[null,"GD-066, Porcentaje de docentes de Medio Tiempo con respecto total de docentes","[(Número de docentes con dedicación medio tiempo a la Universidad)/(Número de docentes totales vinculados con la Universidad)]*(100)    \n    \n    \n"]
[null,"GD-067, Relación de docentes Tiempo Completo  y número de estudiantes","[(Número de docentes con dedicación tiempo completo a la Universidad)/(Número total de estudiantes activos en la Universidad)]"]
[null,"GD-068, Relación de docentes Medio Tiempo  y número de estudiantes","[(Número de docentes con dedicación medio tiempo a la Universidad)/(Número total de estudiantes activos en la Universidad)]*(100)    \n    \n    \n"]
[null,"GD-069, Porcentaje de docentes de Tiempo completo o Medio Tiempo con título de doctorado","[(número de docentes de Tiempo Completo o Medio Tiempo con título de doctorado)/(Número de docentes totales vinculados de Tiempo completo o medio)]*(100)    \n    \n    \n"]
[null,"GD-070, Porcentaje de docentes de Tiempo Completo o Medio Tiempo con título de maestría","[(número de docentes de Tiempo Completo o Medio Tiempo con título de Maestría)/(Número de docentes totales vinculados de Tiempo completo o medio)]*(100)    \n    \n    \n"]
[null,"GD-071, Número de docentes de carrera con titulo de Doctorado ","Número de docentes de carrera con titulo de Doctorado     \n    \n    \n"]
[null,"GD-072, Número de docentes de carrera con titulo de Maestría ","Número de docentes de carrera con titulo de Maestría     \n    \n    \n"]
[null,"GD-073, Número de docentes de vinculación especial con titulo de doctorado","Número de docentes de vinculación especial con titulo de Doctorado    \n    \n    \n"]
[null,"GD-074, Número de docentes de vinculación especial con titulo de maestría","Número de docentes de vinculación especial con titulo de Maestría    \n    \n    \n"]
[null,"GD-075, Número de docentes de Planta en la Universidad ","Número de docentes de Planta en la Universidad     \n    \n    \n"]
[null,"GD-076, Número de docentes de vinculación especial de la Universidad ","Número de docentes de vinculación de la Universidad     \n    \n    \n"]
[null,"GD-077, Número de docentes de Tiempo Completo y Medio Tiempo que cursan programas de Doctorado (sin comisión)","Número de docentes de Tiempo Completo y Medio Tiempo que cursan programas de Doctorado.    \n    \n    \n"]
[null,"GD-078, Número de docentes de Tiempo Completo y Medio Tiempo que cursan programas de maestría (sin comisión)","Número de docentes de Tiempo Completo y Medio Tiempo que cursan programas de maestría.      \n    \n    \n"]
[null,"GD-079, Número de docentes de carrera que han participado en los diferentes programas de formación docente de alto nivel en los últimos tres años incluyendo los que están participando en programas actualmente","Número de docentes de carrera que han participado en los diferentes programas de Formación Docente de alto nivel en los últimos tres años incluyendo los que están participando en programas actualmente.    \n    \n    \n"]
[null,"GD-080, Número de profesores de tiempo completo y medio tiempo que han participado en los diferentes programas de capacitación docente  en los últimos tres años incluyendo los que están participando en actualmente    ","Número de profesores de tiempo completo y medio tiempo que han participado en los diferentes programas de capacitación Docente  en los últimos tres años incluyendo los que están participando en programas actualmente.         \n    \n    \n"]
[null,"GD-081, Número de Estudiantes activos pertenecientes a la Universidad","Número de Estudiantes activos pertenecientes a la Universidad    \n    \n    \n"]
[null,"GD-082, Número de Estudiantes activos pertenecientes a la Facultad de Ingeniería ","Número de Estudiantes activos pertenecientes a la Facultad de Ingeniería     \n    \n    \n"]
[null,"GD-083, Número de Estudiantes activos pertenecientes a la Facultad de Artes ASAB ","Número de Estudiantes activos pertenecientes a la Facultad de Artes ASAB     \n    \n    \n"]
[null,"GD-084, Número de Estudiantes activos pertenecientes a la Facultad de Ciencias y Educación","Número de Estudiantes activos pertenecientes a la Facultad de Ciencias y Educación    \n    \n    \n"]
[null,"GD-085, Número de Estudiantes activos pertenecientes a la Facultad de Medio Ambiente y recursos Naturales","Número de Estudiantes activos pertenecientes a la Facultad de Medio Ambiente y recursos Naturales.    \n    \n    \n"]
[null,"GD-086, Número de Estudiantes activos pertenecientes a la Facultad Tecnológica ","Número de Estudiantes activos pertenecientes a la Facultad Tecnológica     \n    \n    \n"]
[null,"GD-087, Número de asignaturas que se apoyan en aulas virtuales para el desarrollo de su actividad académica","Número de asignaturas que se apoyan en aulas virtuales para el desarrollo de su actividad académica.    \n    \n    \n"]
[null,"GD-088, Porcentaje de estudiantes que se desempeñan como asistentes académicos e investigativos ","((Número de estudiantes que se desempeñan como asistentes académicos e investigativos)*100)/ (Número total de estudiantes matriculados)    \n    \n    \n"]
[null,"GD-089, Número de asistentes académicos por periodo","Número de asistentes académicos por periodo.    \n    \n    \n"]
[null,"GD-090, Número de estudiantes beneficiados con grado de honor Francisco José de Caldas","Número de estudiantes beneficiados con grado de honor Francisco José de Caldas.    \n    \n    \n"]
[null,"GD-091, Número de estudiantes beneficiados con beca de postgrado\n","\"Número de estudiantes beneficiados con beca de postgrado.\n\"    \n    \n    \n"]
[null,"GD-092, Número de estudiantes beneficiados de matricula de honor","Número de estudiantes beneficiados de matricula de honor    \n    \n    \n"]
[null,"GD-054, Número de estudiantes beneficiados con exención de los derechos de matrícula","Número de estudiantes beneficiados con exención de los derechos de matrícula    \n    \n    \n"]
[null,"GD-055, Relación de docentes TCE dedicados a la docencia entre el total de docentes TCE","Número de docentes TCE dedicados a la Docencia/ Número total de Docentes TCE    \n    \n    \n"]
[null,"GD-095, Participación de docentes TCE en proyectos de investigación","(Número de docentes TCE dedicados a proyectos de investigación/ Número total de Docentes TCE)*100    \n    \n    \n"]
[null,"GD-096, Participación de docentes TCE en proyección social","(Número de docentes TCE que participan en proyección social/ Número total de Docentes TCE)*100    \n    \n    \n"]
[null,"GD-097, Participación de docentes TCE en consejería académica","(Número de docentes TCE que participan en en consejería académica/ Número total de Docentes TCE)*100    \n    \n    \n"]
[null,"GD-098, Participación de docentes TCE en la gestión académica-administrativa","(Número de docentes TCE que participan gestión académica-administrativa/ Número total de Docentes TCE)*100    \n    \n    \n"]
[null,"GD-099, Número de docentes en la categoría de docente auxiliar","Número de Docentes en la categoría de Docente auxiliar    \n    \n    \n"]
[null,"GD-100, Número de docentes en la categoría de docente asistente","Número de Docentes en categoría Docente Asistente    \n    \n    \n"]
[null,"GD-101, Número de docentes en la categoría de docente asociado","Número de Docentes en categoría Docente asociado    \n    \n    \n"]
[null,"GD-102, Número de docentes en la categoría de docente titular","Número de Docentes en categoría Docente titular    \n    \n    \n"]
[null,"GD-103, Indice de número de proyectos curriculares que como consecuencia de la autoevaluación han actualizado  sus planes de estudio (y han sido aprobados) en los ultimos cinco años","Número de proyectos curriculares que como consecuencia de la autoevaluación han actualizado  sus planes de estudio (y han sido aprobados) en los ultimos cinco años    \n    \n    \n"]
[null,"GD-104, Número de estudiantes graduados de maestría en los últimos cinco años","Número de estudiantes graduados de maestría en los últimos cinco años    \n    \n    \n"]
[null,"GD-105, Número de estudiantes graduados de doctorados en los últimos cinco años","Número de estudiantes graduados de doctorados en los últimos cinco años    \n    \n    \n"]
[null,"GD-106, Deserción institucional por periodo ","(No.  de Estudiantes que se retiran en forma definitiva del Proceso de Formación Académica por Periodo/No. de Estudiantes Matriculados por periodo)*100    \n    \n    \n"]
[null,"GD-107,   Deserción institucional por cohorte institucional                                                                           \n","(No.  de Estudiantes que se retiran en forma definitiva del Proceso de Formación Académica por cohorte/No. de Estudiantes Matriculados por periodo en una cohorte)*100    \n    \n    \n"]
[null,"GD-108, Porcentaje de docentes de carrera que han recibido estímulos (económicos - puntos salariales) por el desempeño de su función de docencia en los últimos cinco años","[(Número de docentes de carrera que han recibido estímulos (económicos - puntos salariales) por el desempeño de su función de docencia en los últimos cinco años)/( Número total de Docentes)]*100    \n    \n    \n"]
[null,"GD-109, Porcentaje de docentes de carrera que han recibido estímulos (económicos - bonificaciones) por el desempeño de su función de docencia en los últimos cinco años","[(Número  docentes de carrera que han recibido estímulos (económicos - bonificaciones) por el desempeño de su función de docencia en los últimos cinco años)/( Número total de Docentes)]*100    \n    \n    \n"]
[null,"GD-110, Porcentaje de docentes de carrera que han recibido reconocimientos (premios, diplomas, menciones, entre otros) por el desempeño de su función de docencia en los últimos cinco años","[(Número  docentes de carrera que han recibido reconocimientos (premios, diplomas, menciones, entre otros) por el desempeño de su función de docencia en los últimos cinco años)/( Número total de Docentes)]*100    \n    \n    \n"]
[null,"GD-111, Número de publicaciones de artículos en revistas indexadas y especializadas nacionales e internacionales de docentes de planta en los últimos cinco años","Número de publicaciones de artículos en revistas indexadas y especializadas nacionales e internacionales de docentes de planta en los últimos cinco años    \n    \n    \n"]
[null,"GD-112, Número de publicaciones de libros de docentes de planta en los últimos cinco años","Número de publicaciones de libros de docentes de planta en los últimos cinco años    \n    \n    \n"]
[null,"GD-113, Número de publicaciones de capítulos de libros de docentes de planta en los últimos cinco años","Número de publicaciones de capítulos de libros de docentes de planta en los últimos cinco años    \n    \n    \n"]
[null,"No Aplica","Por favor crear un Indicador en la casilla \"Indicador de la Actividad\""]
[null,"GI-114, Porcentaje de presupuesto ejecutado para Eventos de divulgación o apoyo a la investigación\ndel CIDC en relación al monto proyectado","\"[(Presupuesto ejecutado para Eventos de Divulgación o apoyo a la investigación) /\n(Presupuesto proyectado para Eventos de Divulgación o apoyo a la investigación\n)]*100  \"    \n    \n    \n"]
[null,"GI-115, Porcentaje de presupuesto ejecutado para apoyo a movilidad de docentes en relación al presupuesto proyectado para apoyo a movilidad de docentes","(Presupuesto ejecutado para apoyo a movilidad de Docentes por cada proyecto curricular) / (Presupuesto proyectado para apoyo a movilidad de docentes)*100"]
[null,"GI-116, Porcentaje de presupuesto ejecutado  al presupuesto proyectado para a apoyo a movilidad de los estudiantes en relacion al presupuesto proyectado para apoyo a movilidad de los estudiantes","(Presupuesto ejecutado para apoyo a movilidad de estudiantes por cada proyecto curricular) / (Presupuesto proyectado para apoyo a movilidad de estudiantes)*100"]
[null,"GI-117, Relación del presupuesto aprobado para proyectos de investigación apoyados con recursos del CIDC en relación al presupuesto proyectado para proyectos de investigación apoyados con recursos del CIDC","(Presupuesto aprobado para proyectos de investigación de pregrados,\nsemilleros, grupos de investigación, maestria, doctorado, convocatorias IPAZUDe IEIE.)/ (Presupuesto proyectado para proyectos de investigación de pregrados,semilleros, grupos de investigación, maestria, doctorado, convocatorias IPAZUDe IEIE )*100"]
[null,"GI-118, Porcentaje de proyectos con financiación internacional, en los últimos tres años","(Número de proyectos con financiación internacional/Número total de proyectos de la institución) X 100"]
[null,"GI-119, Porcentaje total de número de grupos de la institución reconocidos por Colciencias","Número de grupos de la institución reconocidos por Colciencias SEGÚN CADA CLASIFICACIÓN /Número de grupos presentados por la institución a Colciencias"]
[null,"GI-120, Financiación de proyectos de investigación por organismos nacionales e internacionales","(Valor de la financiación de proyectos de investigación por organismos nacionales e internacionales clasificada por Area de Conociemiento/Valor total de la financiación de los proyectos de Investigación). X 100"]
[null,"GI-121, Número de patentes, registros y desarrollos tecnológicos de la institución en los últimos diez años","Suma(Patentes registros y desarrollos tecnológicos en los ultimos diez años) / Total Patentes Registros y Desarrollos Tecnológicos a Nivel Nacional"]
[null,"GI-122, Porcentaje de profesores-investigadores de TC y MT en TCE dedicados al trabajo investigativo","Número de profesores-investigadores de TC y MT en TCE con proyectos de investigacione en curso/Número de profesores de TC y MT en TCE de la institución."]
[null,"GI-123, Porcentaje de profesores-investigadores dedicados al trabajo investigativo de TC y MT en TCE, con títulos de maestría y doctorado","Número de profesores-investigadores dedicados al trabajo investigativo de TC y MT en TCE por cada tipo de posgrado / Número de profesores de la institución de TC y MT en TCE por cada tipo de posgrado."]
[null,"GI-124, Porcentaje de proyectos de investigación activos inscritos en la institución","Porcentaje de Proyectos Inactivos = Total Proyectos Críticos / Suma de proyectos vigentes, criticos, suspendidos"]
[null,"GI-125, Grupos de investigación de la institución frente a Colciencias   ","Número de grupos de investigación reconocidos ante Colciencias / Número de grupos de investigación Reconocidos a Nivel Nacional"]
[null,"GI-126, Proyectos de investigación de la institución presentados a Colciencias","Porcentaje de aceptación de los proyectos presentados por la institución a Colciencias  "]
[null,"No Aplica","Por favor crear un Indicador en la casilla \"Indicador de la Actividad\""]
[null,"EPS-127, Porcentaje de crecimiento de egresados vinculados en los proyectos de extensión","[(Número de egresados vinculados a proyectos en periodo actual - Número de egresados vinculados a proyectos en periodo anterior/Número de egresados vinculados a proyectos en periodo anterior]*100"]
[null,"EPS-128, Porcentaje de crecimiento de estudiantes vinculados en los proyectos de extensión","[(Número de estudiantes vinculados a proyectos en el periodo actual - Número de estudiantes vinculados a proyectos en el periodo anterior/Número de estudiantes vinculados a proyectos en el periodo anterior]*100"]
[null,"EPS-129, Porcentaje de licitaciones e invitaciones directas suscritas por el IDEXUD ","(Número de propuestas de Extensión y Proyección Social suscritas por el IDEXUD / Número de propuestas de Extensión y Proyección Social presentadas) * 100"]
[null,"EPS-130, Porcentaje de eficacia de programas de educación continua y educación no formal","(Número de programas de educación continua y eduación no formal ejecutados / Número  programas de educación continua y eduación no formal proyectados) * 100"]
[null,"EPS-131, Porcentaje de crecimiento de proyectos de extensión suscritos por el IDEXUD","[(Número de proyectos de extensión suscritos en el periodo actual - Número de proyectos de extensión suscritos en el periodo anterior)/Número de proyectos de extensión suscritos en el periodo anterior]*100"]
[null,"EPS-132, Porcentaje de actividades que promueven el uso de los idiomas ejecutadas por el ILUD    ","(Número de actividades que estimulan el uso de idiomas ejecutadas/Número de actividades que estimulan el uso de idiomas proyectadas ) * 100"]
[null,"EPS-133, Porcentaje de incremento de estudiantes matriculados en programas de extensión del ILUD    ","[(Número de estudiantes matriculados en el ILUD a la fecha del año actual - Número de estudiantes matriculados en el ILUD a la fecha del año anterior)/ Número de estudiantes matriculados en el ILUD a la fecha del año anterior)] * 100"]
[null,"EPS-134, Porcentaje de estudiantes de la Universidad Distrital Francisco José de Caldas que inscriben el espacio académico de segunda lengua en el semestre    ","(Número de estudiantes de la Universidad DFJC que inscriben el espacio académico de segunda lengua en el semestre / Número total de estudiantes de pregrado matriculados en la universidad en el semestre) *100"]
[null,"EPS-135, Porcentaje de cursos de extensión ejecutados por el ILUD en el bimestre","(Número de cursos de extensión del ILUD ejecutados / Número de cursos de extensión del ILUD proyectados) * 100"]
[null,"EPS-136, Porcentaje de cumplimiento de las actividades administrativas del IPAZUD    ","(Número de actividades realizadas en el tiempo adecuado/Número total de actividades proyectadas)*100"]
[null,"EPS-137, Porcentaje de eventos académicos realizados por el IPAZUD   ","(Número de eventos académicos realizados/Número total de eventos académicos proyectados)*100"]
[null,"EPS-138, Porcentaje de proyectos y/o actividades investigativas desarrolladas por el IPAZUD  ","(Número de proyectos y/o actividades investigativas realizadas/Número total de proyectos y/o actividades investigativas proyectados)*100"]
[null,"EPS-139, Índice de participación en eventos académicos realizados por el IPAZUD","Número de personas que participan en los eventos académicos desarrollados por el IPAZUD"]
[null,"EPS-140, Índice de seguidores en redes sociales del programa de radio ¿Qué está paz- ando?","Número de seguidores en redes sociales del programa de radio ¿Qué está paz- ando?"]
[null,"EPS-141, Número de copias publicadas a través del medio escrito de la revista \"Ciudad paz-ando\" ","Número de de copias publicadas a través del medio escrito de la revista \"Ciudad paz-ando\" "]
[null,"EPS-142, Porcentaje de crecimiento de visualización de la revista \"Ciudad paz-ando\" en el portal OJS de la revista","[(Número de visulizaciones en el presente periodo - Número de visualizaciones en el periodo anterior ) / Número de visualizaciones en el periodo anterior]*100"]
[null,"No Aplica","Por favor crear un Indicador en la casilla \"Indicador de la Actividad\""]
[null,"GIB-143, Disponibilidad de espacio (área) asignado a los usuarios de la Biblioteca","(Total de metros cuadrados de la Biblioteca / Número total de usuarios)"]
[null,"GIB-144, Índice de crecimiento de la colección bibliográfica (ejemplares)","(Total colección año actual - Total colección año anterior / Total colección año anterior)*100"]
[null,"GIB-145, Disponibilidad de recursos tecnológicos","(Número de recursos tecnológicos / Número de Usuarios)"]
[null,"GIB-146, Satisfacción del usuario ","(N° de usuarios satisfechos / N° de usuarios encuestados)*100"]
[null,"GIB-147, Nivel de consulta de la colección bibliográfica al año","(N° de préstamos registrados en las colecciones / N° total de ejemplares en las colecciones)*100"]
[null,"GIB-148, Participación de profesores en la adquisición de material bibliográfico y de servicios de información","(Número de profesores que participan en la adquisición de material bibliográfico y servicios de información / Número total de profesores de la Universidad)*100"]
[null,"GIB-149, Índice de inversión bibliográfica","(Inversión Bibliográfica de la Universidad / Inversión Total de la Universidad)*100"]
[null,"GIB-150, Índice de crecimiento en la prestación de servicios de información","(Total servicios de información brindados del año actual - Total servicios de información brindados del año anterior / Total servicios de información brindados del año anterior)*100"]
[null,"No Aplica","Por favor crear un Indicador en la casilla \"Indicador de la Actividad\""]
[null,"GL-151, Satisfacción de los usuarios frente al servicio que presta laboratorios","(Numero de usuarios conformes con el servicio / Numero total de usuarios encuestados que utilizen el servicio) * 100"]
[null,"GL-152, Capacidad de laboratorios, talleres y aulas especializadas en la Institución ","(Area en m2 destinada a laboratorios por facultad / Area academica en m2 construida por Facultad ) * 100"]
[null,"GL-153, Porcentaje de equipos de laboratorios averiados","(Numero de equipos averiados / total de equipos de laboratorios) *100"]
[null,"GL-154, Impacto de los laboratorios en los proyectos de grado","( Numero de horas de servicio de laboratorios para proyectos de grado) / Numero total de horas de servicio de laboratorios) *100"]
[null,"No Aplica","Por favor crear un Indicador en la casilla \"Indicador de la Actividad\""]
[null,"BI-155, Porcentaje de Quejas y reclamos de Bienestar Institucional","(Numero de quejas y reclamos / Numero de servicios prestados por bienestar ) *100"]
[null,"BI-156, Presupuesto ejecutado por Bienestar Institucional","(presupuesto ejecutado por Bienestar Institucional / Presupuesto total asignado a Bienestar institucional ) *100"]
[null,"BI-157, Porcentaje de cobertura de los servicios de Bienestar para los grupos funcionales","(Numero de personas que bienestar presto servicio / numero total de personas que solicitaron el servicios)*100"]
[null,"BI-158, Porcentaje de estudiantes en prueba académica y alto riesgo atendidos por el programa de permanencia y deserción","(Numero de estudiantes atendidos en el programa de P YD / Numero de estudiantes de Prueba Academica y Alto Riesgo ) *100"]
[null,"BI-159,  Porcentaje de egresados que figuran en la base de datos","(TOTAL DE EGRESADOS POR PERIODO DE LA UNIVERSIDAD/ TOTAL DE EFRESADOS EN BASE DE DATOS) * 100%"]
[null,"BI-160, Porcentaje de cobertura de los servicios de bienestar para los diferentes estamentos en los últimos tres años","(Numero de personas que bienestar presto servicio / numero total de personas que solicitaron el servicios)*100"]
[null,"BI-161, Relación de espacios expresados en m2 destinados a los programas de Bienestar","(Numero de personas atendidas x grupo funcional / numero de personas atendidas en Bienestar Institucional) *100"]
[null,"BI-162, Nivel de cumplimiento de publicaciones indexadas","(Número total de revistas indexadas en la institución / número total de revistas de la institución)*100"]
[null,"BI-163, Número de estudiantes beneficiados con el programa de becas","Número de estudiantes que se han beneficiado del programa de becas en los últimos tres años."]
[null,"BI-164, Grado de cumplimiento estudiantes beneficiados con programas de préstamo","Número de estudiantes que se han beneficiado de los programas de crédito "]
[null,"No Aplica","Por favor crear un Indicador en la casilla \"Indicador de la Actividad\""]
[null,"ARC-165, Índice de absorción","(Numero de estudiantes matriculados / Numero de aspirantes admitidos) * 100"]
[null,"ARC-166, Índice de selectividad","(Numero de aspirantes admitidos / Numero total de inscritos ) * 100"]
[null,"ARC-167, Porcentaje de estudiantes matriculados por mecanismos de circunscripciones especiales","(Numero de estudiantes  matriculados por mecanismos de circunscripciones especiales   )/(Numero  total de estudiantes matriculados) x100"]
[null,"ARC-168, Índice de absorción educación media publica – Bogotá y cercanías","(Numero de estudiantes de colegios públicos de Bogotá y cercanías   matriculados en la Universidad  )/(Numero de bachilleres graduados de colegios públicos de Bogotá y cercanías) x100"]
[null,"ARC-169, Índice de vinculación educación media publica – Bogotá y cercanías","(Numero de estudiantes de colegios públicos de Bogotá y cercanías   matriculados en la Universidad   )/(Numero total de inscritos ) x100"]
[null,"ARC-170, Índice de absorción educación media privada – Bogotá y cercanías ","( Numero de estudiantes de colegios privados de Bogotá y cercanías   matriculados en la Universidad  )/(Numero de bachilleres graduados de colegios privados  de Bogotá y cercanías) x100"]
[null,"ARC-171, Índice de vinculación educación media privada – Bogotá y cercanías","(Numero de estudiantes de colegios privados de Bogotá y cercanías   matriculados en la Universidad  )/(Numero total de inscritos) x100"]
[null,"ARC-172, Índice de deserción por retiro definitivo","(Numero de estudiantes que abandonan definitivamente sus estudios   )/(Numero total de estudiantes matriculados) x100"]
[null,"ARC-173, Índice de deserción por retiro voluntario (cancelación o aplazamiento)","(Numero de estudiantes que abandonan parcialmente sus estudios   )/(Numero total de estudiantes matriculados) x100"]
[null,"ARC-174, Índice de absorción por localidad","(Numero de estudiantes  de la localidad x matriculados )/(Numero total de estudiantes matriculados) x100"]
[null,"ARC-175, Índice de absorción por estrato","(Numero de estudiantes  estrato x  matriculados )/(Numero total de estudiantes matriculados) x100"]
[null,"ARC-176, Índice de demanda académica ","((Num.  inscritos en el periodo actual- Num.aspirantes  inscritos en el periodo anterior)   )/(Num.de aspirantes  inscritos en el periodo anterior) x100"]
[null,"ARC-177, Índice de absorción de fuera de Bogotá","(Numero de estudiantes  de fuera de Bogotá y cercanías matriculados )/(Numero total de estudiantes matriculados) x100"]
[null,"ARC-178, Índice de vinculación posconflicto, paz y educación ","(Numero de estudiantes matriculados por reinserción y o integracion del proceso de posconflicto)/(Numero total de estudiantes matriculados) x100"]
[null,"No Aplica","Por favor crear un Indicador en la casilla \"Indicador de la Actividad\""]
[null,"SC-179, Tiempo de gestión de las PQRS ","( Tiempo Promedio de respuesta a las PQRS /Promedio de Tiempo establecido por ley para dar respuesta )*100"]
[null,"SC-180, Participación en ferias de servicio y eventos","(Número de participaciones en ferias de servicio y eventos/Número total de invitaciones a ferias de servicio y eventos)*100"]
[null,"SC-181, Calidad del servicio","(Nivel de satisfacción en cada aspecto evaluado en la Encuesta  / Total de aspectos evaluados en la Encuesta)"]
[null,"SC-182, Actualización de la información institucional en el Portal Web Institucional (PWI)","(Actualizaciones del PWI realizadas/actualizaciones del PWI solicitadas)*100"]
[null,"SC-183, Nivel de respuesta de PQRS ","(Número de solicitudes de respuesta a peticiones por vencer/Total de PQRS registradas )*100"]
[null,"SC-184, Apertura de canales de atención","(número total de aperturas de canales de atención realizadas  / número total de aperturas de canales de atención programadas )*100"]
[null,"No Aplica","Por favor crear un Indicador en la casilla \"Indicador de la Actividad\""]
[null,"GDTH-185, Cumplimiento del plan de capacitación","(Sumatoria del presupuesto ejecutado en capacitaciones /Presupuesto asignado para capacitaciones programadas)*100"]
[null,"GDTH-186, Asistencia a capacitaciones","(Número de asistentes a la capacitaciones / Total de programados a las capacitaciones)*100"]
[null,"GDTH-187, Frecuencia de los accidentes laborales ","(Número de accidentes de trabajo que se presentaron en el periodo \"Z\"/Total Horas hombre trabajadas en el periodo \"Z\")*240.000"]
[null,"GDTH-188, Severidad de los accidentes laborales","(Número de dias trabajados perdidos por acidente de trabajo en un periodo \"Z\"+número de dias cargados en el periodo \"Z\")*240.000/Horas hombre trabajadas en el periodo \"Z\""]
[null,"GDTH-189, Accidentabilidad laboral","(Numero de accidentes laborales del periodo Actual)*100/Numero Total de Trabajadores"]
[null,"GDTH-190, Variabilidad de la indice  de accidentabilidad en la Universidad Distrital","(Indice  de accidentabilidad periodo actual-indice  de accidentabilidad periodo anterior)*100/indice  de accidentabilidad periodo anterior"]
[null,"GDTH-191, Cumplimiento de las acciones correctivas","(Acciones correctivas efectuadas/Total de acciones correctivas determinadas)*100"]
[null,"GDTH-192, Cumplimiento Plan de Evaluaciones Medicas Laborales","(Evaluaciones medicas laborales realizadas/Total de evaluaciones medicas programadas)*100"]
[null,"GDTH-193, Cumplimiento Plan de Copasst","(Actividades del plan del copasst realizadas/Total de actividades del copasst programadas)*100"]
[null,"GDTH-194, Tiempo promedio de vacantes no cubiertas","(Número de días de las Vacantes no cubiertas/ Cantidad de Vacantes Abiertas)"]
[null,"GDTH-195, Cumplimiento del Plan de Incentivos    ","(Sumatoria de programas de  Incentivos ejecutados / Numero de Incentivos planeados)*100"]
[null,"GDTH-196, Cumplimiento del plan de Reinducción","(Sumatoria de Reinducciones realizadas al personal de planta / Numero de Reinducciones programadas)*100"]
[null,"GDTH-197, Cumplimiento del plan de Inducción","(Sumatoria de las Inducciones realizadas al personal de planta / Numero de Inducciones programadas)*100"]
[null,"GDTH-198, Desempeño de personal","(Número de funcionarios evaluados que obtuvieron un buen puntaje en la evaluación de desempeño / Total funcionarios evaluados) *100"]
[null,"GDTH-199, Satistación de  capacitaciones","(Capacitaciones evaluadas como satisfactorias / Total personas capacitadas)*100"]
[null,"GDTH-200, Satisfacción Proceso Gestión y Desarrollo del Talento Humano","(PQR referentes al proceso / Número total de tramites y Servicios radicados al Proceso)*100"]
[null,"GDTH-201, Rotación de personal contratista","((Numero de CPS contratados + Numero de CPS desvinculados)/2)x100/\n((Numero de personas al inicio del periodo considerado+Numero de personas al final del periodo considerado)/2)"]
[null,"GDTH-202, Rotación de personal de planta     ","((Numero de servidores publicos  contratados + Numero de servidores publicos desvinculados)/2)x100/\n((Numero de personas al inicio del periodo considerado+Numero de personas al final del periodo considerado)/2)"]
[null,"GDTH-203, Cumplimiento con el Plan de trabajo de SG- SST","(Número de actividades realizadas del Plan del SG-SST  / Número total de actividades programadas del Plan del SG-SST)x100"]
[null,"No Aplica","Por favor crear un Indicador en la casilla \"Indicador de la Actividad\""]
[null,"GIF - 204, Inventarios Actualizados","(número de inventarios actualizados/inventarios totales)*100"]
[null,"GIF - 205, Nivel de Mantenimientos Realizados por Contratos ","(Número de mantenimiento realizados por contratos/ Número total de mantenimientos) * 100"]
[null,"GIF - 206, Nivel de Inclusiones de Elementos en las Pólizas de Seguros Realizadas durante la Vigencia del Contrato","(Valor de las Inclusiones/Valor Inicial Proyectado para inclusiones)*100"]
[null,"GIF - 207, Nivel de Inclusiones de Elementos en las Pólizas de Seguros Realizadas durante la Vigencia del Contrato","(Valor de las Inclusiones/Valor Inicial Proyectado para inclusiones)*100"]
[null,"GIF - 208, Nivel de Mantenimientos Correctivos","(Cantidad de mantenientos correctivos/Cantidad de mantenientos realizados)*100"]
[null,"GIF - 209, Nivel de Elementos de Ferretería no Contemplados ","(Cantidad de elementos no contemplados/Cantidad total de elementos contemplados)*100"]
[null,"GIF - 210, Nivel de Ingresos a Taller no Programados","(Cantidad de ingresos a taller no programados /Cantidad total de ingresos a taller)*100"]
[null,"No Aplica","Por favor crear un Indicador en la casilla \"Indicador de la Actividad\""]
[null,"GDC-211, Oportunidad en la prestación de servicio de consulta y préstamo de documentos de la Universidad Distrital Francisco José de Caldas que custodia y administra el Archivo Central","(Nº de solicitudes de consulta y préstamo de documentos atendidas oportunamente por el archivo central/Nº total de solicitudes de  consulta y préstamo de documentos requeridas al archivo central)*100"]
[null,"GDC-212, Transferencias documentales primarias","(Transferencias primarias recibidas/Transferencias primarias programadas)*100"]
[null,"GDC-213, Utilización de espacio de almacenamiento y custodia","Capacidad almacenaje disponible - Capacidad de almacenaje utilizados "]
[null,"GDC-214, Inventarios documentales","(Número de inventarios documentales diligenciados / Número de inventarios documentales programados)*100"]
[null,"GDC-215, Tabla de retención documental aplicada correctamente","(Número de Archivos de Gestión con TRD aplicada correctamente / Número de Archivos de Gestión)*100"]
[null,"GDC-216, Cumplimiento capacitación de gestión documental para funcionarios","(Número de Funcionarios capacitados / Número de funcionarios programados para capacitaciones)*100"]
[null,"GDC-217, Metros lineales de documentos de archivo eliminados","Cantidad de metros lineales en Archivo Central para eliminación -Metros lineales de documentos eliminados "]
[null,"GDC-218, Documentos organizados acorde a las TRD","Número de Archivos de Gestión Organizados acorde a las TRD / Número Total de Archivos de Gestión)*100"]
[null,"GDC-219, Transferencias documentales secundarias","(Transferencias secundarias programadas / Transferencias secundarias derivadas de las TVD y TRD)*100"]
[null,"GDC-220, Cumplimiento de envíos de correspondencia","(Número de instrumentos de control de correspondencia utilizados / Número de instrumentos de control de correspondencia existentes)*100"]
[null,"No Aplica"]
[null,"GJ-221, Acciones de Tutela con Fallo a Favor de la Universidad","(Número de acciones de tutela con fallo a favor / Número de acciones de tutela presentadas en contra de la Universidad) * 100"]
[null,"GJ-222, Cumplimiento en la Elaboración de Contratos","(Número de contratos elaborados por la Oficina Asesora Jurídica / Número de solicitudes de contratación)*100"]
[null,"GJ-223, Fallos en Procesos Judiciales con Sentencia Definitiva a Favor de la Universidad","(Número de fallos con sentencia definitiva a favor de la\nUniversidad / Número de procesos judiciales en contra de la Universidad)*100"]
[null,"GJ-224, Oportunidad de Respuesta a Derechos de Petición","(Número de derechos de petición respondidos en el término legal / Número de derechos de petición presentados)*100"]
[null,"GJ-225, Cumplimiento en la Emisión de Conceptos Jurídicos","(Número de conceptos jurídicos emitidos en el término legal / Número de conceptos jurídicos solicitados)*100"]
[null,"No Aplica","Por favor crear un Indicador en la casilla \"Indicador de la Actividad\""]
[null,"GRF-226, Ejecución del Plan Anual de Caja","(Recursos ejecutados del Plan Anual de Caja / Recursos proyectados en el Plan Anual de Caja)*100"]
[null,"GRF-227, Cuentas de Reservas Pagas","(Cuentas de reservas pagas / Cuentas de reservas constituidas)*100"]
[null,"GRF-228, Depuración de Cuentas","(Partidas depuradas / Partidas identificadas a depurar)*100"]
[null,"GRF-229, Eficiencia en Pagos","(Número de obligaciones canceladas / Número de obligaciones recibidas)*100"]
[null,"GRF-230, Informes Contables","(Número de informes elaborados y presentados oportunamente / Número de informes requeridos )*100"]
[null,"GRF-231, Legalización de Avances","(Valor de los avances legalizados / Valor de los avances girados)*100"]
[null,"GRF-232, Movimiento de Certificados de Disponibilidad Presupuestal","(Número de movimientos o ejecuciones de CDP / Número de CDP expedidos)*100"]
[null,"GRF-233, Movimiento de Certificados de Registro Presupuestal","(Número de movimientos o ejecuciones de CDP / Número de CDP expedidos)*100"]
[null,"GRF-234, Órdenes de Pago Tramitadas","((Número de órdenes de pago tramitadas - Número de órdenes de pago anuladas) / Número solicitudes de órdenes de pago radicadas)*100"]
[null,"GRF-235, Registro de Ingresos","(Valor total recaudado en bancos / Valor total registrado en libros)*100"]
[null,"GRF-236, Registros Contables","(Número de registros contables realizados / Número de hechos económicos y financieros reportados)*100"]
[null,"No Aplica","Por favor crear un Indicador en la casilla \"Indicador de la Actividad\""]
[null,"GSIT-237, Aprovechamiento del rubro disponible","(Presupuesto ejecutado / Presupuesto asignado en vigencia)*100"]
[null,"GSIT-238, Disponibilidad de servicios TI","(Tiempo de los servicios prestados en actividad / Tiempo de medición)*100"]
[null,"GSIT-239, Solicitudes de TIC","(Total de solicitudes gestionadas /Total de solicitudes recibidas)*100"]
[null,"GSIT-240, Incidentes en la prestación de servicios TIC","(Número de incidentes ocurridos / Total de servicios prestados)*100"]
[null,"GSIT-241, Seguimiento a proyectos de TIC","(Tareas ejecutadas / Total de tareas programadas)*100"]
[null,"No Aplica","Por favor crear un Indicador en la casilla \"Indicador de la Actividad\""]
[null,"GC-242, Ejecución del plan anual de adquisiciones","(Número de procesos de selección para la contratación en el periodo / Número total de procesos de selección proyectados para el periodo)*100"]
[null,"GC-243, Celeridad en los procesos de contratación directa","Sumatoria de días desde la aprobación de la contratación hasta la expedición de la orden y/o contrato / Número total de solicitudes de contratación aprobadas"]
[null,"GC-244, Celeridad en los procesos de convocatoria pública","(Sumatoria de días desde la radicación de la solicitud en la  Vicerrectoría Administrativa y Financiera hasta la adjudicación / Número total de solicitudes radicadas en la  en la  Vicerrectoría Administrativa y Financiera para convocatoria pública)"]
[null,"GC-245, Declaratoria de desierto de procesos contractuales","(Número de procesos contractuales declarados de desierto / Número total de procesos contractuales realizados)*100"]
[null,"GC-246, Gestión de los recursos públicos","(Presupuesto ejecutado / Presupuesto programado)*100"]
[null,"GC-247, Ahorro logrado en los procesos contractuales","(Valor ahorrado en los procesos contractuales / Presupuesto programado)*100"]
[null,"GC-248, Calidad de los proveedores","(Número de proveedores que obtienen una calificación de desempeño aceptable / Número total de proveedores evaluados)*100"]
[null,"GC-249, Transparencia en los procesos contractuales (publicación)","(Número de procesos contractuales publicados / Número total de procesos contractuales realizados)*100"]
[null,"No Aplica","Por favor crear un Indicador en la casilla \"Indicador de la Actividad\""]
[null,"EC-250, Porcentaje de cumplimiento de plan de mejoramiento de las dependencias ","Número de acciones implementadas- en los planes de mejoramiento/ número de acciones propuestas en los planes de mejoramiento"]
[null,"EC-251, Porcentaje de cumplimiento de la entrega de la información solicitada por los entes de control","No. de informes entregados oportunamente/no. de informes solicitados por entes de control"]
[null,"EC-252, Porcentaje de cumplimiento del programa de auditorías y seguimientos","No. de auditorias y seguimientos realizadas / no. de\nauditorias y seguimientos dentro. \ndel programa de auditorias"]
[null,"EC-253, Porcentaje de procesos  a los cuales se les ha realizado una auditoria o seguimiento","No. de procesos a los cuales se les ha realizado una auditoria o seguimiento/ no. de procesos totales"]
[null,"No Aplica","Por favor crear un Indicador en la casilla \"Indicador de la Actividad\""]
[null,"CD-254, Oportuna atención de quejas y reclamos","(Número de quejas tramitadas / Número de quejas recibidas)*100"]
[null,"No Aplica","Por favor crear un Indicador en la casilla \"Indicador de la Actividad\""]